Workbook

Sheet Indice
B1: =+Control!C4 -> PROYECTO TIPO SELECCIÓN DE ALTERNATIVA DE MEJORAMIENTO PARA VÍAS TERCIARIAS
C4: Datos de entrada | I4: Datos de salida
C14: Nota: Esta ficha es un modelo de ejemplo. Adaptar a su proyecto.
C15: Identificación general del proyecto
D17: Nombre del proyecto: | F17: MEJORAMIENTO DE VÍAS TERCIARIAS EN EL MUNICIPIO DE BURITICÁ, DEPARTAMENTO DE ANTIOQUIA
D19: Jurisdicción municipal a la que pertenece la vía a intervenir. | F19: BURITICÁ
E20: Departamento | F20: ANTIOQUIA
D21: Nomenclatura del eje vial. | F21: VÍA EL CIENTO- TABACAL
D25: Vereda origen: | F25: EL CIELITO
D26: Vereda destino: | F26: TABACAL
D29: Referencia de la ubicación: | F29: Vía ubicada en el municipio de Buriticá, Departamento de Antioquia. Es una vía terciaria que se encuentra a 1 hora y media en vehículo del casco urbano del municipio de Buriticá, tomando la vía de acceso al municipio en dirección norte.
D32: Coordenadas punto origen: | F32: Norte: | G32: 1389914.38 | J32: Este | K32: 872882.83
D33: Coordenadas punto destino: | F33: Norte: | G33: 1384562.27 | J33: Este | K33: 872868.59

Sheet Unidades-Diseno (hidden)
B2: =+Control!C4 -> PROYECTO TIPO SELECCIÓN DE ALTERNATIVA DE MEJORAMIENTO PARA VÍAS TERCIARIAS
B3: Hoja Control de Unidades de Diseño
J5: =IF('N-Tramos'!E5>'Unidades-Diseno'!$C$7,"","Llenar datos tramo") -> Llenar datos tramo | K5: =IF('N-Tramos'!F5>'Unidades-Diseno'!$C$7,"","Llenar datos tramo") -> Llenar datos tramo | L5: =IF('N-Tramos'!G5>'Unidades-Diseno'!$C$7,"","Llenar datos tramo") -> Llenar datos tramo | M5: =IF('N-Tramos'!H5>'Unidades-Diseno'!$C$7,"","Llenar datos tramo") -> Llenar datos tramo | N5: =IF('N-Tramos'!I5>'Unidades-Diseno'!$C$7,"","Llenar datos tramo") -> Llenar datos tramo | O5: =IF('N-Tramos'!J5>'Unidades-Diseno'!$C$7,"","Llenar datos tramo") -> Llenar datos tramo | P5: =IF('N-Tramos'!K5>'Unidades-Diseno'!$C$7,"","Llenar datos tramo") -> Llenar datos tramo | Q5: =IF('N-Tramos'!L5>'Unidades-Diseno'!$C$7,"","Llenar datos tramo") -> Llenar datos tramo | R5: =IF('N-Tramos'!M5>'Unidades-Diseno'!$C$7,"","Llenar datos tramo") -> Llenar datos tramo | S5: =IF('N-Tramos'!N5>'Unidades-Diseno'!$C$7,"","Llenar datos tramo") -> Llenar datos tramo
B6: General | H6: ID Tramos | J6: =IF('N-Tramos'!E5>'Unidades-Diseno'!$C$7,"",'N-Tramos'!E5) -> 1 | K6: =IF('N-Tramos'!F5>'Unidades-Diseno'!$C$7,"",'N-Tramos'!F5) -> 2 | L6: =IF('N-Tramos'!G5>'Unidades-Diseno'!$C$7,"",'N-Tramos'!G5) -> 3 | M6: =IF('N-Tramos'!H5>'Unidades-Diseno'!$C$7,"",'N-Tramos'!H5) -> 4 | N6: =IF('N-Tramos'!I5>'Unidades-Diseno'!$C$7,"",'N-Tramos'!I5) -> 5 | O6: =IF('N-Tramos'!J5>'Unidades-Diseno'!$C$7,"",'N-Tramos'!J5) -> 6 | P6: =IF('N-Tramos'!K5>'Unidades-Diseno'!$C$7,"",'N-Tramos'!K5) -> 7 | Q6: =IF('N-Tramos'!L5>'Unidades-Diseno'!$C$7,"",'N-Tramos'!L5) -> 8 | R6: =IF('N-Tramos'!M5>'Unidades-Diseno'!$C$7,"",'N-Tramos'!M5) -> 9 | S6: =IF('N-Tramos'!N5>'Unidades-Diseno'!$C$7,"",'N-Tramos'!N5) -> 10 | T6: =IF('N-Tramos'!O5>'Unidades-Diseno'!$C$7,"",'N-Tramos'!O5) ->  | U6: =IF('N-Tramos'!P5>'Unidades-Diseno'!$C$7,"",'N-Tramos'!P5) ->  | V6: Tramo | W6: CAPA DE MATERIAL | X6: Tratamiento | Y6: ESPESOR (Pulg) | Z6: ESPESOR (cm) | AA6: =IF('N-Tramos'!W5>'Unidades-Diseno'!$C$7,"",'N-Tramos'!W5) ->  | AB6: =IF('N-Tramos'!X5>'Unidades-Diseno'!$C$7,"",'N-Tramos'!X5) ->  | AC6: =IF('N-Tramos'!Y5>'Unidades-Diseno'!$C$7,"",'N-Tramos'!Y5) ->  | AD6: =IF('N-Tramos'!Z5>'Unidades-Diseno'!$C$7,"",'N-Tramos'!Z5) ->  | AE6: =IF('N-Tramos'!AA5>'Unidades-Diseno'!$C$7,"",'N-Tramos'!AA5) ->  | AF6: =IF('N-Tramos'!AB5>'Unidades-Diseno'!$C$7,"",'N-Tramos'!AB5) ->  | AG6: =IF('N-Tramos'!AC5>'Unidades-Diseno'!$C$7,"",'N-Tramos'!AC5) ->  | AH6: =IF('N-Tramos'!AD5>'Unidades-Diseno'!$C$7,"",'N-Tramos'!AD5) ->  | AI6: =IF('N-Tramos'!AE5>'Unidades-Diseno'!$C$7,"",'N-Tramos'!AE5) ->  | AJ6: =IF('N-Tramos'!AF5>'Unidades-Diseno'!$C$7,"",'N-Tramos'!AF5) ->  | AK6: =IF('N-Tramos'!AG5>'Unidades-Diseno'!$C$7,"",'N-Tramos'!AG5) ->  | AL6: =IF('N-Tramos'!AH5>'Unidades-Diseno'!$C$7,"",'N-Tramos'!AH5) -> 
B7: Número de tramos | C7: 10 | G7: Geometría vial | H7: Longitud tramo recto (m) | J7: =IF(J$6="","",LONGITUD) -> 3050 | K7: =IF(K$6="","",'Eval-Economica (2)'!LONGITUD) -> 5000 | L7: =IF(L$6="","",[0]!LONGITUD) -> 3050 | M7: =IF(M$6="","",'Eval-Economica (4)'!LONGITUD) -> 5000 | N7: =IF(N$6="","",[0]!LONGITUD) -> 3050 | O7: =IF(O$6="","",'Eval-Economica (6)'!LONGITUD) -> 5000 | P7: =IF(P$6="","",[0]!LONGITUD) -> 3050 | Q7: =IF(Q$6="","",'Eval-Economica (8)'!LONGITUD) -> 5000 | R7: =IF(R$6="","",'Eval-Economica (9)'!LONGITUD) -> 5000 | S7: =IF(S$6="","",'Eval-Economica (10)'!LONGITUD) -> 5000 | U7: =IF(U$6="","",1) ->  | W7: Rodadura | X7: =VLOOKUP($H$105,'Matriz-Multicriterio'!$M$38:$R$45,5,0) ->  | Y7: =+Z7*0.393701 -> 1.181103 | Z7: 3
H8: Longitud tramo de alta pendiente>10% (m) | J8: =IF(J$6="","",'Eval-Economica'!$M$6) -> 0 | K8: =IF(K$6="","",'Eval-Economica (2)'!$M$6) -> 80 | L8: =IF(L$6="","",'Eval-Economica (3)'!$M$6) -> 10 | M8: =IF(M$6="","",'Eval-Economica (4)'!$M$6) -> 50 | N8: =IF(N$6="","",'Eval-Economica (5)'!$M$6) -> 10 | O8: =IF(O$6="","",'Eval-Economica (6)'!$M$6) -> 50 | P8: =IF(P$6="","",'Eval-Economica (7)'!$M$6) -> 10 | Q8: =IF(Q$6="","",'Eval-Economica (8)'!$M$6) -> 50 | R8: =IF(R$6="","",'Eval-Economica (9)'!$M$6) -> 50 | S8: =IF(S$6="","",'Eval-Economica (10)'!$M$6) -> 50 | X8: =VLOOKUP($H$105,'Matriz-Multicriterio'!$M$38:$R$45,6,0) ->  | Y8: =+Z8*0.393701 ->  | Z8: =IF(X8="N/A",0,AF9) -> 
H9: Longitud total (m) | J9: =IF(J$6="","",SUM(J7:J8)) -> 3050 | K9: =IF(K$6="","",SUM(K7:K8)) -> 5080 | L9: 3060 | M9: =IF(M$6="","",SUM(M7:M8)) -> 5050 | N9: 3060 | O9: 5050 | P9: 3060 | Q9: 5050 | R9: 5050 | S9: 5050 | X9: =VLOOKUP($H$105,'Matriz-Multicriterio'!$M$38:$R$45,6,0) ->  | Y9: =+Z9*0.393701 ->  | Z9: =IF(X9="N/A",0,AF10) -> 
H10: Ancho de calzada (m) | J10: =IF(J$6="","",ANCHOVIA) -> 5.3 | K10: =IF(K$6="","",'Eval-Economica (2)'!$E$13) -> 3 | L10: =IF(L$6="","",'Eval-Economica (3)'!$E$13) -> 7.2 | M10: =IF(M$6="","",'Eval-Economica (4)'!$E$13) -> 3 | N10: =IF(N$6="","",'Eval-Economica (5)'!$E$13) -> 7.2 | O10: =IF(O$6="","",'Eval-Economica (6)'!$E$13) -> 3 | P10: =IF(P$6="","",'Eval-Economica (7)'!$E$13) -> 7.2 | Q10: =IF(Q$6="","",'Eval-Economica (8)'!$E$13) -> 5 | R10: =IF(R$6="","",'Eval-Economica (9)'!$E$13) -> 3 | S10: =IF(S$6="","",'Eval-Economica (10)'!$E$13) -> 3 | T10: =IF(T$6="","",1) ->  | X10: =IF(#REF!<0.03,"Mejoramiento de subrasante con Pedraplen","Mejoramiento de subrasante NO requerido") ->  | Y10: =+Z10*0.393701 ->  | Z10: =IF(X10="Mejoramiento de subrasante NO requerido",0,Nomogramas!#REF!*(#REF!*100)+Nomogramas!#REF!) -> 
G11: Tránsito | H11: Ejes equivalentes 80 KN | J11: =IF(J$6="","",Control!$J$53) -> 256590.0468 | K11: =IF(K$6="","",'Control (2)'!$J$49) -> 832822.527 | L11: =IF(L$6="","",'Control (3)'!$J$49) -> 461330.2628 | M11: =IF(M$6="","",'Control (4)'!$J$49) -> 461330.2628 | N11: =IF(N$6="","",'Control (5)'!$J$49) -> 461330.2628 | O11: =IF(O$6="","",'Control (6)'!$J$49) -> 461330.2628 | P11: =IF(P$6="","",'Control (7)'!$J$49) -> 461330.2628 | Q11: =IF(Q$6="","",'Control (8)'!$J$49) -> 461330.2628 | R11: =IF(R$6="","",'Control (9)'!$J$49) -> 461330.2628 | S11: =IF(S$6="","",'Control (10)'!$J$49) -> 461330.2628
G12: Clima | H12: Clasificación climática por humedad | J12: =IF(J$6="","",Control!$J$18) -> Arido | K12: =IF(K$6="","",'Control (2)'!$J$14) -> Subhúmedo | L12: =IF(L$6="","",'Control (3)'!$J$14) -> Subhúmedo | M12: =IF(M$6="","",'Control (4)'!$J$14) -> Semiarido | N12: =IF(N$6="","",'Control (5)'!$J$14) -> Subhúmedo | O12: =IF(O$6="","",'Control (6)'!$J$14) -> Subhúmedo | P12: =IF(P$6="","",'Control (7)'!$J$14) -> Subhúmedo | Q12: =IF(Q$6="","",'Control (8)'!$J$14) -> Subhúmedo | R12: =IF(R$6="","",'Control (9)'!$J$14) -> Subhúmedo | S12: =IF(S$6="","",'Control (10)'!$J$14) -> Subhúmedo
H13: Clasificación climática por temperatura | J13: =IF(J$6="","",Control!$J$19) -> Calido | K13: =IF(K$6="","",'Control (2)'!$J$15) -> Arido | L13: =IF(L$6="","",'Control (3)'!$J$15) -> Arido | M13: =IF(M$6="","",'Control (4)'!$J$15) -> Arido | N13: =IF(N$6="","",'Control (5)'!$J$15) -> Arido | O13: =IF(O$6="","",'Control (6)'!$J$15) -> Arido | P13: =IF(P$6="","",'Control (7)'!$J$15) -> Arido | Q13: =IF(Q$6="","",'Control (8)'!$J$15) -> Arido | R13: =IF(R$6="","",'Control (9)'!$J$15) -> Arido | S13: =IF(S$6="","",'Control (10)'!$J$15) -> Arido
G14: Evaliuación geotécnica de la subrasante | H14: CBR subrasante (%) | J14: =IF(J$6="","",Control!$F$17) -> 0.026 | K14: =IF(K$6="","",'Control (2)'!$F$13) -> 0.03 | L14: =IF(L$6="","",'Control (3)'!$F$13) -> 0.03 | M14: =IF(M$6="","",'Control (4)'!$F$13) -> 0.03 | N14: =IF(N$6="","",'Control (5)'!$F$13) -> 0.03 | O14: =IF(O$6="","",'Control (6)'!$F$13) -> 0.03 | P14: =IF(P$6="","",'Control (7)'!$F$13) -> 0.03 | Q14: =IF(Q$6="","",'Control (8)'!$F$13) -> 0.03 | R14: =IF(R$6="","",'Control (9)'!$F$13) -> 0.03 | S14: =IF(S$6="","",'Control (10)'!$F$13) -> 0.03
H15: Índice de plasticidad (%) | J15: =IF(J$6="","",Control!$F$18) -> 0.15 | K15: =IF(K$6="","",'Control (2)'!$F$14) -> 0.15 | L15: =IF(L$6="","",'Control (3)'!$F$14) -> 0.15 | M15: =IF(M$6="","",'Control (4)'!$F$14) -> 0.15 | N15: =IF(N$6="","",'Control (5)'!$F$14) -> 0.15 | O15: =IF(O$6="","",'Control (6)'!$F$14) -> 0.15 | P15: =IF(P$6="","",'Control (7)'!$F$14) -> 0.15 | Q15: =IF(Q$6="","",'Control (8)'!$F$14) -> 0.15 | R15: =IF(R$6="","",'Control (9)'!$F$14) -> 0.15 | S15: =IF(S$6="","",'Control (10)'!$F$14) -> 0.15
H16: Clasificación S.U.C.S. | J16: =IF(J$6="","",Control!$G$20) -> Arena limosa SM | K16: =IF(K$6="","",'Control (2)'!$G$16) -> Arena limosa SM | L16: =IF(L$6="","",'Control (3)'!$G$16) -> Arena limosa SM | M16: =IF(M$6="","",'Control (4)'!$G$16) -> Arena limosa SM | N16: =IF(N$6="","",'Control (5)'!$G$16) -> Arena limosa SM | O16: =IF(O$6="","",'Control (6)'!$G$16) -> Arena limosa SM | P16: =IF(P$6="","",'Control (7)'!$G$16) -> Arena limosa SM | Q16: =IF(Q$6="","",'Control (8)'!$G$16) -> Arena limosa SM | R16: =IF(R$6="","",'Control (9)'!$G$16) -> Arena limosa SM | S16: =IF(S$6="","",'Control (10)'!$G$16) -> Arena limosa SM
H17: Clasificación A.A.H.S.T.O. | J17: =IF(J$6="","",Control!$F$22) -> A-2-4 Grava y arena arcillosa o limosa | K17: =IF(K$6="","",'Control (2)'!$F$18) -> A-2-4 Grava y arena arcillosa o limosa | L17: =IF(L$6="","",'Control (3)'!$F$18) -> A-2-4 Grava y arena arcillosa o limosa | M17: =IF(M$6="","",'Control (4)'!$F$18) -> A-2-4 Grava y arena arcillosa o limosa | N17: =IF(N$6="","",'Control (5)'!$F$18) -> A-2-4 Grava y arena arcillosa o limosa | O17: =IF(O$6="","",'Control (6)'!$F$18) -> A-2-4 Grava y arena arcillosa o limosa | P17: =IF(P$6="","",'Control (7)'!$F$18) -> A-2-4 Grava y arena arcillosa o limosa | Q17: =IF(Q$6="","",'Control (8)'!$F$18) -> A-2-4 Grava y arena arcillosa o limosa | R17: =IF(R$6="","",'Control (9)'!$F$18) -> A-2-4 Grava y arena arcillosa o limosa | S17: =IF(S$6="","",'Control (10)'!$F$18) -> A-2-4 Grava y arena arcillosa o limosa
G18: Condiciones de drenaje | H18: Estado de Cunetas | J18: =IF(J$6="","",Control!$J$34) -> Malo | K18: =IF(K$6="","",'Control (2)'!$J$30) -> Malo | L18: =IF(L$6="","",'Control (3)'!$J$30) -> Malo | M18: =IF(M$6="","",'Control (4)'!$J$30) -> Malo | N18: =IF(N$6="","",'Control (5)'!$J$30) -> Malo | O18: =IF(O$6="","",'Control (6)'!$J$30) -> Malo | P18: =IF(P$6="","",'Control (7)'!$J$30) -> Malo | Q18: =IF(Q$6="","",'Control (8)'!$J$30) -> Malo | R18: =IF(R$6="","",'Control (9)'!$J$30) -> Malo | S18: =IF(S$6="","",'Control (10)'!$J$30) -> Malo
H19: Estado de Alcantarillas | J19: =IF(J$6="","",Control!$J$35) -> Malo | K19: =IF(K$6="","",'Control (2)'!$J$31) -> Malo | L19: =IF(L$6="","",'Control (3)'!$J$31) -> No existe | M19: =IF(M$6="","",'Control (4)'!$J$31) -> Malo | N19: =IF(N$6="","",'Control (5)'!$J$31) -> Malo | O19: =IF(O$6="","",'Control (6)'!$J$31) -> Malo | P19: =IF(P$6="","",'Control (7)'!$J$31) -> Malo | Q19: =IF(Q$6="","",'Control (8)'!$J$31) -> Malo | R19: =IF(R$6="","",'Control (9)'!$J$31) -> Malo | S19: =IF(S$6="","",'Control (10)'!$J$31) -> Malo
G23: Diseño con mejor puntaje para cada unidad
G24: medidas de referencia sin escala
H31: =IF('N-Tramos'!E5>'Unidades-Diseno'!$C$7,"","Tramo 1") -> Tramo 1 | L31: =IF('N-Tramos'!E5>'Unidades-Diseno'!$C$7,"","Tramo 4") -> Tramo 4 | P31: Tramo 7
H51: =IF('N-Tramos'!E5>'Unidades-Diseno'!$C$7,"","Tramo 2") -> Tramo 2 | L51: =IF('N-Tramos'!E5>'Unidades-Diseno'!$C$7,"","Tramo 5") -> Tramo 5 | P51: Tramo 8
A61: SI
A62: NO
H69: =IF('N-Tramos'!E5>'Unidades-Diseno'!$C$7,"","Tramo 3") -> Tramo 3 | L69: =IF('N-Tramos'!E5>'Unidades-Diseno'!$C$7,"","Tramo 6") -> Tramo 6 | P69: Tramo 9
P87: Tramo 10

Sheet Diseno-AASHTO
A2: Algoritmo de diseño del Método AASHTO-93 con variables de diseño para pavimentos con bajos volumenes de tránsito
A5: VARIABLES DE DISEÑO | G5: VALORES CALCULADOS
A6: Tránsito | B6: W18 | C6: =+Control!J53 -> 256590.0468 | G6: Indice de serviciabilidad | H6: =4.2-C10 -> 2
A7: Confiabilidad | B7: R (%) | C7: 70 | G7: Coeficiente estructural a1 | H7: =0.184*LN(C15)-1.9547 -> 0.4109574762 | I7: El tratamiento superficial no aporta estructuralmente al diseño
A8: Desviación | B8: Zr [-] | C8: 0.524 | G8: Coeficiente estructural a2 | H8: =+C14 -> 0.14
A9: Error estándar | B9: so [-] | C9: 0.4 | G9: Coeficiente estructural a3 | H9: =0.227*LOG(C12)-0.839 -> 0.1089727158
A10: Índice de serviciabilidad final | B10: pf [-] | C10: 2.2 | G10: h1 [pulgadas] | H10: =+C21/H7 -> -0.01009000556
A11: Módulo resiliente de la subrasante | B11: Mrsubr [psi] | C11: =IF(Control!$F$17>0.03,((Control!$F$17*100)*10)*142,((0.04*100)*10)*142) -> 5680 | G11: h1 [cm] | H11: =+H10*2.54 -> -0.02562861414
A12: Módulo resiliente de la subbase | B12: MrSBG [psi] | C12: 15000 | G12: SN1* | H12: =C26*H7/2.54 -> 0
A13: Módulo resiliente de la base estabilizada | B13: MrBEE [psi] | C13: 650000 | G13: h2 [pulgadas] | H13: =+(C22-H12)/(H8*C16) -> 11.02826437
A14: Coeficiente estructural a2 | B14: a2 [-] | C14: 0.14 | G14: h2 [cm] | H14: =+H13*2.54 -> 28.01179151
A15: Módulo resiliente de la capa asfáltica | B15: Mrconcerto asf. [psi] | C15: =2700*142 -> 383400 | G15: SN2* | H15: =+C27*H8*C16/2.54+H12 -> 0.8267716535
A16: Coeficiente de drenaje base estabilizada | B16: m2 [-] | C16: 1 | G16: h3 [pulgadas] | H16: =+(C23-H15)/(H9*C17) -> 14.63776026
A17: Coeficiente de drenaje subbase granular | B17: m3 [-] | C17: 0.9 | G17: h3 [cm] | H17: =+H16*2.54 -> 37.17991107
A19: CÁLCULO DE NÚMEROS ESTRUCTURALES DE CAPA
A20: Logaritmo de la variable tránsito | B20: Log (W18) | C20: 5.409239806 | D20: =+LOG10(C6) -> 5.409239806
A21: Número Estructural capa asfáltica | B21: SN1 | C21: -0.004146563221 | E21: =+C8*C9+9.36*LOG10(C21+1)-0.2+(LOG10(H6/2.7)/(0.4+(1094/(C21+1)^5.19)))+2.32*LOG10(C13)-8.07 -> 5.408551628
A22: Número Estructural de la subbase | B22: SN2 | C22: 1.543957012 | E22: =+C8*C9+9.36*LOG10(C22+1)-0.2+(LOG10(H6/2.7)/(0.4+(1094/(C22+1)^5.19)))+2.32*LOG10(C12)-8.07 -> 5.409219175
A23: Número Estructural de la base estabilizada | B23: SN3 | C23: 2.262376494 | E23: =+C8*C9+9.36*LOG10(C23+1)-0.2+(LOG10(H6/2.7)/(0.4+(1094/(C23+1)^5.19)))+2.32*LOG10(C11)-8.07 -> 5.409224963
A25: ESPESORES DE CAPA ASUMIDOS
A26: Espesor de capa asfáltica | B26: h1 [cm] | C26: 0 | D26: Es 0 ya que el tratamiento superficial no aporta estructuralmente al diseño
A27: Espesor de base tratada o estabilizada deseado | B27: h2 [cm] | C27: 15 | D27: Se recomienda 20 cm pero puede variar. Celda modificable
A30: DIMENSIÓN DE LA ESTRUCTURA DISEÑO CON ESTABILIZACIÓNES ALTERNATIVAS
A31: Espesor de capa asfáltica | B31: h1 [cm] | C31: =+C26 -> 0
A32: Espesor de base tratada o estabilizada | B32: h2 [cm] | C32: =+C27 -> 15
A33: Espesor de subbase granular | B33: h3 [cm] | C33: =+H17 -> 37.17991107

Sheet Salida-Diseno
B2: Diseño de alternativa seleccionada | J2: Hacer otro diseño
N4: Tipo | O4: CAPA DE MATERIAL | P4: Tratamiento | Q4: Abreviatura | R4: ESPESOR (cm)
O5: Rodadura | P5: =+Control!F64 -> Lechada Asfática | Q5: TSD | R5: =+Control!J64 -> 3
O6: Base Granular | P6: =+Control!F65 -> Estabilizada con emulsión asfáltica | Q6: BECal | R6: =+Control!J65 -> 15
O7: Sub Base Granular | P7: =+Control!F66 -> SUBBASE GRANULAR CLASE C | Q7: SBG | R7: =+Control!J66 -> 37.17991107
O8: Subrasante | P8: =+B16 -> Se debe mejorar 6.1 cm de subrasante para alcanzar un CBR recomendado de 4% | Q8: SR | R8: =+Control!J67 -> 6.1
B16: =IF(Control!F67="MEJORAMIENTO DE LA SUBRASANTE CON ADICION DE MATERIALES",CONCATENATE(Control!G74," ",Control!H74," ",Control!I74),"MEJORAMIENTO DE LA SUBRASANTE NO REQUERIDO") -> Se debe mejorar 6.1 cm de subrasante para alcanzar un CBR recomendado de 4%
B17: =IF(AND($R$6=0,$R$7=0),"NO SE REQUIERE BASE Y SUBBASE, SÓLO TRATAMIENTO SUPERFICIAL"," ") -> 
B19: Alternativa seleccionada
B20: =Control!F69 -> Base estabilizada con emulsión asfáltica+Lechada asfáltica

Sheet Control
C4: PROYECTO TIPO SELECCIÓN DE ALTERNATIVA DE MEJORAMIENTO PARA VÍAS TERCIARIAS
D5: EVALUACIÓN ALTERNATIVAS INTERVENCIÓN VÍAS TERCIARIAS:
D6: IMPLEMENTACIÓN CONPES 3857 LINEAMIENTOS DE POLÍTICA PARA LA GESTIÓN DE LA RED TERCIARIA
E16: DATOS GEOTÉCNICOS DE LA SUBRASANTE
E17: CBR | F17: =+'CBR-Insitu'!H47 -> 0.026 | I17: TEMPERATURA MEDIA ANUAL PROMEDIO (Cº) | J17: 27.8
E18: Índice de plasticidad | F18: =+LAtterberg!E58 -> 0.15 | I18: CONDICIÓN DE HUMEDAD | J18: Arido
I19: CONDICIÓN CLIMÁTICA POR TEMPERATURA | J19: Calido
E20: Clasificación S.U.C.S. | F20: =+Clasificacion!B75 -> Suelo de partículas gruesas. Suelo de partículas gruesas con finos (suelo sucio). | G20: =Clasificacion!B76 -> Arena limosa SM | I20: ¿EN EL TRAMO EVALUADO PRESENTA ZONAS CON ALTAS PENDIENTES? | J20: Sí
E22: Clasificación A.A.H.S.T.O. | F22: =Clasificacion!I28 -> A-2-4 Grava y arena arcillosa o limosa | I22: ANCHO SECCIÓN TRANSVERSAL TOTAL (m) | J22: 5.3
I23: LONGITUD DEL TRAMO PLANO (m) | J23: 3050 | Q23: Subrasante | S23: Sí | T23: Afirmado | U23: Arido | V23: Plano | Y23: Bueno | Z23: Calido
E24: Índice de Grupo | F24: =Clasificacion!L30 -> 0 | I24: LONGITUD DEL TRAMO ALTA PENDIENTE>10% (m) | J24: =850+1480 -> 2330 | Q24: Base Granular | S24: No | T24: Tierra | U24: Semiarido | V24: Ondulado | Y24: Malo | Z24: Templado
I25: LONGITUD DEL TRAMO TOTAL (m) | J25: =+J23+J24 -> 5380 | Q25: Sub Base Granular | U25: Subhúmedo | V25: Montañoso | Y25: No existe | Z25: Frío
Q26: Lechada asfáltica | U26: Húmedo | V26: Escarpado
I27: Distancia a cantera de materiales pétreos de buena calidad (km) | J27: 16 | Q27: Tratamiento Superficial Doble | U27: Superhúmedo
I28: ¿Disponibilidad de trituradora en la cantera de materiales petreos? | J28: No
I29: Distancia a proveedores de materiales bituminosos (km) | J29: 7
I31: Distancia a proveedores de cemento (km) | J31: 150
I33: Estado de las obras de drenaje:
I34: Cunetas | J34: Malo
I35: Alcantarillas | J35: Malo
I37: TPD | J37: 250
I38: % LIVIANOS (MOTOS, CARROS, CAMPEROS) | J38: 0.81
I39: % BUSES | J39: 0
I40: % CAMIONES | J40: 0.19
I41: ¿Se evidencia paso de camiones de más de 3 ejes? | J41: No
I43: Factor Camión | J43: =IF(J41="Sí",(((J39*J37)*1+(((J40*J37)*'Eval-Economica'!N13)*'Eval-Economica'!M12)+((((J40*J37)*'Eval-Economica'!N13))*'Eval-Economica'!M13)+((((J40*J37)*'Eval-Economica'!N14))*'Eval-Economica'!M14)+((((J40*J37)*'Eval-Economica'!N15))*'Eval-Economica'!M15))/(J37*(SUM(J39:J40)))),(((J39*J37)*1+(((J40*J37)*'Eval-Economica'!O12)*'Eval-Economica'!M12)+((((J40*J37)*'Eval-Economica'!O13))*'Eval-Economica'!M13)+((((J40*J37)*'Eval-Economica'!O14))*'Eval-Economica'!M14))/(J37*(SUM(J39:J40))))) -> 2.78098
I46: Sección de cálculo
I47: Cálculo de ejes equivalentes
I48: Periodo de diseño (años) | J48: 5
I49: Tasa de crecimiento del tránsito | J49: 0.025
I50: k1 Factor vehiculos pesados | J50: =J39+J40 -> 0.19
I51: k2 Factor carril | J51: =IF(ANCHOPAV<5,1,IF(AND(ANCHOPAV>=5,ANCHOPAV<6),0.75,IF(ANCHOPAV>=6,0.5,""))) -> 1
I52: Factor Camión | J52: =+J43 -> 2.78098
I53: N ejes equivalentes | J53: =J37*J50*J51*365*(((1+J49)^J48-1)/LN(1+J49))*J52 -> 256590.0468
I55: =IF(J53>500000,"No se recomienda uso de la presente herramienta ya que el Nivel de Tránsito supera el número de ejes equivalentes para diseño con criterio de red terciaria y bajos volumenes de tránsito","") -> 
E62: CAPA DE MATERIAL | F62: Tratamiento | I62: ESPESOR (Pulg) | J62: ESPESOR (cm)
E64: Rodadura | F64: =VLOOKUP($H$115,'Matriz-Multicriterio'!$M$38:$R$45,5,0) -> Lechada Asfática | I64: =+J64*0.393701 -> 1.181103 | J64: 3
E65: Base Granular | F65: =VLOOKUP($H$115,'Matriz-Multicriterio'!$M$38:$R$45,6,0) -> Estabilizada con emulsión asfáltica | I65: =+J65*0.393701 -> 5.905515 | J65: =IF(F65="N/A sólo mejora rodadura ",0,'Diseno-AASHTO'!C32) -> 15 | P65: 15
E66: Sub Base Granular | F66: =VLOOKUP($H$115,'Matriz-Multicriterio'!$M$38:$T$493,7,0) -> SUBBASE GRANULAR CLASE C | I66: =+J66*0.393701 -> 14.63776817 | J66: =IF(F66="N/A sólo mejora rodadura",0,'Diseno-AASHTO'!C33) -> 37.17991107 | P66: 20
E67: Subrasante | F67: =IF(F17<0.03,"MEJORAMIENTO DE LA SUBRASANTE CON ADICION DE MATERIALES","MEJORAMIENTO DE LA SUBRASANTE NO REQUERIDO") -> MEJORAMIENTO DE LA SUBRASANTE CON ADICION DE MATERIALES | I67: =+J67*0.393701 -> 2.4015761 | J67: =IF(F67="MEJORAMIENTO DE LA SUBRASANTE NO REQUERIDO",0,ROUNDUP(Nomogramas!W40*(F17*100)+Nomogramas!W39,1)) -> 6.1
E69: Metodología recomendada en pre-factibilidad | F69: =VLOOKUP(H115,'Matriz-Multicriterio'!$M$38:$O$45,3,0) -> Base estabilizada con emulsión asfáltica+Lechada asfáltica
E71: Categoria de la subrasante | G71: Recomendaciones sobre el mejoramiento de la subrasante
E72: =IF(F17<=0.03,"S1",IF(AND(F17>0.03,F17<=0.05),"S2",IF(AND(F17>0.05,F17<=0.1),"S3",IF(F17>0.1,"S4","error")))) -> S1
E73: Comportamiento como subrasante
E74: =IF(E72="S1","Malo",IF(E72="S2","Regular",IF(E72="S3","Bueno",IF(E72="S4","Muy Bueno","error")))) -> Malo | G74: =IF(F67="MEJORAMIENTO DE LA SUBRASANTE CON ADICION DE MATERIALES","Se debe mejorar","") -> Se debe mejorar | H74: =IF(F67="MEJORAMIENTO DE LA SUBRASANTE CON ADICION DE MATERIALES",J67,"") -> 6.1 | I74: =IF(F67="MEJORAMIENTO DE LA SUBRASANTE CON ADICION DE MATERIALES","cm de subrasante para alcanzar un CBR recomendado de 4%","") -> cm de subrasante para alcanzar un CBR recomendado de 4%
I75: =IF(F67="MEJORAMIENTO DE LA SUBRASANTE CON ADICION DE MATERIALES","","MEJORAMIENTO DE LA SUBRASANTE NO REQUERIDO") -> 
G78: Recomendaciones sobre el uso de placa huella
G81: =IF(J24>0,"Se debe implementar","") -> Se debe implementar | H81: =IF(J24>0,J24,"") -> 2330 | I81: =IF(J24>0,"m de placa huella","") -> m de placa huella
I82: =IF(J24=0,"PLACA HUELLA NO REQUERIDA, PENDIENTES LONGITUDINALES<10% EN TODO EL TRAMO DEL PROYECTO","") -> 
H115: =MAX('Matriz-Multicriterio'!M38:M45) -> 9.625
F133: N/A sólo mejora rodadura

Sheet Control (2) (hidden)
C4: PROYECTO TIPO SELECCIÓN DE ALTERNATIVA DE MEJORAMIENTO PARA VÍAS TERCIARIAS
D5: EVALUACIÓN ALTERNATIVAS INTERVENCIÓN VÍAS TERCIARIAS:
D6: IMPLEMENTACIÓN CONPES 3857 LINEAMIENTOS DE POLÍTICA PARA LA GESTIÓN DE LA RED TERCIARIA
O9: TRAMO 2
E12: DATOS GEOTÉCNICOS DE LA SUBRASANTE
E13: CBR | F13: 0.03 | I13: TEMPERATURA MEDIA ANUAL PROMEDIO (Cº) | J13: 25
E14: Índice de plasticidad | F14: =+LAtterberg!E58 -> 0.15 | I14: CONDICIÓN DE HUMEDAD | J14: Subhúmedo
I15: CONDICIÓN CLIMÁTICA POR TEMPERATURA | J15: Arido
E16: Clasificación S.U.C.S. | F16: =+Clasificacion!B75 -> Suelo de partículas gruesas. Suelo de partículas gruesas con finos (suelo sucio). | G16: =Clasificacion!B76 -> Arena limosa SM | I16: ¿EN EL TRAMO EVALUADO PRESENTA ZONAS CON ALTAS PENDIENTES? | J16: Sí
E18: Clasificación A.A.H.S.T.O. | F18: =Clasificacion!I28 -> A-2-4 Grava y arena arcillosa o limosa
I19: LONGITUD DEL TRAMO PLANO (m) | J19: 100 | Q19: Subrasante | S19: Sí | T19: Afirmado | U19: Arido | V19: Plano | Y19: Bueno | Z19: Calido
E20: Índice de Grupo | F20: =Clasificacion!L30 -> 0 | I20: LONGITUD DEL TRAMO ALTA PENDIENTE (m) | J20: 15 | Q20: Base Granular | S20: No | T20: Tierra | U20: Semiarido | V20: Ondulado | Y20: Malo | Z20: Templado
I21: LONGITUD DEL TRAMO TOTAL (m) | J21: =+J19+J20 -> 115 | Q21: Sub Base Granular | U21: Subhúmedo | V21: Montañoso | Y21: No existe | Z21: Frío
Q22: Lechada asfáltica | U22: Húmedo | V22: Escarpado
I23: Distancia a cantera de materiales pétreos de buena calidad (km) | J23: 150 | Q23: Tratamiento Superficial Doble | U23: Superhúmedo
I24: ¿Disponibilidad de trituradora en la cantera de materiales petreos? | J24: Sí
I25: Distancia a proveedores de materiales bituminosos (km) | J25: 21
I26: Distancia a proveedores de cal (km) | J26: 50
I27: Distancia a proveedores de cemento (km) | J27: 22
I29: Estado de las obras de drenaje:
I30: Cunetas | J30: Malo
I31: Alcantarillas | J31: Malo
I33: TPD | J33: 700
I34: % LIVIANOS (MOTOS, CARROS, CAMPEROS) | J34: 0.8
I35: % BUSES | J35: 0.05
I36: % CAMIONES | J36: 0.15
I37: ¿Se evidencia paso de camiones de más de 3 ejes? | J37: Sí
I39: Factor Camión | J39: =IF(J37="Sí",(((J35*J33)*1+(((J36*J33)/6)*'Eval-Economica'!M12)+((((J36*J33)/6))*'Eval-Economica'!M13)+((((J36*J33)/6))*'Eval-Economica'!M14)+((((J36*J33)/2))*'Eval-Economica'!M15))/(J33*(SUM(J35:J36)))),(((J35*J33)*1+(((J36*J33)/3)*'Eval-Economica'!M12)+((((J36*J33)/3))*'Eval-Economica'!M13)+((((J36*J33)/3))*'Eval-Economica'!M14))/(J33*(SUM(J35:J36))))) -> 3.0625
I42: Sección de cálculo
I43: Cálculo de ejes equivalentes
I44: Periodo de diseño (años) | J44: 5
I45: Tasa de crecimiento del tránsito | J45: 0.025
I46: k1 Factor vehiculos pesados | J46: =J35+J36 -> 0.2
I47: k2 Factor carril | J47: 1
I48: Factor Camión | J48: =+J39 -> 3.0625
I49: N ejes equivalentes | J49: =J33*J46*J47*365*(((1+J45)^J44-1)/LN(1+J45))*J48 -> 832822.527
E58: CAPA DE MATERIAL | F58: Tratamiento | I58: ESPESOR (Pulg) | J58: ESPESOR (cm)
E60: Rodadura | F60: =VLOOKUP($H$105,'Matriz-Multicriterio'!$M$38:$R$45,5,0) -> Lechada Asfática | I60: =+J60*0.393701 -> 1.181103 | J60: 3
E61: Base Granular | F61: =VLOOKUP($H$105,'Matriz-Multicriterio'!$M$38:$R$45,6,0) -> Estabilizada con emulsión asfáltica | I61: =+J61*0.393701 -> 5.905515 | J61: =IF(F61="N/A",0,P61) -> 15 | P61: 15
E62: Sub Base Granular | F62: =VLOOKUP($H$105,'Matriz-Multicriterio'!$M$38:$R$45,6,0) -> Estabilizada con emulsión asfáltica | I62: =+J62*0.393701 -> 7.87402 | J62: =IF(F62="N/A",0,P62) -> 20 | P62: 20
E63: Subrasante | F63: =IF(F13<0.03,"Mejoramiento de subrasante con Pedraplen","Mejoramiento de subrasante NO requerido") -> Mejoramiento de subrasante NO requerido | I63: =+J63*0.393701 -> 0 | J63: =IF(F63="Mejoramiento de subrasante NO requerido",0,Nomogramas!W40*(F13*100)+Nomogramas!W39) -> 0
E65: Metodología recomendada en factibilidad | F65: =VLOOKUP(H105,'Matriz-Multicriterio'!$M$38:$O$45,3,0) -> Base estabilizada con emulsión asfáltica+Lechada asfáltica
H105: =MAX('Matriz-Multicriterio'!M38:M45) -> 9.625

Sheet Control (3) (hidden)
C4: PROYECTO TIPO SELECCIÓN DE ALTERNATIVA DE MEJORAMIENTO PARA VÍAS TERCIARIAS
D5: EVALUACIÓN ALTERNATIVAS INTERVENCIÓN VÍAS TERCIARIAS:
D6: IMPLEMENTACIÓN CONPES 3857 LINEAMIENTOS DE POLÍTICA PARA LA GESTIÓN DE LA RED TERCIARIA
O9: TRAMO 3
E12: DATOS GEOTÉCNICOS DE LA SUBRASANTE
E13: CBR | F13: 0.03 | I13: TEMPERATURA MEDIA ANUAL PROMEDIO (Cº) | J13: 25
E14: Índice de plasticidad | F14: =+LAtterberg!E58 -> 0.15 | I14: CONDICIÓN DE HUMEDAD | J14: Subhúmedo
I15: CONDICIÓN CLIMÁTICA POR TEMPERATURA | J15: Arido
E16: Clasificación S.U.C.S. | F16: =+Clasificacion!B75 -> Suelo de partículas gruesas. Suelo de partículas gruesas con finos (suelo sucio). | G16: =Clasificacion!B76 -> Arena limosa SM | I16: ¿EN EL TRAMO EVALUADO PRESENTA ZONAS CON ALTAS PENDIENTES? | J16: Sí
E18: Clasificación A.A.H.S.T.O. | F18: =Clasificacion!I28 -> A-2-4 Grava y arena arcillosa o limosa
I19: LONGITUD DEL TRAMO PLANO (m) | J19: 100 | Q19: Subrasante | S19: Sí | T19: Afirmado | U19: Arido | V19: Plano | Y19: Bueno | Z19: Calido
E20: Índice de Grupo | F20: =Clasificacion!L30 -> 0 | I20: LONGITUD DEL TRAMO ALTA PENDIENTE (m) | J20: 15 | Q20: Base Granular | S20: No | T20: Tierra | U20: Semiarido | V20: Ondulado | Y20: Malo | Z20: Templado
I21: LONGITUD DEL TRAMO TOTAL (m) | J21: =+J19+J20 -> 115 | Q21: Sub Base Granular | U21: Subhúmedo | V21: Montañoso | Y21: No existe | Z21: Frío
Q22: Lechada asfáltica | U22: Húmedo | V22: Escarpado
I23: Distancia a cantera de materiales pétreos de buena calidad (km) | J23: 150 | Q23: Tratamiento Superficial Doble | U23: Superhúmedo
I24: ¿Disponibilidad de trituradora en la cantera de materiales petreos? | J24: Sí
I25: Distancia a proveedores de materiales bituminosos (km) | J25: 21
I26: Distancia a proveedores de cal (km) | J26: 50
I27: Distancia a proveedores de cemento (km) | J27: 22
I29: Estado de las obras de drenaje:
I30: Cunetas | J30: Malo
I31: Alcantarillas | J31: No existe
I33: TPD | J33: 500
I34: % LIVIANOS (MOTOS, CARROS, CAMPEROS) | J34: 0.8
I35: % BUSES | J35: 0.1
I36: % CAMIONES | J36: 0.1
I37: ¿Se evidencia paso de camiones de más de 3 ejes? | J37: Sí
I39: Factor Camión | J39: =IF(J37="Sí",(((J35*J33)*1+(((J36*J33)/6)*'Eval-Economica'!M12)+((((J36*J33)/6))*'Eval-Economica'!M13)+((((J36*J33)/6))*'Eval-Economica'!M14)+((((J36*J33)/2))*'Eval-Economica'!M15))/(J33*(SUM(J35:J36)))),(((J35*J33)*1+(((J36*J33)/3)*'Eval-Economica'!M12)+((((J36*J33)/3))*'Eval-Economica'!M13)+((((J36*J33)/3))*'Eval-Economica'!M14))/(J33*(SUM(J35:J36))))) -> 2.375
I42: Sección de cálculo
I43: Cálculo de ejes equivalentes
I44: Periodo de diseño (años) | J44: 5
I45: Tasa de crecimiento del tránsito | J45: 0.025
I46: k1 Factor vehiculos pesados | J46: =J35+J36 -> 0.2
I47: k2 Factor carril | J47: 1
I48: Factor Camión | J48: =+J39 -> 2.375
I49: N ejes equivalentes | J49: =J33*J46*J47*365*(((1+J45)^J44-1)/LN(1+J45))*J48 -> 461330.2628
E58: CAPA DE MATERIAL | F58: Tratamiento | I58: ESPESOR (Pulg) | J58: ESPESOR (cm)
E60: Rodadura | F60: =VLOOKUP($H$105,'Matriz-Multicriterio'!$M$38:$R$45,5,0) -> Lechada Asfática | I60: =+J60*0.393701 -> 1.181103 | J60: 3
E61: Base Granular | F61: =VLOOKUP($H$105,'Matriz-Multicriterio'!$M$38:$R$45,6,0) -> Estabilizada con emulsión asfáltica | I61: =+J61*0.393701 -> 5.905515 | J61: =IF(F61="N/A",0,P61) -> 15 | P61: 15
E62: Sub Base Granular | F62: =VLOOKUP($H$105,'Matriz-Multicriterio'!$M$38:$R$45,6,0) -> Estabilizada con emulsión asfáltica | I62: =+J62*0.393701 -> 7.87402 | J62: =IF(F62="N/A",0,P62) -> 20 | P62: 20
E63: Subrasante | F63: =IF(F13<0.03,"Mejoramiento de subrasante con Pedraplen","Mejoramiento de subrasante NO requerido") -> Mejoramiento de subrasante NO requerido | I63: =+J63*0.393701 -> 0 | J63: =IF(F63="Mejoramiento de subrasante NO requerido",0,Nomogramas!W40*(F13*100)+Nomogramas!W39) -> 0
E65: Metodología recomendada en factibilidad | F65: =VLOOKUP(H105,'Matriz-Multicriterio'!$M$38:$O$45,3,0) -> Base estabilizada con emulsión asfáltica+Lechada asfáltica
H105: =MAX('Matriz-Multicriterio'!M38:M45) -> 9.625

Sheet Control (4) (hidden)
C4: PROYECTO TIPO SELECCIÓN DE ALTERNATIVA DE MEJORAMIENTO PARA VÍAS TERCIARIAS
D5: EVALUACIÓN ALTERNATIVAS INTERVENCIÓN VÍAS TERCIARIAS:
D6: IMPLEMENTACIÓN CONPES 3857 LINEAMIENTOS DE POLÍTICA PARA LA GESTIÓN DE LA RED TERCIARIA
O9: TRAMO 4
E12: DATOS GEOTÉCNICOS DE LA SUBRASANTE
E13: CBR | F13: 0.03 | I13: TEMPERATURA MEDIA ANUAL PROMEDIO (Cº) | J13: 25
E14: Índice de plasticidad | F14: =+LAtterberg!E58 -> 0.15 | I14: CONDICIÓN DE HUMEDAD | J14: Semiarido
I15: CONDICIÓN CLIMÁTICA POR TEMPERATURA | J15: Arido
E16: Clasificación S.U.C.S. | F16: =+Clasificacion!B75 -> Suelo de partículas gruesas. Suelo de partículas gruesas con finos (suelo sucio). | G16: =Clasificacion!B76 -> Arena limosa SM | I16: ¿EN EL TRAMO EVALUADO PRESENTA ZONAS CON ALTAS PENDIENTES? | J16: Sí
E18: Clasificación A.A.H.S.T.O. | F18: =Clasificacion!I28 -> A-2-4 Grava y arena arcillosa o limosa
I19: LONGITUD DEL TRAMO PLANO (m) | J19: 100 | Q19: Subrasante | S19: Sí | T19: Afirmado | U19: Arido | V19: Plano | Y19: Bueno | Z19: Calido
E20: Índice de Grupo | F20: =Clasificacion!L30 -> 0 | I20: LONGITUD DEL TRAMO ALTA PENDIENTE (m) | J20: 15 | Q20: Base Granular | S20: No | T20: Tierra | U20: Semiarido | V20: Ondulado | Y20: Malo | Z20: Templado
I21: LONGITUD DEL TRAMO TOTAL (m) | J21: =+J19+J20 -> 115 | Q21: Sub Base Granular | U21: Subhúmedo | V21: Montañoso | Y21: No existe | Z21: Frío
Q22: Lechada asfáltica | U22: Húmedo | V22: Escarpado
I23: Distancia a cantera de materiales pétreos de buena calidad (km) | J23: 150 | Q23: Tratamiento Superficial Doble | U23: Superhúmedo
I24: ¿Disponibilidad de trituradora en la cantera de materiales petreos? | J24: Sí
I25: Distancia a proveedores de materiales bituminosos (km) | J25: 21
I26: Distancia a proveedores de cal (km) | J26: 50
I27: Distancia a proveedores de cemento (km) | J27: 22
I29: Estado de las obras de drenaje:
I30: Cunetas | J30: Malo
I31: Alcantarillas | J31: Malo
I33: TPD | J33: 500
I34: % LIVIANOS (MOTOS, CARROS, CAMPEROS) | J34: 0.8
I35: % BUSES | J35: 0.1
I36: % CAMIONES | J36: 0.1
I37: ¿Se evidencia paso de camiones de más de 3 ejes? | J37: Sí
I39: Factor Camión | J39: =IF(J37="Sí",(((J35*J33)*1+(((J36*J33)/6)*'Eval-Economica'!M12)+((((J36*J33)/6))*'Eval-Economica'!M13)+((((J36*J33)/6))*'Eval-Economica'!M14)+((((J36*J33)/2))*'Eval-Economica'!M15))/(J33*(SUM(J35:J36)))),(((J35*J33)*1+(((J36*J33)/3)*'Eval-Economica'!M12)+((((J36*J33)/3))*'Eval-Economica'!M13)+((((J36*J33)/3))*'Eval-Economica'!M14))/(J33*(SUM(J35:J36))))) -> 2.375
I42: Sección de cálculo
I43: Cálculo de ejes equivalentes
I44: Periodo de diseño (años) | J44: 5
I45: Tasa de crecimiento del tránsito | J45: 0.025
I46: k1 Factor vehiculos pesados | J46: =J35+J36 -> 0.2
I47: k2 Factor carril | J47: 1
I48: Factor Camión | J48: =+J39 -> 2.375
I49: N ejes equivalentes | J49: =J33*J46*J47*365*(((1+J45)^J44-1)/LN(1+J45))*J48 -> 461330.2628
E58: CAPA DE MATERIAL | F58: Tratamiento | I58: ESPESOR (Pulg) | J58: ESPESOR (cm)
E60: Rodadura | F60: =VLOOKUP($H$105,'Matriz-Multicriterio'!$M$38:$R$45,5,0) -> Lechada Asfática | I60: =+J60*0.393701 -> 1.181103 | J60: 3
E61: Base Granular | F61: =VLOOKUP($H$105,'Matriz-Multicriterio'!$M$38:$R$45,6,0) -> Estabilizada con emulsión asfáltica | I61: =+J61*0.393701 -> 5.905515 | J61: =IF(F61="N/A",0,P61) -> 15 | P61: 15
E62: Sub Base Granular | F62: =VLOOKUP($H$105,'Matriz-Multicriterio'!$M$38:$R$45,6,0) -> Estabilizada con emulsión asfáltica | I62: =+J62*0.393701 -> 7.87402 | J62: =IF(F62="N/A",0,P62) -> 20 | P62: 20
E63: Subrasante | F63: =IF(F13<0.03,"Mejoramiento de subrasante con Pedraplen","Mejoramiento de subrasante NO requerido") -> Mejoramiento de subrasante NO requerido | I63: =+J63*0.393701 -> 0 | J63: =IF(F63="Mejoramiento de subrasante NO requerido",0,Nomogramas!W40*(F13*100)+Nomogramas!W39) -> 0
E65: Metodología recomendada en factibilidad | F65: =VLOOKUP(H105,'Matriz-Multicriterio'!$M$38:$O$45,3,0) -> Base estabilizada con emulsión asfáltica+Lechada asfáltica
H105: =MAX('Matriz-Multicriterio'!M38:M45) -> 9.625

Sheet Control (5) (hidden)
C4: PROYECTO TIPO SELECCIÓN DE ALTERNATIVA DE MEJORAMIENTO PARA VÍAS TERCIARIAS
D5: EVALUACIÓN ALTERNATIVAS INTERVENCIÓN VÍAS TERCIARIAS:
D6: IMPLEMENTACIÓN CONPES 3857 LINEAMIENTOS DE POLÍTICA PARA LA GESTIÓN DE LA RED TERCIARIA
O9: TRAMO 5
E12: DATOS GEOTÉCNICOS DE LA SUBRASANTE
E13: CBR | F13: 0.03 | I13: TEMPERATURA MEDIA ANUAL PROMEDIO (Cº) | J13: 25
E14: Índice de plasticidad | F14: =+LAtterberg!E58 -> 0.15 | I14: CONDICIÓN DE HUMEDAD | J14: Subhúmedo
I15: CONDICIÓN CLIMÁTICA POR TEMPERATURA | J15: Arido
E16: Clasificación S.U.C.S. | F16: =+Clasificacion!B75 -> Suelo de partículas gruesas. Suelo de partículas gruesas con finos (suelo sucio). | G16: =Clasificacion!B76 -> Arena limosa SM | I16: ¿EN EL TRAMO EVALUADO PRESENTA ZONAS CON ALTAS PENDIENTES? | J16: Sí
E18: Clasificación A.A.H.S.T.O. | F18: =Clasificacion!I28 -> A-2-4 Grava y arena arcillosa o limosa
I19: LONGITUD DEL TRAMO PLANO (m) | J19: 100 | Q19: Subrasante | S19: Sí | T19: Afirmado | U19: Arido | V19: Plano | Y19: Bueno | Z19: Calido
E20: Índice de Grupo | F20: =Clasificacion!L30 -> 0 | I20: LONGITUD DEL TRAMO ALTA PENDIENTE (m) | J20: 15 | Q20: Base Granular | S20: No | T20: Tierra | U20: Semiarido | V20: Ondulado | Y20: Malo | Z20: Templado
I21: LONGITUD DEL TRAMO TOTAL (m) | J21: =+J19+J20 -> 115 | Q21: Sub Base Granular | U21: Subhúmedo | V21: Montañoso | Y21: No existe | Z21: Frío
Q22: Lechada asfáltica | U22: Húmedo | V22: Escarpado
I23: Distancia a cantera de materiales pétreos de buena calidad (km) | J23: 150 | Q23: Tratamiento Superficial Doble | U23: Superhúmedo
I24: ¿Disponibilidad de trituradora en la cantera de materiales petreos? | J24: Sí
I25: Distancia a proveedores de materiales bituminosos (km) | J25: 21
I26: Distancia a proveedores de cal (km) | J26: 50
I27: Distancia a proveedores de cemento (km) | J27: 22
I29: Estado de las obras de drenaje:
I30: Cunetas | J30: Malo
I31: Alcantarillas | J31: Malo
I33: TPD | J33: 500
I34: % LIVIANOS (MOTOS, CARROS, CAMPEROS) | J34: 0.8
I35: % BUSES | J35: 0.1
I36: % CAMIONES | J36: 0.1
I37: ¿Se evidencia paso de camiones de más de 3 ejes? | J37: Sí
I39: Factor Camión | J39: =IF(J37="Sí",(((J35*J33)*1+(((J36*J33)/6)*'Eval-Economica'!M12)+((((J36*J33)/6))*'Eval-Economica'!M13)+((((J36*J33)/6))*'Eval-Economica'!M14)+((((J36*J33)/2))*'Eval-Economica'!M15))/(J33*(SUM(J35:J36)))),(((J35*J33)*1+(((J36*J33)/3)*'Eval-Economica'!M12)+((((J36*J33)/3))*'Eval-Economica'!M13)+((((J36*J33)/3))*'Eval-Economica'!M14))/(J33*(SUM(J35:J36))))) -> 2.375
I42: Sección de cálculo
I43: Cálculo de ejes equivalentes
I44: Periodo de diseño (años) | J44: 5
I45: Tasa de crecimiento del tránsito | J45: 0.025
I46: k1 Factor vehiculos pesados | J46: =J35+J36 -> 0.2
I47: k2 Factor carril | J47: 1
I48: Factor Camión | J48: =+J39 -> 2.375
I49: N ejes equivalentes | J49: =J33*J46*J47*365*(((1+J45)^J44-1)/LN(1+J45))*J48 -> 461330.2628
E58: CAPA DE MATERIAL | F58: Tratamiento | I58: ESPESOR (Pulg) | J58: ESPESOR (cm)
E60: Rodadura | F60: =VLOOKUP($H$105,'Matriz-Multicriterio'!$M$38:$R$45,5,0) -> Lechada Asfática | I60: =+J60*0.393701 -> 1.181103 | J60: 3
E61: Base Granular | F61: =VLOOKUP($H$105,'Matriz-Multicriterio'!$M$38:$R$45,6,0) -> Estabilizada con emulsión asfáltica | I61: =+J61*0.393701 -> 5.905515 | J61: =IF(F61="N/A",0,P61) -> 15 | P61: 15
E62: Sub Base Granular | F62: =VLOOKUP($H$105,'Matriz-Multicriterio'!$M$38:$R$45,6,0) -> Estabilizada con emulsión asfáltica | I62: =+J62*0.393701 -> 7.87402 | J62: =IF(F62="N/A",0,P62) -> 20 | P62: 20
E63: Subrasante | F63: =IF(F13<0.03,"Mejoramiento de subrasante con Pedraplen","Mejoramiento de subrasante NO requerido") -> Mejoramiento de subrasante NO requerido | I63: =+J63*0.393701 -> 0 | J63: =IF(F63="Mejoramiento de subrasante NO requerido",0,Nomogramas!W40*(F13*100)+Nomogramas!W39) -> 0
E65: Metodología recomendada en factibilidad | F65: =VLOOKUP(H105,'Matriz-Multicriterio'!$M$38:$O$45,3,0) -> Base estabilizada con emulsión asfáltica+Lechada asfáltica
H105: =MAX('Matriz-Multicriterio'!M38:M45) -> 9.625

Sheet Control (6) (hidden)
C4: PROYECTO TIPO SELECCIÓN DE ALTERNATIVA DE MEJORAMIENTO PARA VÍAS TERCIARIAS
D5: EVALUACIÓN ALTERNATIVAS INTERVENCIÓN VÍAS TERCIARIAS:
D6: IMPLEMENTACIÓN CONPES 3857 LINEAMIENTOS DE POLÍTICA PARA LA GESTIÓN DE LA RED TERCIARIA
O9: TRAMO 6
E12: DATOS GEOTÉCNICOS DE LA SUBRASANTE
E13: CBR | F13: 0.03 | I13: TEMPERATURA MEDIA ANUAL PROMEDIO (Cº) | J13: 25
E14: Índice de plasticidad | F14: =+LAtterberg!E58 -> 0.15 | I14: CONDICIÓN DE HUMEDAD | J14: Subhúmedo
I15: CONDICIÓN CLIMÁTICA POR TEMPERATURA | J15: Arido
E16: Clasificación S.U.C.S. | F16: =+Clasificacion!B75 -> Suelo de partículas gruesas. Suelo de partículas gruesas con finos (suelo sucio). | G16: =Clasificacion!B76 -> Arena limosa SM | I16: ¿EN EL TRAMO EVALUADO PRESENTA ZONAS CON ALTAS PENDIENTES? | J16: Sí
E18: Clasificación A.A.H.S.T.O. | F18: =Clasificacion!I28 -> A-2-4 Grava y arena arcillosa o limosa
I19: LONGITUD DEL TRAMO PLANO (m) | J19: 100 | Q19: Subrasante | S19: Sí | T19: Afirmado | U19: Arido | V19: Plano | Y19: Bueno | Z19: Calido
E20: Índice de Grupo | F20: =Clasificacion!L30 -> 0 | I20: LONGITUD DEL TRAMO ALTA PENDIENTE (m) | J20: 15 | Q20: Base Granular | S20: No | T20: Tierra | U20: Semiarido | V20: Ondulado | Y20: Malo | Z20: Templado
I21: LONGITUD DEL TRAMO TOTAL (m) | J21: =+J19+J20 -> 115 | Q21: Sub Base Granular | U21: Subhúmedo | V21: Montañoso | Y21: No existe | Z21: Frío
Q22: Lechada asfáltica | U22: Húmedo | V22: Escarpado
I23: Distancia a cantera de materiales pétreos de buena calidad (km) | J23: 150 | Q23: Tratamiento Superficial Doble | U23: Superhúmedo
I24: ¿Disponibilidad de trituradora en la cantera de materiales petreos? | J24: Sí
I25: Distancia a proveedores de materiales bituminosos (km) | J25: 21
I26: Distancia a proveedores de cal (km) | J26: 50
I27: Distancia a proveedores de cemento (km) | J27: 22
I29: Estado de las obras de drenaje:
I30: Cunetas | J30: Malo
I31: Alcantarillas | J31: Malo
I33: TPD | J33: 500
I34: % LIVIANOS (MOTOS, CARROS, CAMPEROS) | J34: 0.8
I35: % BUSES | J35: 0.1
I36: % CAMIONES | J36: 0.1
I37: ¿Se evidencia paso de camiones de más de 3 ejes? | J37: Sí
I39: Factor Camión | J39: =IF(J37="Sí",(((J35*J33)*1+(((J36*J33)/6)*'Eval-Economica'!M12)+((((J36*J33)/6))*'Eval-Economica'!M13)+((((J36*J33)/6))*'Eval-Economica'!M14)+((((J36*J33)/2))*'Eval-Economica'!M15))/(J33*(SUM(J35:J36)))),(((J35*J33)*1+(((J36*J33)/3)*'Eval-Economica'!M12)+((((J36*J33)/3))*'Eval-Economica'!M13)+((((J36*J33)/3))*'Eval-Economica'!M14))/(J33*(SUM(J35:J36))))) -> 2.375
I42: Sección de cálculo
I43: Cálculo de ejes equivalentes
I44: Periodo de diseño (años) | J44: 5
I45: Tasa de crecimiento del tránsito | J45: 0.025
I46: k1 Factor vehiculos pesados | J46: =J35+J36 -> 0.2
I47: k2 Factor carril | J47: 1
I48: Factor Camión | J48: =+J39 -> 2.375
I49: N ejes equivalentes | J49: =J33*J46*J47*365*(((1+J45)^J44-1)/LN(1+J45))*J48 -> 461330.2628
E58: CAPA DE MATERIAL | F58: Tratamiento | I58: ESPESOR (Pulg) | J58: ESPESOR (cm)
E60: Rodadura | F60: =VLOOKUP($H$105,'Matriz-Multicriterio'!$M$38:$R$45,5,0) -> Lechada Asfática | I60: =+J60*0.393701 -> 1.181103 | J60: 3
E61: Base Granular | F61: =VLOOKUP($H$105,'Matriz-Multicriterio'!$M$38:$R$45,6,0) -> Estabilizada con emulsión asfáltica | I61: =+J61*0.393701 -> 5.905515 | J61: =IF(F61="N/A",0,P61) -> 15 | P61: 15
E62: Sub Base Granular | F62: =VLOOKUP($H$105,'Matriz-Multicriterio'!$M$38:$R$45,6,0) -> Estabilizada con emulsión asfáltica | I62: =+J62*0.393701 -> 7.87402 | J62: =IF(F62="N/A",0,P62) -> 20 | P62: 20
E63: Subrasante | F63: =IF(F13<0.03,"Mejoramiento de subrasante con Pedraplen","Mejoramiento de subrasante NO requerido") -> Mejoramiento de subrasante NO requerido | I63: =+J63*0.393701 -> 0 | J63: =IF(F63="Mejoramiento de subrasante NO requerido",0,Nomogramas!W40*(F13*100)+Nomogramas!W39) -> 0
E65: Metodología recomendada en factibilidad | F65: =VLOOKUP(H105,'Matriz-Multicriterio'!$M$38:$O$45,3,0) -> Base estabilizada con emulsión asfáltica+Lechada asfáltica
H105: =MAX('Matriz-Multicriterio'!M38:M45) -> 9.625

Sheet Control (7) (hidden)
C4: PROYECTO TIPO SELECCIÓN DE ALTERNATIVA DE MEJORAMIENTO PARA VÍAS TERCIARIAS
D5: EVALUACIÓN ALTERNATIVAS INTERVENCIÓN VÍAS TERCIARIAS:
D6: IMPLEMENTACIÓN CONPES 3857 LINEAMIENTOS DE POLÍTICA PARA LA GESTIÓN DE LA RED TERCIARIA
O9: TRAMO 7
E12: DATOS GEOTÉCNICOS DE LA SUBRASANTE
E13: CBR | F13: 0.03 | I13: TEMPERATURA MEDIA ANUAL PROMEDIO (Cº) | J13: 25
E14: Índice de plasticidad | F14: =+LAtterberg!E58 -> 0.15 | I14: CONDICIÓN DE HUMEDAD | J14: Subhúmedo
I15: CONDICIÓN CLIMÁTICA POR TEMPERATURA | J15: Arido
E16: Clasificación S.U.C.S. | F16: =+Clasificacion!B75 -> Suelo de partículas gruesas. Suelo de partículas gruesas con finos (suelo sucio). | G16: =Clasificacion!B76 -> Arena limosa SM | I16: ¿EN EL TRAMO EVALUADO PRESENTA ZONAS CON ALTAS PENDIENTES? | J16: Sí
E18: Clasificación A.A.H.S.T.O. | F18: =Clasificacion!I28 -> A-2-4 Grava y arena arcillosa o limosa
I19: LONGITUD DEL TRAMO PLANO (m) | J19: 100 | Q19: Subrasante | S19: Sí | T19: Afirmado | U19: Arido | V19: Plano | Y19: Bueno | Z19: Calido
E20: Índice de Grupo | F20: =Clasificacion!L30 -> 0 | I20: LONGITUD DEL TRAMO ALTA PENDIENTE (m) | J20: 15 | Q20: Base Granular | S20: No | T20: Tierra | U20: Semiarido | V20: Ondulado | Y20: Malo | Z20: Templado
I21: LONGITUD DEL TRAMO TOTAL (m) | J21: =+J19+J20 -> 115 | Q21: Sub Base Granular | U21: Subhúmedo | V21: Montañoso | Y21: No existe | Z21: Frío
Q22: Lechada asfáltica | U22: Húmedo | V22: Escarpado
I23: Distancia a cantera de materiales pétreos de buena calidad (km) | J23: 150 | Q23: Tratamiento Superficial Doble | U23: Superhúmedo
I24: ¿Disponibilidad de trituradora en la cantera de materiales petreos? | J24: Sí
I25: Distancia a proveedores de materiales bituminosos (km) | J25: 21
I26: Distancia a proveedores de cal (km) | J26: 50
I27: Distancia a proveedores de cemento (km) | J27: 22
I29: Estado de las obras de drenaje:
I30: Cunetas | J30: Malo
I31: Alcantarillas | J31: Malo
I33: TPD | J33: 500
I34: % LIVIANOS (MOTOS, CARROS, CAMPEROS) | J34: 0.8
I35: % BUSES | J35: 0.1
I36: % CAMIONES | J36: 0.1
I37: ¿Se evidencia paso de camiones de más de 3 ejes? | J37: Sí
I39: Factor Camión | J39: =IF(J37="Sí",(((J35*J33)*1+(((J36*J33)/6)*'Eval-Economica'!M12)+((((J36*J33)/6))*'Eval-Economica'!M13)+((((J36*J33)/6))*'Eval-Economica'!M14)+((((J36*J33)/2))*'Eval-Economica'!M15))/(J33*(SUM(J35:J36)))),(((J35*J33)*1+(((J36*J33)/3)*'Eval-Economica'!M12)+((((J36*J33)/3))*'Eval-Economica'!M13)+((((J36*J33)/3))*'Eval-Economica'!M14))/(J33*(SUM(J35:J36))))) -> 2.375
I42: Sección de cálculo
I43: Cálculo de ejes equivalentes
I44: Periodo de diseño (años) | J44: 5
I45: Tasa de crecimiento del tránsito | J45: 0.025
I46: k1 Factor vehiculos pesados | J46: =J35+J36 -> 0.2
I47: k2 Factor carril | J47: 1
I48: Factor Camión | J48: =+J39 -> 2.375
I49: N ejes equivalentes | J49: =J33*J46*J47*365*(((1+J45)^J44-1)/LN(1+J45))*J48 -> 461330.2628
E58: CAPA DE MATERIAL | F58: Tratamiento | I58: ESPESOR (Pulg) | J58: ESPESOR (cm)
E60: Rodadura | F60: =VLOOKUP($H$105,'Matriz-Multicriterio'!$M$38:$R$45,5,0) -> Lechada Asfática | I60: =+J60*0.393701 -> 1.181103 | J60: 3
E61: Base Granular | F61: =VLOOKUP($H$105,'Matriz-Multicriterio'!$M$38:$R$45,6,0) -> Estabilizada con emulsión asfáltica | I61: =+J61*0.393701 -> 5.905515 | J61: =IF(F61="N/A",0,P61) -> 15 | P61: 15
E62: Sub Base Granular | F62: =VLOOKUP($H$105,'Matriz-Multicriterio'!$M$38:$R$45,6,0) -> Estabilizada con emulsión asfáltica | I62: =+J62*0.393701 -> 7.87402 | J62: =IF(F62="N/A",0,P62) -> 20 | P62: 20
E63: Subrasante | F63: =IF(F13<0.03,"Mejoramiento de subrasante con Pedraplen","Mejoramiento de subrasante NO requerido") -> Mejoramiento de subrasante NO requerido | I63: =+J63*0.393701 -> 0 | J63: =IF(F63="Mejoramiento de subrasante NO requerido",0,Nomogramas!W40*(F13*100)+Nomogramas!W39) -> 0
E65: Metodología recomendada en factibilidad | F65: =VLOOKUP(H105,'Matriz-Multicriterio'!$M$38:$O$45,3,0) -> Base estabilizada con emulsión asfáltica+Lechada asfáltica
H105: =MAX('Matriz-Multicriterio'!M38:M45) -> 9.625

Sheet Control (8) (hidden)
C4: PROYECTO TIPO SELECCIÓN DE ALTERNATIVA DE MEJORAMIENTO PARA VÍAS TERCIARIAS
D5: EVALUACIÓN ALTERNATIVAS INTERVENCIÓN VÍAS TERCIARIAS:
D6: IMPLEMENTACIÓN CONPES 3857 LINEAMIENTOS DE POLÍTICA PARA LA GESTIÓN DE LA RED TERCIARIA
O9: TRAMO 8
E12: DATOS GEOTÉCNICOS DE LA SUBRASANTE
E13: CBR | F13: 0.03 | I13: TEMPERATURA MEDIA ANUAL PROMEDIO (Cº) | J13: 25
E14: Índice de plasticidad | F14: =+LAtterberg!E58 -> 0.15 | I14: CONDICIÓN DE HUMEDAD | J14: Subhúmedo
I15: CONDICIÓN CLIMÁTICA POR TEMPERATURA | J15: Arido
E16: Clasificación S.U.C.S. | F16: =+Clasificacion!B75 -> Suelo de partículas gruesas. Suelo de partículas gruesas con finos (suelo sucio). | G16: =Clasificacion!B76 -> Arena limosa SM | I16: ¿EN EL TRAMO EVALUADO PRESENTA ZONAS CON ALTAS PENDIENTES? | J16: Sí
E18: Clasificación A.A.H.S.T.O. | F18: =Clasificacion!I28 -> A-2-4 Grava y arena arcillosa o limosa
I19: LONGITUD DEL TRAMO PLANO (m) | J19: 100 | Q19: Subrasante | S19: Sí | T19: Afirmado | U19: Arido | V19: Plano | Y19: Bueno | Z19: Calido
E20: Índice de Grupo | F20: =Clasificacion!L30 -> 0 | I20: LONGITUD DEL TRAMO ALTA PENDIENTE (m) | J20: 15 | Q20: Base Granular | S20: No | T20: Tierra | U20: Semiarido | V20: Ondulado | Y20: Malo | Z20: Templado
I21: LONGITUD DEL TRAMO TOTAL (m) | J21: =+J19+J20 -> 115 | Q21: Sub Base Granular | U21: Subhúmedo | V21: Montañoso | Y21: No existe | Z21: Frío
Q22: Lechada asfáltica | U22: Húmedo | V22: Escarpado
I23: Distancia a cantera de materiales pétreos de buena calidad (km) | J23: 150 | Q23: Tratamiento Superficial Doble | U23: Superhúmedo
I24: ¿Disponibilidad de trituradora en la cantera de materiales petreos? | J24: Sí
I25: Distancia a proveedores de materiales bituminosos (km) | J25: 21
I26: Distancia a proveedores de cal (km) | J26: 50
I27: Distancia a proveedores de cemento (km) | J27: 22
I29: Estado de las obras de drenaje:
I30: Cunetas | J30: Malo
I31: Alcantarillas | J31: Malo
I33: TPD | J33: 500
I34: % LIVIANOS (MOTOS, CARROS, CAMPEROS) | J34: 0.8
I35: % BUSES | J35: 0.1
I36: % CAMIONES | J36: 0.1
I37: ¿Se evidencia paso de camiones de más de 3 ejes? | J37: Sí
I39: Factor Camión | J39: =IF(J37="Sí",(((J35*J33)*1+(((J36*J33)/6)*'Eval-Economica'!M12)+((((J36*J33)/6))*'Eval-Economica'!M13)+((((J36*J33)/6))*'Eval-Economica'!M14)+((((J36*J33)/2))*'Eval-Economica'!M15))/(J33*(SUM(J35:J36)))),(((J35*J33)*1+(((J36*J33)/3)*'Eval-Economica'!M12)+((((J36*J33)/3))*'Eval-Economica'!M13)+((((J36*J33)/3))*'Eval-Economica'!M14))/(J33*(SUM(J35:J36))))) -> 2.375
I42: Sección de cálculo
I43: Cálculo de ejes equivalentes
I44: Periodo de diseño (años) | J44: 5
I45: Tasa de crecimiento del tránsito | J45: 0.025
I46: k1 Factor vehiculos pesados | J46: =J35+J36 -> 0.2
I47: k2 Factor carril | J47: 1
I48: Factor Camión | J48: =+J39 -> 2.375
I49: N ejes equivalentes | J49: =J33*J46*J47*365*(((1+J45)^J44-1)/LN(1+J45))*J48 -> 461330.2628
E58: CAPA DE MATERIAL | F58: Tratamiento | I58: ESPESOR (Pulg) | J58: ESPESOR (cm)
E60: Rodadura | F60: =VLOOKUP($H$105,'Matriz-Multicriterio'!$M$38:$R$45,5,0) -> Lechada Asfática | I60: =+J60*0.393701 -> 1.181103 | J60: 3
E61: Base Granular | F61: =VLOOKUP($H$105,'Matriz-Multicriterio'!$M$38:$R$45,6,0) -> Estabilizada con emulsión asfáltica | I61: =+J61*0.393701 -> 5.905515 | J61: =IF(F61="N/A",0,P61) -> 15 | P61: 15
E62: Sub Base Granular | F62: =VLOOKUP($H$105,'Matriz-Multicriterio'!$M$38:$R$45,6,0) -> Estabilizada con emulsión asfáltica | I62: =+J62*0.393701 -> 7.87402 | J62: =IF(F62="N/A",0,P62) -> 20 | P62: 20
E63: Subrasante | F63: =IF(F13<0.03,"Mejoramiento de subrasante con Pedraplen","Mejoramiento de subrasante NO requerido") -> Mejoramiento de subrasante NO requerido | I63: =+J63*0.393701 -> 0 | J63: =IF(F63="Mejoramiento de subrasante NO requerido",0,Nomogramas!W40*(F13*100)+Nomogramas!W39) -> 0
E65: Metodología recomendada en factibilidad | F65: =VLOOKUP(H105,'Matriz-Multicriterio'!$M$38:$O$45,3,0) -> Base estabilizada con emulsión asfáltica+Lechada asfáltica
H105: =MAX('Matriz-Multicriterio'!M38:M45) -> 9.625

Sheet Control (9) (hidden)
C4: PROYECTO TIPO SELECCIÓN DE ALTERNATIVA DE MEJORAMIENTO PARA VÍAS TERCIARIAS
D5: EVALUACIÓN ALTERNATIVAS INTERVENCIÓN VÍAS TERCIARIAS:
D6: IMPLEMENTACIÓN CONPES 3857 LINEAMIENTOS DE POLÍTICA PARA LA GESTIÓN DE LA RED TERCIARIA
O9: TRAMO 9
E12: DATOS GEOTÉCNICOS DE LA SUBRASANTE
E13: CBR | F13: 0.03 | I13: TEMPERATURA MEDIA ANUAL PROMEDIO (Cº) | J13: 25
E14: Índice de plasticidad | F14: =+LAtterberg!E58 -> 0.15 | I14: CONDICIÓN DE HUMEDAD | J14: Subhúmedo
I15: CONDICIÓN CLIMÁTICA POR TEMPERATURA | J15: Arido
E16: Clasificación S.U.C.S. | F16: =+Clasificacion!B75 -> Suelo de partículas gruesas. Suelo de partículas gruesas con finos (suelo sucio). | G16: =Clasificacion!B76 -> Arena limosa SM | I16: ¿EN EL TRAMO EVALUADO PRESENTA ZONAS CON ALTAS PENDIENTES? | J16: Sí
E18: Clasificación A.A.H.S.T.O. | F18: =Clasificacion!I28 -> A-2-4 Grava y arena arcillosa o limosa
I19: LONGITUD DEL TRAMO PLANO (m) | J19: 100 | Q19: Subrasante | S19: Sí | T19: Afirmado | U19: Arido | V19: Plano | Y19: Bueno | Z19: Calido
E20: Índice de Grupo | F20: =Clasificacion!L30 -> 0 | I20: LONGITUD DEL TRAMO ALTA PENDIENTE (m) | J20: 15 | Q20: Base Granular | S20: No | T20: Tierra | U20: Semiarido | V20: Ondulado | Y20: Malo | Z20: Templado
I21: LONGITUD DEL TRAMO TOTAL (m) | J21: =+J19+J20 -> 115 | Q21: Sub Base Granular | U21: Subhúmedo | V21: Montañoso | Y21: No existe | Z21: Frío
Q22: Lechada asfáltica | U22: Húmedo | V22: Escarpado
I23: Distancia a cantera de materiales pétreos de buena calidad (km) | J23: 150 | Q23: Tratamiento Superficial Doble | U23: Superhúmedo
I24: ¿Disponibilidad de trituradora en la cantera de materiales petreos? | J24: Sí
I25: Distancia a proveedores de materiales bituminosos (km) | J25: 21
I26: Distancia a proveedores de cal (km) | J26: 50
I27: Distancia a proveedores de cemento (km) | J27: 22
I29: Estado de las obras de drenaje:
I30: Cunetas | J30: Malo
I31: Alcantarillas | J31: Malo
I33: TPD | J33: 500
I34: % LIVIANOS (MOTOS, CARROS, CAMPEROS) | J34: 0.8
I35: % BUSES | J35: 0.1
I36: % CAMIONES | J36: 0.1
I37: ¿Se evidencia paso de camiones de más de 3 ejes? | J37: Sí
I39: Factor Camión | J39: =IF(J37="Sí",(((J35*J33)*1+(((J36*J33)/6)*'Eval-Economica'!M12)+((((J36*J33)/6))*'Eval-Economica'!M13)+((((J36*J33)/6))*'Eval-Economica'!M14)+((((J36*J33)/2))*'Eval-Economica'!M15))/(J33*(SUM(J35:J36)))),(((J35*J33)*1+(((J36*J33)/3)*'Eval-Economica'!M12)+((((J36*J33)/3))*'Eval-Economica'!M13)+((((J36*J33)/3))*'Eval-Economica'!M14))/(J33*(SUM(J35:J36))))) -> 2.375
I42: Sección de cálculo
I43: Cálculo de ejes equivalentes
I44: Periodo de diseño (años) | J44: 5
I45: Tasa de crecimiento del tránsito | J45: 0.025
I46: k1 Factor vehiculos pesados | J46: =J35+J36 -> 0.2
I47: k2 Factor carril | J47: 1
I48: Factor Camión | J48: =+J39 -> 2.375
I49: N ejes equivalentes | J49: =J33*J46*J47*365*(((1+J45)^J44-1)/LN(1+J45))*J48 -> 461330.2628
E58: CAPA DE MATERIAL | F58: Tratamiento | I58: ESPESOR (Pulg) | J58: ESPESOR (cm)
E60: Rodadura | F60: =VLOOKUP($H$105,'Matriz-Multicriterio'!$M$38:$R$45,5,0) -> Lechada Asfática | I60: =+J60*0.393701 -> 1.181103 | J60: 3
E61: Base Granular | F61: =VLOOKUP($H$105,'Matriz-Multicriterio'!$M$38:$R$45,6,0) -> Estabilizada con emulsión asfáltica | I61: =+J61*0.393701 -> 5.905515 | J61: =IF(F61="N/A",0,P61) -> 15 | P61: 15
E62: Sub Base Granular | F62: =VLOOKUP($H$105,'Matriz-Multicriterio'!$M$38:$R$45,6,0) -> Estabilizada con emulsión asfáltica | I62: =+J62*0.393701 -> 7.87402 | J62: =IF(F62="N/A",0,P62) -> 20 | P62: 20
E63: Subrasante | F63: =IF(F13<0.03,"Mejoramiento de subrasante con Pedraplen","Mejoramiento de subrasante NO requerido") -> Mejoramiento de subrasante NO requerido | I63: =+J63*0.393701 -> 0 | J63: =IF(F63="Mejoramiento de subrasante NO requerido",0,Nomogramas!W40*(F13*100)+Nomogramas!W39) -> 0
E65: Metodología recomendada en factibilidad | F65: =VLOOKUP(H105,'Matriz-Multicriterio'!$M$38:$O$45,3,0) -> Base estabilizada con emulsión asfáltica+Lechada asfáltica
H105: =MAX('Matriz-Multicriterio'!M38:M45) -> 9.625

Sheet Control (10) (hidden)
C4: PROYECTO TIPO SELECCIÓN DE ALTERNATIVA DE MEJORAMIENTO PARA VÍAS TERCIARIAS
D5: EVALUACIÓN ALTERNATIVAS INTERVENCIÓN VÍAS TERCIARIAS:
D6: IMPLEMENTACIÓN CONPES 3857 LINEAMIENTOS DE POLÍTICA PARA LA GESTIÓN DE LA RED TERCIARIA
O9: TRAMO 10
E12: DATOS GEOTÉCNICOS DE LA SUBRASANTE
E13: CBR | F13: 0.03 | I13: TEMPERATURA MEDIA ANUAL PROMEDIO (Cº) | J13: 25
E14: Índice de plasticidad | F14: =+LAtterberg!E58 -> 0.15 | I14: CONDICIÓN DE HUMEDAD | J14: Subhúmedo
I15: CONDICIÓN CLIMÁTICA POR TEMPERATURA | J15: Arido
E16: Clasificación S.U.C.S. | F16: =+Clasificacion!B75 -> Suelo de partículas gruesas. Suelo de partículas gruesas con finos (suelo sucio). | G16: =Clasificacion!B76 -> Arena limosa SM | I16: ¿EN EL TRAMO EVALUADO PRESENTA ZONAS CON ALTAS PENDIENTES? | J16: Sí
E18: Clasificación A.A.H.S.T.O. | F18: =Clasificacion!I28 -> A-2-4 Grava y arena arcillosa o limosa
I19: LONGITUD DEL TRAMO PLANO (m) | J19: 100 | Q19: Subrasante | S19: Sí | T19: Afirmado | U19: Arido | V19: Plano | Y19: Bueno | Z19: Calido
E20: Índice de Grupo | F20: =Clasificacion!L30 -> 0 | I20: LONGITUD DEL TRAMO ALTA PENDIENTE (m) | J20: 15 | Q20: Base Granular | S20: No | T20: Tierra | U20: Semiarido | V20: Ondulado | Y20: Malo | Z20: Templado
I21: LONGITUD DEL TRAMO TOTAL (m) | J21: =+J19+J20 -> 115 | Q21: Sub Base Granular | U21: Subhúmedo | V21: Montañoso | Y21: No existe | Z21: Frío
Q22: Lechada asfáltica | U22: Húmedo | V22: Escarpado
I23: Distancia a cantera de materiales pétreos de buena calidad (km) | J23: 150 | Q23: Tratamiento Superficial Doble | U23: Superhúmedo
I24: ¿Disponibilidad de trituradora en la cantera de materiales petreos? | J24: Sí
I25: Distancia a proveedores de materiales bituminosos (km) | J25: 21
I26: Distancia a proveedores de cal (km) | J26: 50
I27: Distancia a proveedores de cemento (km) | J27: 22
I29: Estado de las obras de drenaje:
I30: Cunetas | J30: Malo
I31: Alcantarillas | J31: Malo
I33: TPD | J33: 500
I34: % LIVIANOS (MOTOS, CARROS, CAMPEROS) | J34: 0.8
I35: % BUSES | J35: 0.1
I36: % CAMIONES | J36: 0.1
I37: ¿Se evidencia paso de camiones de más de 3 ejes? | J37: Sí
I39: Factor Camión | J39: =IF(J37="Sí",(((J35*J33)*1+(((J36*J33)/6)*'Eval-Economica'!M12)+((((J36*J33)/6))*'Eval-Economica'!M13)+((((J36*J33)/6))*'Eval-Economica'!M14)+((((J36*J33)/2))*'Eval-Economica'!M15))/(J33*(SUM(J35:J36)))),(((J35*J33)*1+(((J36*J33)/3)*'Eval-Economica'!M12)+((((J36*J33)/3))*'Eval-Economica'!M13)+((((J36*J33)/3))*'Eval-Economica'!M14))/(J33*(SUM(J35:J36))))) -> 2.375
I42: Sección de cálculo
I43: Cálculo de ejes equivalentes
I44: Periodo de diseño (años) | J44: 5
I45: Tasa de crecimiento del tránsito | J45: 0.025
I46: k1 Factor vehiculos pesados | J46: =J35+J36 -> 0.2
I47: k2 Factor carril | J47: 1
I48: Factor Camión | J48: =+J39 -> 2.375
I49: N ejes equivalentes | J49: =J33*J46*J47*365*(((1+J45)^J44-1)/LN(1+J45))*J48 -> 461330.2628
E58: CAPA DE MATERIAL | F58: Tratamiento | I58: ESPESOR (Pulg) | J58: ESPESOR (cm)
E60: Rodadura | F60: =VLOOKUP($H$105,'Matriz-Multicriterio'!$M$38:$R$45,5,0) -> Lechada Asfática | I60: =+J60*0.393701 -> 1.181103 | J60: 3
E61: Base Granular | F61: =VLOOKUP($H$105,'Matriz-Multicriterio'!$M$38:$R$45,6,0) -> Estabilizada con emulsión asfáltica | I61: =+J61*0.393701 -> 5.905515 | J61: =IF(F61="N/A",0,P61) -> 15 | P61: 15
E62: Sub Base Granular | F62: =VLOOKUP($H$105,'Matriz-Multicriterio'!$M$38:$R$45,6,0) -> Estabilizada con emulsión asfáltica | I62: =+J62*0.393701 -> 7.87402 | J62: =IF(F62="N/A",0,P62) -> 20 | P62: 20
E63: Subrasante | F63: =IF(F13<0.03,"Mejoramiento de subrasante con Pedraplen","Mejoramiento de subrasante NO requerido") -> Mejoramiento de subrasante NO requerido | I63: =+J63*0.393701 -> 0 | J63: =IF(F63="Mejoramiento de subrasante NO requerido",0,Nomogramas!W40*(F13*100)+Nomogramas!W39) -> 0
E65: Metodología recomendada en factibilidad | F65: =VLOOKUP(H105,'Matriz-Multicriterio'!$M$38:$O$45,3,0) -> Base estabilizada con emulsión asfáltica+Lechada asfáltica
H105: =MAX('Matriz-Multicriterio'!M38:M45) -> 9.625

Sheet N-Tramos (hidden)
B1: =Control!D6 -> IMPLEMENTACIÓN CONPES 3857 LINEAMIENTOS DE POLÍTICA PARA LA GESTIÓN DE LA RED TERCIARIA
B3: Definición de unidades de diseño
B5: No. de tramos | E5: 1 | F5: 2 | G5: 3 | H5: 4 | I5: 5 | J5: 6 | K5: 7 | L5: 8 | M5: 9 | N5: 10 | O5: 11 | P5: 12 | Q5: 13 | R5: 14 | S5: 15 | T5: 16 | U5: 17 | V5: 18 | W5: 19 | X5: 20 | Y5: 21 | Z5: 22 | AA5: 23 | AB5: 24 | AC5: 25 | AD5: 26 | AE5: 27 | AF5: 28 | AG5: 29 | AH5: 30

Sheet Eval-Economica (2) (hidden)
I2: MODELO DE PRE EVALUACIÓN DE COSTOS PARA VÍAS DE BAJO VOLUMEN DE TRÁNSITO TRAMO 2
C5: CONDICIONES PARA EL ANALISIS | J5: LONGITUD TRAMO RECTO (m) | M5: 5000
J6: LONGITUD TRAMO ALTA PENDIENTE (m) | M6: 80
J7: LONGITUD TOTAL (m) | M7: =SUM(M5:M6) -> 5080
C9: DATOS DE GEOMETRÍA VIAL | K9: PRERIODO DISEÑO | M9: 5 | N9: AÑOS
K11: TIPO VEHÍCULO | M11: Factor de daño
C12: ELEMENTO | D12: UND | E12: ANCHO | L12: C2P | M12: 1.14
C13: Ancho total | D13: m | E13: 3 | L13: C2G | M13: 3.44
C14: Ancho de calzada | D14: m | E14: =+E13-E15 -> 1.8 | L14: C3 | M14: 3.76 | Q14: 2-4
C15: Ancho de cunetas | D15: m | E15: 1.2 | L15: >C5 | M15: 4.72 | Q15: 4-6
C16: Sub Base Granular | D16: m | E16: =+ANCHOVIA -> 3 | Q16: 6-8
C17: Base granular | D17: m | E17: =+ANCHOVIA -> 3 | Q17: 8-10
C18: Suelo Cemento | D18: m | E18: =+ANCHOVIA -> 3 | K18: N ejes equivalentes | L18: =+Control!J53 -> 256590.0468
C19: Huella Concreto | D19: m | E19: =+ANCHOPAV+ANCHOCUN -> 3
C20: Adoquín | D20: m | E20: =+E14 -> 1.8
C21: Losa de Concreto | D21: m | E21: =+E14 -> 1.8
C53: ALTERNATIVA | F53: COSTO DIRECTO COP$ Miles | J53: DIF CD | Q53: SBG | R53: BG | S53: SC | T53: MDC-1 | U53: MCD-2 | V53: PC | W53: BEE
C54: =APU!#REF! ->  | F54: =APU!#REF! ->  | J54: =+(F54-$F$54)/$F$54 ->  | Q54: =+#REF! ->  | R54: =+#REF! ->  | S54: =+#REF! ->  | T54: =+#REF! ->  | U54: =+#REF! ->  | V54: =+#REF! ->  | W54: =+#REF! -> 
C55: =APU!#REF! ->  | F55: =APU!#REF! ->  | J55: =+(F55-$F$54)/$F$54 ->  | Q55: =+#REF! ->  | R55: =+#REF! ->  | S55: =+#REF! ->  | T55: =+#REF! ->  | U55: =+#REF! ->  | V55: =+#REF! ->  | W55: =+#REF! -> 
C56: =APU!I348 -> Alternativa 7: Vía existente+Lechada asfáltica | F56: =APU!M348 -> 2383078880 | J56: =+(F56-$F$54)/$F$54 ->  | Q56: =+#REF! ->  | R56: =+#REF! ->  | S56: =+#REF! ->  | T56: =+#REF! ->  | U56: =+#REF! ->  | V56: =+#REF! ->  | W56: =+#REF! -> 
C57: =APU!I349 -> Alternativa 8: Subrasante+Tratamiento superficial doble | F57: =APU!M349 -> 2554381297 | Q57: =+#REF! ->  | R57: =+#REF! ->  | S57: =+#REF! ->  | T57: =+#REF! ->  | U57: =+#REF! ->  | V57: =+F32 -> 0 | W57: =+#REF! -> 
C58: =APU!I350 -> Alternativa 3: Base estabilizada con emulsión asfáltica+Lechada asfáltica | F58: =APU!M350 -> 3650721803 | Q58: =+#REF! ->  | R58: =+#REF! ->  | S58: =+#REF! ->  | T58: =+#REF! ->  | U58: =+#REF! ->  | V58: =+G32 -> 0 | W58: =+#REF! -> 
C59: =APU!I351 -> Alternativa 6: Base estabilizada mecánicamente+Tratamiento superficial doble | F59: =APU!M351 -> 3701271019
C60: =APU!I352 -> Alternativa 4: Base estabilizada con emulsión asfáltica+Tratamiento superficial doble | F60: =APU!M352 -> 3889005336
C61: =APU!I353 -> Alternativa 1: Base estabilizada con cemento+Lechada asfáltica | F61: =APU!M353 -> 3914100980
C62: =APU!I354 -> Alternativa 2: Base estabilizada con cemento+Tratamiento superficial doble | F62: =APU!M354 -> 4205694107 | Q62: =+#REF! ->  | R62: =+#REF! ->  | S62: =+#REF! ->  | T62: =+#REF! ->  | U62: =+#REF! ->  | V62: =+H32 -> 0 | W62: =+#REF! -> 
C63: =APU!I355 -> Alternativa 5: Base estabilizada mecánicamente+Lechada asfáltica | F63: =APU!M355 -> 4315410502
C64: =APU!I356 -> 0 | F64: =APU!M356 -> 0

Sheet Eval-Economica (3) (hidden)
H2: Regreso al menu | I2: MODELO DE PRE EVALUACIÓN DE COSTOS PARA VÍAS DE BAJO VOLUMEN DE TRÁNSITO TRAMO 3
C5: CONDICIONES PARA EL ANALISIS | J5: LONGITUD TRAMO RECTO (m) | M5: 2000
J6: LONGITUD TRAMO ALTA PENDIENTE (m) | M6: 10
J7: LONGITUD TOTAL (m) | M7: =SUM(M5:M6) -> 2010
C9: DATOS DE GEOMETRÍA VIAL | K9: PRERIODO DISEÑO | M9: 5 | N9: AÑOS
K11: TIPO VEHÍCULO | M11: Factor de daño
C12: ELEMENTO | D12: UND | E12: ANCHO | L12: C2P | M12: 1.14
C13: Ancho total | D13: m | E13: 7.2 | L13: C2G | M13: 3.44
C14: Ancho de calzada | D14: m | E14: =+E13-E15 -> 6 | L14: C3 | M14: 3.76 | Q14: 2-4
C15: Ancho de cunetas | D15: m | E15: 1.2 | L15: >C5 | M15: 4.72 | Q15: 4-6
C16: Sub Base Granular | D16: m | E16: =ANCHOVIA -> 5.3 | Q16: 6-8
C17: Base granular | D17: m | E17: =+ANCHOVIA -> 5.3 | Q17: 8-10
C18: Suelo Cemento | D18: m | E18: =+ANCHOVIA -> 5.3 | K18: N ejes equivalentes | L18: =+Control!J53 -> 256590.0468
C19: Huella Concreto | D19: m | E19: =+ANCHOPAV+ANCHOCUN -> 5.3
C20: Adoquín | D20: m | E20: =+E14 -> 6
C21: Losa de Concreto | D21: m | E21: =+E14 -> 6
C53: ALTERNATIVA | F53: COSTO DIRECTO COP$ Miles | J53: DIF CD | Q53: SBG | R53: BG | S53: SC | T53: MDC-1 | U53: MCD-2 | V53: PC | W53: BEE
C54: =APU!#REF! ->  | F54: =APU!#REF! ->  | J54: =+(F54-$F$54)/$F$54 ->  | Q54: =+#REF! ->  | R54: =+#REF! ->  | S54: =+#REF! ->  | T54: =+#REF! ->  | U54: =+#REF! ->  | V54: =+#REF! ->  | W54: =+#REF! -> 
C55: =APU!#REF! ->  | F55: =APU!#REF! ->  | J55: =+(F55-$F$54)/$F$54 ->  | Q55: =+#REF! ->  | R55: =+#REF! ->  | S55: =+#REF! ->  | T55: =+#REF! ->  | U55: =+#REF! ->  | V55: =+#REF! ->  | W55: =+#REF! -> 
C56: =APU!I348 -> Alternativa 7: Vía existente+Lechada asfáltica | F56: =APU!M348 -> 2383078880 | J56: =+(F56-$F$54)/$F$54 ->  | Q56: =+#REF! ->  | R56: =+#REF! ->  | S56: =+#REF! ->  | T56: =+#REF! ->  | U56: =+#REF! ->  | V56: =+#REF! ->  | W56: =+#REF! -> 
C57: =APU!I349 -> Alternativa 8: Subrasante+Tratamiento superficial doble | F57: =APU!M349 -> 2554381297 | Q57: =+#REF! ->  | R57: =+#REF! ->  | S57: =+#REF! ->  | T57: =+#REF! ->  | U57: =+#REF! ->  | V57: =+F32 -> 0 | W57: =+#REF! -> 
C58: =APU!I350 -> Alternativa 3: Base estabilizada con emulsión asfáltica+Lechada asfáltica | F58: =APU!M350 -> 3650721803 | Q58: =+#REF! ->  | R58: =+#REF! ->  | S58: =+#REF! ->  | T58: =+#REF! ->  | U58: =+#REF! ->  | V58: =+G32 -> 0 | W58: =+#REF! -> 
C59: =APU!I351 -> Alternativa 6: Base estabilizada mecánicamente+Tratamiento superficial doble | F59: =APU!M351 -> 3701271019
C60: =APU!I352 -> Alternativa 4: Base estabilizada con emulsión asfáltica+Tratamiento superficial doble | F60: =APU!M352 -> 3889005336
C61: =APU!I353 -> Alternativa 1: Base estabilizada con cemento+Lechada asfáltica | F61: =APU!M353 -> 3914100980
C62: =APU!I354 -> Alternativa 2: Base estabilizada con cemento+Tratamiento superficial doble | F62: =APU!M354 -> 4205694107 | Q62: =+#REF! ->  | R62: =+#REF! ->  | S62: =+#REF! ->  | T62: =+#REF! ->  | U62: =+#REF! ->  | V62: =+H32 -> 0 | W62: =+#REF! -> 
C63: =APU!I355 -> Alternativa 5: Base estabilizada mecánicamente+Lechada asfáltica | F63: =APU!M355 -> 4315410502
C64: =APU!I356 -> 0 | F64: =APU!M356 -> 0

Sheet Eval-Economica (4) (hidden)
I2: MODELO DE PRE EVALUACIÓN DE COSTOS PARA VÍAS DE BAJO VOLUMEN DE TRÁNSITO TRAMO 4
C5: CONDICIONES PARA EL ANALISIS | J5: LONGITUD TRAMO RECTO (m) | M5: 5000
J6: LONGITUD TRAMO ALTA PENDIENTE (m) | M6: 50
J7: LONGITUD TOTAL (m) | M7: =SUM(M5:M6) -> 5050
C9: DATOS DE GEOMETRÍA VIAL | K9: PRERIODO DISEÑO | M9: 5 | N9: AÑOS
K11: TIPO VEHÍCULO | M11: Factor de daño
C12: ELEMENTO | D12: UND | E12: ANCHO | L12: C2P | M12: 1.14
C13: Ancho total | D13: m | E13: 3 | L13: C2G | M13: 3.44
C14: Ancho de calzada | D14: m | E14: =+E13-E15 -> 1.8 | L14: C3 | M14: 3.76 | Q14: 2-4
C15: Ancho de cunetas | D15: m | E15: 1.2 | L15: >C5 | M15: 4.72 | Q15: 4-6
C16: Sub Base Granular | D16: m | E16: =+ANCHOVIA -> 3 | Q16: 6-8
C17: Base granular | D17: m | E17: =+ANCHOVIA -> 3 | Q17: 8-10
C18: Suelo Cemento | D18: m | E18: =+ANCHOVIA -> 3 | K18: N ejes equivalentes | L18: =+Control!J53 -> 256590.0468
C19: Huella Concreto | D19: m | E19: =+ANCHOPAV+ANCHOCUN -> 3
C20: Adoquín | D20: m | E20: =+E14 -> 1.8
C21: Losa de Concreto | D21: m | E21: =+E14 -> 1.8
C53: ALTERNATIVA | F53: COSTO DIRECTO COP$ Miles | J53: DIF CD | Q53: SBG | R53: BG | S53: SC | T53: MDC-1 | U53: MCD-2 | V53: PC | W53: BEE
C54: =APU!#REF! ->  | F54: =APU!#REF! ->  | J54: =+(F54-$F$54)/$F$54 ->  | Q54: =+#REF! ->  | R54: =+#REF! ->  | S54: =+#REF! ->  | T54: =+#REF! ->  | U54: =+#REF! ->  | V54: =+#REF! ->  | W54: =+#REF! -> 
C55: =APU!#REF! ->  | F55: =APU!#REF! ->  | J55: =+(F55-$F$54)/$F$54 ->  | Q55: =+#REF! ->  | R55: =+#REF! ->  | S55: =+#REF! ->  | T55: =+#REF! ->  | U55: =+#REF! ->  | V55: =+#REF! ->  | W55: =+#REF! -> 
C56: =APU!I348 -> Alternativa 7: Vía existente+Lechada asfáltica | F56: =APU!M348 -> 2383078880 | J56: =+(F56-$F$54)/$F$54 ->  | Q56: =+#REF! ->  | R56: =+#REF! ->  | S56: =+#REF! ->  | T56: =+#REF! ->  | U56: =+#REF! ->  | V56: =+#REF! ->  | W56: =+#REF! -> 
C57: =APU!I349 -> Alternativa 8: Subrasante+Tratamiento superficial doble | F57: =APU!M349 -> 2554381297 | Q57: =+#REF! ->  | R57: =+#REF! ->  | S57: =+#REF! ->  | T57: =+#REF! ->  | U57: =+#REF! ->  | V57: =+F32 -> 0 | W57: =+#REF! -> 
C58: =APU!I350 -> Alternativa 3: Base estabilizada con emulsión asfáltica+Lechada asfáltica | F58: =APU!M350 -> 3650721803 | Q58: =+#REF! ->  | R58: =+#REF! ->  | S58: =+#REF! ->  | T58: =+#REF! ->  | U58: =+#REF! ->  | V58: =+G32 -> 0 | W58: =+#REF! -> 
C59: =APU!I351 -> Alternativa 6: Base estabilizada mecánicamente+Tratamiento superficial doble | F59: =APU!M351 -> 3701271019
C60: =APU!I352 -> Alternativa 4: Base estabilizada con emulsión asfáltica+Tratamiento superficial doble | F60: =APU!M352 -> 3889005336
C61: =APU!I353 -> Alternativa 1: Base estabilizada con cemento+Lechada asfáltica | F61: =APU!M353 -> 3914100980
C62: =APU!I354 -> Alternativa 2: Base estabilizada con cemento+Tratamiento superficial doble | F62: =APU!M354 -> 4205694107 | Q62: =+#REF! ->  | R62: =+#REF! ->  | S62: =+#REF! ->  | T62: =+#REF! ->  | U62: =+#REF! ->  | V62: =+H32 -> 0 | W62: =+#REF! -> 
C63: =APU!I355 -> Alternativa 5: Base estabilizada mecánicamente+Lechada asfáltica | F63: =APU!M355 -> 4315410502
C64: =APU!I356 -> 0 | F64: =APU!M356 -> 0

Sheet Eval-Economica (5) (hidden)
H2: Regreso al menu | I2: MODELO DE PRE EVALUACIÓN DE COSTOS PARA VÍAS DE BAJO VOLUMEN DE TRÁNSITO TRAMO 5
C5: CONDICIONES PARA EL ANALISIS | J5: LONGITUD TRAMO RECTO (m) | M5: 2000
J6: LONGITUD TRAMO ALTA PENDIENTE (m) | M6: 10
J7: LONGITUD TOTAL (m) | M7: =SUM(M5:M6) -> 2010
C9: DATOS DE GEOMETRÍA VIAL | K9: PRERIODO DISEÑO | M9: 5 | N9: AÑOS
K11: TIPO VEHÍCULO | M11: Factor de daño
C12: ELEMENTO | D12: UND | E12: ANCHO | L12: C2P | M12: 1.14
C13: Ancho total | D13: m | E13: 7.2 | L13: C2G | M13: 3.44
C14: Ancho de calzada | D14: m | E14: =+E13-E15 -> 6 | L14: C3 | M14: 3.76 | Q14: 2-4
C15: Ancho de cunetas | D15: m | E15: 1.2 | L15: >C5 | M15: 4.72 | Q15: 4-6
C16: Sub Base Granular | D16: m | E16: =ANCHOVIA -> 5.3 | Q16: 6-8
C17: Base granular | D17: m | E17: =+ANCHOVIA -> 5.3 | Q17: 8-10
C18: Suelo Cemento | D18: m | E18: =+ANCHOVIA -> 5.3 | K18: N ejes equivalentes | L18: =+Control!J53 -> 256590.0468
C19: Huella Concreto | D19: m | E19: =+ANCHOPAV+ANCHOCUN -> 5.3
C20: Adoquín | D20: m | E20: =+E14 -> 6
C21: Losa de Concreto | D21: m | E21: =+E14 -> 6
C53: ALTERNATIVA | F53: COSTO DIRECTO COP$ Miles | J53: DIF CD | Q53: SBG | R53: BG | S53: SC | T53: MDC-1 | U53: MCD-2 | V53: PC | W53: BEE
C54: =APU!#REF! ->  | F54: =APU!#REF! ->  | J54: =+(F54-$F$54)/$F$54 ->  | Q54: =+#REF! ->  | R54: =+#REF! ->  | S54: =+#REF! ->  | T54: =+#REF! ->  | U54: =+#REF! ->  | V54: =+#REF! ->  | W54: =+#REF! -> 
C55: =APU!#REF! ->  | F55: =APU!#REF! ->  | J55: =+(F55-$F$54)/$F$54 ->  | Q55: =+#REF! ->  | R55: =+#REF! ->  | S55: =+#REF! ->  | T55: =+#REF! ->  | U55: =+#REF! ->  | V55: =+#REF! ->  | W55: =+#REF! -> 
C56: =APU!I348 -> Alternativa 7: Vía existente+Lechada asfáltica | F56: =APU!M348 -> 2383078880 | J56: =+(F56-$F$54)/$F$54 ->  | Q56: =+#REF! ->  | R56: =+#REF! ->  | S56: =+#REF! ->  | T56: =+#REF! ->  | U56: =+#REF! ->  | V56: =+#REF! ->  | W56: =+#REF! -> 
C57: =APU!I349 -> Alternativa 8: Subrasante+Tratamiento superficial doble | F57: =APU!M349 -> 2554381297 | Q57: =+#REF! ->  | R57: =+#REF! ->  | S57: =+#REF! ->  | T57: =+#REF! ->  | U57: =+#REF! ->  | V57: =+F32 -> 0 | W57: =+#REF! -> 
C58: =APU!I350 -> Alternativa 3: Base estabilizada con emulsión asfáltica+Lechada asfáltica | F58: =APU!M350 -> 3650721803 | Q58: =+#REF! ->  | R58: =+#REF! ->  | S58: =+#REF! ->  | T58: =+#REF! ->  | U58: =+#REF! ->  | V58: =+G32 -> 0 | W58: =+#REF! -> 
C59: =APU!I351 -> Alternativa 6: Base estabilizada mecánicamente+Tratamiento superficial doble | F59: =APU!M351 -> 3701271019
C60: =APU!I352 -> Alternativa 4: Base estabilizada con emulsión asfáltica+Tratamiento superficial doble | F60: =APU!M352 -> 3889005336
C61: =APU!I353 -> Alternativa 1: Base estabilizada con cemento+Lechada asfáltica | F61: =APU!M353 -> 3914100980
C62: =APU!I354 -> Alternativa 2: Base estabilizada con cemento+Tratamiento superficial doble | F62: =APU!M354 -> 4205694107 | Q62: =+#REF! ->  | R62: =+#REF! ->  | S62: =+#REF! ->  | T62: =+#REF! ->  | U62: =+#REF! ->  | V62: =+H32 -> 0 | W62: =+#REF! -> 
C63: =APU!I355 -> Alternativa 5: Base estabilizada mecánicamente+Lechada asfáltica | F63: =APU!M355 -> 4315410502
C64: =APU!I356 -> 0 | F64: =APU!M356 -> 0

Sheet Eval-Economica (6) (hidden)
I2: MODELO DE PRE EVALUACIÓN DE COSTOS PARA VIAS DE BAJO VOLUMEN DE TRÁNSITO TRAMO 6
C5: CONDICIONES PARA EL ANALISIS | J5: LONGITUD TRAMO RECTO (m) | M5: 5000
J6: LONGITUD TRAMO ALTA PENDIENTE (m) | M6: 50
J7: LONGITUD TOTAL (m) | M7: =SUM(M5:M6) -> 5050
C9: DATOS DE GEOMETRÍA VIAL | K9: PRERIODO DISEÑO | M9: 5 | N9: AÑOS
K11: TIPO VEHÍCULO | M11: Factor de daño
C12: ELEMENTO | D12: UND | E12: ANCHO | L12: C2P | M12: 1.14
C13: Ancho total | D13: m | E13: 3 | L13: C2G | M13: 3.44
C14: Ancho de calzada | D14: m | E14: =+E13-E15 -> 1.8 | L14: C3 | M14: 3.76 | Q14: 2-4
C15: Ancho de cunetas | D15: m | E15: 1.2 | L15: >C5 | M15: 4.72 | Q15: 4-6
C16: Sub Base Granular | D16: m | E16: =+ANCHOVIA -> 3 | Q16: 6-8
C17: Base granular | D17: m | E17: =+ANCHOVIA -> 3 | Q17: 8-10
C18: Suelo Cemento | D18: m | E18: =+ANCHOVIA -> 3 | K18: N ejes equivalentes | L18: =+Control!J53 -> 256590.0468
C19: Huella Concreto | D19: m | E19: =+ANCHOPAV+ANCHOCUN -> 3
C20: Adoquín | D20: m | E20: =+E14 -> 1.8
C21: Losa de Concreto | D21: m | E21: =+E14 -> 1.8
C53: ALTERNATIVA | F53: COSTO DIRECTO COP$ Miles | J53: DIF CD | Q53: SBG | R53: BG | S53: SC | T53: MDC-1 | U53: MCD-2 | V53: PC | W53: BEE
C54: =APU!#REF! ->  | F54: =APU!#REF! ->  | J54: =+(F54-$F$54)/$F$54 ->  | Q54: =+#REF! ->  | R54: =+#REF! ->  | S54: =+#REF! ->  | T54: =+#REF! ->  | U54: =+#REF! ->  | V54: =+#REF! ->  | W54: =+#REF! -> 
C55: =APU!#REF! ->  | F55: =APU!#REF! ->  | J55: =+(F55-$F$54)/$F$54 ->  | Q55: =+#REF! ->  | R55: =+#REF! ->  | S55: =+#REF! ->  | T55: =+#REF! ->  | U55: =+#REF! ->  | V55: =+#REF! ->  | W55: =+#REF! -> 
C56: =APU!I348 -> Alternativa 7: Vía existente+Lechada asfáltica | F56: =APU!M348 -> 2383078880 | J56: =+(F56-$F$54)/$F$54 ->  | Q56: =+#REF! ->  | R56: =+#REF! ->  | S56: =+#REF! ->  | T56: =+#REF! ->  | U56: =+#REF! ->  | V56: =+#REF! ->  | W56: =+#REF! -> 
C57: =APU!I349 -> Alternativa 8: Subrasante+Tratamiento superficial doble | F57: =APU!M349 -> 2554381297 | Q57: =+#REF! ->  | R57: =+#REF! ->  | S57: =+#REF! ->  | T57: =+#REF! ->  | U57: =+#REF! ->  | V57: =+F32 -> 0 | W57: =+#REF! -> 
C58: =APU!I350 -> Alternativa 3: Base estabilizada con emulsión asfáltica+Lechada asfáltica | F58: =APU!M350 -> 3650721803 | Q58: =+#REF! ->  | R58: =+#REF! ->  | S58: =+#REF! ->  | T58: =+#REF! ->  | U58: =+#REF! ->  | V58: =+G32 -> 0 | W58: =+#REF! -> 
C59: =APU!I351 -> Alternativa 6: Base estabilizada mecánicamente+Tratamiento superficial doble | F59: =APU!M351 -> 3701271019
C60: =APU!I352 -> Alternativa 4: Base estabilizada con emulsión asfáltica+Tratamiento superficial doble | F60: =APU!M352 -> 3889005336
C61: =APU!I353 -> Alternativa 1: Base estabilizada con cemento+Lechada asfáltica | F61: =APU!M353 -> 3914100980
C62: =APU!I354 -> Alternativa 2: Base estabilizada con cemento+Tratamiento superficial doble | F62: =APU!M354 -> 4205694107 | Q62: =+#REF! ->  | R62: =+#REF! ->  | S62: =+#REF! ->  | T62: =+#REF! ->  | U62: =+#REF! ->  | V62: =+H32 -> 0 | W62: =+#REF! -> 
C63: =APU!I355 -> Alternativa 5: Base estabilizada mecánicamente+Lechada asfáltica | F63: =APU!M355 -> 4315410502
C64: =APU!I356 -> 0 | F64: =APU!M356 -> 0

Sheet Eval-Economica (7) (hidden)
H2: Regreso al menu | I2: MODELO DE PRE EVALUACIÓN DE COSTOS PARA VÍAS DE BAJO VOLUMEN DE TRÁNSITO TRAMO 7
C5: CONDICIONES PARA EL ANALISIS | J5: LONGITUD TRAMO RECTO (m) | M5: 2000
J6: LONGITUD TRAMO ALTA PENDIENTE (m) | M6: 10
J7: LONGITUD TOTAL (m) | M7: =SUM(M5:M6) -> 2010
C9: DATOS DE GEOMETRÍA VIAL | K9: PRERIODO DISEÑO | M9: 5 | N9: AÑOS
K11: TIPO VEHÍCULO | M11: Factor de daño
C12: ELEMENTO | D12: UND | E12: ANCHO | L12: C2P | M12: 1.14
C13: Ancho total | D13: m | E13: 7.2 | L13: C2G | M13: 3.44
C14: Ancho de calzada | D14: m | E14: =+E13-E15 -> 6 | L14: C3 | M14: 3.76 | Q14: 2-4
C15: Ancho de cunetas | D15: m | E15: 1.2 | L15: >C5 | M15: 4.72 | Q15: 4-6
C16: Sub Base Granular | D16: m | E16: =ANCHOVIA -> 5.3 | Q16: 6-8
C17: Base granular | D17: m | E17: =+ANCHOVIA -> 5.3 | Q17: 8-10
C18: Suelo Cemento | D18: m | E18: =+ANCHOVIA -> 5.3 | K18: N ejes equivalentes | L18: =+Control!J53 -> 256590.0468
C19: Huella Concreto | D19: m | E19: =+ANCHOPAV+ANCHOCUN -> 5.3
C20: Adoquín | D20: m | E20: =+E14 -> 6
C21: Losa de Concreto | D21: m | E21: =+E14 -> 6
C53: ALTERNATIVA | F53: COSTO DIRECTO COP$ Miles | J53: DIF CD | Q53: SBG | R53: BG | S53: SC | T53: MDC-1 | U53: MCD-2 | V53: PC | W53: BEE
C54: =APU!#REF! ->  | F54: =APU!#REF! ->  | J54: =+(F54-$F$54)/$F$54 ->  | Q54: =+#REF! ->  | R54: =+#REF! ->  | S54: =+#REF! ->  | T54: =+#REF! ->  | U54: =+#REF! ->  | V54: =+#REF! ->  | W54: =+#REF! -> 
C55: =APU!#REF! ->  | F55: =APU!#REF! ->  | J55: =+(F55-$F$54)/$F$54 ->  | Q55: =+#REF! ->  | R55: =+#REF! ->  | S55: =+#REF! ->  | T55: =+#REF! ->  | U55: =+#REF! ->  | V55: =+#REF! ->  | W55: =+#REF! -> 
C56: =APU!I348 -> Alternativa 7: Vía existente+Lechada asfáltica | F56: =APU!M348 -> 2383078880 | J56: =+(F56-$F$54)/$F$54 ->  | Q56: =+#REF! ->  | R56: =+#REF! ->  | S56: =+#REF! ->  | T56: =+#REF! ->  | U56: =+#REF! ->  | V56: =+#REF! ->  | W56: =+#REF! -> 
C57: =APU!I349 -> Alternativa 8: Subrasante+Tratamiento superficial doble | F57: =APU!M349 -> 2554381297 | Q57: =+#REF! ->  | R57: =+#REF! ->  | S57: =+#REF! ->  | T57: =+#REF! ->  | U57: =+#REF! ->  | V57: =+F32 -> 0 | W57: =+#REF! -> 
C58: =APU!I350 -> Alternativa 3: Base estabilizada con emulsión asfáltica+Lechada asfáltica | F58: =APU!M350 -> 3650721803 | Q58: =+#REF! ->  | R58: =+#REF! ->  | S58: =+#REF! ->  | T58: =+#REF! ->  | U58: =+#REF! ->  | V58: =+G32 -> 0 | W58: =+#REF! -> 
C59: =APU!I351 -> Alternativa 6: Base estabilizada mecánicamente+Tratamiento superficial doble | F59: =APU!M351 -> 3701271019
C60: =APU!I352 -> Alternativa 4: Base estabilizada con emulsión asfáltica+Tratamiento superficial doble | F60: =APU!M352 -> 3889005336
C61: =APU!I353 -> Alternativa 1: Base estabilizada con cemento+Lechada asfáltica | F61: =APU!M353 -> 3914100980
C62: =APU!I354 -> Alternativa 2: Base estabilizada con cemento+Tratamiento superficial doble | F62: =APU!M354 -> 4205694107 | Q62: =+#REF! ->  | R62: =+#REF! ->  | S62: =+#REF! ->  | T62: =+#REF! ->  | U62: =+#REF! ->  | V62: =+H32 -> 0 | W62: =+#REF! -> 
C63: =APU!I355 -> Alternativa 5: Base estabilizada mecánicamente+Lechada asfáltica | F63: =APU!M355 -> 4315410502
C64: =APU!I356 -> 0 | F64: =APU!M356 -> 0

Sheet Eval-Economica (8) (hidden)
I2: MODELO DE PRE EVALUACIÓN DE COSTOS PARA VÍAS DE BAJO VOLUMEN DE TRÁNSITO TRAMO 8
C5: CONDICIONES PARA EL ANALISIS | J5: LONGITUD TRAMO RECTO (m) | M5: 5000
J6: LONGITUD TRAMO ALTA PENDIENTE (m) | M6: 50
J7: LONGITUD TOTAL (m) | M7: =SUM(M5:M6) -> 5050
C9: DATOS DE GEOMETRÍA VIAL | K9: PRERIODO DISEÑO | M9: 5 | N9: AÑOS
K11: TIPO VEHÍCULO | M11: Factor de daño
C12: ELEMENTO | D12: UND | E12: ANCHO | L12: C2P | M12: 1.14
C13: Ancho total | D13: m | E13: 5 | L13: C2G | M13: 3.44
C14: Ancho de calzada | D14: m | E14: =+E13-E15 -> 3.8 | L14: C3 | M14: 3.76 | Q14: 2-4
C15: Ancho de cunetas | D15: m | E15: 1.2 | L15: >C5 | M15: 4.72 | Q15: 4-6
C16: Sub Base Granular | D16: m | E16: =+ANCHOVIA -> 5 | Q16: 6-8
C17: Base granular | D17: m | E17: =+ANCHOVIA -> 5 | Q17: 8-10
C18: Suelo Cemento | D18: m | E18: =+ANCHOVIA -> 5 | K18: N ejes equivalentes | L18: =+Control!J53 -> 256590.0468
C19: Huella Concreto | D19: m | E19: =+ANCHOPAV+ANCHOCUN -> 5
C20: Adoquín | D20: m | E20: =+E14 -> 3.8
C21: Losa de Concreto | D21: m | E21: =+E14 -> 3.8
C53: ALTERNATIVA | F53: COSTO DIRECTO COP$ Miles | J53: DIF CD | Q53: SBG | R53: BG | S53: SC | T53: MDC-1 | U53: MCD-2 | V53: PC | W53: BEE
C54: =APU!#REF! ->  | F54: =APU!#REF! ->  | J54: =+(F54-$F$54)/$F$54 ->  | Q54: =+#REF! ->  | R54: =+#REF! ->  | S54: =+#REF! ->  | T54: =+#REF! ->  | U54: =+#REF! ->  | V54: =+#REF! ->  | W54: =+#REF! -> 
C55: =APU!#REF! ->  | F55: =APU!#REF! ->  | J55: =+(F55-$F$54)/$F$54 ->  | Q55: =+#REF! ->  | R55: =+#REF! ->  | S55: =+#REF! ->  | T55: =+#REF! ->  | U55: =+#REF! ->  | V55: =+#REF! ->  | W55: =+#REF! -> 
C56: =APU!I348 -> Alternativa 7: Vía existente+Lechada asfáltica | F56: =APU!M348 -> 2383078880 | J56: =+(F56-$F$54)/$F$54 ->  | Q56: =+#REF! ->  | R56: =+#REF! ->  | S56: =+#REF! ->  | T56: =+#REF! ->  | U56: =+#REF! ->  | V56: =+#REF! ->  | W56: =+#REF! -> 
C57: =APU!I349 -> Alternativa 8: Subrasante+Tratamiento superficial doble | F57: =APU!M349 -> 2554381297 | Q57: =+#REF! ->  | R57: =+#REF! ->  | S57: =+#REF! ->  | T57: =+#REF! ->  | U57: =+#REF! ->  | V57: =+F32 -> 0 | W57: =+#REF! -> 
C58: =APU!I350 -> Alternativa 3: Base estabilizada con emulsión asfáltica+Lechada asfáltica | F58: =APU!M350 -> 3650721803 | Q58: =+#REF! ->  | R58: =+#REF! ->  | S58: =+#REF! ->  | T58: =+#REF! ->  | U58: =+#REF! ->  | V58: =+G32 -> 0 | W58: =+#REF! -> 
C59: =APU!I351 -> Alternativa 6: Base estabilizada mecánicamente+Tratamiento superficial doble | F59: =APU!M351 -> 3701271019
C60: =APU!I352 -> Alternativa 4: Base estabilizada con emulsión asfáltica+Tratamiento superficial doble | F60: =APU!M352 -> 3889005336
C61: =APU!I353 -> Alternativa 1: Base estabilizada con cemento+Lechada asfáltica | F61: =APU!M353 -> 3914100980
C62: =APU!I354 -> Alternativa 2: Base estabilizada con cemento+Tratamiento superficial doble | F62: =APU!M354 -> 4205694107 | Q62: =+#REF! ->  | R62: =+#REF! ->  | S62: =+#REF! ->  | T62: =+#REF! ->  | U62: =+#REF! ->  | V62: =+H32 -> 0 | W62: =+#REF! -> 
C63: =APU!I355 -> Alternativa 5: Base estabilizada mecánicamente+Lechada asfáltica | F63: =APU!M355 -> 4315410502
C64: =APU!I356 -> 0 | F64: =APU!M356 -> 0

Sheet Eval-Economica (9) (hidden)
I2: MODELO DE PRE EVALUACIÓN DE COSTOS PARA VÍAS DE BAJO VOLUMEN DE TRÁNSITO TRAMO 9
C5: CONDICIONES PARA EL ANALISIS | J5: LONGITUD TRAMO RECTO (m) | M5: 5000
J6: LONGITUD TRAMO ALTA PENDIENTE (m) | M6: 50
J7: LONGITUD TOTAL (m) | M7: =SUM(M5:M6) -> 5050
C9: DATOS DE GEOMETRÍA VIAL | K9: PRERIODO DISEÑO | M9: 5 | N9: AÑOS
K11: TIPO VEHÍCULO | M11: Factor de daño
C12: ELEMENTO | D12: UND | E12: ANCHO | L12: C2P | M12: 1.14
C13: Ancho total | D13: m | E13: 3 | L13: C2G | M13: 3.44
C14: Ancho de calzada | D14: m | E14: =+E13-E15 -> 1.8 | L14: C3 | M14: 3.76 | Q14: 2-4
C15: Ancho de cunetas | D15: m | E15: 1.2 | L15: >C5 | M15: 4.72 | Q15: 4-6
C16: Sub Base Granular | D16: m | E16: =+ANCHOVIA -> 3 | Q16: 6-8
C17: Base granular | D17: m | E17: =+ANCHOVIA -> 3 | Q17: 8-10
C18: Suelo Cemento | D18: m | E18: =+ANCHOVIA -> 3 | K18: N ejes equivalentes | L18: =+Control!J53 -> 256590.0468
C19: Huella Concreto | D19: m | E19: =+ANCHOPAV+ANCHOCUN -> 3
C20: Adoquín | D20: m | E20: =+E14 -> 1.8
C21: Losa de Concreto | D21: m | E21: =+E14 -> 1.8
C53: ALTERNATIVA | F53: COSTO DIRECTO COP$ Miles | J53: DIF CD | Q53: SBG | R53: BG | S53: SC | T53: MDC-1 | U53: MCD-2 | V53: PC | W53: BEE
C54: =APU!#REF! ->  | F54: =APU!#REF! ->  | J54: =+(F54-$F$54)/$F$54 ->  | Q54: =+#REF! ->  | R54: =+#REF! ->  | S54: =+#REF! ->  | T54: =+#REF! ->  | U54: =+#REF! ->  | V54: =+#REF! ->  | W54: =+#REF! -> 
C55: =APU!#REF! ->  | F55: =APU!#REF! ->  | J55: =+(F55-$F$54)/$F$54 ->  | Q55: =+#REF! ->  | R55: =+#REF! ->  | S55: =+#REF! ->  | T55: =+#REF! ->  | U55: =+#REF! ->  | V55: =+#REF! ->  | W55: =+#REF! -> 
C56: =APU!I348 -> Alternativa 7: Vía existente+Lechada asfáltica | F56: =APU!M348 -> 2383078880 | J56: =+(F56-$F$54)/$F$54 ->  | Q56: =+#REF! ->  | R56: =+#REF! ->  | S56: =+#REF! ->  | T56: =+#REF! ->  | U56: =+#REF! ->  | V56: =+#REF! ->  | W56: =+#REF! -> 
C57: =APU!I349 -> Alternativa 8: Subrasante+Tratamiento superficial doble | F57: =APU!M349 -> 2554381297 | Q57: =+#REF! ->  | R57: =+#REF! ->  | S57: =+#REF! ->  | T57: =+#REF! ->  | U57: =+#REF! ->  | V57: =+F32 -> 0 | W57: =+#REF! -> 
C58: =APU!I350 -> Alternativa 3: Base estabilizada con emulsión asfáltica+Lechada asfáltica | F58: =APU!M350 -> 3650721803 | Q58: =+#REF! ->  | R58: =+#REF! ->  | S58: =+#REF! ->  | T58: =+#REF! ->  | U58: =+#REF! ->  | V58: =+G32 -> 0 | W58: =+#REF! -> 
C59: =APU!I351 -> Alternativa 6: Base estabilizada mecánicamente+Tratamiento superficial doble | F59: =APU!M351 -> 3701271019
C60: =APU!I352 -> Alternativa 4: Base estabilizada con emulsión asfáltica+Tratamiento superficial doble | F60: =APU!M352 -> 3889005336
C61: =APU!I353 -> Alternativa 1: Base estabilizada con cemento+Lechada asfáltica | F61: =APU!M353 -> 3914100980
C62: =APU!I354 -> Alternativa 2: Base estabilizada con cemento+Tratamiento superficial doble | F62: =APU!M354 -> 4205694107 | Q62: =+#REF! ->  | R62: =+#REF! ->  | S62: =+#REF! ->  | T62: =+#REF! ->  | U62: =+#REF! ->  | V62: =+H32 -> 0 | W62: =+#REF! -> 
C63: =APU!I355 -> Alternativa 5: Base estabilizada mecánicamente+Lechada asfáltica | F63: =APU!M355 -> 4315410502
C64: =APU!I356 -> 0 | F64: =APU!M356 -> 0

Sheet Eval-Economica (10) (hidden)
I2: MODELO DE PRE EVALUACIÓN DE COSTOS PARA VÍAS DE BAJO VOLUMEN DE TRÁNSITO TRAMO 10
C5: CONDICIONES PARA EL ANALISIS | J5: LONGITUD TRAMO RECTO (m) | M5: 5000
J6: LONGITUD TRAMO ALTA PENDIENTE (m) | M6: 50
J7: LONGITUD TOTAL (m) | M7: =SUM(M5:M6) -> 5050
C9: DATOS DE GEOMETRÍA VIAL | K9: PRERIODO DISEÑO | M9: 5 | N9: AÑOS
K11: TIPO VEHÍCULO | M11: Factor de daño
C12: ELEMENTO | D12: UND | E12: ANCHO | L12: C2P | M12: 1.14
C13: Ancho total | D13: m | E13: 3 | L13: C2G | M13: 3.44
C14: Ancho de calzada | D14: m | E14: =+E13-E15 -> 1.8 | L14: C3 | M14: 3.76 | Q14: 2-4
C15: Ancho de cunetas | D15: m | E15: 1.2 | L15: >C5 | M15: 4.72 | Q15: 4-6
C16: Sub Base Granular | D16: m | E16: =+ANCHOVIA -> 3 | Q16: 6-8
C17: Base granular | D17: m | E17: =+ANCHOVIA -> 3 | Q17: 8-10
C18: Suelo Cemento | D18: m | E18: =+ANCHOVIA -> 3 | K18: N ejes equivalentes | L18: =+Control!J53 -> 256590.0468
C19: Huella Concreto | D19: m | E19: =+ANCHOPAV+ANCHOCUN -> 3
C20: Adoquín | D20: m | E20: =+E14 -> 1.8
C21: Losa de Concreto | D21: m | E21: =+E14 -> 1.8
C53: ALTERNATIVA | F53: COSTO DIRECTO COP$ Miles | J53: DIF CD | Q53: SBG | R53: BG | S53: SC | T53: MDC-1 | U53: MCD-2 | V53: PC | W53: BEE
C54: =APU!#REF! ->  | F54: =APU!#REF! ->  | J54: =+(F54-$F$54)/$F$54 ->  | Q54: =+#REF! ->  | R54: =+#REF! ->  | S54: =+#REF! ->  | T54: =+#REF! ->  | U54: =+#REF! ->  | V54: =+#REF! ->  | W54: =+#REF! -> 
C55: =APU!#REF! ->  | F55: =APU!#REF! ->  | J55: =+(F55-$F$54)/$F$54 ->  | Q55: =+#REF! ->  | R55: =+#REF! ->  | S55: =+#REF! ->  | T55: =+#REF! ->  | U55: =+#REF! ->  | V55: =+#REF! ->  | W55: =+#REF! -> 
C56: =APU!I348 -> Alternativa 7: Vía existente+Lechada asfáltica | F56: =APU!M348 -> 2383078880 | J56: =+(F56-$F$54)/$F$54 ->  | Q56: =+#REF! ->  | R56: =+#REF! ->  | S56: =+#REF! ->  | T56: =+#REF! ->  | U56: =+#REF! ->  | V56: =+#REF! ->  | W56: =+#REF! -> 
C57: =APU!I349 -> Alternativa 8: Subrasante+Tratamiento superficial doble | F57: =APU!M349 -> 2554381297 | Q57: =+#REF! ->  | R57: =+#REF! ->  | S57: =+#REF! ->  | T57: =+#REF! ->  | U57: =+#REF! ->  | V57: =+F32 -> 0 | W57: =+#REF! -> 
C58: =APU!I350 -> Alternativa 3: Base estabilizada con emulsión asfáltica+Lechada asfáltica | F58: =APU!M350 -> 3650721803 | Q58: =+#REF! ->  | R58: =+#REF! ->  | S58: =+#REF! ->  | T58: =+#REF! ->  | U58: =+#REF! ->  | V58: =+G32 -> 0 | W58: =+#REF! -> 
C59: =APU!I351 -> Alternativa 6: Base estabilizada mecánicamente+Tratamiento superficial doble | F59: =APU!M351 -> 3701271019
C60: =APU!I352 -> Alternativa 4: Base estabilizada con emulsión asfáltica+Tratamiento superficial doble | F60: =APU!M352 -> 3889005336
C61: =APU!I353 -> Alternativa 1: Base estabilizada con cemento+Lechada asfáltica | F61: =APU!M353 -> 3914100980
C62: =APU!I354 -> Alternativa 2: Base estabilizada con cemento+Tratamiento superficial doble | F62: =APU!M354 -> 4205694107 | Q62: =+#REF! ->  | R62: =+#REF! ->  | S62: =+#REF! ->  | T62: =+#REF! ->  | U62: =+#REF! ->  | V62: =+H32 -> 0 | W62: =+#REF! -> 
C63: =APU!I355 -> Alternativa 5: Base estabilizada mecánicamente+Lechada asfáltica | F63: =APU!M355 -> 4315410502
C64: =APU!I356 -> 0 | F64: =APU!M356 -> 0

Sheet Eval-Economica (hidden)
H2: Regreso al menu | I2: MODELO DE PRE EVALUACIÓN DE COSTOS PARA VÍAS DE BAJO VOLUMEN DE TRÁNSITO
C5: CONDICIONES PARA EL ANALISIS | J5: LONGITUD TRAMO RECTO (m) | M5: =+Control!J23 -> 3050
C9: DATOS DE GEOMETRÍA VIAL | K9: PERIODO DISEÑO | M9: 5 | N9: AÑOS
N10: Cuando no se evidencia camiones de más de 5 ejes | O10: Cuando se evidencia camiones de más de 5 ejes
K11: TIPO VEHÍCULO | M11: Factor de daño | N11: % Sobre total veh pesados | O11: % Sobre total veh pesados
C12: ELEMENTO | D12: UND | E12: ANCHO | L12: C2P | M12: 1.14 | N12: 0.167 | O12: 0.333
C13: Ancho total | D13: m | E13: =+Control!J22 -> 5.3 | L13: C2G | M13: 3.44 | N13: 0.167 | O13: 0.333
C14: Ancho de calzada | D14: m | E14: =+E13-E15 -> 3.9 | L14: C3 | M14: 3.76 | N14: 0.167 | O14: 0.334
C15: Ancho de cunetas | D15: m | E15: 1.4 | L15: >C5 | M15: 4.72 | N15: 0.5 | O15: 0
C16: Sub Base Granular | D16: m | E16: =ANCHOVIA -> 5.3
C17: Base granular | D17: m | E17: =+ANCHOVIA -> 5.3
C18: Suelo Cemento | D18: m | E18: =+ANCHOVIA -> 5.3 | K18: N ejes equivalentes | L18: =+Control!J53 -> 256590.0468
C19: Huella Concreto | D19: m | E19: =+ANCHOPAV+ANCHOCUN -> 5.3
C20: Adoquín | D20: m | E20: =+E14 -> 3.9
C21: Losa de Concreto | D21: m | E21: =+E14 -> 3.9
C53: ALTERNATIVA | F53: COSTO DIRECTO COP$ | J53: Comparación de costos | R53: SBG | S53: BG | T53: SC | U53: MDC-1 | V53: MCD-2 | W53: PC | X53: BEE
C54: =APU!I348 -> Alternativa 7: Vía existente+Lechada asfáltica | F54: =APU!M348 -> 2383078880 | J54: =+(F54-$F$54)/$F$54 -> 0 | R54: =+#REF! ->  | S54: =+#REF! ->  | T54: =+#REF! ->  | U54: =+#REF! ->  | V54: =+#REF! ->  | W54: =+#REF! ->  | X54: =+#REF! -> 
C55: =APU!I349 -> Alternativa 8: Subrasante+Tratamiento superficial doble | F55: =APU!M349 -> 2554381297 | J55: =+(F55-$F$54)/$F$54 -> 0.07188281446 | R55: =+#REF! ->  | S55: =+#REF! ->  | T55: =+#REF! ->  | U55: =+#REF! ->  | V55: =+#REF! ->  | W55: =+F32 -> 0 | X55: =+#REF! -> 
C56: =APU!I350 -> Alternativa 3: Base estabilizada con emulsión asfáltica+Lechada asfáltica | F56: =APU!M350 -> 3650721803 | J56: 0.5319349411 | R56: =+#REF! ->  | S56: =+#REF! ->  | T56: =+#REF! ->  | U56: =+#REF! ->  | V56: =+#REF! ->  | W56: =+G32 -> 0 | X56: =+#REF! -> 
C57: =APU!I351 -> Alternativa 6: Base estabilizada mecánicamente+Tratamiento superficial doble | F57: =APU!M351 -> 3701271019 | J57: 0.5531466667
C58: =APU!I352 -> Alternativa 4: Base estabilizada con emulsión asfáltica+Tratamiento superficial doble | F58: =APU!M352 -> 3889005336 | J58: 0.6319247209
C59: =APU!I353 -> Alternativa 1: Base estabilizada con cemento+Lechada asfáltica | F59: =APU!M353 -> 3914100980 | J59: 0.642455486
C60: =APU!I354 -> Alternativa 2: Base estabilizada con cemento+Tratamiento superficial doble | F60: =APU!M354 -> 4205694107 | J60: 0.7648153164 | R60: =+#REF! ->  | S60: =+#REF! ->  | T60: =+#REF! ->  | U60: =+#REF! ->  | V60: =+#REF! ->  | W60: =+H32 -> 0 | X60: =+#REF! -> 
C61: =APU!I355 -> Alternativa 5: Base estabilizada mecánicamente+Lechada asfáltica | F61: =APU!M355 -> 4315410502 | J61: 0.8108550827
C62: =APU!I356 -> 0 | F62: =APU!M356 -> 0 | J62: =+(F62-F62)/SUM(F62:H69) -> 

Sheet INSUMOS
D2: MODELO DE PRE EVALUACIÓN DE COSTOS PARA VIAS DE BAJO VOLUMEN DE TRÁNSITO
C4: FALSE
C5: PRECIOS MANO DE OBRA, MATERIALES Y EQUIPOS
C7: MATERIALES | D7: UND | E7: COSTO | F7: TRANSPORTE (Km)
C8: Base granular con proctor del 95% | D8: m³ | E8: 73000 | F8: 0
C9: Material de Sub Base CBR=40% | D9: m3 | E9: 26861.10183 | F9: 30
C10: Concreto de 140 kg/cm² | D10: m³ | E10: 215960 | F10: 30
C11: Rajón del municipio | D11: m³ | E11: 129000 | F11: 15
C12: Geotextil | D12: m2 | E12: 2500
C13: Subbase Granular | D13: m3 | E13: 29151 | F13: 50
C14: Base Granular | D14: m3 | E14: 35200 | F14: 50
C15: Piedra de Rio (Piedra Colocada 4" - 6") | D15: m3 | E15: 60000 | F15: 30
C16: Adoquín de Concreto | D16: m2 | E16: =36000*1.16 -> 41760 | F16: 30
C17: BORDILLOS DE CONCRETO (45x15x100) | D17: U | E17: =18700*1.16 -> 21692
C18: $ TTE Adoquín | D18: m2/km | E18: 80 | F18: NA
C19: $ TTE Granulares | D19: m3/km | E19: 700 | F19: NA
C20: Agua | D20: kg | E20: 30 | F20: 20
C21: Concreto | D21: m3 | F21: 20
C22: ANTISOL | D22: kg | E22: 3248
C23: SUPERPLASTIFICANTE | D23: kg | E23: 6960
C24: CORDON DE RESPALDO | D24: m | E24: 580
C25: SELLANTE JUNTAS | D25: lt | E25: 32176
C26: FORMALETA PARA CUNETAS | D26: m | E26: 8700
C27: MATERIAL SELECCIONADO PARA RELLENO | D27: m3 | E27: 11457
C28: ACERO REFUERZO INSTALADO | D28: kg | E28: 5000
C29: MEZCLA ASFÁLTICA EN CALIENTE (MDC - 2) | D29: m3 | E29: 350000 | F29: 60
C30: $ TTE Mezclas Asfálticas | D30: m3/km | E30: 1300
C31: AGREGADO TRATAMIENTO SUPERFICIAL | D31: m³ | E31: 75000 | F31: 40
C32: EMULSIÓN (CRR-2) | D32: lt | E32: 2500
C33: MATERIAL PARA PEDRAPLEN | D33: m³ | E33: 45000 | F33: 20
C35: EQUIPOS | E35: UNIDAD | F35: $ / UN
C36: Retroexcavadora de llantas | E36: h | F36: 81000
C37: Vibro compactador 8 Ton | E37: h | F37: 116000
C38: Motoniveladora 120 Hp | E38: h | F38: 120000
C39: Rodillo vibrante tanden autopropulsado anchura de trabajo 100 cm | E39: h | F39: 25500
C40: Carrotanque de agua(1000 Galones) | E40: h | F40: 63539.3
C41: Motoniveladora potencia 215 HP, ancho de cuchilla 4,27 m, peso 18 ton. | E41: h | F41: 174000
C42: Vibrocompatador, potencia 153 HP, peso 10 Ton. | E42: h | F42: 78488.78403
C43: Camión de Slurry | E43: h | F43: 103891.3658
C44: Compresor (barrido y soplado) | E44: h | F44: 46371.6
C45: Formaleta madera | E45: m | F45: 2500
C46: Vibrador a gasolina | E46: h | F46: 3830
C47: Carrotanque Irrigador de asfalto, 1000 GALONES DE CAPACIDAD | E47: h | F47: 86858.2
C48: Compactador neumático de Potencia 70 HP, peso de 13 ton | E48: h | F48: 132000
C49: Esparcidor de gravilla, Ancho de esparcimiento 3100mm, Velocidad de trabajo 10—20km2/h | E49: h | F49: 76936
C50: VIBRADOR DE CONCRETO | E50: h | F50: 6300
C51: MEZCLADORA DE CONCRETO (1 BULTO) | E51: h | F51: 5000
C52: COMPACTADOR MANUAL VIBRATORIO (RANA) | E52: h | F52: 5500
C53: RECICLADORA DE PAVIMENTO | E53: h | F53: 350000
C54: TRACTOR CON ROTOVO | E54: h | F54: 50000
C55: PLANTA DE PRODUCCIÓN DE CONCRETO | E55: h | F55: 158000
C56: ASPERSOR MANUAL | E56: h | F56: 1600
C57: ESPARCIDOR DE GRAVILLA | E57: h | F57: 200000
C58: BULLDOZER | E58: h | F58: 120000
C60: MANO DE OBRA | D60: JORNAL
C61: OBREROS | D61: =6723*8 -> 53784
C62: OFICIAL | D62: =9652*8 -> 77216
C63: Cuadrilla AA (Albañilería) 1Of y 1 Ay | D63: =16375*8 -> 131000
C64: Oficial | D64: =9652*8 -> 77216
C65: Obrero (2) | D65: =6723*8 -> 53784
C66: Cuadrilla AA 1Of+2Ay (Albañilería) | D66: =23097*8 -> 184776
C70: MATERIALES | D70: Distancia a fuente km | E70: Costo Transporte m3*km
C71: Material bituminoso (asfalto, asfaltita, etc) | D71: =+Control!J29 -> 7 | E71: 986.7392741
C73: Cemento | D73: =+Control!J31 -> 150 | E73: 834.9737222
C74: Materiales pétreos de cantera | D74: =+Control!J27 -> 16 | E74: 1250
B143: TIPOS DE ESTRUCTURA
B144: FLEXIBLE
B145: RIGIDO

Sheet APU (hidden)
A1: ALTERNATIVAS DE INTERVENCIÓN CAMINOS PARA LA PROSPERIDAD
A2: PAVIMENTO DE CONCRETO
A3: ITEM | B3: DESCRIPCION | F3: UNIDAD | G3: ANCHO | H3: PROFUNDIDAD | I3: LARGO | J3: CANTIDAD Aproximada | K3: CONSUMO DE CEMENTO (TON) | L3: VR UNITARIO de Referencia | M3: VR PARCIAL
A4: 231.1 | B4: Geotextil separación material granular | F4: M2 | G4: 0 | H4: 1 | I4: =+LONGITUD -> 3050 | J4: =+G4*I4 -> 0 | L4: =+CDGEOTEXTIL -> 2750 | M4: =+L4*J4 -> 0
A5: 310.1 | B5: Conformación de calzada existente | F5: M2 | G5: =+ANCHOVIA -> 5.3 | H5: 1 | I5: 3050 | J5: =+G5*H5*I5 -> 16165 | L5: =+CDCONFORMACION -> 558.75 | M5: 9032193.75
A6: 320.1 | B6: Sub Base Granular | F6: M3 | G6: =+ANCHOVIA -> 5.3 | H6: =+IF(Hoja2!L4=2,0.15,0) -> 0.15 | I6: 3050 | J6: 2424.75 | L6: =+CDSBG -> 88113.75 | M6: 213653815.3
A7: 341.1 | B7: Soporte en Suelo Cemento | F7: M3 | G7: =+ANCHOVIA -> 5.3 | H7: =+IF(Hoja2!L4=3,0.15,0) -> 0 | I7: 3050 | J7: 0 | L7: =+CDSC -> 8972957.856 | M7: =+L7*J7 -> 0
A8: CONCRETO MR | B8: Producción de Concreto | F8: M3 | G8: =+ANCHOPAV -> 3.9 | H8: =+Hoja1!M2/1000 -> 0.19 | I8: 3050 | J8: 2260.05 | L8: =+IF(Hoja2!N4=1,'CONCRETO MR 3.8'!M83,IF(Hoja2!N4=2,'CONCRETO MR 4.0'!M83,IF(Hoja2!N4=3,'CONCRETO MR 4.2'!M83,0))) -> 32184221.35 | M8: =+L8*J8 -> 7.273794947e+10
A9: 500.1 Colocación PC | B9: Colocación Concreto Pavimentos | F9: M3 | G9: =+ANCHOPAV -> 3.9 | H9: =+H8 -> 0.19 | I9: 3050 | J9: 2260.05 | L9: =+CDAPLICMR -> 139886.5253 | M9: =+L9*J9 -> 316150541.6
A10: CUNETAS | B10: Cunetas de Concreto fundida en el lugar | F10: M3 | G10: =+ANCHOCUN -> 1.4 | H10: =+MODELO!$D$11 -> 0.15 | I10: 3050 | J10: 640.5 | L10: =+CUNETAS!H43 -> 28968203.33 | M10: =+L10*J10 -> 1.855413424e+10
A11: HUELLA + PIEDRA PEGADA
A12: ITEM | B12: DESCRIPCION | F12: UNIDAD | G12: ANCHO | H12: PROFUNDIDAD | I12: LARGO | J12: CANTIDAD Aproximada | L12: VR UNITARIO de Referencia | M12: VR PARCIAL
A13: 231.1 | B13: Geotextil separación material granular | F13: M2 | G13: 0 | H13: 1 | I13: =+LONGITUD -> 3050 | J13: =+G13*I13 -> 0 | L13: =+CDGEOTEXTIL -> 2750 | M13: =+L13*J13 -> 0
A14: 221.1 | B14: Pedraplen | F14: M3 | G14: =+ANCHOVIA -> 5.3 | H14: =IF(ViasTerc!$I$4=2,0.2,0) -> 0 | I14: 3050 | J14: =+G14*H14*I14 -> 0 | L14: =+CDPEDRAPLEN -> 79650 | M14: 0
A15: 310.1 | B15: Conformación de calzada existente | F15: M2 | G15: =+ANCHOVIA -> 5.3 | H15: 1 | I15: 3050 | J15: =+G15*H15*I15 -> 16165 | L15: =+CDCONFORMACION -> 558.75 | M15: 9032193.75
A16: 320.1 | B16: Sub Base Granular | F16: M3 | G16: =+ANCHOVIA -> 5.3 | H16: 0.15 | I16: 3050 | J16: =+G16*H16*I16 -> 2424.75 | L16: =+CDSBG -> 88113.75 | M16: 213653815.3
A17: 341.1 | B17: Soporte en Suelo Cemento | F17: M3 | G17: =+ANCHOVIA -> 5.3 | H17: 0 | I17: 3050 | J17: =+G17*H17*I17 -> 0 | L17: =+CDSC -> 8972957.856 | M17: =+L17*J17 -> 0
A18: PIEDRA | B18: Piedra Colocada | F18: M3 | H18: =+MODELO!E15 -> 0.2 | I18: 3050 | J18: 0 | L18: =+PIEDRA!H41 -> 9211594.214 | M18: =+L18*J18 -> 0
A19: RIEL | B19: Huella de Concreto | F19: M3 | G19: =+'Eval-Economica'!E19 -> 5.3 | H19: 1 | I19: 3050 | J19: 1 | L19: =+RIEL!H50 -> 21057364.55 | M19: =+L19*J19*I19/5*G19 -> 6.807845958e+10
A20: CUNETAS | B20: Cunetas de Concreto fundida en el lugar | F20: M3 | G20: 0 | H20: 0.15 | I20: 3050 | J20: =+G20*H20*I20 -> 0 | L20: =+CUNETAS!H43 -> 28968203.33 | M20: =+L20*J20 -> 0
A21: ADOQUINES
A22: ITEM | B22: DESCRIPCION | F22: UNIDAD | G22: ANCHO | H22: PROFUNDIDAD | I22: LARGO | J22: CANTIDAD Aproximada | L22: VR UNITARIO de Referencia | M22: VR PARCIAL
A23: 231.1 | B23: Geotextil separación material granular | F23: M2 | G23: 0 | H23: 1 | I23: =+I4 -> 3050 | J23: =+G23*I23 -> 0 | L23: =+CDGEOTEXTIL -> 2750 | M23: =+L23*J23 -> 0
A24: 310.1 | B24: Conformación de calzada existente | F24: M2 | G24: =+ANCHOVIA -> 5.3 | H24: 1 | I24: =+I23 -> 3050 | J24: =+G24*H24*I24 -> 16165 | L24: =+CDCONFORMACION -> 558.75 | M24: 9032193.75
A25: 320.1 | B25: Sub Base Granular | F25: M3 | G25: =+ANCHOVIA -> 5.3 | H25: =+MODELO!$F$12 -> 0 | I25: =+I24 -> 3050 | J25: =+G25*H25*I25 -> 0 | L25: =+CDSBG -> 88113.75 | M25: 0
A26: 330.1 | B26: Base Granular | F26: M3 | G26: =+ANCHOVIA -> 5.3 | H26: =+IF(Hoja2!L4=1,Hoja4!K2,IF(Hoja2!L4=2,Hoja4!K2,0)) -> 0.25 | I26: 3050 | J26: =+G26*H26*I26 -> 4041.25 | L26: =+CDBG -> 95675 | M26: 386646593.8
A27: 341.1 | B27: Soporte en Suelo Cemento | F27: M3 | G27: =+'Eval-Economica'!E13 -> 5.3 | H27: =+IF(Hoja2!L4=3,Hoja4!K2,0) -> 0 | I27: 3050 | J27: =+G27*H27*I27 -> 0 | L27: =+CDSC -> 8972957.856 | M27: =+L27*J27 -> 0
A28: ADOQUINES | B28: Adoquín de Concreto | F28: M2 | G28: =+ANCHOPAV -> 3.9 | H28: 1 | I28: =+I27 -> 3050 | J28: =+G28*H28*I28 -> 11895 | L28: =+ADOQUINES!H36 -> 80987.7 | M28: =+L28*J28 -> 963348691.5
A29: CUNETAS | B29: Cunetas de Concreto fundida en el lugar | F29: M3 | G29: =+ANCHOCUN -> 1.4 | H29: 0.15 | I29: =+I28 -> 3050 | J29: =+G29*H29*I29 -> 640.5 | L29: =+CUNETAS!H43 -> 28968203.33 | M29: =+L29*J29 -> 1.855413424e+10
A32: ALTERNATIVAS DE INTERVENCIÓN VÍAS TERCIARIAS
A33: BASE GRANULAR + DOBLE RIEGO
A34: ITEM | B34: DESCRIPCION | F34: UNIDAD | G34: ANCHO | H34: PROFUNDIDAD | I34: LARGO | J34: CANTIDAD Aproximada | K34: CONSUMO DE CEMENTO (TON) | L34: VR UNITARIO de Referencia | M34: VR PARCIAL
A35: 310.1 | B35: Conformación de calzada existente | F35: M2 | G35: =+ANCHOVIA -> 5.3 | H35: 1 | I35: ='Eval-Economica'!$M$5 -> 3050 | J35: =+G35*H35*I35 -> 16165 | L35: =+CDCONFORMACION -> 558.75 | M35: =+L35*J35 -> 9032193.75
A36: 221.1 | B36: Pedraplen | F36: M3 | G36: =+ANCHOVIA -> 5.3 | H36: =IF(ViasTerc!$I$4=2,0.2,0) -> 0 | I36: ='Eval-Economica'!$M$5 -> 3050 | J36: =+G36*H36*I36 -> 0 | L36: =+CDPEDRAPLEN -> 79650 | M36: 0
A37: 330.1 | B37: Base Granular | F37: M3 | G37: =+ANCHOVIA -> 5.3 | H37: =ViasTerc!M8/100 -> 0.3445523604 | I37: ='Eval-Economica'!$M$5 -> 3050 | J37: =+G37*I37*H37 -> 5569.688905 | L37: =CDBG -> 95675 | M37: =+L37*J37 -> 532879986
B38: Imprimación | F38: M2 | G38: =+ANCHOPAV -> 3.9 | H38: 1 | I38: ='Eval-Economica'!$M$5 -> 3050 | J38: =+G38*I38*H38 -> 11895 | L38: =CDIMPRIMACION -> 1743 | M38: =+L38*J38 -> 20732985
B39: Doble Riego | F39: M2 | G39: =+ANCHOPAV -> 3.9 | H39: 1 | I39: ='Eval-Economica'!$M$5 -> 3050 | J39: =+G39*H39*I39 -> 11895 | L39: =CDDOBLERIEGO -> 15941.44244 | M39: =+L39*J39 -> 189623457.8
B40: Cunetas | F40: M | G40: =+ANCHOCUN -> 1.4 | H40: 0.15 | I40: ='Eval-Economica'!$M$5 -> 3050 | J40: =+I40*H40*G40 -> 640.5 | L40: =CDCUNETA -> 28968203.33 | M40: =+L40*J40 -> 1.855413424e+10
A41: BASE GRANULAR + CARPETA ASFÁLTICA DE 5 cm
A42: ITEM | B42: DESCRIPCION | F42: UNIDAD | G42: ANCHO | H42: PROFUNDIDAD | I42: LARGO | J42: CANTIDAD Aproximada | L42: VR UNITARIO de Referencia | M42: VR PARCIAL
A43: 310.1 | B43: Conformación de calzada existente | F43: M2 | G43: =+ANCHOVIA -> 5.3 | H43: 1 | I43: ='Eval-Economica'!$M$5 -> 3050 | J43: =+G43*H43*I43 -> 16165 | L43: =+CDCONFORMACION -> 558.75 | M43: =+L43*J43 -> 9032193.75
A44: 221.1 | B44: Pedraplen | F44: M3 | G44: =+ANCHOVIA -> 5.3 | H44: =IF(ViasTerc!$I$4=2,0.2,0) -> 0 | I44: ='Eval-Economica'!$M$5 -> 3050 | J44: =+G44*H44*I44 -> 0 | L44: =+CDPEDRAPLEN -> 79650 | M44: 0
A45: 330.1 | B45: Base Granular | F45: M3 | G45: =+ANCHOVIA -> 5.3 | H45: =ViasTerc!M9/100 -> 0.2545523604 | I45: ='Eval-Economica'!$M$5 -> 3050 | J45: =+G45*I45*H45 -> 4114.838905 | L45: =CDBG -> 95675 | M45: =+L45*J45 -> 393687212.3
B46: Riego de liga | F46: M2 | G46: =+ANCHOPAV -> 3.9 | H46: 1 | I46: ='Eval-Economica'!$M$5 -> 3050 | J46: =+G46*H46*I46 -> 11895 | L46: =CDIMPRIMACION -> 1743 | M46: =+L46*J46 -> 20732985
B47: MDC2 | F47: M3 | G47: =+ANCHOPAV -> 3.9 | H47: 0.05 | I47: ='Eval-Economica'!$M$5 -> 3050 | J47: =+G47*I47*H47 -> 594.75 | L47: =CDMDC2 -> 549022.605 | M47: =+L47*J47 -> 326531194.3
B48: Cunetas | F48: M | G48: =+ANCHOCUN -> 1.4 | H48: 0.15 | I48: ='Eval-Economica'!$M$5 -> 3050 | J48: =+I48*H48*G48 -> 640.5 | L48: =CDCUNETA -> 28968203.33 | M48: =+L48*J48 -> 1.855413424e+10
A49: BASE GRANULAR + CARPETA ASFÁLTICA DE 7.5 cm
A50: ITEM | B50: DESCRIPCION | F50: UNIDAD | G50: ANCHO | H50: PROFUNDIDAD | I50: LARGO | J50: CANTIDAD Aproximada | L50: VR UNITARIO de Referencia | M50: VR PARCIAL
A51: 310.1 | B51: Conformación de calzada existente | F51: M2 | G51: =+ANCHOVIA -> 5.3 | H51: 1 | I51: ='Eval-Economica'!$M$5 -> 3050 | J51: =+G51*H51*I51 -> 16165 | L51: =+CDCONFORMACION -> 558.75 | M51: =+L51*J51 -> 9032193.75
A52: 221.1 | B52: Pedraplen | F52: M3 | G52: =+ANCHOVIA -> 5.3 | H52: =IF(ViasTerc!$I$4=2,0.2,0) -> 0 | I52: ='Eval-Economica'!$M$5 -> 3050 | J52: =+G52*H52*I52 -> 0 | L52: =+CDPEDRAPLEN -> 79650 | M52: 0
A53: 330.1 | B53: Base Granular | F53: M3 | G53: =+ANCHOVIA -> 5.3 | H53: =ViasTerc!M10/100 -> 0.2045523604 | I53: ='Eval-Economica'!$M$5 -> 3050 | J53: =+G53*I53*H53 -> 3306.588905 | L53: =CDBG -> 95675 | M53: =+L53*J53 -> 316357893.5
B54: Riego de liga | F54: M2 | G54: =+ANCHOPAV -> 3.9 | H54: 1 | I54: ='Eval-Economica'!$M$5 -> 3050 | J54: =+G54*H54*I54 -> 11895 | L54: =CDIMPRIMACION -> 1743 | M54: =+L54*J54 -> 20732985
B55: MDC2 | F55: M3 | G55: =+ANCHOPAV -> 3.9 | H55: 0.075 | I55: ='Eval-Economica'!$M$5 -> 3050 | J55: =+G55*H55*I55 -> 892.125 | L55: =CDMDC2 -> 549022.605 | M55: =+L55*J55 -> 489796791.5
B56: Cunetas | F56: M | G56: =+ANCHOCUN -> 1.4 | H56: 0.15 | I56: ='Eval-Economica'!$M$5 -> 3050 | J56: =+I56*H56*G56 -> 640.5 | L56: =CDCUNETA -> 28968203.33 | M56: =+L56*J56 -> 1.855413424e+10
A57: BASE GRANULAR + LOSA DE CONCRETO Mr=40kg/cm2
A58: ITEM | B58: DESCRIPCION | F58: UNIDAD | G58: ANCHO | H58: PROFUNDIDAD | I58: LARGO | J58: CANTIDAD Aproximada | L58: VR UNITARIO de Referencia | M58: VR PARCIAL
A59: 310.1 | B59: Conformación de calzada existente | F59: M2 | G59: =+ANCHOVIA -> 5.3 | H59: 1 | I59: ='Eval-Economica'!$M$5 -> 3050 | J59: =+G59*H59*I59 -> 16165 | L59: =+CDCONFORMACION -> 558.75 | M59: =+L59*J59 -> 9032193.75
A60: 221.1 | B60: Pedraplen | F60: M3 | G60: =+ANCHOVIA -> 5.3 | H60: =IF(ViasTerc!$I$4=2,0.2,0) -> 0 | I60: ='Eval-Economica'!$M$5 -> 3050 | J60: =+G60*H60*I60 -> 0 | L60: =+CDPEDRAPLEN -> 79650 | M60: 0
A61: 330.1 | B61: Base Granular | F61: M3 | G61: =+ANCHOVIA -> 5.3 | H61: 0.15 | I61: ='Eval-Economica'!$M$5 -> 3050 | J61: =+G61*I61*H61 -> 2424.75 | L61: =CDBG -> 95675 | M61: =+L61*J61 -> 231987956.2
B62: Concreto Mr 38 kg/cm2 | F62: M3 | G62: =+ANCHOPAV -> 3.9 | H62: =ViasTerc!M11/100 -> 0.1497276275 | I62: ='Eval-Economica'!$M$5 -> 3050 | J62: =+G62*I62*H62 -> 1781.010129 | L62: =CDMR42 -> 37823471.35 | M62: =+L62*J62 -> 6.736398558e+10
B63: Colocación MR | F63: M3 | G63: =+ANCHOPAV -> 3.9 | H63: =ViasTerc!M11/100 -> 0.1497276275 | I63: ='Eval-Economica'!$M$5 -> 3050 | J63: =+G63*I63*H63 -> 1781.010129 | L63: =+CDAPLICMR -> 139886.5253 | M63: =+L63*J63 -> 249139318.5
B64: Cunetas | F64: M | G64: =+ANCHOCUN -> 1.4 | H64: 0.15 | I64: ='Eval-Economica'!$M$5 -> 3050 | J64: =+I64*H64*G64 -> 640.5 | L64: =CDCUNETA -> 28968203.33 | M64: =+L64*J64 -> 1.855413424e+10
A65: BASE GRANULAR + ADOQUINES
A66: ITEM | B66: DESCRIPCION | F66: UNIDAD | G66: ANCHO | H66: PROFUNDIDAD | I66: LARGO | J66: CANTIDAD Aproximada | L66: VR UNITARIO de Referencia | M66: VR PARCIAL
A67: 310.1 | B67: Conformación de calzada existente | F67: M2 | G67: =+ANCHOVIA -> 5.3 | H67: 1 | I67: ='Eval-Economica'!$M$5 -> 3050 | J67: =+G67*H67*I67 -> 16165 | L67: =+CDCONFORMACION -> 558.75 | M67: =+L67*J67 -> 9032193.75
A68: 221.1 | B68: Pedraplen | F68: M3 | G68: =+ANCHOVIA -> 5.3 | H68: =IF(ViasTerc!$I$4=2,0.2,0) -> 0 | I68: ='Eval-Economica'!$M$5 -> 3050 | J68: =+G68*H68*I68 -> 0 | L68: =+CDPEDRAPLEN -> 79650 | M68: 0
A69: 330.1 | B69: Base Granular | F69: M3 | G69: =+ANCHOVIA -> 5.3 | H69: =ViasTerc!M12/100 -> 0.1497276275 | I69: ='Eval-Economica'!$M$5 -> 3050 | J69: =+G69*I69*H69 -> 2420.347098 | L69: =CDBG -> 95675 | M69: =+L69*J69 -> 231566708.6
B70: Adoquines | F70: M2 | G70: ='Eval-Economica'!$E$20 -> 3.9 | H70: 1 | I70: ='Eval-Economica'!$M$5 -> 3050 | J70: =+G70*I70*H70 -> 11895 | L70: =CDADOQUIN -> 80987.7 | M70: =+L70*J70 -> 963348691.5 | O70: =IF(ViasTerc!H22="BG","Base Granular + ",IF(ViasTerc!H22="SC","Suelo Cemento + ",""))&IF(ViasTerc!I22="DR","Doble Riego",IF(ViasTerc!I22="CA5","Carpeta e=5cm",IF(ViasTerc!I22="CA7.5","Carpeta e=7.5cm",IF(ViasTerc!I22="LC38","Losa Concreto e="&ROUND(ViasTerc!I25,1)&"cm",IF(ViasTerc!I22="LC40","Losa Concreto e="&ROUND(ViasTerc!I25,1)&"cm",IF(ViasTerc!I22="AD","Adoquines","")))))) -> 
B71: Cunetas | F71: M | G71: =+ANCHOCUN -> 1.4 | H71: 0.15 | I71: ='Eval-Economica'!$M$5 -> 3050 | J71: =+I71*H71*G71 -> 640.5 | L71: =CDCUNETA -> 28968203.33 | M71: =+L71*J71 -> 1.855413424e+10
A72: SUELO CEMENTO + DOBLE RIEGO
A73: ITEM | B73: DESCRIPCION | F73: UNIDAD | G73: ANCHO | H73: PROFUNDIDAD | I73: LARGO | J73: CANTIDAD Aproximada | K73: CONSUMO DE CEMENTO (TON) | L73: VR UNITARIO de Referencia | M73: VR PARCIAL
A74: 310.1 | B74: Conformación de calzada existente | F74: M2 | G74: =+ANCHOVIA -> 5.3 | H74: 1 | I74: ='Eval-Economica'!$M$5 -> 3050 | J74: =+G74*H74*I74 -> 16165 | L74: =+CDCONFORMACION -> 558.75 | M74: =+L74*J74 -> 9032193.75
A75: 221.1 | B75: Pedraplen | F75: M3 | G75: =+ANCHOVIA -> 5.3 | H75: =IF(ViasTerc!$I$4=2,0.2,0) -> 0 | I75: ='Eval-Economica'!$M$5 -> 3050 | J75: =+G75*H75*I75 -> 0 | L75: =+CDPEDRAPLEN -> 79650 | M75: 0
B76: Suelo Cemento | F76: M3 | G76: =+ANCHOVIA -> 5.3 | H76: =ViasTerc!M13/100 -> 0.2239590342 | I76: ='Eval-Economica'!$M$5 -> 3050 | J76: =+G76*I76*H76 -> 3620.297789 | L76: =CDBEC -> 4047740 | M76: =+L76*J76 -> 1.465402417e+10
B77: Imprimación | F77: M2 | G77: =+ANCHOPAV -> 3.9 | H77: 1 | I77: ='Eval-Economica'!$M$5 -> 3050 | J77: =+G77*I77*H77 -> 11895 | L77: =CDIMPRIMACION -> 1743 | M77: =+L77*J77 -> 20732985
B78: Doble Riego | F78: M2 | G78: =+ANCHOPAV -> 3.9 | H78: 1 | I78: ='Eval-Economica'!$M$5 -> 3050 | J78: =+G78*I78*H78 -> 11895 | L78: =CDDOBLERIEGO -> 15941.44244 | M78: =+L78*J78 -> 189623457.8
B79: Cunetas | F79: M | G79: =+ANCHOCUN -> 1.4 | H79: 0.15 | I79: ='Eval-Economica'!$M$5 -> 3050 | J79: =+G79*H79*I79 -> 640.5 | L79: =CDCUNETA -> 28968203.33 | M79: =+L79*J79 -> 1.855413424e+10
A80: SUELO CEMENTO + CARPETA ASFÁLTICA DE 5 cm
A81: ITEM | B81: DESCRIPCION | F81: UNIDAD | G81: ANCHO | H81: PROFUNDIDAD | I81: LARGO | J81: CANTIDAD Aproximada | L81: VR UNITARIO de Referencia | M81: VR PARCIAL
A82: 310.1 | B82: Conformación de calzada existente | F82: m2 | G82: =+ANCHOVIA -> 5.3 | H82: 1 | I82: ='Eval-Economica'!$M$5 -> 3050 | J82: =+G82*H82*I82 -> 16165 | L82: =+CDCONFORMACION -> 558.75 | M82: =+L82*J82 -> 9032193.75
A83: 221.1 | B83: Pedraplen | F83: m3 | G83: =+ANCHOVIA -> 5.3 | H83: =IF(ViasTerc!$I$4=2,0.2,0) -> 0 | I83: ='Eval-Economica'!$M$5 -> 3050 | J83: =+G83*H83*I83 -> 0 | L83: =+CDPEDRAPLEN -> 79650 | M83: 0
B84: Suelo Cemento | F84: m3 | G84: =+ANCHOVIA -> 5.3 | H84: =ViasTerc!M14/100 -> 0.1654590342 | I84: ='Eval-Economica'!$M$5 -> 3050 | J84: =G84*H84*I84 -> 2674.645289 | L84: =+CDSC -> 8972957.856 | M84: =+L84*J84 -> 2.399947945e+10
B85: Imprimación | F85: m2 | G85: =+ANCHOPAV -> 3.9 | H85: 1 | I85: ='Eval-Economica'!$M$5 -> 3050 | J85: =G85*H85*I85 -> 11895 | L85: =CDIMPRIMACION -> 1743 | M85: =+L85*J85 -> 20732985
B86: MDC2 | F86: m3 | G86: =+ANCHOPAV -> 3.9 | H86: =0.05 -> 0.05 | I86: ='Eval-Economica'!$M$5 -> 3050 | J86: =G86*H86*I86 -> 594.75 | L86: =CDMDC2 -> 549022.605 | M86: =+L86*J86 -> 326531194.3
B87: Cunetas | F87: m | G87: =+ANCHOCUN -> 1.4 | H87: 0.15 | I87: ='Eval-Economica'!$M$5 -> 3050 | J87: =+G87*H87*I87 -> 640.5 | L87: =CDCUNETA -> 28968203.33 | M87: =+L87*J87 -> 1.855413424e+10
A88: SUELO CEMENTO + CARPETA ASFÁLTICA DE 7.5 cm
A89: ITEM | B89: DESCRIPCION | F89: UNIDAD | G89: ANCHO | H89: PROFUNDIDAD | I89: LARGO | J89: CANTIDAD Aproximada | L89: VR UNITARIO de Referencia | M89: VR PARCIAL
A90: 310.1 | B90: Conformación de calzada existente | F90: M2 | G90: =+ANCHOVIA -> 5.3 | H90: 1 | I90: ='Eval-Economica'!$M$5 -> 3050 | J90: =+G90*H90*I90 -> 16165 | L90: =+CDCONFORMACION -> 558.75 | M90: =+L90*J90 -> 9032193.75
A91: 221.1 | B91: Pedraplen | F91: M3 | G91: =+ANCHOVIA -> 5.3 | H91: =IF(ViasTerc!$I$4=2,0.2,0) -> 0 | I91: ='Eval-Economica'!$M$5 -> 3050 | J91: =+G91*H91*I91 -> 0 | L91: =+CDPEDRAPLEN -> 79650 | M91: 0
B92: Suelo Cemento | F92: M3 | G92: =+ANCHOVIA -> 5.3 | H92: =ViasTerc!M15/100 -> 0.1497276275 | I92: ='Eval-Economica'!$M$5 -> 3050 | J92: =G92*H92*I92 -> 2420.347098 | L92: =+CDSC -> 8972957.856 | M92: =+L92*J92 -> 2.171767251e+10
B93: Imprimación | F93: M2 | G93: =+ANCHOPAV -> 3.9 | H93: 1 | I93: ='Eval-Economica'!$M$5 -> 3050 | J93: =G93*H93*I93 -> 11895 | L93: =CDIMPRIMACION -> 1743 | M93: =+L93*J93 -> 20732985
B94: MDC2 | F94: M3 | G94: =+ANCHOPAV -> 3.9 | H94: 0.075 | I94: ='Eval-Economica'!$M$5 -> 3050 | J94: =G94*H94*I94 -> 892.125 | L94: =CDMDC2 -> 549022.605 | M94: =+L94*J94 -> 489796791.5
B95: Cunetas | F95: M | G95: =+ANCHOCUN -> 1.4 | H95: 0.15 | I95: ='Eval-Economica'!$M$5 -> 3050 | J95: =+G95*H95*I95 -> 640.5 | L95: =CDCUNETA -> 28968203.33 | M95: =+L95*J95 -> 1.855413424e+10
A96: SUELO CEMENTO + LOSA DE CONCRETO Mr=40kg/cm2
A97: ITEM | B97: DESCRIPCION | F97: UNIDAD | G97: ANCHO | H97: PROFUNDIDAD | I97: LARGO | J97: CANTIDAD Aproximada | L97: VR UNITARIO de Referencia | M97: VR PARCIAL
A98: 310.1 | B98: Conformación de calzada existente | F98: M2 | G98: =+ANCHOVIA -> 5.3 | H98: 1 | I98: ='Eval-Economica'!$M$5 -> 3050 | J98: =+G98*H98*I98 -> 16165 | L98: =+CDCONFORMACION -> 558.75 | M98: =+L98*J98 -> 9032193.75
A99: 221.1 | B99: Pedraplen | F99: M3 | G99: =+ANCHOVIA -> 5.3 | H99: =IF(ViasTerc!$I$4=2,0.2,0) -> 0 | I99: ='Eval-Economica'!$M$5 -> 3050 | J99: =+G99*H99*I99 -> 0 | L99: =+CDPEDRAPLEN -> 79650 | M99: 0
B100: Suelo Cemento | F100: M3 | G100: =+ANCHOVIA -> 5.3 | H100: 0.15 | I100: ='Eval-Economica'!$M$5 -> 3050 | J100: =G100*H100*I100 -> 2424.75 | L100: =+CDSC -> 8972957.856 | M100: =+L100*J100 -> 2.175717956e+10
B101: Concreto Mr 38 kg/cm2 | F101: M3 | G101: =+ANCHOPAV -> 3.9 | H101: =ViasTerc!M16/100 -> 0.1497276275 | I101: ='Eval-Economica'!$M$5 -> 3050 | J101: =G101*H101*I101 -> 1781.010129 | L101: =CDMR42 -> 37823471.35 | M101: =+L101*J101 -> 6.736398558e+10
B102: Colocación MR | F102: M3 | G102: =+ANCHOPAV -> 3.9 | H102: =ViasTerc!M16/100 -> 0.1497276275 | I102: ='Eval-Economica'!$M$5 -> 3050 | J102: =+G102*I102*H102 -> 1781.010129 | L102: =+CDAPLICMR -> 139886.5253 | M102: =+L102*J102 -> 249139318.5
B103: Cunetas | F103: M | G103: =+ANCHOCUN -> 1.4 | H103: 0.15 | I103: ='Eval-Economica'!$M$5 -> 3050 | J103: =+G103*H103*I103 -> 640.5 | L103: =CDCUNETA -> 28968203.33 | M103: =+L103*J103 -> 1.855413424e+10
A104: SUELO CEMENTO + ADOQUINES
A105: ITEM | B105: DESCRIPCION | F105: UNIDAD | G105: ANCHO | H105: PROFUNDIDAD | I105: LARGO | J105: CANTIDAD Aproximada | L105: VR UNITARIO de Referencia | M105: VR PARCIAL
A106: 310.1 | B106: Conformación de calzada existente | F106: M2 | G106: =+ANCHOVIA -> 5.3 | H106: 1 | I106: ='Eval-Economica'!$M$5 -> 3050 | J106: =+G106*H106*I106 -> 16165 | L106: =+CDCONFORMACION -> 558.75 | M106: =+L106*J106 -> 9032193.75
A107: 221.1 | B107: Pedraplen | F107: M3 | G107: =+ANCHOVIA -> 5.3 | H107: =IF(ViasTerc!$I$4=2,0.2,0) -> 0 | I107: ='Eval-Economica'!$M$5 -> 3050 | J107: =+G107*H107*I107 -> 0 | L107: =+CDPEDRAPLEN -> 79650 | M107: 0
B108: Suelo Cemento | F108: M3 | G108: ='Eval-Economica'!$E$18 -> 5.3 | H108: =ViasTerc!M17/100 -> 0.1497276275 | I108: ='Eval-Economica'!$M$5 -> 3050 | J108: =G108*H108*I108 -> 2420.347098 | L108: =+CDSC -> 8972957.856 | M108: =+L108*J108 -> 2.171767251e+10
B109: Adoquines | F109: M2 | G109: ='Eval-Economica'!$E$20 -> 3.9 | H109: 1 | I109: ='Eval-Economica'!$M$5 -> 3050 | J109: =G109*H109*I109 -> 11895 | L109: =CDADOQUIN -> 80987.7 | M109: =+L109*J109 -> 963348691.5
B110: Cunetas | F110: M | G110: =+ANCHOCUN -> 1.4 | H110: 0.15 | I110: ='Eval-Economica'!$M$5 -> 3050 | J110: =+G110*H110*I110 -> 640.5 | L110: =CDCUNETA -> 28968203.33 | M110: =+L110*J110 -> 1.855413424e+10
A111: SUELO CEMENTO + ADOQUINES
A112: ITEM | B112: DESCRIPCION | F112: UNIDAD | G112: ANCHO | H112: PROFUNDIDAD | I112: LARGO | J112: CANTIDAD Aproximada | L112: VR UNITARIO de Referencia | M112: VR PARCIAL
A113: 310.1 | B113: Conformación de calzada existente | F113: M2 | G113: =+ANCHOVIA -> 5.3 | H113: 1 | I113: ='Eval-Economica'!$M$5 -> 3050 | J113: =+G113*H113*I113 -> 16165 | L113: =+CDCONFORMACION -> 558.75 | M113: =+L113*J113 -> 9032193.75
A114: 221.1 | B114: Pedraplen | F114: M3 | G114: =+ANCHOVIA -> 5.3 | H114: =IF(ViasTerc!$I$4=2,0.2,0) -> 0 | I114: ='Eval-Economica'!$M$5 -> 3050 | J114: =+G114*H114*I114 -> 0 | L114: =+CDPEDRAPLEN -> 79650 | M114: 0
B115: Suelo Cemento | F115: M3 | G115: ='Eval-Economica'!$E$18 -> 5.3 | H115: =ViasTerc!M24/100 -> 0 | I115: ='Eval-Economica'!$M$5 -> 3050 | J115: =G115*H115*I115 -> 0 | L115: =+CDSC -> 8972957.856 | M115: =+L115*J115 -> 0
B116: Adoquines | F116: M2 | G116: ='Eval-Economica'!$E$20 -> 3.9 | H116: 1 | I116: ='Eval-Economica'!$M$5 -> 3050 | J116: =G116*H116*I116 -> 11895 | L116: =CDADOQUIN -> 80987.7 | M116: =+L116*J116 -> 963348691.5
B117: Cunetas | F117: M | G117: =+ANCHOCUN -> 1.4 | H117: 0.15 | I117: ='Eval-Economica'!$M$5 -> 3050 | J117: =+G117*H117*I117 -> 640.5 | L117: =CDCUNETA -> 28968203.33 | M117: =+L117*J117 -> 1.855413424e+10
A119: ITEM | B119: DESCRIPCION | F119: UNIDAD | G119: ANCHO (m) (Cantidad) | H119: PROFUNDIDAD (m) | I119: LARGO (m) | J119: CANTIDAD Aproximada | L119: VR UNITARIO de Referencia | M119: VR PARCIAL | O119: Costo total de transporte | V119: Porcentaje de cemento considerado para la estabilización % sobre volumen total de base a estabilizar
A120: 1.1 | B120: Localización y replanteo | F120: m² | G120: =+ANCHOVIA -> 5.3 | H120: 1 | I120: ='Eval-Economica'!$M$5 -> 3050 | J120: =+G120*H120*I120 -> 16165 | L120: =+'1.1'!$G$31 -> 3735 | M120: =+L120*J120 -> 60376275 | O120: =+INSUMOS!$E$72*(APU!J124*$V$120)*INSUMOS!$D$72 -> 0 | P120: Transporte de cal | V120: 0.08
A121: 2.1 | B121: Excavación mecánica en material común a nivel de subrasante (incluye retiro de sobrantes, transporte hasta escombrera y derecho de botadero) | F121: m³ | G121: 5.3 | H121: =(SUM(Control!J64:J67))/100 -> 0.6127991107 | I121: ='Eval-Economica'!$M$5 -> 3050 | J121: =+G121*H121*I121 -> 9905.897624 | L121: =+'2.1'!$G$31 -> 48860 | M121: 484002157.9 | O121: =+INSUMOS!$E$74*(APU!J124+J123)*INSUMOS!$D$74 -> 168697652.5 | P121: Transporte de material petreo
A122: 2.2 | B122: Conformación de la subrasante | F122: m² | G122: =+ANCHOVIA -> 5.3 | H122: 1 | I122: ='Eval-Economica'!$M$5 -> 3050 | J122: =+G122*H122*I122 -> 16165 | L122: =+'2.2'!$G$29 -> 9424 | M122: 152338960 | O122: =SUM(O120:O121) -> 168697652.5 | P122: Total
A123: 320.3 | B123: Subbase granular (incluye suministro, extendido, nivelación, humedecido y compactación). | F123: m³ | G123: 5.3 | H123: =+'Salida-Diseno'!$R$7/100 -> 0.3717991107 | I123: =+LONGITUD -> 3050 | J123: =+G123*H123*I123 -> 6010.132624 | L123: ='320.3'!N78 -> 44677.40163 | M123: =+L123*J123 -> 268517109.1
A124: 2.3 | B124: Capa Granular Base estabilizada con cal mezclada en la vía | F124: m³ | G124: 5.3 | H124: ='Diseno-AASHTO'!$C$32/100 -> 0.15 | I124: ='Eval-Economica'!$M$5 -> 3050 | J124: =+G124*H124*I124 -> 2424.75 | L124: =+'236.1'!$N$78 -> 88014.96618 | M124: 213414289.2
A125: 2.4 | B125: Lechada Asfáltica con Emulsión CRL-1HM ,TIPO LA-5 | F125: m2 | G125: 5.3 | H125: 1 | I125: ='Eval-Economica'!$M$5 -> 3050 | J125: =+G125*H125*I125 -> 16165 | L125: =+'433.3'!$N$78 -> 4334.265135 | M125: 70063395.91
A126: 3.1 | B126: Excavación manual 1,50 m * 1,50 m * 2,75 m. | F126: m³ | G126: 61.875 | H126: 1 | I126: 1 | J126: =+G126*H126*I126 -> 61.875 | L126: ='3.1'!$G$29 -> 101162 | M126: 6259398.75
A127: 3.2 | B127: Concreto de baja resistencia 140 kg/cm² (2.000 psi) para cajas de recolección | F127: m³ | G127: 1.125 | H127: 1 | I127: 1 | J127: 1.125 | L127: ='3.2'!$G$31 -> 756338 | M127: 850880.25
A128: 3.3 | B128: Concreto para caja | F128: m³ | G128: 38.409565 | H128: 1 | I128: 1 | J128: 38.409565 | L128: ='3.3'!$G$30 -> 430156 | M128: 16522104.84
A129: 3.4 | B129: Acero figurado de refuerzo de 4200 kg/cm² (60.000 psi ) para caja | F129: kg | G129: 3190.4 | H129: 1 | I129: 1 | J129: 3190.4 | L129: ='3.4'!$G$30 -> 3757 | M129: 11986332.8
A130: 4.1 | B130: Excavación manual 4,5 m * 2,1 m * 1,6 m para cabezales | F130: m³ | G130: 151.2 | H130: 1 | I130: 1 | J130: =+G130*H130*I130 -> 151.2 | L130: ='4.1'!$G$29 -> 39637 | M130: 5993114.4
A131: 4.2 | B131: Concreto resistencia 140 kg/cm² (1.500 psi) para solados en muros y cabezales | F131: m³ | G131: 5.138565 | H131: 1 | I131: 1 | J131: 5.138565 | L131: ='4.2'!$G$31 -> 204358 | M131: 1050106.866
A132: 4.3 | B132: Concreto para estructura muros cabezales resistencia de 210 kg/cm² (3.000 psi) | F132: m³ | G132: 36.014565 | H132: 1 | I132: 1 | J132: 36.014565 | L132: ='4.3'!$G$29 -> 430156 | M132: 15491881.22
A133: 4.4 | B133: Acero figurado de refuerzo de 4.200 kg/cm² (60.000 psi) para cabezal | F133: kg | G133: 1100.4 | H133: 1 | I133: 1 | J133: 1100.4 | L133: ='4.4'!$G$30 -> 3757 | M133: 4134202.8
A134: 4.5 | B134: Tubería de diámetro (36" = 0,9 m) una por cada 100 m para alcantarillas | F134: m | G134: 10 | H134: 1 | I134: 1 | J134: 10 | L134: ='4.5'!$G$29 -> 1040409 | M134: 10404090
A136: ITEM | B136: DESCRIPCION | F136: UNIDAD | G136: ANCHO (m) (Cantidad) | H136: PROFUNDIDAD (m) | I136: LARGO (m) | J136: CANTIDAD Aproximada | L136: VR UNITARIO de Referencia | M136: VR PARCIAL | O136: Costo total de transporte | V136: Criterio de priorización de material por costo de transporte
A137: 1.1 | B137: Localización y replanteo | F137: m² | G137: =+ANCHOVIA -> 5.3 | H137: 1 | I137: ='Eval-Economica'!$M$5 -> 3050 | J137: =+G137*H137*I137 -> 16165 | L137: =+'1.1'!$G$31 -> 3735 | M137: =+L137*J137 -> 60376275 | O137: =+INSUMOS!$E$72*(APU!J141*0.08)*+INSUMOS!$D$72 -> 0 | P137: Transporte de cal | U137: Costo máximo por km | V137: 650513776
A138: 2.1 | B138: Excavación mecánica en material común a nivel de subrasante (incluye retiro de sobrantes, transporte hasta escombrera y derecho de botadero) | F138: m³ | G138: 5.3 | H138: =(SUM(Control!J64:J67))/100 -> 0.6127991107 | I138: ='Eval-Economica'!$M$5 -> 3050 | J138: =+G138*H138*I138 -> 9905.897624 | L138: =+'2.1'!$G$31 -> 48860 | M138: 484002157.9 | O138: =+INSUMOS!$E$74*(APU!J141+J140)*INSUMOS!$D$74 -> 168697652.5 | P138: Transporte de material petreo | U138: Costo de transporte máximo tolerable | V138: =+V137*0.2 -> 130102755.2
A139: 2.2 | B139: Conformación de la subrasante | F139: m² | G139: 5.3 | H139: 1 | I139: ='Eval-Economica'!$M$5 -> 3050 | J139: =+G139*H139*I139 -> 16165 | L139: =+'2.2'!$G$29 -> 9424 | M139: 152338960 | O139: =SUM(O137:O138) -> 168697652.5 | P139: Total
A140: 320.3 | B140: Subbase granular (incluye suministro, extendido, nivelación, humedecido y compactación). | F140: m³ | G140: 5.3 | H140: =+'Salida-Diseno'!$R$7/100 -> 0.3717991107 | I140: =+LONGITUD -> 3050 | J140: =+G140*H140*I140 -> 6010.132624 | L140: ='320.3'!N78 -> 44677.40163 | M140: =+L140*J140 -> 268517109.1
A141: 236.1 | B141: Capa Granular Base estabilizada con cal mezclada en la vía | F141: m³ | G141: 5.3 | H141: ='Diseno-AASHTO'!C32/100 -> 0.15 | I141: ='Eval-Economica'!$M$5 -> 3050 | J141: =+G141*H141*I141 -> 2424.75 | L141: =+'236.1'!$N$78 -> 88014.96618 | M141: =+L141*J141 -> 213414289.2
A142: 2.4 | B142: TRATAMIENTO SUPERFICIAL DOBLE CON EMULSIÓN CRR-2. TIPO 1 | F142: m2 | G142: 5.3 | H142: 1 | I142: ='Eval-Economica'!$M$5 -> 3050 | J142: =+G142*H142*I142 -> 16165 | L142: =+'431.1.1'!$N$78 -> 11272.16819 | M142: 182214598.8
A143: 3.1 | B143: Excavación manual 1,50 m * 1,50 m * 2,75 m. | F143: m³ | G143: 61.875 | H143: 1 | I143: 1 | J143: =+G143*H143*I143 -> 61.875 | L143: ='3.1'!$G$29 -> 101162 | M143: 6259398.75
A144: 3.2 | B144: Concreto de baja resistencia 140 kg/cm² (2.000 psi) para cajas de recolección | F144: m³ | G144: 1.125 | H144: 1 | I144: 1 | J144: 1.125 | L144: ='3.2'!$G$31 -> 756338 | M144: 850880.25
A145: 3.3 | B145: Concreto para caja | F145: m³ | G145: 38.409565 | H145: 1 | I145: 1 | J145: 38.409565 | L145: ='3.3'!$G$30 -> 430156 | M145: 16522104.84
A146: 3.4 | B146: Acero figurado de refuerzo de 4200 kg/cm² (60.000 psi ) para caja | F146: kg | G146: 3190.4 | H146: 1 | I146: 1 | J146: 3190.4 | L146: ='3.4'!$G$30 -> 3757 | M146: 11986332.8
A147: 4.1 | B147: Excavación manual 4,5 m * 2,1 m * 1,6 m para cabezales | F147: m³ | G147: 151.2 | H147: 1 | I147: 1 | J147: 151.2 | L147: ='4.1'!$G$29 -> 39637 | M147: 5993114.4
A148: 4.2 | B148: Concreto resistencia 140 kg/cm² (1.500 psi) para solados en muros y cabezales | F148: m³ | G148: 5.138565 | H148: 1 | I148: 1 | J148: 5.138565 | L148: ='4.2'!$G$31 -> 204358 | M148: 1050106.866
A149: 4.3 | B149: Concreto para estructura muros cabezales resistencia de 210 kg/cm² (3.000 psi) | F149: m³ | G149: 36.014565 | H149: 1 | I149: 1 | J149: 36.014565 | L149: ='4.3'!$G$29 -> 430156 | M149: 15491881.22
A150: 4.4 | B150: Acero figurado de refuerzo de 4.200 kg/cm² (60.000 psi) para cabezal | F150: kg | G150: 1100.4 | H150: 1 | I150: 1 | J150: 1100.4 | L150: ='4.4'!$G$30 -> 3757 | M150: 4134202.8
A151: 4.5 | B151: Tubería de diámetro (36" = 0,9 m) una por cada 100 m para alcantarillas | F151: m | G151: 10 | H151: 1 | I151: 1 | J151: 10 | L151: ='4.5'!$G$29 -> 1040409 | M151: 10404090
A152: Alternativa 1: Base estabilizada con cemento+Lechada asfáltica
A153: ITEM | B153: DESCRIPCION | F153: UNIDAD | G153: ANCHO (m) (Cantidad) | H153: PROFUNDIDAD (m) | I153: LARGO (m) | J153: CANTIDAD Aproximada | L153: VR UNITARIO de Referencia | M153: VR PARCIAL | O153: Costo total de transporte | V153: Porcentaje de cemento considerado para la estabilización % sobre volumen total de base a estabilizar
A154: 1.1 | B154: Localización y replanteo | F154: m² | G154: =+ANCHOVIA -> 5.3 | H154: 1 | I154: ='Eval-Economica'!$M$5 -> 3050 | J154: =+G154*H154*I154 -> 16165 | L154: =+'1.1'!$G$31 -> 3735 | M154: =+L154*J154 -> 60376275 | O154: =+INSUMOS!$E$73*(APU!J158*$V$154)*INSUMOS!$D$73 -> 24295230.4 | P154: Transporte de cemento | V154: 0.08
A155: 2.1 | B155: Excavación mecánica en material común a nivel de subrasante (incluye retiro de sobrantes, transporte hasta escombrera y derecho de botadero) | F155: m³ | G155: 5.3 | H155: =(SUM(Control!J64:J67))/100 -> 0.6127991107 | I155: ='Eval-Economica'!$M$5 -> 3050 | J155: =+G155*H155*I155 -> 9905.897624 | L155: =+'2.1'!$G$31 -> 48860 | M155: 484002157.9 | O155: =+INSUMOS!$E$74*(APU!J158+J157)*+INSUMOS!$D$74 -> 168697652.5 | P155: Transporte de material petreo
A156: 2.2 | B156: Conformación de la subrasante | F156: m² | G156: 5.3 | H156: 1 | I156: ='Eval-Economica'!$M$5 -> 3050 | J156: =+G156*H156*I156 -> 16165 | L156: =+'2.2'!$G$29 -> 9424 | M156: 152338960 | O156: =SUM(O154:O155) -> 192992882.9 | P156: Total
A157: 320.3 | B157: Subbase granular (incluye suministro, extendido, nivelación, humedecido y compactación). | F157: m³ | G157: 5.3 | H157: =+'Salida-Diseno'!$R$7/100 -> 0.3717991107 | I157: =+LONGITUD -> 3050 | J157: =+G157*H157*I157 -> 6010.132624 | L157: ='320.3'!N78 -> 44677.40163 | M157: =+L157*J157 -> 268517109.1
A158: 2.3 | B158: BASE TRATADA CON CEMENTO RESISTENCIA R-3.5 (INCLUYE SUMINISTRO DE CEMENTO) | F158: m³ | G158: 5.3 | H158: ='Diseno-AASHTO'!C32/100 -> 0.15 | I158: ='Eval-Economica'!$M$5 -> 3050 | J158: =+G158*H158*I158 -> 2424.75 | L158: =+'351.1'!$N$78 -> 128257.8515 | M158: 310993225.3
A159: 2.4 | B159: LECHADA ASFÁLTICA CON EMULSIÓN CRL-1HM ,TIPO LA-5 | F159: m2 | G159: 5.3 | H159: 1 | I159: ='Eval-Economica'!$M$5 -> 3050 | J159: =+G159*H159*I159 -> 16165 | L159: =+'433.3'!$N$78 -> 4334.265135 | M159: 70063395.91
A160: 3.1 | B160: Excavación manual 1,50 m * 1,50 m * 2,75 m. | F160: m³ | G160: 61.875 | H160: 1 | I160: 1 | J160: =+G160*H160*I160 -> 61.875 | L160: ='3.1'!$G$29 -> 101162 | M160: 6259398.75
A161: 3.2 | B161: Concreto de baja resistencia 140 kg/cm² (2.000 psi) para cajas de recolección | F161: m³ | G161: 1.125 | H161: 1 | I161: 1 | J161: 1.125 | L161: ='3.2'!$G$31 -> 756338 | M161: 850880.25
A162: 3.3 | B162: Concreto para caja | F162: m³ | G162: 38.409565 | H162: 1 | I162: 1 | J162: 38.409565 | L162: ='3.3'!$G$30 -> 430156 | M162: 16522104.84
A163: 3.4 | B163: Acero figurado de refuerzo de 4200 kg/cm² (60.000 psi ) para caja | F163: kg | G163: 3190.4 | H163: 1 | I163: 1 | J163: 3190.4 | L163: ='3.4'!$G$30 -> 3757 | M163: 11986332.8
A164: 4.1 | B164: Excavación manual 4,5 m * 2,1 m * 1,6 m para cabezales | F164: m³ | G164: 151.2 | H164: 1 | I164: 1 | J164: 151.2 | L164: ='4.1'!$G$29 -> 39637 | M164: 5993114.4
A165: 4.2 | B165: Concreto resistencia 140 kg/cm² (1.500 psi) para solados en muros y cabezales | F165: m³ | G165: 5.138565 | H165: 1 | I165: 1 | J165: 5.138565 | L165: ='4.2'!$G$31 -> 204358 | M165: 1050106.866
A166: 4.3 | B166: Concreto para estructura muros cabezales resistencia de 210 kg/cm² (3.000 psi) | F166: m³ | G166: 36.014565 | H166: 1 | I166: 1 | J166: 36.014565 | L166: ='4.3'!$G$29 -> 430156 | M166: 15491881.22
A167: 4.4 | B167: Acero figurado de refuerzo de 4.200 kg/cm² (60.000 psi) para cabezal | F167: kg | G167: 1100.4 | H167: 1 | I167: 1 | J167: 1100.4 | L167: ='4.4'!$G$30 -> 3757 | M167: 4134202.8
A168: 4.5 | B168: Tubería de diámetro (36" = 0,9 m) una por cada 100 m para alcantarillas | F168: m | G168: 10 | H168: 1 | I168: 1 | J168: 10 | L168: ='4.5'!$G$29 -> 1040409 | M168: 10404090
A169: Alternativa 2: Base estabilizada con cemento+Tratamiento superficial doble
A170: ITEM | B170: DESCRIPCION | F170: UNIDAD | G170: ANCHO (m) (Cantidad) | H170: PROFUNDIDAD (m) | I170: LARGO (m) | J170: CANTIDAD Aproximada | L170: VR UNITARIO de Referencia | M170: VR PARCIAL | O170: Costo total de transporte
A171: 1.1 | B171: Localización y replanteo | F171: m² | G171: =+ANCHOVIA -> 5.3 | H171: 1 | I171: ='Eval-Economica'!$M$5 -> 3050 | J171: =+G171*H171*I171 -> 16165 | L171: =+'1.1'!$G$31 -> 3735 | M171: =+L171*J171 -> 60376275 | O171: =+INSUMOS!$E$73*(APU!J175*$V$154)*+INSUMOS!$D$73 -> 24295230.4 | P171: Transporte de cemento
A172: 2.1 | B172: Excavación mecánica en material común a nivel de subrasante (incluye retiro de sobrantes, transporte hasta escombrera y derecho de botadero) | F172: m³ | G172: 5.3 | H172: =(SUM(Control!J64:J67))/100 -> 0.6127991107 | I172: ='Eval-Economica'!$M$5 -> 3050 | J172: =+G172*H172*I172 -> 9905.897624 | L172: =+'2.1'!$G$31 -> 48860 | M172: =+L172*J172 -> 484002157.9 | O172: =+INSUMOS!$E$74*(APU!J175+J174)*+INSUMOS!$D$74 -> 168697652.5 | P172: Transporte de material petreo
A173: 2.2 | B173: Conformación de la subrasante | F173: m² | G173: 5.3 | H173: 1 | I173: ='Eval-Economica'!$M$5 -> 3050 | J173: =+G173*H173*I173 -> 16165 | L173: =+'2.2'!$G$29 -> 9424 | M173: 152338960 | O173: =SUM(O171:O172) -> 192992882.9 | P173: Total
A174: 320.3 | B174: Subbase granular (incluye suministro, extendido, nivelación, humedecido y compactación). | F174: m³ | G174: 5.3 | H174: =+'Salida-Diseno'!$R$7/100 -> 0.3717991107 | I174: =+LONGITUD -> 3050 | J174: =+G174*H174*I174 -> 6010.132624 | L174: ='320.3'!N78 -> 44677.40163 | M174: =+L174*J174 -> 268517109.1
A175: 351.1 | B175: BASE TRATADA CON CEMENTO RESISTENCIA R-3.5 (INCLUYE SUMINISTRO DE CEMENTO) | F175: m³ | G175: 5.3 | H175: ='Diseno-AASHTO'!$C$32/100 -> 0.15 | I175: ='Eval-Economica'!$M$5 -> 3050 | J175: =+G175*H175*I175 -> 2424.75 | L175: =+'351.1'!$N$78 -> 128257.8515 | M175: 310993225.3
A176: 2.4 | B176: TRATAMIENTO SUPERFICIAL DOBLE CON EMULSIÓN CRR-2. TIPO 1 | F176: m2 | G176: 5.3 | H176: 1 | I176: ='Eval-Economica'!$M$5 -> 3050 | J176: =+G176*H176*I176 -> 16165 | L176: =+'431.1.1'!$N$78 -> 11272.16819 | M176: 182214598.8
A177: 3.1 | B177: Excavación manual 1,50 m * 1,50 m * 2,75 m. | F177: m³ | G177: 61.875 | H177: 1 | I177: 1 | J177: =+G177*H177*I177 -> 61.875 | L177: ='3.1'!$G$29 -> 101162 | M177: 6259398.75
A178: 3.2 | B178: Concreto de baja resistencia 140 kg/cm² (2.000 psi) para cajas de recolección | F178: m³ | G178: 1.125 | H178: 1 | I178: 1 | J178: 1.125 | L178: ='3.2'!$G$31 -> 756338 | M178: 850880.25
A179: 3.3 | B179: Concreto para caja | F179: m³ | G179: 38.409565 | H179: 1 | I179: 1 | J179: 38.409565 | L179: ='3.3'!$G$30 -> 430156 | M179: 16522104.84
A180: 3.4 | B180: Acero figurado de refuerzo de 4200 kg/cm² (60.000 psi ) para caja | F180: kg | G180: 3190.4 | H180: 1 | I180: 1 | J180: 3190.4 | L180: ='3.4'!$G$30 -> 3757 | M180: 11986332.8
A181: 4.1 | B181: Excavación manual 4,5 m * 2,1 m * 1,6 m para cabezales | F181: m³ | G181: 151.2 | H181: 1 | I181: 1 | J181: 151.2 | L181: ='4.1'!$G$29 -> 39637 | M181: 5993114.4
A182: 4.2 | B182: Concreto resistencia 140 kg/cm² (1.500 psi) para solados en muros y cabezales | F182: m³ | G182: 5.138565 | H182: 1 | I182: 1 | J182: 5.138565 | L182: ='4.2'!$G$31 -> 204358 | M182: 1050106.866
A183: 4.3 | B183: Concreto para estructura muros cabezales resistencia de 210 kg/cm² (3.000 psi) | F183: m³ | G183: 36.014565 | H183: 1 | I183: 1 | J183: 36.014565 | L183: ='4.3'!$G$29 -> 430156 | M183: 15491881.22
A184: 4.4 | B184: Acero figurado de refuerzo de 4.200 kg/cm² (60.000 psi) para cabezal | F184: kg | G184: 1100.4 | H184: 1 | I184: 1 | J184: 1100.4 | L184: ='4.4'!$G$30 -> 3757 | M184: 4134202.8
A185: 4.5 | B185: Tubería de diámetro (36" = 0,9 m) una por cada 100 m para alcantarillas | F185: m | G185: 10 | H185: 1 | I185: 1 | J185: 10 | L185: ='4.5'!$G$29 -> 1040409 | M185: 10404090
A186: Alternativa 3: Base estabilizada con emulsión asfáltica+Lechada asfáltica
A187: ITEM | B187: DESCRIPCION | F187: UNIDAD | G187: ANCHO (m) (Cantidad) | H187: PROFUNDIDAD (m) | I187: LARGO (m) | J187: CANTIDAD Aproximada | L187: VR UNITARIO de Referencia | M187: VR PARCIAL | O187: Costo total de transporte | V187: Porcentaje de material petreo considerado para la estabilización % sobre volumen total de base a estabilizar
A188: 1.1 | B188: Localización y replanteo | F188: m² | G188: =+ANCHOVIA -> 5.3 | H188: 1 | I188: ='Eval-Economica'!$M$5 -> 3050 | J188: =+G188*H188*I188 -> 16165 | L188: =+'1.1'!$G$31 -> 3735 | M188: =+L188*J188 -> 60376275 | O188: =+INSUMOS!$E$71*(APU!J192*$V$188)*INSUMOS!$D$71 -> 1339853.791 | P188: Transporte de material bituminoso | V188: 0.08
A189: 2.1 | B189: Excavación mecánica en material común a nivel de subrasante (incluye retiro de sobrantes, transporte hasta escombrera y derecho de botadero) | F189: m³ | G189: 5.3 | H189: =(SUM(Control!J64:J67))/100 -> 0.6127991107 | I189: ='Eval-Economica'!$M$5 -> 3050 | J189: =+G189*H189*I189 -> 9905.897624 | L189: =+'2.1'!$G$31 -> 48860 | M189: 484002157.9 | O189: =+INSUMOS!$E$74*(APU!J192+J191)*INSUMOS!$D$74 -> 168697652.5 | P189: Transporte de material petreo
A190: 2.2 | B190: Conformación de la subrasante | F190: m² | G190: 5.3 | H190: 1 | I190: ='Eval-Economica'!$M$5 -> 3050 | J190: =+G190*H190*I190 -> 16165 | L190: =+'2.2'!$G$29 -> 9424 | M190: 152338960 | O190: =SUM(O188:O189) -> 170037506.3 | P190: Total
A191: 320.3 | B191: Subbase granular (incluye suministro, extendido, nivelación, humedecido y compactación). | F191: m³ | G191: 5.3 | H191: =+'Salida-Diseno'!$R$7/100 -> 0.3717991107 | I191: =+LONGITUD -> 3050 | J191: =+G191*H191*I191 -> 6010.132624 | L191: ='320.3'!N78 -> 44677.40163 | M191: =+L191*J191 -> 268517109.1
A192: 2.3 | B192: BASE ESTABILIZADA CON EMULSIÓN ASFÁLTICA TIPO BEE-38 | F192: m³ | G192: 5.3 | H192: ='Diseno-AASHTO'!C32/100 -> 0.15 | I192: ='Eval-Economica'!$M$5 -> 3050 | J192: =+G192*H192*I192 -> 2424.75 | L192: =+'340.1'!$N$78 -> 81665.67387 | M192: 198018842.7
A193: 2.4 | B193: LECHADA ASFÁLTICA CON EMULSIÓN CRL-1HM ,TIPO LA-5 | F193: m2 | G193: 5.3 | H193: 1 | I193: ='Eval-Economica'!$M$5 -> 3050 | J193: =+G193*H193*I193 -> 16165 | L193: =+'433.3'!$N$88 -> 5634.544676 | M193: 91082414.68
A194: 3.1 | B194: Excavación manual 1,50 m * 1,50 m * 2,75 m. | F194: m³ | G194: 61.875 | H194: 1 | I194: 1 | J194: =+G194*H194*I194 -> 61.875 | L194: ='3.1'!$G$29 -> 101162 | M194: 6259398.75
A195: 3.2 | B195: Concreto de baja resistencia 140 kg/cm² (2.000 psi) para cajas de recolección | F195: m³ | G195: 1.125 | H195: 1 | I195: 1 | J195: 1.125 | L195: ='3.2'!$G$31 -> 756338 | M195: 850880.25
A196: 3.3 | B196: Concreto para caja | F196: m³ | G196: 38.409565 | H196: 1 | I196: 1 | J196: 38.409565 | L196: ='3.3'!$G$30 -> 430156 | M196: 16522104.84
A197: 3.4 | B197: Acero figurado de refuerzo de 4200 kg/cm² (60.000 psi ) para caja | F197: kg | G197: 3190.4 | H197: 1 | I197: 1 | J197: 3190.4 | L197: ='3.4'!$G$30 -> 3757 | M197: 11986332.8
A198: 4.1 | B198: Excavación manual 4,5 m * 2,1 m * 1,6 m para cabezales | F198: m³ | G198: 151.2 | H198: 1 | I198: 1 | J198: 151.2 | L198: ='4.1'!$G$29 -> 39637 | M198: 5993114.4
A199: 4.2 | B199: Concreto resistencia 140 kg/cm² (1.500 psi) para solados en muros y cabezales | F199: m³ | G199: 5.138565 | H199: 1 | I199: 1 | J199: 5.138565 | L199: ='4.2'!$G$31 -> 204358 | M199: 1050106.866
A200: 4.3 | B200: Concreto para estructura muros cabezales resistencia de 210 kg/cm² (3.000 psi) | F200: m³ | G200: 36.014565 | H200: 1 | I200: 1 | J200: 36.014565 | L200: ='4.3'!$G$29 -> 430156 | M200: 15491881.22
A201: 4.4 | B201: Acero figurado de refuerzo de 4.200 kg/cm² (60.000 psi) para cabezal | F201: kg | G201: 1100.4 | H201: 1 | I201: 1 | J201: 1100.4 | L201: ='4.4'!$G$30 -> 3757 | M201: 4134202.8
A202: 4.5 | B202: Tubería de diámetro (36" = 0,9 m) una por cada 100 m para alcantarillas | F202: m | G202: 10 | H202: 1 | I202: 1 | J202: 10 | L202: ='4.5'!$G$29 -> 1040409 | M202: 10404090
A203: Alternativa 4: Base estabilizada con emulsión asfáltica+Tratamiento superficial doble
A204: ITEM | B204: DESCRIPCION | F204: UNIDAD | G204: ANCHO (m) (Cantidad) | H204: PROFUNDIDAD (m) | I204: LARGO (m) | J204: CANTIDAD Aproximada | L204: VR UNITARIO de Referencia | M204: VR PARCIAL | O204: Costo total de transporte | V204: Porcentaje de material petreo considerado para la estabilización % sobre volumen total de base a estabilizar
... 139 more rows

Sheet Matriz-Multicriterio
F4: Competencia con Transporte Colectivo | G4: Requerimiento patios y disponibilidad | H4: Oferta Km | I4: Consolidación de operación en la zona | J4: Inversión adicional en flota | K4: Disponibilidad de Flota de reserva
F5: 0.1 | G5: 0.15 | H5: 0.25 | I5: 0.1 | J5: 0.15 | K5: 0.15
E6: ESCENARIO 0-A | F6: Elimina parte de la competencia de transporte colectivo, solo la directa para las 4 rutas implementadas completamente | G6: No requiere patios, por que solo llega hasta mitad de recorrido | H6: N/A | I6: No consolida operación en ninguna de las otras zonas | J6: No requiere inversión adicional en flota | K6: Considera Flota de reserva
E7: ESCENARIO 0-B | F7: Mantiene toda la competencia con rutas de transporte público colectivo | G7: No requiere patios, por que solo llega hasta mitad de recorrido | H7: N/A | I7: No consolida operación en ninguna de las otras zonas | J7: No requiere inversión adicional en flota | K7: Considera Flota de reserva
E8: ESCENARIO 1 | F8: Mantiene toda la competencia con rutas de transporte público colectivo | G8: No requiere patios, por que solo llega hasta mitad de recorrido | H8: N/A | I8: No consolida operación en ninguna de las otras zonas | J8: Requiere inversión para completar las 17 rutas compartidas con Coobus y Egobus | K8: No considera Flota de reserva
E9: ESCENARIO 2 | F9: Mantiene toda la competencia con rutas de transporte público colectivo | G9: No requiere patios, por que solo llega hasta mitad de recorrido | H9: N/A | I9: No consolida operación en ninguna de las otras zonas | J9: Requiere inversión para completar las 17 rutas compartidas con Coobus y Egobus | K9: Sí considersa Flota de Reserva
E10: ESCENARIO 3 | F10: Mantiene alto porcentaje de competencia de colectivo dado que presta servicio a mitad de recorrido en 13 rutas | G10: Requiere de lotes o recorrido en vacio de larga distancia para iniciar operación temprano en el extremo opuesto | H10: N/A | I10: Llega con 2 rutas a zona Suba centro y 2 rutas a Fontibón | J10: Requiere inversión adicional en flota para completar las 4 rutas que hoy funcionan a la mitad | K10: No considera Flota de reserva
E11: ESCENARIO 4 | F11: Mantiene alto porcentaje de competencia de colectivo dado que presta servicio a mitad de recorrido en 13 rutas | G11: Requiere de lotes o recorrido en vacio de larga distancia para iniciar operación temprano en el extremo opuesto | H11: N/A | I11: Llega con 2 rutas a zona Suba centro y 2 rutas a Fontibón | J11: Requiere inversión adicional en flota para completar las 4 rutas que hoy funcionan a la mitad | K11: Sí considersa Flota de Reserva
E12: ESCENARIO 5 | F12: Puede eliminar gran parte competencia con transporte público colectivo, dado que implementa 13 rutas en forma completa pero mantiene 4 a mitad de recorrido | G12: Requiere lotes para patios en zonas de Fontibón y en Suba centro | H12: N/A | I12: Consolida la operación en la zona Suba Centro con 6 rutas y en zona fontibón con 7 rutas | J12: Requiere de flota adicional para cumplir con operación completa en 13 rutas | K12: No considera Flota de reserva
E13: ESCENARIO 6 | F13: Puede eliminar gran parte competencia con transporte público colectivo, dado que implementa 13 rutas en forma completa pero mantiene 4 a mitad de recorrido | G13: Requiere lotes para patios en zonas de Fontibón y en Suba centro | H13: N/A | I13: Consolida la operación en la zona Suba Centro con 6 rutas y en zona fontibón con 7 rutas | J13: Requiere de flota adicional para cumplir con operación completa en 13 rutas | K13: Sí considersa Flota de Reserva
E14: ESCENARIO 7 | F14: Puede eliminar toda la competencia directa con transporte público colectivo, dado que implementa las 17 rutas en forma completa | G14: Requiere lotes para patios en zonas de Fontibón y en Suba centro | H14: N/A | I14: Consolida la operación en la zona Suba Centro con 8 rutas y en zona fontibón con 9 rutas | J14: Requiere de flota adicional para cumplir con operación completa en 17 rutas | K14: No considera Flota de reserva
E15: ESCENARIO 8 | F15: Puede eliminar toda la competencia directa con transporte público colectivo, dado que implementa las 17 rutas en forma completa | G15: Requiere lotes para patios en zonas de Fontibón y en Suba centro | H15: N/A | I15: Consolida la operación en la zona Suba Centro con 8 rutas y en zona fontibón con 9 rutas | J15: Requiere de flota adicional para cumplir con operación completa en 17 rutas | K15: Sí considersa Flota de Reserva
E16: ESCENARIO 9 | F16: Elimina parte de la competencia de transporte colectivo, solo la directa para las 9 rutas implementadas | G16: Requiere lotes para patios de 4 rutas en zona de Suba centro y puede implementar las 5 rutas de Fontibón como circulares | H16: N/A | I16: Consolida operación en parte oriental de zona Suba Centro con 4 rutas, y en fontibón con 5 rutas que atienden Puente Aranda y Aeropuerto | J16: Requiere inversión adicional en flota | K16: No considera Flota de reserva
E17: ESCENARIO 10 | F17: Elimina parte de la competencia de transporte colectivo, solo la directa para las 9 rutas implementadas | G17: Requiere lotes para patios de 4 rutas en zona de Suba centro y puede implementar las 5 rutas de Fontibón como circulares | H17: N/A | I17: Consolida operación en parte oriental de zona Suba Centro con 4 rutas, y en fontibón con 5 rutas que atienden Puente Aranda y Aeropuerto | J17: Requiere inversión adicional en flota | K17: Sí considersa Flota de Reserva
E18: ESCENARIO 11 | F18: Elimina la competencia con el transporte público colectivo en todas las rutas a Suba Centro, | G18: Requiere lotes para patios en zona Suba Centro | H18: N/A | I18: Consolida operación en zona Suba Centro | J18: Requiere inversión adicional en flota | K18: No considera Flota de reserva
E19: ESCENARIO 12 | F19: Elimina la competencia con el transporte público colectivo en todas las rutas a Suba Centro, | G19: Requiere lotes para patios en zona Suba Centro | H19: N/A | I19: Consolida operación en zona Suba Centro | J19: Requiere inversión adicional en flota | K19: Sí considersa Flota de Reserva
E20: ESCENARIO 13 | F20: Elimina la competencia con el transporte público colectivo en todas las rutas a Fontibón, | G20: Requiere lotes para patios en zona Fontibón | H20: N/A | I20: Consolida operación en zona Fontibón | J20: Requiere inversión adicional en flota | K20: No considera Flota de reserva
E21: ESCENARIO 14 | F21: Elimina la competencia con el transporte público colectivo en todas las rutas a Fontibón, | G21: Requiere lotes para patios en zona Fontibón | H21: N/A | I21: Consolida operación en zona Fontibón | J21: Requiere inversión adicional en flota | K21: Sí considersa Flota de Reserva
E24: VALORES DE CUANTIFICACIÓN | F24: Requerimiento según el tránsito | G24: Requerimiento según el CBR | H24: Material Disponible en la zona | I24: Disponibilidad de materiales petreos en la zona | J24: Disponibilidad de trituración de material | K24: Plasticidad del suelo y pasa tamiz No. 200 | L24: Oportunidades de empleo
B25: Cemento | C25: Medio | D25: LA | E25: ALTERNATIVA 1 | F25: =IF(AND(Control!$J$53<200000,C25="Bajo"),2,IF(AND(Control!$J$53>200000,Control!$J$53<500000,C25="Bajo"),1,IF(AND(Control!$J$53>500000,C25="Bajo"),0,IF(AND(Control!$J$53<200000,C25="Medio"),1,IF(AND(Control!$J$53>200000,Control!$J$53<500000,C25="Medio"),2,IF(AND(Control!$J$53>500000,C25="Medio"),1,IF(AND(Control!$J$53<200000,C25="Alto"),1,IF(AND(Control!$J$53>200000,Control!$J$53<500000,C25="Alto"),1,IF(AND(Control!$J$53>500000,C25="Alto"),2,"Error"))))))))) -> 2 | G25: =IF(AND(Control!$F$17<=0.02,C25="Bajo"),1,IF(AND(Control!$F$17>0.02,Control!$F$17<=0.05,C25="Bajo"),1,IF(AND(Control!$F$17>0.05,C25="Bajo"),2,IF(AND(Control!$F$17<=0.02,C25="Medio"),1,IF(AND(Control!$F$17>0.02,Control!$F$17<=0.05,C25="Medio"),2,IF(AND(Control!$F$17>0.05,C25="Medio"),1,IF(AND(Control!$F$17<=0.02,C25="Alto"),2,IF(AND(Control!$F$17>0.02,Control!$F$17<=0.05,C25="Alto"),1,IF(AND(Control!$F$17>0.05,C25="Alto"),1,"Error"))))))))) -> 2 | H25: =IF(AND(MIN(Control!$J$29:$J$31)=Control!$J$30,B25="Cal"),2,IF(AND(MIN(Control!$J$29:$J$31)=Control!$J$29,B25="Cal"),1,IF(AND(MIN(Control!$J$29:$J$31)=Control!$J$31,B25="Cal"),1,IF(AND(MIN(Control!$J$29:$J$31)=Control!$J$29,B25="Cemento"),1,IF(AND(MIN(Control!$J$29:$J$31)=Control!$J$31,B25="Cemento"),2,IF(AND(MIN(Control!$J$29:$J$31)=Control!$J$30,B25="Cemento"),1,IF(AND(MIN(Control!$J$29:$J$31)=Control!$J$30,B25="Asfalto"),1,IF(AND(MIN(Control!$J$29:$J$31)=Control!$J$31,B25="Asfalto"),1,IF(AND(MIN(Control!$J$29:$J$31)=Control!$J$29,B25="Asfalto"),2,IF(B25="Sin",2,"Error")))))))))) -> 1 | I25: =IF(AND(MIN(Control!$J$29:$J$31)>500,B25="Sin"),2,1) -> 1 | J25: =IF(AND(Control!$J$28="Sí",D25="TSD"),2,1) -> 1 | K25: =IF(AND(Clasificacion!$E$28<0.25,Control!$F$18<0.1,OR(B25="Cemento",B25="Asfalto")),2,IF(AND(Clasificacion!$E$28<0.25,Control!$F$18>=0.1,OR(B25="Cemento",B25="Cal")),2,IF(AND(Clasificacion!$E$28<0.25,Control!$F$18<0.1,B25="Cal"),1,IF(AND(Clasificacion!$E$28<0.25,Control!$F$18>=0.1,B25="Asfalto"),1,IF(AND(Clasificacion!$E$28>=0.25,Control!$F$18<0.1,B25="Cemento"),2,IF(AND(Clasificacion!$E$28>=0.25,Control!$F$18<0.1,OR(B25="Cal",B25="Asfalto")),1,IF(AND(Clasificacion!$E$28>=0.25,AND(Control!$F$18>=0.1,Control!$F$18<=0.3),OR(B25="Cal",B25="Cemento")),2,IF(AND(Clasificacion!$E$28>=0.25,AND(Control!$F$18>=0.1,Control!$F$18<=0.3),B25="Asfalto"),1,IF(AND(Clasificacion!$E$28>=0.25,Control!$F$18>0.3,B25="Cal"),2,IF(AND(Clasificacion!$E$28>=0.25,Control!$F$18>0.3,OR(B25="Cemento",B25="Asfalto")),2,"Error")))))))))) -> 2 | L25: 5
B26: Cemento | C26: Medio | D26: TSD | E26: ALTERNATIVA 2 | F26: =IF(AND(Control!$J$53<200000,C26="Bajo"),2,IF(AND(Control!$J$53>200000,Control!$J$53<500000,C26="Bajo"),1,IF(AND(Control!$J$53>500000,C26="Bajo"),0,IF(AND(Control!$J$53<200000,C26="Medio"),1,IF(AND(Control!$J$53>200000,Control!$J$53<500000,C26="Medio"),2,IF(AND(Control!$J$53>500000,C26="Medio"),1,IF(AND(Control!$J$53<200000,C26="Alto"),1,IF(AND(Control!$J$53>200000,Control!$J$53<500000,C26="Alto"),1,IF(AND(Control!$J$53>500000,C26="Alto"),2,"Error"))))))))) -> 2 | G26: =IF(AND(Control!$F$17<=0.02,C26="Bajo"),1,IF(AND(Control!$F$17>0.02,Control!$F$17<=0.05,C26="Bajo"),1,IF(AND(Control!$F$17>0.05,C26="Bajo"),2,IF(AND(Control!$F$17<=0.02,C26="Medio"),1,IF(AND(Control!$F$17>0.02,Control!$F$17<=0.05,C26="Medio"),2,IF(AND(Control!$F$17>0.05,C26="Medio"),1,IF(AND(Control!$F$17<=0.02,C26="Alto"),2,IF(AND(Control!$F$17>0.02,Control!$F$17<=0.05,C26="Alto"),1,IF(AND(Control!$F$17>0.05,C26="Alto"),1,"Error"))))))))) -> 2 | H26: =IF(AND(MIN(Control!$J$29:$J$31)=Control!$J$30,B26="Cal"),2,IF(AND(MIN(Control!$J$29:$J$31)=Control!$J$29,B26="Cal"),1,IF(AND(MIN(Control!$J$29:$J$31)=Control!$J$31,B26="Cal"),1,IF(AND(MIN(Control!$J$29:$J$31)=Control!$J$29,B26="Cemento"),1,IF(AND(MIN(Control!$J$29:$J$31)=Control!$J$31,B26="Cemento"),2,IF(AND(MIN(Control!$J$29:$J$31)=Control!$J$30,B26="Cemento"),1,IF(AND(MIN(Control!$J$29:$J$31)=Control!$J$30,B26="Asfalto"),1,IF(AND(MIN(Control!$J$29:$J$31)=Control!$J$31,B26="Asfalto"),1,IF(AND(MIN(Control!$J$29:$J$31)=Control!$J$29,B26="Asfalto"),2,IF(B26="Sin",2,"Error")))))))))) -> 1 | I26: =IF(AND(MIN(Control!$J$29:$J$31)>500,B26="Sin"),2,1) -> 1 | J26: =IF(AND(Control!$J$28="Sí",D26="TSD"),2,1) -> 1 | K26: =IF(AND(Clasificacion!$E$28<0.25,Control!$F$18<0.1,OR(B26="Cemento",B26="Asfalto")),2,IF(AND(Clasificacion!$E$28<0.25,Control!$F$18>=0.1,OR(B26="Cemento",B26="Cal")),2,IF(AND(Clasificacion!$E$28<0.25,Control!$F$18<0.1,B26="Cal"),1,IF(AND(Clasificacion!$E$28<0.25,Control!$F$18>=0.1,B26="Asfalto"),1,IF(AND(Clasificacion!$E$28>=0.25,Control!$F$18<0.1,B26="Cemento"),2,IF(AND(Clasificacion!$E$28>=0.25,Control!$F$18<0.1,OR(B26="Cal",B26="Asfalto")),1,IF(AND(Clasificacion!$E$28>=0.25,AND(Control!$F$18>=0.1,Control!$F$18<=0.3),OR(B26="Cal",B26="Cemento")),2,IF(AND(Clasificacion!$E$28>=0.25,AND(Control!$F$18>=0.1,Control!$F$18<=0.3),B26="Asfalto"),1,IF(AND(Clasificacion!$E$28>=0.25,Control!$F$18>0.3,B26="Cal"),2,IF(AND(Clasificacion!$E$28>=0.25,Control!$F$18>0.3,OR(B26="Cemento",B26="Asfalto")),2,"Error")))))))))) -> 2 | L26: 5
B27: Asfalto | C27: Medio | D27: LA | E27: ALTERNATIVA 3 | F27: =IF(AND(Control!$J$53<200000,C27="Bajo"),2,IF(AND(Control!$J$53>200000,Control!$J$53<500000,C27="Bajo"),1,IF(AND(Control!$J$53>500000,C27="Bajo"),0,IF(AND(Control!$J$53<200000,C27="Medio"),1,IF(AND(Control!$J$53>200000,Control!$J$53<500000,C27="Medio"),2,IF(AND(Control!$J$53>500000,C27="Medio"),1,IF(AND(Control!$J$53<200000,C27="Alto"),1,IF(AND(Control!$J$53>200000,Control!$J$53<500000,C27="Alto"),1,IF(AND(Control!$J$53>500000,C27="Alto"),2,"Error"))))))))) -> 2 | G27: =IF(AND(Control!$F$17<=0.02,C27="Bajo"),1,IF(AND(Control!$F$17>0.02,Control!$F$17<=0.05,C27="Bajo"),1,IF(AND(Control!$F$17>0.05,C27="Bajo"),2,IF(AND(Control!$F$17<=0.02,C27="Medio"),1,IF(AND(Control!$F$17>0.02,Control!$F$17<=0.05,C27="Medio"),2,IF(AND(Control!$F$17>0.05,C27="Medio"),1,IF(AND(Control!$F$17<=0.02,C27="Alto"),2,IF(AND(Control!$F$17>0.02,Control!$F$17<=0.05,C27="Alto"),1,IF(AND(Control!$F$17>0.05,C27="Alto"),1,"Error"))))))))) -> 2 | H27: =IF(AND(MIN(Control!$J$29:$J$31)=Control!$J$30,B27="Cal"),2,IF(AND(MIN(Control!$J$29:$J$31)=Control!$J$29,B27="Cal"),1,IF(AND(MIN(Control!$J$29:$J$31)=Control!$J$31,B27="Cal"),1,IF(AND(MIN(Control!$J$29:$J$31)=Control!$J$29,B27="Cemento"),1,IF(AND(MIN(Control!$J$29:$J$31)=Control!$J$31,B27="Cemento"),2,IF(AND(MIN(Control!$J$29:$J$31)=Control!$J$30,B27="Cemento"),1,IF(AND(MIN(Control!$J$29:$J$31)=Control!$J$30,B27="Asfalto"),1,IF(AND(MIN(Control!$J$29:$J$31)=Control!$J$31,B27="Asfalto"),1,IF(AND(MIN(Control!$J$29:$J$31)=Control!$J$29,B27="Asfalto"),2,IF(B27="Sin",2,"Error")))))))))) -> 2 | I27: =IF(AND(MIN(Control!$J$29:$J$31)>500,B27="Sin"),2,1) -> 1 | J27: =IF(AND(Control!$J$28="Sí",D27="TSD"),2,1) -> 1 | K27: =IF(AND(Clasificacion!$E$28<0.25,Control!$F$18<0.1,OR(B27="Cemento",B27="Asfalto")),2,IF(AND(Clasificacion!$E$28<0.25,Control!$F$18>=0.1,OR(B27="Cemento",B27="Cal")),2,IF(AND(Clasificacion!$E$28<0.25,Control!$F$18<0.1,B27="Cal"),1,IF(AND(Clasificacion!$E$28<0.25,Control!$F$18>=0.1,B27="Asfalto"),1,IF(AND(Clasificacion!$E$28>=0.25,Control!$F$18<0.1,B27="Cemento"),2,IF(AND(Clasificacion!$E$28>=0.25,Control!$F$18<0.1,OR(B27="Cal",B27="Asfalto")),1,IF(AND(Clasificacion!$E$28>=0.25,AND(Control!$F$18>=0.1,Control!$F$18<=0.3),OR(B27="Cal",B27="Cemento")),2,IF(AND(Clasificacion!$E$28>=0.25,AND(Control!$F$18>=0.1,Control!$F$18<=0.3),B27="Asfalto"),1,IF(AND(Clasificacion!$E$28>=0.25,Control!$F$18>0.3,B27="Cal"),2,IF(AND(Clasificacion!$E$28>=0.25,Control!$F$18>0.3,OR(B27="Cemento",B27="Asfalto")),2,"Error")))))))))) -> 1 | L27: 5
B28: Asfalto | C28: Medio | D28: TSD | E28: ALTERNATIVA 4 | F28: =IF(AND(Control!$J$53<200000,C28="Bajo"),2,IF(AND(Control!$J$53>200000,Control!$J$53<500000,C28="Bajo"),1,IF(AND(Control!$J$53>500000,C28="Bajo"),0,IF(AND(Control!$J$53<200000,C28="Medio"),1,IF(AND(Control!$J$53>200000,Control!$J$53<500000,C28="Medio"),2,IF(AND(Control!$J$53>500000,C28="Medio"),1,IF(AND(Control!$J$53<200000,C28="Alto"),1,IF(AND(Control!$J$53>200000,Control!$J$53<500000,C28="Alto"),1,IF(AND(Control!$J$53>500000,C28="Alto"),2,"Error"))))))))) -> 2 | G28: =IF(AND(Control!$F$17<=0.02,C28="Bajo"),1,IF(AND(Control!$F$17>0.02,Control!$F$17<=0.05,C28="Bajo"),1,IF(AND(Control!$F$17>0.05,C28="Bajo"),2,IF(AND(Control!$F$17<=0.02,C28="Medio"),1,IF(AND(Control!$F$17>0.02,Control!$F$17<=0.05,C28="Medio"),2,IF(AND(Control!$F$17>0.05,C28="Medio"),1,IF(AND(Control!$F$17<=0.02,C28="Alto"),2,IF(AND(Control!$F$17>0.02,Control!$F$17<=0.05,C28="Alto"),1,IF(AND(Control!$F$17>0.05,C28="Alto"),1,"Error"))))))))) -> 2 | H28: =IF(AND(MIN(Control!$J$29:$J$31)=Control!$J$30,B28="Cal"),2,IF(AND(MIN(Control!$J$29:$J$31)=Control!$J$29,B28="Cal"),1,IF(AND(MIN(Control!$J$29:$J$31)=Control!$J$31,B28="Cal"),1,IF(AND(MIN(Control!$J$29:$J$31)=Control!$J$29,B28="Cemento"),1,IF(AND(MIN(Control!$J$29:$J$31)=Control!$J$31,B28="Cemento"),2,IF(AND(MIN(Control!$J$29:$J$31)=Control!$J$30,B28="Cemento"),1,IF(AND(MIN(Control!$J$29:$J$31)=Control!$J$30,B28="Asfalto"),1,IF(AND(MIN(Control!$J$29:$J$31)=Control!$J$31,B28="Asfalto"),1,IF(AND(MIN(Control!$J$29:$J$31)=Control!$J$29,B28="Asfalto"),2,IF(B28="Sin",2,"Error")))))))))) -> 2 | I28: =IF(AND(MIN(Control!$J$29:$J$31)>500,B28="Sin"),2,1) -> 1 | J28: =IF(AND(Control!$J$28="Sí",D28="TSD"),2,1) -> 1 | K28: =IF(AND(Clasificacion!$E$28<0.25,Control!$F$18<0.1,OR(B28="Cemento",B28="Asfalto")),2,IF(AND(Clasificacion!$E$28<0.25,Control!$F$18>=0.1,OR(B28="Cemento",B28="Cal")),2,IF(AND(Clasificacion!$E$28<0.25,Control!$F$18<0.1,B28="Cal"),1,IF(AND(Clasificacion!$E$28<0.25,Control!$F$18>=0.1,B28="Asfalto"),1,IF(AND(Clasificacion!$E$28>=0.25,Control!$F$18<0.1,B28="Cemento"),2,IF(AND(Clasificacion!$E$28>=0.25,Control!$F$18<0.1,OR(B28="Cal",B28="Asfalto")),1,IF(AND(Clasificacion!$E$28>=0.25,AND(Control!$F$18>=0.1,Control!$F$18<=0.3),OR(B28="Cal",B28="Cemento")),2,IF(AND(Clasificacion!$E$28>=0.25,AND(Control!$F$18>=0.1,Control!$F$18<=0.3),B28="Asfalto"),1,IF(AND(Clasificacion!$E$28>=0.25,Control!$F$18>0.3,B28="Cal"),2,IF(AND(Clasificacion!$E$28>=0.25,Control!$F$18>0.3,OR(B28="Cemento",B28="Asfalto")),2,"Error")))))))))) -> 1 | L28: 5
B29: Sin | C29: Medio | D29: LA | E29: ALTERNATIVA 5 | F29: =IF(AND(Control!$J$53<200000,C29="Bajo"),2,IF(AND(Control!$J$53>200000,Control!$J$53<500000,C29="Bajo"),1,IF(AND(Control!$J$53>500000,C29="Bajo"),0,IF(AND(Control!$J$53<200000,C29="Medio"),1,IF(AND(Control!$J$53>200000,Control!$J$53<500000,C29="Medio"),2,IF(AND(Control!$J$53>500000,C29="Medio"),1,IF(AND(Control!$J$53<200000,C29="Alto"),1,IF(AND(Control!$J$53>200000,Control!$J$53<500000,C29="Alto"),1,IF(AND(Control!$J$53>500000,C29="Alto"),2,"Error"))))))))) -> 2 | G29: =IF(AND(Control!$F$17<=0.02,C29="Bajo"),1,IF(AND(Control!$F$17>0.02,Control!$F$17<=0.05,C29="Bajo"),1,IF(AND(Control!$F$17>0.05,C29="Bajo"),2,IF(AND(Control!$F$17<=0.02,C29="Medio"),1,IF(AND(Control!$F$17>0.02,Control!$F$17<=0.05,C29="Medio"),2,IF(AND(Control!$F$17>0.05,C29="Medio"),1,IF(AND(Control!$F$17<=0.02,C29="Alto"),2,IF(AND(Control!$F$17>0.02,Control!$F$17<=0.05,C29="Alto"),1,IF(AND(Control!$F$17>0.05,C29="Alto"),1,"Error"))))))))) -> 2 | H29: =IF(AND(MIN(Control!$J$29:$J$31)=Control!$J$30,B29="Cal"),2,IF(AND(MIN(Control!$J$29:$J$31)=Control!$J$29,B29="Cal"),1,IF(AND(MIN(Control!$J$29:$J$31)=Control!$J$31,B29="Cal"),1,IF(AND(MIN(Control!$J$29:$J$31)=Control!$J$29,B29="Cemento"),1,IF(AND(MIN(Control!$J$29:$J$31)=Control!$J$31,B29="Cemento"),2,IF(AND(MIN(Control!$J$29:$J$31)=Control!$J$30,B29="Cemento"),1,IF(AND(MIN(Control!$J$29:$J$31)=Control!$J$30,B29="Asfalto"),1,IF(AND(MIN(Control!$J$29:$J$31)=Control!$J$31,B29="Asfalto"),1,IF(AND(MIN(Control!$J$29:$J$31)=Control!$J$29,B29="Asfalto"),2,IF(B29="Sin",2,"Error")))))))))) -> 2 | I29: =IF(AND(MIN(Control!$J$29:$J$31)>500,B29="Sin"),2,1) -> 1 | J29: =IF(AND(Control!$J$28="Sí",D29="TSD"),2,1) -> 1 | K29: =IF(AND(Clasificacion!$E$28<0.25,Control!$F$18<0.1,OR(B29="Cemento",B29="Asfalto")),2,IF(AND(Clasificacion!$E$28<0.25,Control!$F$18>=0.1,OR(B29="Cemento",B29="Cal")),2,IF(AND(Clasificacion!$E$28<0.25,Control!$F$18<0.1,B29="Cal"),1,IF(AND(Clasificacion!$E$28<0.25,Control!$F$18>=0.1,B29="Asfalto"),1,IF(AND(Clasificacion!$E$28>=0.25,Control!$F$18<0.1,B29="Cemento"),2,IF(AND(Clasificacion!$E$28>=0.25,Control!$F$18<0.1,OR(B29="Cal",B29="Asfalto")),1,IF(AND(Clasificacion!$E$28>=0.25,AND(Control!$F$18>=0.1,Control!$F$18<=0.3),OR(B29="Cal",B29="Cemento")),2,IF(AND(Clasificacion!$E$28>=0.25,AND(Control!$F$18>=0.1,Control!$F$18<=0.3),B29="Asfalto"),1,IF(AND(Clasificacion!$E$28>=0.25,Control!$F$18>0.3,B29="Cal"),2,IF(AND(Clasificacion!$E$28>=0.25,Control!$F$18>0.3,OR(B29="Cemento",B29="Asfalto")),2,1)))))))))) -> 1 | L29: 5
B30: Sin | C30: Medio | D30: TSD | E30: ALTERNATIVA 6 | F30: =IF(AND(Control!$J$53<200000,C30="Bajo"),2,IF(AND(Control!$J$53>200000,Control!$J$53<500000,C30="Bajo"),1,IF(AND(Control!$J$53>500000,C30="Bajo"),0,IF(AND(Control!$J$53<200000,C30="Medio"),1,IF(AND(Control!$J$53>200000,Control!$J$53<500000,C30="Medio"),2,IF(AND(Control!$J$53>500000,C30="Medio"),1,IF(AND(Control!$J$53<200000,C30="Alto"),1,IF(AND(Control!$J$53>200000,Control!$J$53<500000,C30="Alto"),1,IF(AND(Control!$J$53>500000,C30="Alto"),2,"Error"))))))))) -> 2 | G30: =IF(AND(Control!$F$17<=0.02,C30="Bajo"),1,IF(AND(Control!$F$17>0.02,Control!$F$17<=0.05,C30="Bajo"),1,IF(AND(Control!$F$17>0.05,C30="Bajo"),2,IF(AND(Control!$F$17<=0.02,C30="Medio"),1,IF(AND(Control!$F$17>0.02,Control!$F$17<=0.05,C30="Medio"),2,IF(AND(Control!$F$17>0.05,C30="Medio"),1,IF(AND(Control!$F$17<=0.02,C30="Alto"),2,IF(AND(Control!$F$17>0.02,Control!$F$17<=0.05,C30="Alto"),1,IF(AND(Control!$F$17>0.05,C30="Alto"),1,"Error"))))))))) -> 2 | H30: =IF(AND(MIN(Control!$J$29:$J$31)=Control!$J$30,B30="Cal"),2,IF(AND(MIN(Control!$J$29:$J$31)=Control!$J$29,B30="Cal"),1,IF(AND(MIN(Control!$J$29:$J$31)=Control!$J$31,B30="Cal"),1,IF(AND(MIN(Control!$J$29:$J$31)=Control!$J$29,B30="Cemento"),1,IF(AND(MIN(Control!$J$29:$J$31)=Control!$J$31,B30="Cemento"),2,IF(AND(MIN(Control!$J$29:$J$31)=Control!$J$30,B30="Cemento"),1,IF(AND(MIN(Control!$J$29:$J$31)=Control!$J$30,B30="Asfalto"),1,IF(AND(MIN(Control!$J$29:$J$31)=Control!$J$31,B30="Asfalto"),1,IF(AND(MIN(Control!$J$29:$J$31)=Control!$J$29,B30="Asfalto"),2,IF(B30="Sin",2,"Error")))))))))) -> 2 | I30: =IF(AND(MIN(Control!$J$29:$J$31)>500,B30="Sin"),2,1) -> 1 | J30: =IF(AND(Control!$J$28="Sí",D30="TSD"),2,1) -> 1 | K30: =IF(AND(Clasificacion!$E$28<0.25,Control!$F$18<0.1,OR(B30="Cemento",B30="Asfalto")),2,IF(AND(Clasificacion!$E$28<0.25,Control!$F$18>=0.1,OR(B30="Cemento",B30="Cal")),2,IF(AND(Clasificacion!$E$28<0.25,Control!$F$18<0.1,B30="Cal"),1,IF(AND(Clasificacion!$E$28<0.25,Control!$F$18>=0.1,B30="Asfalto"),1,IF(AND(Clasificacion!$E$28>=0.25,Control!$F$18<0.1,B30="Cemento"),2,IF(AND(Clasificacion!$E$28>=0.25,Control!$F$18<0.1,OR(B30="Cal",B30="Asfalto")),1,IF(AND(Clasificacion!$E$28>=0.25,AND(Control!$F$18>=0.1,Control!$F$18<=0.3),OR(B30="Cal",B30="Cemento")),2,IF(AND(Clasificacion!$E$28>=0.25,AND(Control!$F$18>=0.1,Control!$F$18<=0.3),B30="Asfalto"),1,IF(AND(Clasificacion!$E$28>=0.25,Control!$F$18>0.3,B30="Cal"),2,IF(AND(Clasificacion!$E$28>=0.25,Control!$F$18>0.3,OR(B30="Cemento",B30="Asfalto")),2,1)))))))))) -> 1 | L30: 5
B31: Sin | C31: Bajo | D31: LA | E31: ALTERNATIVA 7 | F31: =IF(AND(Control!$J$53<200000,C31="Bajo"),2,IF(AND(Control!$J$53>200000,Control!$J$53<500000,C31="Bajo"),1,IF(AND(Control!$J$53>500000,C31="Bajo"),0,IF(AND(Control!$J$53<200000,C31="Medio"),1,IF(AND(Control!$J$53>200000,Control!$J$53<500000,C31="Medio"),2,IF(AND(Control!$J$53>500000,C31="Medio"),1,IF(AND(Control!$J$53<200000,C31="Alto"),1,IF(AND(Control!$J$53>200000,Control!$J$53<500000,C31="Alto"),1,IF(AND(Control!$J$53>500000,C31="Alto"),2,"Error"))))))))) -> 1 | G31: =IF(AND(Control!$F$17<=0.02,C31="Bajo"),1,IF(AND(Control!$F$17>0.02,Control!$F$17<=0.05,C31="Bajo"),1,IF(AND(Control!$F$17>0.05,C31="Bajo"),2,IF(AND(Control!$F$17<=0.02,C31="Medio"),1,IF(AND(Control!$F$17>0.02,Control!$F$17<=0.05,C31="Medio"),2,IF(AND(Control!$F$17>0.05,C31="Medio"),1,IF(AND(Control!$F$17<=0.02,C31="Alto"),2,IF(AND(Control!$F$17>0.02,Control!$F$17<=0.05,C31="Alto"),1,IF(AND(Control!$F$17>0.05,C31="Alto"),1,"Error"))))))))) -> 1 | H31: =IF(AND(MIN(Control!$J$29:$J$31)=Control!$J$30,B31="Cal"),2,IF(AND(MIN(Control!$J$29:$J$31)=Control!$J$29,B31="Cal"),1,IF(AND(MIN(Control!$J$29:$J$31)=Control!$J$31,B31="Cal"),1,IF(AND(MIN(Control!$J$29:$J$31)=Control!$J$29,B31="Cemento"),1,IF(AND(MIN(Control!$J$29:$J$31)=Control!$J$31,B31="Cemento"),2,IF(AND(MIN(Control!$J$29:$J$31)=Control!$J$30,B31="Cemento"),1,IF(AND(MIN(Control!$J$29:$J$31)=Control!$J$30,B31="Asfalto"),1,IF(AND(MIN(Control!$J$29:$J$31)=Control!$J$31,B31="Asfalto"),1,IF(AND(MIN(Control!$J$29:$J$31)=Control!$J$29,B31="Asfalto"),2,IF(B31="Sin",2,"Error")))))))))) -> 2 | I31: =IF(AND(MIN(Control!$J$29:$J$31)>500,B31="Sin"),2,1) -> 1 | J31: =IF(AND(Control!$J$28="Sí",D31="TSD"),2,1) -> 1 | K31: =IF(AND(Clasificacion!$E$28<0.25,Control!$F$18<0.1,OR(B31="Cemento",B31="Asfalto")),2,IF(AND(Clasificacion!$E$28<0.25,Control!$F$18>=0.1,OR(B31="Cemento",B31="Cal")),2,IF(AND(Clasificacion!$E$28<0.25,Control!$F$18<0.1,B31="Cal"),1,IF(AND(Clasificacion!$E$28<0.25,Control!$F$18>=0.1,B31="Asfalto"),1,IF(AND(Clasificacion!$E$28>=0.25,Control!$F$18<0.1,B31="Cemento"),2,IF(AND(Clasificacion!$E$28>=0.25,Control!$F$18<0.1,OR(B31="Cal",B31="Asfalto")),1,IF(AND(Clasificacion!$E$28>=0.25,AND(Control!$F$18>=0.1,Control!$F$18<=0.3),OR(B31="Cal",B31="Cemento")),2,IF(AND(Clasificacion!$E$28>=0.25,AND(Control!$F$18>=0.1,Control!$F$18<=0.3),B31="Asfalto"),1,IF(AND(Clasificacion!$E$28>=0.25,Control!$F$18>0.3,B31="Cal"),2,IF(AND(Clasificacion!$E$28>=0.25,Control!$F$18>0.3,OR(B31="Cemento",B31="Asfalto")),2,1)))))))))) -> 1 | L31: 3
B32: Sin | C32: Bajo | D32: TSD | E32: ALTERNATIVA 8 | F32: =IF(AND(Control!$J$53<200000,C32="Bajo"),2,IF(AND(Control!$J$53>200000,Control!$J$53<500000,C32="Bajo"),1,IF(AND(Control!$J$53>500000,C32="Bajo"),0,IF(AND(Control!$J$53<200000,C32="Medio"),1,IF(AND(Control!$J$53>200000,Control!$J$53<500000,C32="Medio"),2,IF(AND(Control!$J$53>500000,C32="Medio"),1,IF(AND(Control!$J$53<200000,C32="Alto"),1,IF(AND(Control!$J$53>200000,Control!$J$53<500000,C32="Alto"),1,IF(AND(Control!$J$53>500000,C32="Alto"),2,"Error"))))))))) -> 1 | G32: =IF(AND(Control!$F$17<=0.02,C32="Bajo"),1,IF(AND(Control!$F$17>0.02,Control!$F$17<=0.05,C32="Bajo"),1,IF(AND(Control!$F$17>0.05,C32="Bajo"),2,IF(AND(Control!$F$17<=0.02,C32="Medio"),1,IF(AND(Control!$F$17>0.02,Control!$F$17<=0.05,C32="Medio"),2,IF(AND(Control!$F$17>0.05,C32="Medio"),1,IF(AND(Control!$F$17<=0.02,C32="Alto"),2,IF(AND(Control!$F$17>0.02,Control!$F$17<=0.05,C32="Alto"),1,IF(AND(Control!$F$17>0.05,C32="Alto"),1,"Error"))))))))) -> 1 | H32: =IF(AND(MIN(Control!$J$29:$J$31)=Control!$J$30,B32="Cal"),2,IF(AND(MIN(Control!$J$29:$J$31)=Control!$J$29,B32="Cal"),1,IF(AND(MIN(Control!$J$29:$J$31)=Control!$J$31,B32="Cal"),1,IF(AND(MIN(Control!$J$29:$J$31)=Control!$J$29,B32="Cemento"),1,IF(AND(MIN(Control!$J$29:$J$31)=Control!$J$31,B32="Cemento"),2,IF(AND(MIN(Control!$J$29:$J$31)=Control!$J$30,B32="Cemento"),1,IF(AND(MIN(Control!$J$29:$J$31)=Control!$J$30,B32="Asfalto"),1,IF(AND(MIN(Control!$J$29:$J$31)=Control!$J$31,B32="Asfalto"),1,IF(AND(MIN(Control!$J$29:$J$31)=Control!$J$29,B32="Asfalto"),2,IF(B32="Sin",2,"Error")))))))))) -> 2 | I32: =IF(AND(MIN(Control!$J$29:$J$31)>500,B32="Sin"),2,1) -> 1 | J32: =IF(AND(Control!$J$28="Sí",D32="TSD"),2,1) -> 1 | K32: =IF(AND(Clasificacion!$E$28<0.25,Control!$F$18<0.1,OR(B32="Cemento",B32="Asfalto")),2,IF(AND(Clasificacion!$E$28<0.25,Control!$F$18>=0.1,OR(B32="Cemento",B32="Cal")),2,IF(AND(Clasificacion!$E$28<0.25,Control!$F$18<0.1,B32="Cal"),1,IF(AND(Clasificacion!$E$28<0.25,Control!$F$18>=0.1,B32="Asfalto"),1,IF(AND(Clasificacion!$E$28>=0.25,Control!$F$18<0.1,B32="Cemento"),2,IF(AND(Clasificacion!$E$28>=0.25,Control!$F$18<0.1,OR(B32="Cal",B32="Asfalto")),1,IF(AND(Clasificacion!$E$28>=0.25,AND(Control!$F$18>=0.1,Control!$F$18<=0.3),OR(B32="Cal",B32="Cemento")),2,IF(AND(Clasificacion!$E$28>=0.25,AND(Control!$F$18>=0.1,Control!$F$18<=0.3),B32="Asfalto"),1,IF(AND(Clasificacion!$E$28>=0.25,Control!$F$18>0.3,B32="Cal"),2,IF(AND(Clasificacion!$E$28>=0.25,Control!$F$18>0.3,OR(B32="Cemento",B32="Asfalto")),2,1)))))))))) -> 1 | L32: 3
E36: CALIFICACION | F36: Requerimiento según el tránsito | G36: Requerimiento según el CBR | H36: Material Disponible en la zona | I36: Disponibilidad de materiales petreos en la zona | J36: Disponibilidad de trituración de material | K36: Plasticidad del suelo y pasa tamiz No. 200 | L36: Oportunidades de empleo | M36: PUNTAJE TOTAL
F37: 0.3 | G37: 0.3 | H37: 0.15 | I37: 0.05 | J37: 0.05 | K37: 0.075 | L37: 0.075
E38: ALTERNATIVA 1 | F38: =+F25*10/MAX($F$25:$F$32) -> 10 | G38: =+G25*10/MAX($G$25:$G$32) -> 10 | H38: =+H25*10/MAX($H$25:$H$32) -> 5 | I38: =+I25*10/MAX($I$25:$I$32) -> 10 | J38: =+J25*10/MAX($J$25:$J$32) -> 10 | K38: =+K25*10/MAX($K$25:$K$32) -> 10 | L38: =+L25*10/MAX($L$25:$L$32) -> 10 | M38: =+SUMPRODUCT($F$37:$L$37,F38:L38) -> 9.25 | N38: ALTERNATIVA 1 | O38: Base estabilizada con cemento+Lechada asfáltica | P38: 235638986.2 | Q38: Lechada Asfática | R38: Estabilizada con cemento | S38: SUBBASE GRANULAR CLASE C
E39: ALTERNATIVA 2 | F39: 10 | G39: 10 | H39: 5 | I39: 10 | J39: 10 | K39: 10 | L39: 10 | M39: 9.25 | N39: ALTERNATIVA 2 | O39: Base estabilizada con cemento+Tratamiento superficial doble | P39: 382267043.8 | Q39: Tratamiento Superficial Doble | R39: Estabilizada con cemento | S39: SUBBASE GRANULAR CLASE C
E40: ALTERNATIVA 3 | F40: 10 | G40: 10 | H40: 10 | I40: 10 | J40: 10 | K40: 5 | L40: 10 | M40: 9.625 | N40: ALTERNATIVA 3 | O40: Base estabilizada con emulsión asfáltica+Lechada asfáltica | P40: 372666000 | Q40: Lechada Asfática | R40: Estabilizada con emulsión asfáltica | S40: SUBBASE GRANULAR CLASE C
E41: ALTERNATIVA 4 | F41: 10 | G41: 10 | H41: 10 | I41: 10 | J41: 10 | K41: 5 | L41: 10 | M41: 9.625 | N41: ALTERNATIVA 4 | O41: Base estabilizada con emulsión asfáltica+Tratamiento superficial doble | P41: 545917000 | Q41: Tratamiento Superficial Doble | R41: Estabilizada con emulsión asfáltica | S41: SUBBASE GRANULAR CLASE C
E42: ALTERNATIVA 5 | F42: 10 | G42: 10 | H42: 10 | I42: 10 | J42: 10 | K42: 5 | L42: 10 | M42: 9.625 | N42: ALTERNATIVA 5 | O42: Base estabilizada mecánicamente+Lechada asfáltica | P42: 668000000 | Q42: Lechada Asfática | R42: Estabilizada mecanicamente | S42: SUBBASE GRANULAR CLASE C
E43: ALTERNATIVA 6 | F43: 10 | G43: 10 | H43: 10 | I43: 10 | J43: 10 | K43: 5 | L43: 10 | M43: 9.625 | N43: ALTERNATIVA 6 | O43: Base estabilizada mecánicamente+Tratamiento superficial doble | P43: 294534000 | Q43: Tratamiento Superficial Doble | R43: Estabilizada mecanicamente | S43: SUBBASE GRANULAR CLASE C
E44: ALTERNATIVA 7 | F44: 5 | G44: 5 | H44: 10 | I44: 10 | J44: 10 | K44: 5 | L44: 6 | M44: 6.325 | N44: ALTERNATIVA 7 | O44: Lechada asfáltica | P44: 188511189 | Q44: Lechada Asfática | R44: N/A sólo mejora rodadura | S44: N/A sólo mejora rodadura
E45: ALTERNATIVA 8 | F45: 5 | G45: 5 | H45: 10 | I45: 10 | J45: 10 | K45: 5 | L45: 6 | M45: 6.325 | N45: ALTERNATIVA 8 | O45: Tratamiento superficial doble | P45: 179324000 | Q45: Tratamiento Superficial Doble | R45: N/A sólo mejora rodadura | S45: N/A sólo mejora rodadura
S49: estabilizada con cal
S50: estabilizada con cemento
S51: estabilizada con emulsión asfáltica
E52: ALTERNATIVA 1 | F52: Base estabilizada con cal+Lechada asfáltica | L52: 8.25 | S52: estabilizada mecanicamente
B53: RESUMEN | J53: DATOS ORDENADOS SEGÚN COSTOS
B54: ALTERNATIVA | D54: Puntaje | G54: Posición | I54: Pos | J54: Alternativa | N54: Valor
B55: =+APU!A348 -> Alternativa 1: Base estabilizada con cemento+Lechada asfáltica | D55: =+M38+0.000000000003 -> 9.25 | G55: =_xlfn.RANK.EQ(D55,$D$55:$D$62) -> 5 | I55: 8 | J55: =INDEX($B$55:$B$62,MATCH(I55,$G$55:$G$62,0)) -> Alternativa 8: Subrasante+Tratamiento superficial doble | N55: =SMALL($B$55:$D$62,ROW()-54) -> 6.3252
B56: =+APU!A349 -> Alternativa 2: Base estabilizada con cemento+Tratamiento superficial doble | D56: =+M39 -> 9.25 | G56: 6 | I56: 7 | J56: Alternativa 7: Vía existente+Lechada asfáltica | N56: =SMALL($B$55:$D$62,ROW()-54) -> 6.3253
B57: =+APU!A350 -> Alternativa 3: Base estabilizada con emulsión asfáltica+Lechada asfáltica | D57: =+M40+0.003 -> 9.628 | G57: 1 | I57: 6 | J57: Alternativa 2: Base estabilizada con cemento+Tratamiento superficial doble | N57: 9.25
B58: =+APU!A351 -> Alternativa 4: Base estabilizada con emulsión asfáltica+Tratamiento superficial doble | D58: =+M41+0.0002 -> 9.6252 | G58: 3 | I58: 5 | J58: Alternativa 1: Base estabilizada con cemento+Lechada asfáltica | N58: 9.25
B59: =+APU!A352 -> Alternativa 5: Base estabilizada mecánicamente+Lechada asfáltica | D59: =+M42+0.000003 -> 9.625003 | G59: 4 | I59: 4 | J59: Alternativa 5: Base estabilizada mecánicamente+Lechada asfáltica | N59: 9.625003
B60: =+APU!A353 -> Alternativa 6: Base estabilizada mecánicamente+Tratamiento superficial doble | D60: =+M43+0.003 -> 9.628 | G60: 1 | I60: 3 | J60: Alternativa 4: Base estabilizada con emulsión asfáltica+Tratamiento superficial doble | N60: 9.6252
B61: =+APU!A354 -> Alternativa 7: Vía existente+Lechada asfáltica | D61: =+M44+0.0003 -> 6.3253 | G61: 7 | I61: 2 | N61: 9.628
B62: =+APU!A355 -> Alternativa 8: Subrasante+Tratamiento superficial doble | D62: =+M45+0.0002 -> 6.3252 | G62: 8 | I62: 1 | J62: Alternativa 3: Base estabilizada con emulsión asfáltica+Lechada asfáltica | N62: 9.628

Sheet Clasificacion-suelos (hidden)
C2: SISTEMA DE CLASIFICACIÓN DE SUELOS UNIFICADO "U.S.C.S." | N2: SISTEMA DE CLASIFICACIÓN DE SUELOS AASHTO
B4: DIVISIONES PRINCIPALES | E4: Símbolos del grupo | F4: NOMBRES TÍPICOS | G4: IDENTIFICACIÓN DE LABORATORIO | L4: Clasificación | M4: Materiales granulares (35% o menos pasa por el tamiz Nº 200) | T4: Materiales limoso arcilloso (más del 35% pasa el tamiz Nº 200)
B6: SUELOS DE GRANO GRUESO Más de la mitad del material retenido en el tamiz número 200 | C6: GRAVAS Más de la mitad de la fracción gruesa es retenida por el tamiz número 4 (4,76 mm) | D6: Gravas límpias (sin o con pocos finos) | E6: GW | F6: Gravas, bien graduadas, mezclas grava-arena, pocos finos o sin finos. | G6: Determinar porcentaje de grava y arena en la curva granulométrica. Según el porcentaje de finos (fracción inferior al tamiz número 200). Los suelos de grano grueso se clasifican como sigue: <5%->GW,GP,SW,SP. >12%->GM,GC,SM,SC. 5 al 12%->casos límite que requieren usar doble símbolo. | H6: Cu=D60/D10>4 Cc=(D30)2/D10xD60 entre 1 y 3 | L6: Grupo: | M6: A-1 | O6: A-3 | P6: A-2-4 | T6: A-4 | U6: A-5 | V6: A-6 | W6: A-7 A-7-5 A-7-6
M7: A-1-a | N7: A-1-b | P7: A-2-4 | Q7: A-2-5 | R7: A-2-6 | S7: A-2-7
E9: GP | F9: Gravas mal graduadas, mezclas grava-arena, pocos finos o sin finos. | H9: No cumplen con las especificaciones de granulometría para GW. | L9: Porcentaje que pasa:
L10: Nº 10 (2mm) | M10: 50 máx | N10: - | O10: - | P10: - | T10: -
L11: Nº 40 (0,425mm) | M11: 30 máx | N11: 50 máx | O11: 51 mín | P11: - | T11: -
D12: Gravas con finos (apreciable cantidad de finos) | E12: GM | F12: Gravas limosas, mezclas grava-arena-limo. | H12: Límites de Atterberg debajo de la línea A o IP<4. | I12: Encima de línea A con IP entre 4 y 7 son casos límite que requieren doble símbolo. | L12: Nº 200 (0,075mm) | M12: 15 máx | N12: 25 máx | O12: 10 máx | P12: 35 máx | T12: 36 min
L13: Características de la fracción que pasa por el tamiz Nº 40
E15: GC | F15: Gravas arcillosas, mezclas grava-arena-arcilla. | H15: Límites de Atterberg sobre la línea A con IP>7.
L16: Límite líquido | M16: - | O16: - | P16: 40 máx | Q16: 41 mín | R16: 40 máx | S16: 41 mín | T16: 40 máx | U16: 41 mín | V16: 40 máx | W16: 41 mín (2)
L17: Indice de plasticidad | M17: 6 máx | O17: NP (1) | P17: 10 máx | Q17: 10 máx | R17: 11 mín | S17: 11 mín | T17: 10 máx | U17: 10 máx | V17: 11 mín | W17: 11 mín
C18: ARENAS Más de la mitad de la fracción gruesa pasa por el tamiz número 4 (4,76 mm) | D18: Arenas límpias (pocos o sin finos) | E18: SW | F18: Arenas bien graduadas, arenas con grava, pocos finos o sin finos. | H18: Cu=D60/D10>6 Cc=(D30)2/D10xD60 entre 1 y 3 | L18: Constituyentes principales | M18: Fracmentos de roca, grava y arena | O18: Arena fina | P18: Grava y arena arcillosa o limosa | T18: Suelos limosos | V18: Suelos arcillosos
L20: Características como subgrado | M20: Excelente a bueno | T20: Pobre a malo
E21: SP | F21: Arenas mal graduadas, arenas con grava, pocos finos o sin finos. | H21: Cuando no se cumplen simultáneamente las condiciones para SW.
L22: (1): | M22: No plástico
L23: (2): | M23: El índice de plasticidad del subgrupo A-7-5 es igual o menor al LL menos 30
D24: Arenas con finos (apreciable cantidad de finos) | E24: SM | F24: Arenas limosas, mezclas de arena y limo. | H24: Límites de Atterberg debajo de la línea A o IP<4. | I24: Los límites situados en la zona rayada con IP entre 4 y 7 son casos intermedios que precisan de símbolo doble. | M24: El índice de plasticidad del subgrupo A-7-6 es mayor que LL menos 30
E27: SC | F27: Arenas arcillosas, mezclas arena-arcilla. | H27: Límites de Atterberg sobre la línea A con IP>7.
B30: SUELOS DE GRANO FINO Más de la mitad del material pasa por el tamiz número 200 | C30: Limos y arcillas: Límite líquido menor de 50 | E30: ML | F30: Limos inorgánicos y arenas muy finas, limos límpios, arenas finas, limosas o arcillosa, o limos arcillosos con ligera plásticidad.
E34: CL | F34: Arcillas inorgánicas de plasticidad baja a media, arcillas con grava, arcillas arenosas, arcillas limosas.
E38: OL | F38: Limos orgánicos y arcillas orgánicas limosas de baja plasticidad.
C41: Limos y arcillas: Límite líquido mayor de 50 | E41: MH | F41: Limos inorgánicos, suelos arenosos finos o limosos con mica o diatomeas, limos elásticos.
E45: CH | F45: Arcillas inorgánicas de plasticidad alta.
E47: OH | F47: Arcillas orgánicas de plasticidad media a elevada; limos orgánicos.
B50: Suelos muy orgánicos | E50: PT | F50: Turba y otros suelos de alto contenido orgánico.

Sheet LAtterberg
B2: Hoja de cálculo para procesar datos de ensayo de laboratorio
B5: LÍMITES DE ATTERBERG
C8: Límite Líquido
C10: Cápsula | D10: Peso cápsula (gr) | E10: Golpes | F10: Peso suelo húmedo + cápsula (gr) | G10: Peso suelo seco + cápsula (gr) | H10: Peso Agua (gr) | I10: Peso Suelo Seco (gr) | J10: % de humedad
C11: 300 | D11: 4.53 | E11: 12 | F11: 29.6 | G11: 23.49 | H11: =F11-G11 -> 6.11 | I11: =G11-D11 -> 18.96 | J11: =(H11/I11)*100 -> 32.2257384
C12: 6 | D12: 8.95 | E12: 17 | F12: 37.63 | G12: 28.25 | H12: =F12-G12 -> 9.38 | I12: =G12-D12 -> 19.3 | J12: =(H12/I12)*100 -> 48.60103627
C13: 255 | D13: 8.59 | E13: 15 | F13: 36.35 | G13: 29.87 | H13: =F13-G13 -> 6.48 | I13: =G13-D13 -> 21.28 | J13: =(H13/I13)*100 -> 30.45112782
C28: Liímite Plástico
C30: Cápsula | D30: Peso cápsula (gr) | E30: Peso suelo húmedo + cápsula (gr) | F30: Peso suelo seco+ cápsula (gr) | G30: Peso Agua | H30: Peso Suelo Seco | I30: % de humedad
C31: 126 | D31: 9.28 | E31: 22.1 | F31: 19.83 | G31: =E31-F31 -> 2.27 | H31: =F31-D31 -> 10.55 | I31: =(G31/H31)*100 -> 21.51658768
H42: =AVERAGE(J11:J15) -> 37.09263416
C46: Limite Liquido
D47: Golpes | E47: % de humedad | H47: 25
D48: =E11 -> 12 | E48: =J11 -> 32.2257384
D49: =E12 -> 17 | E49: =J12 -> 48.60103627
D50: =E13 -> 15 | E50: =J13 -> 30.45112782
B57: WL (%)= | C57: =(C72*$C$68+C71)/100 -> 0.6778058776
B58: WP (%)= | C58: =(AVERAGE(I31:I33))/100 -> 0.2151658768 | D58: Índice de Plásticidad | E58: 0.15
E59: =IF(OR(C57=0,C58=0),"Suelo no Plástico",C57-C58) -> 0.4626400009
B68: No. Golpes LL | C68: 25
B70: Parámetros ecuación de ajuste tendencia curva de fluidez
B71: a | C71: =INTERCEPT(E48:E50,D48:D50) -> -6.464461272
B72: b | C72: =SLOPE(E48:E50,D48:D50) -> 2.969801961

Sheet CBR-Insitu
B2: RELACIÓN DE SOPORTE DEL SUELO EN EL TERRENO (CBR "IN SITU")
B3: I.N.V. E – 169 – 13
B5: ANÁLISIS CBR (CBR "IN SITU")
B7: ENSAYO DE PENETRACIÓN
B8: Velocidad aproximada de penetración sea de 1.3 mm (0.05") por minuto.
B9: TIEMPO | C9: PENETRACIÓN | D9: Esfuerzos de Referencia | E9: Esfuerzos obtenidos in situ
B10: seg. | C10: in | D10: Esfuerzo (PSI) | E10: Lectura Esfuerzo (PSI)
B11: 0 | C11: 0 | D11: 0 | E11: 0
B12: 30 | C12: 0.025 | E12: 53
B13: =30+B12 -> 60 | C13: =0.025+C12 -> 0.05 | E13: 64
B14: 90 | C14: 0.075 | E14: 85
B15: 120 | C15: 0.1 | D15: 1000 | E15: 100
B16: 150 | C16: 0.125 | E16: 120
B17: 180 | C17: 0.15 | E17: 143
B18: 210 | C18: 0.175 | E18: 146
B19: 240 | C19: 0.2 | D19: 1500 | E19: 154
B20: 270 | C20: 0.225 | E20: 162
B21: 300 | C21: 0.25 | E21: 179
B22: 330 | C22: 0.275 | E22: 182
B23: 360 | C23: 0.3 | E23: 199
B24: 390 | C24: 0.325 | E24: 201
B25: 420 | C25: 0.35 | E25: 205
B26: 450 | C26: 0.375 | E26: 209
B27: 480 | C27: 0.4 | E27: 211
B28: 510 | C28: 0.425 | E28: 215
B29: 540 | C29: 0.45 | E29: 218
B30: 570 | C30: 0.475 | E30: 220
B31: 600 | C31: 0.5 | E31: 222
I33: Volver a DATOS GEOTÉCNICOS DE LA SUBRASANTE
F37: Resultados
G39: Para 0.1" | K39: Parámetros ecuación de ajuste tendencia curva de fluidez
G40: Valor esfuerzo curva corregida se toman los valores (PSI) | H40: =+$L$41*C15+$L$40 -> 98.13766234 | K40: a | L40: =INTERCEPT(E11:E31,C11:C31) -> 59.18181818
G41: CBR para 0.1" | H41: =+H40/D15 -> 0.09813766234 | K41: b | L41: =SLOPE(E11:E31,C11:C31) -> 389.5584416
G45: Para 0.2"
G46: Valor esfuerzo curva corregida se toman los valores (PSI) | H46: =+$L$41*C19+$L$40 -> 137.0935065
G47: CBR para 0.2" | H47: 0.026 | I47: =+H46/D19 -> 0.091395671

Sheet Clasificacion
E2: ANÁLISIS GRANULOMÉTRICO DE SUELOS POR TAMIZADO
E3: I.N.V. E – 123 – 13 Tamices UNE 103101/95
B4: Tamiz | C4: Pasa | D4: Pasante | E4: Retenido | F4: Retenido | I4: Clasificación AAHSTO
B5: (mm) | C5: (%) | D5: (%) | E5: acumulado (%) | F5: parcial (%) | N5: Sistema unificado de clasificación de suelos (S.U.C.S.) | X5: D60 | Y5: D30 | Z5: D10
B6: 100 | C6: 100 | D6: =IF(C6="",100,C6) -> 100 | E6: =100-D6 -> 0 | F6: =100-D6 -> 0 | I6: 40 | J6: 0 | K6: 40 | L6: =K6-30 -> 10 | X6: =IF(AND(D6=60,D7=60),((B6+B7)/2),IF(AND(D6>=60,D7<=60),FORECAST(60,B6:B7,D6:D7),"")) ->  | Y6: =IF(AND(D6=30,D7=30),((B6+B7)/2),IF(AND(D6>=30,D7<=30),FORECAST(30,B6:B7,D6:D7),"")) ->  | Z6: =IF(AND(D6=10,D7=10),((B6+B7)/2),IF(AND(D6>=10,D7<=10),FORECAST(10,B6:B7,D6:D7),"")) -> 
B7: 80 | C7: 100 | D7: 100 | E7: 0 | F7: =D6-D7 -> 0 | I7: 40 | J7: 70 | K7: 100 | L7: =K7-30 -> 70 | Q7: =IF(D21<50,"Suelo de partículas gruesas.","") -> Suelo de partículas gruesas.
B8: 63 | C8: 100 | D8: 100 | E8: 0 | F8: 0 | Q8: =IF(D21<5," Suelo limpio.","") -> 
B9: 50 | C9: 100 | D9: 100 | E9: 0 | F9: 0 | I9: 0 | J9: 10 | Q9: =IF(AND(D21>12,D21<50)," Suelo de partículas gruesas con finos (suelo sucio).","") -> Suelo de partículas gruesas con finos (suelo sucio).
B10: 40 | C10: 100 | D10: =IF(C10="",100,C10) -> 100 | E10: 0 | F10: 0 | I10: 100 | J10: 10 | Q10: =IF(AND(D21>=5,D21<=12),"( Nomenclatura con símbolo doble).","") -> 
B11: 25 | C11: 100 | D11: 100 | E11: 0 | F11: 0 | N11: =IF(E28<50,"SI","No") -> SI | O11: =IF(E16>E21/2,"SI","No") -> No | P11: =AND(N11="SI",O11="SI") -> FALSE | Q11: =IF(P11=TRUE,"Grava","") ->  | V11: =IF(OR(F6>0,F7>0)," con bloques","") -> 
B12: 20 | C12: 100 | D12: =IF(C12="",100,C12) -> 100 | E12: 0 | F12: 0 | R12: =AND(D21<5,E32>=4,E33>=1,E33<=3) -> FALSE | S12: =AND(Q11="Grava",R12=TRUE) -> FALSE | T12: =IF(S12=TRUE," bien graduada","") ->  | U12: =IF(T12=" bien graduada"," GW","") -> 
B13: 12.5 | C13: 99.8 | D13: 99.8 | E13: 0.2 | F13: 0.2 | R13: =AND(D21<5,OR(E32<4,E33<1,E33>3)) -> FALSE | S13: =AND(Q11="Grava",R13=TRUE) -> FALSE | T13: =IF(S13=TRUE," mal graduada","") ->  | U13: =IF(T13=" mal graduada"," GP","") -> 
B14: 10 | C14: 98.1 | D14: 98.1 | E14: 1.9 | F14: 1.7 | R14: =AND(D21>12,OR(AND(C23<=30,C25>7),AND(C23>30,C25>(0.73*(C23-20))))) -> FALSE | S14: =AND(Q11="Grava",R14=TRUE) -> FALSE | T14: =IF(S14=TRUE," arcillosa","") ->  | U14: =IF(T14=" arcillosa"," GC","") -> 
B15: 6.3 | C15: 98.1 | D15: 98.1 | E15: 1.9 | F15: 0 | R15: =AND(D21>12,OR(C25<4,C25<(0.73*(C23-20)))) -> TRUE | S15: =AND(Q11="Grava",R15=TRUE) -> FALSE | T15: =IF(S15=TRUE," limosa","") ->  | U15: =IF(T15=" limosa"," GM","") -> 
B16: 5 | C16: 97.3 | D16: 97.3 | E16: 2.7 | F16: 0.8 | R16: =AND(D21>12,C25>(0.73*(C23-20)),C25>=4,C25<=7) -> FALSE | S16: =AND(Q11="Grava",R16=TRUE) -> FALSE | T16: =IF(S16=TRUE," arcilloso-limosa","") ->  | U16: =IF(T16=" arcilloso-limosa"," GC-GM","") ->  | X16: 2.76985796
B17: 2 | C17: 47.12382379 | D17: 47.12382379 | E17: 52.87617621 | F17: 50.17617621 | R17: =AND(D21>=5,D21<=12,E32>=4,E33>=1,E33<=3) -> FALSE | S17: =AND(Q11="Grava",R17=TRUE) -> FALSE | T17: =IF(S17=TRUE," bien graduada","") ->  | U17: =IF(T17=" bien graduada"," GW","") -> 
B18: 1.25 | C18: 41.99897797 | D18: 41.99897797 | E18: 58.00102203 | F18: 5.124845815 | R18: =AND(D21>=5,D21<=12,OR(E32<4,E33<1,E33>3)) -> FALSE | S18: =AND(Q11="Grava",R18=TRUE) -> FALSE | T18: =IF(S18=TRUE," mal graduada","") ->  | U18: =IF(T18=" mal graduada"," GP","") -> 
B19: 0.4 | C19: 38.18629075 | D19: 38.18629075 | E19: 61.81370925 | F19: 3.812687225 | R19: =AND(D21>=5,D21<=12,OR(AND(C23<=30,C25>7),AND(C23>30,C25>(0.73*(C23-20))))) -> FALSE | S19: =AND(Q11="Grava",R19=TRUE) -> FALSE | T19: =IF(S19=TRUE," con arcilla","") ->  | U19: =IF(T19=" con arcilla"," GC","") -> 
B20: 0.16 | C20: 33.37834361 | D20: 33.37834361 | E20: 66.62165639 | F20: 4.807947137 | R20: =AND(D21>=5,D21<=12,OR(C25<4,C25<(0.73*(C23-20)))) -> FALSE | S20: =AND(Q11="Grava",R20=TRUE) -> FALSE | T20: =IF(S20=TRUE," con limo","") ->  | U20: =IF(T20=" con limo"," GM","") ->  | Y20: 0.1022407502
B21: 0.08 | C21: 28.69913656 | D21: 28.69913656 | E21: 71.30086344 | F21: 4.679207048 | R21: =AND(D21>=5,D21<=12,C25>(0.73*(C23-20)),C25>=4,C25<=7) -> FALSE | S21: =AND(Q11="Grava",R21=TRUE) -> FALSE | T21: =IF(S21=TRUE," con arcilla y limo","") ->  | U21: =IF(T21=" con arcilla y limo"," GC","") ->  | X21: =AVERAGE(X6:X20) -> 2.76985796 | Y21: =AVERAGE(Y6:Y20) -> 0.1022407502 | Z21: =AVERAGE(Z6:Z20) -> 
S22: =AND(Q11="Grava",(F17+F18+F19+F20+F21)>15) -> FALSE | T22: =IF(S22=TRUE," con arena","") ->  | X22: =ISNUMBER(X21) -> TRUE | Y22: =ISNUMBER(Y21) -> TRUE | Z22: =ISNUMBER(Z21) -> FALSE
B23: Límite líquido LL | C23: =+LAtterberg!C57 -> 0.6778058776 | D23: % | N23: =IF(E28<50,"SI","No") -> SI | O23: =IF(E16<E21/2,"SI","No") -> SI | P23: =AND(N23="SI",O23="SI") -> TRUE | Q23: =IF(P23=TRUE,"Arena","") -> Arena
B24: Límite plastico LP | C24: =+LAtterberg!C58 -> 0.2151658768 | D24: % | R24: =AND(D21<5,E32>=6,E33>=1,E33<=3) -> FALSE | S24: =AND(Q23="Arena",R24=TRUE) -> FALSE | T24: =IF(AND(S24=TRUE,D21<=12,D21<50)," bien graduada","") ->  | U24: =IF(T24=" bien graduada"," SW","") -> 
B25: Índice plasticidad IP | C25: =C23-C24 -> 0.4626400009 | D25: % | R25: =AND(D21<5,OR(E32<6,E33<1,E33>3)) -> FALSE | S25: =AND(Q23="Arena",R25=TRUE) -> FALSE | T25: =IF(AND(S25=TRUE,D21<=12,D21<50)," mal graduada","") ->  | U25: =IF(T25=" mal graduada"," SP","") -> 
I26: =IF(AND(C6="",C7="",C8="",C9="",C10="",C11="",C12="",C13="",C14="",C15="",C16="",C17="",C18="",C19="",C20="",C21=""),"",N65) -> Material granular | R26: =AND(D21>12,OR(AND(C23<=30,C25>7),AND(C23>30,C25>(0.73*(C23-20))))) -> FALSE | S26: =AND(Q23="Arena",R26=TRUE) -> FALSE | T26: =IF(AND(S26=TRUE,D21>12,D21<50)," arcillosa","") ->  | U26: =IF(T26=" arcillosa"," SC","") -> 
B27: Pasa tamiz Nº 4 (5mm): | E27: =D16 -> 97.3 | F27: % | I27: =IF(AND(C6="",C7="",C8="",C9="",C10="",C11="",C12="",C13="",C14="",C15="",C16="",C17="",C18="",C19="",C20="",C21=""),"",N66) -> Excelente a bueno como subgrado | R27: =AND(D21>12,OR(C25<4,C25<(0.73*(C23-20)))) -> TRUE | S27: =AND(Q23="Arena",R27=TRUE) -> TRUE | T27: =IF(AND(S27=TRUE,D21>12,D21<50)," limosa","") -> limosa | U27: =IF(T27=" limosa"," SM","") -> SM
B28: Pasa tamiz Nº 200 (0,080 mm): | E28: =D21 -> 28.69913656 | F28: % | I28: =IF(AND(C6="",C7="",C8="",C9="",C10="",C11="",C12="",C13="",C14="",C15="",C16="",C17="",C18="",C19="",C20="",C21=""),"",P67) -> A-2-4 Grava y arena arcillosa o limosa | R28: =AND(D21>12,C25>(0.73*(C23-20)),C25>=4,C25<=7) -> FALSE | S28: =AND(Q23="Arena",R28=TRUE) -> FALSE | T28: =IF(AND(S28=TRUE,D21>12,D21<50)," arcilloso-limosa","") ->  | U28: =IF(T28=" arcilloso-limosa"," SC-SM","") -> 
B29: D60: | E29: =IF(X22=TRUE,X21,"") -> 2.76985796 | F29: mm | L29: =IF(OR(P55="A-2-6",P56="A-2-7"),IF(C25="","",ROUND(0.01*(D21-15)*(C25-10),0)),IF(C25="","",ROUND((D21-35)*(0.2+0.005*(C23-40))+0.01*(D21-15)*(C25-10),0))) -> -1 | R29: =AND(D21>=5,D21<=12,E32>=4,E33>=1,E33<=3) -> FALSE | S29: =AND(Q23="Arena",R29=TRUE) -> FALSE | T29: =IF(S29=TRUE," bien graduada","") ->  | U29: =IF(T29=" bien graduada"," SW","") ->  | AA29: Clasificación geotécnica | AB29: % que pasa
B30: D30: | E30: =IF(Y22=TRUE,Y21,"") -> 0.1022407502 | F30: mm | I30: Valor del índice de grupo (IG): | L30: =IF(AND(C23=0,C24=0),"",IF(L29<0,0,L29)) -> 0 | R30: =AND(D21>=5,D21<=12,OR(E32<4,E33<1,E33>3)) -> FALSE | S30: =AND(Q23="Arena",R30=TRUE) -> FALSE | T30: =IF(S30=TRUE," mal graduada","") ->  | U30: =IF(T30=" mal graduada"," SP","") ->  | AA30: Finos | AB30: =+D21/100 -> 0.2869913656
B31: D10 (diámetro efectivo): | E31: =IF(Z22=TRUE,Z21,"") ->  | F31: mm | R31: =AND(D21>=5,D21<=12,OR(AND(C23<=30,C25>7),AND(C23>30,C25>(0.73*(C23-20))))) -> FALSE | S31: =AND(Q23="Arena",R31=TRUE) -> FALSE | T31: =IF(S31=TRUE," con arcilla","") ->  | U31: =IF(T31=" con arcilla"," SC","") ->  | AA31: Arena fina | AB31: =+SUM(F20:F21)/100 -> 0.09487154185
B32: Coeficiente de uniformidad (Cu): | E32: =IF(OR(E29="",E30="",E31=""),"",E29/E31) ->  | R32: =AND(D21>=5,D21<=12,OR(C25<4,C25<(0.73*(C23-20)))) -> FALSE | S32: =AND(Q23="Arena",R32=TRUE) -> FALSE | T32: =IF(S32=TRUE," con limo","") ->  | U32: =IF(T32=" con limo"," SM","") ->  | AA32: Arena gruesa | AB32: =+E19/100 -> 0.6181370925
B33: Grado de curvatura (Cc): | E33: =IF(OR(E29="",E30="",E31=""),"",(E30*E30)/(E31*E29)) ->  | R33: =AND(D21>=5,D21<=12,C25>(0.73*(C23-20)),C25>=4,C25<=7) -> FALSE | S33: =AND(Q23="Arena",R33=TRUE) -> FALSE | T33: =IF(S33=TRUE," con arcilla y limo","") ->  | U33: =IF(T33=" con arcilla y limo"," SC","") ->  | AA33: Gravas | AB33: =+E16/100 -> 0.027
S34: =AND(Q23="Arena",(F6+F7+F8+F9+F10+F11+F12+F13+F14+F15+F16)>15) -> FALSE | T34: =IF(S34=TRUE," con grava","") -> 
Q36: =IF(D21>=50,"Suelo de partículas finas.","") -> 
N37: =IF(E28>=50,"SI","No") -> No | R37: =AND(C25>(0.73*(C23-20)),C25>7,C23<30) -> FALSE | S37: =AND(N37="SI",R37=TRUE) -> FALSE | T37: =IF(S37=TRUE,"Arcilla baja plasticidad","") ->  | U37: =IF(T37="Arcilla baja plasticidad"," CL","") ->  | V37: =IF(AND(D21>=50,E21<30,E21>15,(F6+F7+F8+F9+F10+F11+F12+F13+F14+F15+F16)<=(F17+F18+F19+F20+F21))," con arena","") -> 
R38: =AND(C25>(0.73*(C23-20)),C25>4,C23>=50) -> FALSE | S38: =AND(N37="SI",R38=TRUE) -> FALSE | T38: =IF(S38=TRUE,"Arcilla alta plasticidad","") ->  | U38: =IF(T38="Arcilla alta plasticidad"," CH","") ->  | V38: =IF(AND(D21>=50,E21<30,E21>15,(F6+F7+F8+F9+F10+F11+F12+F13+F14+F15+F16)>(F17+F18+F19+F20+F21))," con grava","") -> 
R39: =AND(C25>=(0.73*(C23-20)),C25>=4,C25<=7) -> FALSE | S39: =AND(N37="SI",R39=TRUE) -> FALSE | T39: =IF(S39=TRUE,"Arcilla limosa","") ->  | U39: =IF(T39="Arcilla limosa"," CL-ML","") ->  | V39: =IF(AND(D21>=50,E21>=30,(F6+F7+F8+F9+F10+F11+F12+F13+F14+F15+F16)<=(F17+F18+F19+F20+F21),OR(T37="Arcilla baja plasticidad",T38="Arcilla alta plasticidad",T39="Arcilla limosa",T42="Arcilla media plasticidad"))," arenosa","") -> 
R40: =AND(OR(C25<(0.73*(C23-20)),C25<4),C23<30) -> TRUE | S40: =AND(N37="SI",R40=TRUE) -> FALSE | T40: =IF(S40=TRUE,"Limo baja plasticidad","") ->  | U40: =IF(T40="Limo baja plasticidad"," ML","") ->  | V40: =IF(AND(D21>=50,E21>=30,(F6+F7+F8+F9+F10+F11+F12+F13+F14+F15+F16)>(F17+F18+F19+F20+F21),OR(T37="Arcilla baja plasticidad",T38="Arcilla alta plasticidad",T39="Arcilla limosa",T42="Arcilla media plasticidad"))," gravosa","") -> 
R41: =AND(OR(C25<(0.73*(C23-20)),C25<4),C23>=50) -> FALSE | S41: =AND(N37="SI",R41=TRUE) -> FALSE | T41: =IF(S41=TRUE,"Limo alta plasticidad","") ->  | U41: =IF(T41="Limo alta plasticidad"," MH","") ->  | V41: =IF(AND(D21>=50,E21>=30,(F6+F7+F8+F9+F10+F11+F12+F13+F14+F15+F16)<=(F17+F18+F19+F20+F21),OR(T40="Limo baja plasticidad",T41="Limo alta plasticidad",T43="Limo baja plasticidad"))," arenoso","") -> 
R42: =AND(C25>(0.73*(C23-20)),C25>7,AND(C23>=30,C23<50)) -> FALSE | S42: =AND(N37="SI",R42=TRUE) -> FALSE | T42: =IF(S42=TRUE,"Arcilla media plasticidad","") ->  | U42: =IF(T42="Arcilla media plasticidad"," CL","") ->  | V42: =IF(AND(D21>=50,E21>=30,(F6+F7+F8+F9+F10+F11+F12+F13+F14+F15+F16)>(F17+F18+F19+F20+F21),OR(T40="Limo baja plasticidad",T41="Limo alta plasticidad",T43="Limo baja plasticidad"))," gravoso","") -> 
R43: =AND(OR(C25<(0.73*(C23-20)),C25<4),AND(C23>30,C23<50)) -> FALSE | S43: =AND(N37="SI",R43=TRUE) -> FALSE | T43: =IF(S43=TRUE,"Limo baja plasticidad","") ->  | U43: =IF(T43="Limo baja plasticidad"," ML","") -> 
N44: =CONCATENATE(Q7,Q8,Q9,Q10,Q36) -> Suelo de partículas gruesas. Suelo de partículas gruesas con finos (suelo sucio).
N45: =CONCATENATE(Q11,Q23) -> Arena | O45: =CONCATENATE(T12,T13,T14,T15,T16,T17,T18,T19,T20,T21,T22,T24,T25,T26,T27,T28,T29,T30,T31,T32,T33,T34,T37,T38,T39,T40,T41,T42,T43) -> limosa | P45: =CONCATENATE(V37,V38,V39,V40,V41,V42,V11) ->  | Q45: =CONCATENATE(U12,U13,U14,U15,U16,U17,U18,U19,U20,U21,U24,U25,U26,U27,U28,U29,U30,U31,U32,U33,U37,U38,U39,U40,U41,U42,U43) -> SM | R45: =CONCATENATE(N45,O45,P45,Q45) -> Arena limosa SM
N47: Clasificación AAHSTO
N48: =IF(ROUND(D21,0)<=35,"Material granular","") -> Material granular
N49: =IF(N48="Material granular","Excelente a bueno como subgrado","") -> Excelente a bueno como subgrado
P50: =IF(AND(ROUND(D21,0)<=35,ROUND(D17,0)<=50,ROUND(D19,0)<=30,ROUND(D21,0)<=15,ROUND(C25,0)<=6),"A-1-a","") ->  | Q50: =IF(P50="A-1-a"," Fragmentos de roca, grava y arena","") -> 
P51: =IF(AND(ROUND(D21,0)<=35,ROUND(D19,0)<=50,ROUND(D21,0)<=25,ROUND(C25,0)<=6,P50=""),"A-1-b","") ->  | Q51: =IF(P51="A-1-b"," Fragmentos de roca, grava y arena","") -> 
P52: =IF(AND(ROUND(D21,0)<=35,ROUND(D19,0)>=51,ROUND(D21,0)<=10,OR(ROUND(C25,0)=0,ROUND(C25,0)=""),P50="",P51=""),"A-3","") ->  | Q52: =IF(P52="A-3"," Arena fina","") -> 
P53: =IF(AND(ROUND(D21,0)<=35,ROUND(C23,0)<=40,ROUND(C25,0)<=10,P50="",P51="",P52=""),"A-2-4","") -> A-2-4 | Q53: =IF(P53="A-2-4"," Grava y arena arcillosa o limosa","") -> Grava y arena arcillosa o limosa
P54: =IF(AND(ROUND(D21,0)<=35,ROUND(C23,0)>=41,ROUND(C25,0)<=10,P50="",P51="",P52="",P53=""),"A-2-5","") ->  | Q54: =IF(P54="A-2-5"," Grava y arena arcillosa o limosa","") -> 
P55: =IF(AND(ROUND(D21,0)<=35,ROUND(C23,0)<=40,ROUND(C25,0)>=11,P50="",P51="",P52="",P53="",P54=""),"A-2-6","") ->  | Q55: =IF(P55="A-2-6"," Grava y arena arcillosa o limosa","") -> 
P56: =IF(AND(ROUND(D21,0)<=35,ROUND(C23,0)>=41,ROUND(C25,0)>=11,P50="",P51="",P52="",P53="",P54="",P55=""),"A-2-7","") ->  | Q56: =IF(P56="A-2-7"," Grava y arena arcillosa o limosa","") -> 
N57: =IF(ROUND(D21,0)>35,"Material limoso-arenoso","") -> 
N58: =IF(N57="Material limoso-arenoso","Pobre a malo como subgrado","") -> 
B59: =0.9*(D59-8) -> -7.2 | D59: 0 | P59: =IF(AND(ROUND(D21,0)>=36,ROUND(C23,0)<=40,ROUND(C25,0)<=10),"A-4","") ->  | Q59: =IF(P59="A-4"," Suelo limoso","") -> 
B60: =0.9*(D60-8) -> 15.732 | D60: 25.48 | E60: =IF(0.73*(D60-20)<0,0,0.73*(D60-20)) -> 4.0004 | P60: =IF(AND(ROUND(D21,0)>=36,ROUND(C23,0)>=41,ROUND(C25,0)<=10,P59=""),"A-5","") ->  | Q60: =IF(P60="A-5"," Suelo limoso","") -> 
B61: =0.9*(D61-8) -> 82.8 | D61: 100 | E61: =IF(0.73*(D61-20)<0,0,0.73*(D61-20)) -> 58.4 | P61: =IF(AND(ROUND(D21,0)>=36,ROUND(C23,0)<=40,ROUND(C25,0)>=11,P59="",P60=""),"A-6","") ->  | Q61: =IF(P61="A-6"," Suelo arcilloso","") -> 
P62: =IF(AND(ROUND(D21,0)>=36,ROUND(C23,0)>=41,ROUND(C25,0)>=11,ROUND(C25,0)<=(ROUND(C23,0)-30),P59="",P60="",P61=""),"A-7-5","") ->  | Q62: =IF(P62="A-7-5"," Suelo arcilloso","") -> 
B63: 50 | D63: 0 | E63: 4 | F63: 10 | P63: =IF(AND(ROUND(D21,0)>=36,ROUND(C23,0)>=41,ROUND(C25,0)>=11,ROUND(C25,0)>(ROUND(C23,0)-30),P59="",P60="",P61="",P62=""),"A-7-6","") ->  | Q63: =IF(P63="A-7-6"," Suelo arcilloso","") -> 
B64: 50 | D64: 60 | E64: 4 | F64: 25 | P64: =IF(AND(ROUND(D21,0)>=36,ROUND(C23,0)>=41,ROUND(C25,0)>=11,P59="",P60="",P61="",P62="",P63=""),"A-7","") ->  | Q64: =IF(P64="A-7"," Suelo arcilloso","") -> 
N65: =CONCATENATE(N48,N57) -> Material granular
B66: 30 | D66: 8 | E66: 20 | F66: =IF(#REF!<0,0,#REF!) ->  | N66: =CONCATENATE(N49,N58) -> Excelente a bueno como subgrado
B67: 30 | D67: 20 | E67: 25.48 | F67: 4 | N67: =CONCATENATE(P50,P51,P52,P53,P54,P55,P56,P57,P58,P59,P60,P61,P62,P63,P64) -> A-2-4 | O67: =CONCATENATE(Q50,Q51,Q52,Q53,Q54,Q55,Q56,Q57,Q58,Q59,Q60,Q61,Q62,Q63,Q64) -> Grava y arena arcillosa o limosa | P67: =CONCATENATE(N67,O67) -> A-2-4 Grava y arena arcillosa o limosa
B69: 7 | D69: 10
B70: 7 | D70: 30
B74: Sistema unificado de clasificación de suelos (S.U.C.S.)
B75: =IF(AND(C6="",C7="",C8="",C9="",C10="",C11="",C12="",C13="",C14="",C15="",C16="",C17="",C18="",C19="",C20="",C21=""),"",N44) -> Suelo de partículas gruesas. Suelo de partículas gruesas con finos (suelo sucio).
B76: =IF(AND(C6="",C7="",C8="",C9="",C10="",C11="",C12="",C13="",C14="",C15="",C16="",C17="",C18="",C19="",C20="",C21=""),"",R45) -> Arena limosa SM

Sheet Nomogramas
B2: ESTABILIZACIÓN DE LA SUBRASANTE CON CAL CONDICIONES GENERALES | J2: ESTABILIZACIÓN DE SUELOS DE SUBRASANTE CON CEMENTO ARTÍCULO 235 – 13
B3: Capítulo 2 – EXPLANACIONES Art. 236 | J3: ARTÍCULO 235 – 13
Q23: Espesores recomendados de mejoramiento de subrasante para alcanzar CBR de plataforma mínimo de 4%
Q24: CBR de subrasante (%) | R24: Espesor de mejoramiento (cm)
Q25: 2e-06 | R25: 45
Q26: 1 | R26: 30
Q27: 2 | R27: 10
Q28: 2.9 | R28: 5
Q29: 3 | R29: 0
V39: a | W39: =INTERCEPT(R25:R29,Q25:Q29) -> 43.9357684
V40: b | W40: =SLOPE(R25:R29,Q25:Q29) -> -14.57065313
R47: =+-12*(3)+62 -> 26
R97: Número de ejes equivalentes de 8,2 t que circulan en el carril y periodo de diseño x 106
R98: INVIAS (2007) | U98: IDU (2011)
R99: NT1 | S99: NT2 | T99: NT3 | U99: T0 | V99: T1 | W99: T2 | X99: T3 | Y99: T4 | Z99: T5
R100: <0,5 | S100: 0,5-5 | T100: >5 | U100: <0,5 | V100: 0,2-0,5 | W100: 0,5-1,5 | X100: 1,5-3 | Y100: 3-7,5 | Z100: >7,5
AD103: Nivel de Transito | AE103: N de ejes equivalentes de 8,2 t
AD104: T0 | AE104: >200.000
AD105: T1 | AE105: Entre 200.001 y 500.000
K107: Categoría | L107: CBR% | M107: Compartamiento como subrasante
K108: S1 | L108: CBR<=3 | M108: Malo
K109: S2 | L109: 3<CBR<=5 | M109: Regular
K110: S3 | L110: 5<CBR<=10 | M110: Bueno
K111: S4 | L111: CBR>10 | M111: Muy Bueno
A114: Nú
K115: Ancho de la calzada Tránsito de diseño k2
K116: Menos de 5 m | L116: Total en los dos sentidos | M116: 1
K117: Igual o mayor de 5 m y menor de 6 m | L117: 3/4 del total en los dos sentidos | M117: 0.75
K118: Igual o mayor de 6 m | L118: 1/2 del total en los dos sentidos | M118: 0.5
K121: Categoría de clima | L121: Temperatura media diaria del aire histórica, de los siete (7) días consecutivos más calientes del año
K122: Frío | L122: T7dias<=20ºC
K123: Templado | L123: 20ºC<T7días<=30
K124: Cálido | L124: T7días > 30ºC

Sheet ViasTerc (hidden)
A1: TIPO APOYO | B1: RODADURA | C1: TRAFICO | D1: CBR | E1: CONCATENADO | F1: ESPESOR | G1: ESPESOR | H1: SELECCIONADO | J1: Corridas programa PAV-01 del INVIAS
A2: BG | B2: DR | C2: <25 | D2: 2 | E2: =CONCATENATE(A2,B2,C2,D2) -> BGDR<252 | F2: 42.48010535 | G2: 42.48010535 | H2: TRÁNSITO | I2: CBR
A3: BG | B3: DR | C3: 25A50 | D3: 2 | E3: =CONCATENATE(A3,B3,C3,D3) -> BGDR25A502 | F3: 47.04286686 | G3: 47.04286686 | H3: ='Eval-Economica'!$L$18 -> 256590.0468 | I3: =Hoja2!P4 -> 4
A4: BG | B4: DR | C4: 50A100 | D4: 2 | E4: BGDR50A1002 | F4: 51.60562838 | G4: 51.60562838 | H4: =IF(H3<=25000,"<25",IF(AND(H3>25000,H3<=50000),"25A50",IF(AND(H3>50000,H3<=100000),"50A100",IF(AND(H3>100000,H3<=200000),"100A200","200A400")))) -> 200A400 | I4: =IF(I3=1,2,IF(I3=2,4,IF(I3=3,6,8))) -> 8
A5: BG | B5: DR | C5: 100A200 | D5: 2 | E5: BGDR100A2002 | F5: 56.16838989 | G5: 56.16838989
A6: BG | B6: DR | C6: 200A400 | D6: 2 | E6: BGDR200A4002 | F6: 60.73115141 | G6: 60.73115141 | H6: ALTERNATIVAS
A7: BG | B7: DR | C7: <25 | D7: 4 | E7: BGDR<254 | F7: 31.951758 | G7: 31.951758 | H7: APOYO | I7: RODADURA | J7: TRÁNSITO | K7: CBR | L7: CONCATENADO | M7: e [cm]
A8: BG | B8: DR | C8: 25A50 | D8: 4 | E8: BGDR25A504 | F8: 35.4096846 | G8: 35.4096846 | H8: BG | I8: DR | J8: =$H$4 -> 200A400 | K8: =$I$4 -> 8 | L8: =CONCATENATE(H8,I8,J8,K8) -> BGDR200A4008 | M8: =VLOOKUP(L8,$E$2:$F$241,2,FALSE) -> 34.45523604
A9: BG | B9: DR | C9: 50A100 | D9: 4 | E9: BGDR50A1004 | F9: 38.86761121 | G9: 38.86761121 | H9: BG | I9: CA5 | J9: =$H$4 -> 200A400 | K9: 8 | L9: =CONCATENATE(H9,I9,J9,K9) -> BGCA5200A4008 | M9: =VLOOKUP(L9,$E$2:$F$241,2,FALSE) -> 25.45523604
A10: BG | B10: DR | C10: 100A200 | D10: 4 | E10: BGDR100A2004 | F10: 42.32553782 | G10: 42.32553782 | H10: BG | I10: CA7.5 | J10: 200A400 | K10: 8 | L10: BGCA7.5200A4008 | M10: 20.45523604
A11: BG | B11: DR | C11: 200A400 | D11: 4 | E11: BGDR200A4004 | F11: 45.78346443 | G11: 45.78346443 | H11: BG | I11: LC38 | J11: 200A400 | K11: 8 | L11: BGLC38200A4008 | M11: =VLOOKUP(L11,$E$2:$F$241,2,FALSE) -> 14.97276275
A12: BG | B12: DR | C12: <25 | D12: 6 | E12: BGDR<256 | F12: 27.01831966 | G12: 27.01831966 | H12: BG | I12: AD | J12: 200A400 | K12: 8 | L12: BGAD200A4008 | M12: 14.97276275
A13: BG | B13: DR | C13: 25A50 | D13: 6 | E13: BGDR25A506 | F13: 29.95853587 | G13: 29.95853587 | H13: SC | I13: DR | J13: 200A400 | K13: 8 | L13: SCDR200A4008 | M13: 22.39590342
A14: BG | B14: DR | C14: 50A100 | D14: 6 | E14: BGDR50A1006 | F14: 32.89875208 | G14: 32.89875208 | H14: SC | I14: CA5 | J14: 200A400 | K14: 8 | L14: SCCA5200A4008 | M14: 16.54590342
A15: BG | B15: DR | C15: 100A200 | D15: 6 | E15: BGDR100A2006 | F15: 35.83896829 | G15: 35.83896829 | H15: SC | I15: CA7.5 | J15: 200A400 | K15: 8 | L15: SCCA7.5200A4008 | M15: 14.97276275
A16: BG | B16: DR | C16: 200A400 | D16: 6 | E16: BGDR200A4006 | F16: 38.77918451 | G16: 38.77918451 | H16: SC | I16: LC38 | J16: 200A400 | K16: 8 | L16: SCLC38200A4008 | M16: 14.97276275
A17: BG | B17: DR | C17: <25 | D17: 8 | E17: BGDR<258 | F17: 23.97276275 | G17: 23.97276275 | H17: SC | I17: AD | J17: 200A400 | K17: 8 | L17: SCAD200A4008 | M17: 14.97276275
A18: BG | B18: DR | C18: 25A50 | D18: 8 | E18: BGDR25A508 | F18: 26.59338107 | G18: 26.59338107
A19: BG | B19: DR | C19: 50A100 | D19: 8 | E19: BGDR50A1008 | F19: 29.21399939 | G19: 29.21399939
A20: BG | B20: DR | C20: 100A200 | D20: 8 | E20: BGDR100A2008 | F20: 31.83461771 | G20: 31.83461771
A21: BG | B21: DR | C21: 200A400 | D21: 8 | E21: BGDR200A4008 | F21: 34.45523604 | G21: 34.45523604
A22: BG | B22: CA5 | C22: <25 | D22: 2 | E22: BGCA5<252 | F22: 33.48010535 | G22: 33.48010535
A23: BG | B23: CA5 | C23: 25A50 | D23: 2 | E23: BGCA525A502 | F23: 38.04286686 | G23: 38.04286686
A24: BG | B24: CA5 | C24: 50A100 | D24: 2 | E24: BGCA550A1002 | F24: 42.60562838 | G24: 42.60562838
A25: BG | B25: CA5 | C25: 100A200 | D25: 2 | E25: BGCA5100A2002 | F25: 47.16838989 | G25: 47.16838989
A26: BG | B26: CA5 | C26: 200A400 | D26: 2 | E26: BGCA5200A4002 | F26: 51.73115141 | G26: 51.73115141
A27: BG | B27: CA5 | C27: <25 | D27: 4 | E27: BGCA5<254 | F27: 22.951758 | G27: 22.951758
A28: BG | B28: CA5 | C28: 25A50 | D28: 4 | E28: BGCA525A504 | F28: 26.4096846 | G28: 26.4096846
A29: BG | B29: CA5 | C29: 50A100 | D29: 4 | E29: BGCA550A1004 | F29: 29.86761121 | G29: 29.86761121
A30: BG | B30: CA5 | C30: 100A200 | D30: 4 | E30: BGCA5100A2004 | F30: 33.32553782 | G30: 33.32553782
A31: BG | B31: CA5 | C31: 200A400 | D31: 4 | E31: BGCA5200A4004 | F31: 36.78346443 | G31: 36.78346443
A32: BG | B32: CA5 | C32: <25 | D32: 6 | E32: BGCA5<256 | F32: 18.01831966 | G32: 18.01831966
A33: BG | B33: CA5 | C33: 25A50 | D33: 6 | E33: BGCA525A506 | F33: 20.95853587 | G33: 20.95853587
A34: BG | B34: CA5 | C34: 50A100 | D34: 6 | E34: BGCA550A1006 | F34: 23.89875208 | G34: 23.89875208
A35: BG | B35: CA5 | C35: 100A200 | D35: 6 | E35: BGCA5100A2006 | F35: 26.83896829 | G35: 26.83896829
A36: BG | B36: CA5 | C36: 200A400 | D36: 6 | E36: BGCA5200A4006 | F36: 29.77918451 | G36: 29.77918451
A37: BG | B37: CA5 | C37: <25 | D37: 8 | E37: BGCA5<258 | F37: 14.97276275 | G37: 14.97276275
A38: BG | B38: CA5 | C38: 25A50 | D38: 8 | E38: BGCA525A508 | F38: 17.59338107 | G38: 17.59338107
A39: BG | B39: CA5 | C39: 50A100 | D39: 8 | E39: BGCA550A1008 | F39: 20.21399939 | G39: 20.21399939
A40: BG | B40: CA5 | C40: 100A200 | D40: 8 | E40: BGCA5100A2008 | F40: 22.83461771 | G40: 22.83461771
A41: BG | B41: CA5 | C41: 200A400 | D41: 8 | E41: BGCA5200A4008 | F41: 25.45523604 | G41: 25.45523604
A42: BG | B42: CA7.5 | C42: <25 | D42: 2 | E42: BGCA7.5<252 | F42: 28.48010535 | G42: 28.48010535
A43: BG | B43: CA7.5 | C43: 25A50 | D43: 2 | E43: BGCA7.525A502 | F43: 33.04286686 | G43: 33.04286686
A44: BG | B44: CA7.5 | C44: 50A100 | D44: 2 | E44: BGCA7.550A1002 | F44: 37.60562838 | G44: 37.60562838
A45: BG | B45: CA7.5 | C45: 100A200 | D45: 2 | E45: BGCA7.5100A2002 | F45: 42.16838989 | G45: 42.16838989
A46: BG | B46: CA7.5 | C46: 200A400 | D46: 2 | E46: BGCA7.5200A4002 | F46: 46.73115141 | G46: 46.73115141
A47: BG | B47: CA7.5 | C47: <25 | D47: 4 | E47: BGCA7.5<254 | F47: 17.951758 | G47: 17.951758
A48: BG | B48: CA7.5 | C48: 25A50 | D48: 4 | E48: BGCA7.525A504 | F48: 21.4096846 | G48: 21.4096846
A49: BG | B49: CA7.5 | C49: 50A100 | D49: 4 | E49: BGCA7.550A1004 | F49: 24.86761121 | G49: 24.86761121
A50: BG | B50: CA7.5 | C50: 100A200 | D50: 4 | E50: BGCA7.5100A2004 | F50: 28.32553782 | G50: 28.32553782
A51: BG | B51: CA7.5 | C51: 200A400 | D51: 4 | E51: BGCA7.5200A4004 | F51: 31.78346443 | G51: 31.78346443
A52: BG | B52: CA7.5 | C52: <25 | D52: 6 | E52: BGCA7.5<256 | F52: 14.97276275 | G52: 13.01831966
A53: BG | B53: CA7.5 | C53: 25A50 | D53: 6 | E53: BGCA7.525A506 | F53: 15.95853587 | G53: 15.95853587
A54: BG | B54: CA7.5 | C54: 50A100 | D54: 6 | E54: BGCA7.550A1006 | F54: 18.89875208 | G54: 18.89875208
A55: BG | B55: CA7.5 | C55: 100A200 | D55: 6 | E55: BGCA7.5100A2006 | F55: 21.83896829 | G55: 21.83896829
A56: BG | B56: CA7.5 | C56: 200A400 | D56: 6 | E56: BGCA7.5200A4006 | F56: 24.77918451 | G56: 24.77918451
A57: BG | B57: CA7.5 | C57: <25 | D57: 8 | E57: BGCA7.5<258 | F57: 14.97276275 | G57: 9.972762746
A58: BG | B58: CA7.5 | C58: 25A50 | D58: 8 | E58: BGCA7.525A508 | F58: 14.97276275 | G58: 12.59338107
A59: BG | B59: CA7.5 | C59: 50A100 | D59: 8 | E59: BGCA7.550A1008 | F59: 15.21399939 | G59: 15.21399939
A60: BG | B60: CA7.5 | C60: 100A200 | D60: 8 | E60: BGCA7.5100A2008 | F60: 17.83461771 | G60: 17.83461771
A61: BG | B61: CA7.5 | C61: 200A400 | D61: 8 | E61: BGCA7.5200A4008 | F61: 20.45523604 | G61: 20.45523604
A62: SC | B62: DR | C62: <25 | D62: 2 | E62: SCDR<252 | F62: 27.61206848 | G62: 27.61206848
A63: SC | B63: DR | C63: 25A50 | D63: 2 | E63: SCDR25A502 | F63: 30.57786346 | G63: 30.57786346
A64: SC | B64: DR | C64: 50A100 | D64: 2 | E64: SCDR50A1002 | F64: 33.54365845 | G64: 33.54365845
A65: SC | B65: DR | C65: 100A200 | D65: 2 | E65: SCDR100A2002 | F65: 36.50945343 | G65: 36.50945343
A66: SC | B66: DR | C66: 200A400 | D66: 2 | E66: SCDR200A4002 | F66: 39.47524842 | G66: 39.47524842
A67: SC | B67: DR | C67: <25 | D67: 4 | E67: =CONCATENATE(A67,B67,C67,D67) -> SCDR<254 | F67: 20.7686427 | G67: 20.7686427
A68: SC | B68: DR | C68: 25A50 | D68: 4 | E68: SCDR25A504 | F68: 23.01629499 | G68: 23.01629499
A69: SC | B69: DR | C69: 50A100 | D69: 4 | E69: SCDR50A1004 | F69: 25.26394729 | G69: 25.26394729
A70: SC | B70: DR | C70: 100A200 | D70: 4 | E70: SCDR100A2004 | F70: 27.51159958 | G70: 27.51159958
A71: SC | B71: DR | C71: 200A400 | D71: 4 | E71: SCDR200A4004 | F71: 29.75925188 | G71: 29.75925188
A72: SC | B72: DR | C72: <25 | D72: 6 | E72: SCDR<256 | F72: 17.56190778 | G72: 17.56190778
A73: SC | B73: DR | C73: 25A50 | D73: 6 | E73: SCDR25A506 | F73: 19.47304832 | G73: 19.47304832
A74: SC | B74: DR | C74: 50A100 | D74: 6 | E74: SCDR50A1006 | F74: 21.38418885 | G74: 21.38418885
A75: SC | B75: DR | C75: 100A200 | D75: 6 | E75: SCDR100A2006 | F75: 23.29532939 | G75: 23.29532939
A76: SC | B76: DR | C76: 200A400 | D76: 6 | E76: SCDR200A4006 | F76: 25.20646993 | G76: 25.20646993
A77: SC | B77: DR | C77: <25 | D77: 8 | E77: SCDR<258 | F77: 15.58229578 | G77: 15.58229578
A78: SC | B78: DR | C78: 25A50 | D78: 8 | E78: SCDR25A508 | F78: 17.28569769 | G78: 17.28569769
A79: SC | B79: DR | C79: 50A100 | D79: 8 | E79: SCDR50A1008 | F79: 18.9890996 | G79: 18.9890996
A80: SC | B80: DR | C80: 100A200 | D80: 8 | E80: SCDR100A2008 | F80: 20.69250151 | G80: 20.69250151
A81: SC | B81: DR | C81: 200A400 | D81: 8 | E81: SCDR200A4008 | F81: 22.39590342 | G81: 22.39590342
A82: SC | B82: CA5 | C82: <25 | D82: 2 | E82: SCCA5<252 | F82: 21.76206848 | G82: 21.76206848
A83: SC | B83: CA5 | C83: 25A50 | D83: 2 | E83: SCCA525A502 | F83: 24.72786346 | G83: 24.72786346
A84: SC | B84: CA5 | C84: 50A100 | D84: 2 | E84: SCCA550A1002 | F84: 27.69365845 | G84: 27.69365845
A85: SC | B85: CA5 | C85: 100A200 | D85: 2 | E85: SCCA5100A2002 | F85: 30.65945343 | G85: 30.65945343
A86: SC | B86: CA5 | C86: 200A400 | D86: 2 | E86: SCCA5200A4002 | F86: 33.62524842 | G86: 33.62524842
A87: SC | B87: CA5 | C87: <25 | D87: 4 | E87: SCCA5<254 | F87: 14.97276275 | G87: 14.9186427
A88: SC | B88: CA5 | C88: 25A50 | D88: 4 | E88: SCCA525A504 | F88: 17.16629499 | G88: 17.16629499
A89: SC | B89: CA5 | C89: 50A100 | D89: 4 | E89: SCCA550A1004 | F89: 19.41394729 | G89: 19.41394729
A90: SC | B90: CA5 | C90: 100A200 | D90: 4 | E90: SCCA5100A2004 | F90: 21.66159958 | G90: 21.66159958
A91: SC | B91: CA5 | C91: 200A400 | D91: 4 | E91: SCCA5200A4004 | F91: 23.90925188 | G91: 23.90925188
A92: SC | B92: CA5 | C92: <25 | D92: 6 | E92: SCCA5<256 | F92: 14.97276275 | G92: 11.71190778
A93: SC | B93: CA5 | C93: 25A50 | D93: 6 | E93: SCCA525A506 | F93: 14.97276275 | G93: 13.62304832
A94: SC | B94: CA5 | C94: 50A100 | D94: 6 | E94: SCCA550A1006 | F94: 15.53418885 | G94: 15.53418885
A95: SC | B95: CA5 | C95: 100A200 | D95: 6 | E95: SCCA5100A2006 | F95: 17.44532939 | G95: 17.44532939
A96: SC | B96: CA5 | C96: 200A400 | D96: 6 | E96: SCCA5200A4006 | F96: 19.35646993 | G96: 19.35646993
A97: SC | B97: CA5 | C97: <25 | D97: 8 | E97: SCCA5<258 | F97: 14.97276275 | G97: 9.732295785
A98: SC | B98: CA5 | C98: 25A50 | D98: 8 | E98: SCCA525A508 | F98: 14.97276275 | G98: 11.43569769
A99: SC | B99: CA5 | C99: 50A100 | D99: 8 | E99: SCCA550A1008 | F99: 14.97276275 | G99: 13.1390996
A100: SC | B100: CA5 | C100: 100A200 | D100: 8 | E100: SCCA5100A2008 | F100: 14.97276275 | G100: 14.84250151
A101: SC | B101: CA5 | C101: 200A400 | D101: 8 | E101: SCCA5200A4008 | F101: 16.54590342 | G101: 16.54590342
A102: SC | B102: CA7.5 | C102: <25 | D102: 2 | E102: SCCA7.5<252 | F102: 18.51206848 | G102: 18.51206848
A103: SC | B103: CA7.5 | C103: 25A50 | D103: 2 | E103: SCCA7.525A502 | F103: 21.47786346 | G103: 21.47786346
A104: SC | B104: CA7.5 | C104: 50A100 | D104: 2 | E104: SCCA7.550A1002 | F104: 24.44365845 | G104: 24.44365845
A105: SC | B105: CA7.5 | C105: 100A200 | D105: 2 | E105: SCCA7.5100A2002 | F105: 27.40945343 | G105: 27.40945343
A106: SC | B106: CA7.5 | C106: 200A400 | D106: 2 | E106: SCCA7.5200A4002 | F106: 30.37524842 | G106: 30.37524842
A107: SC | B107: CA7.5 | C107: <25 | D107: 4 | E107: SCCA7.5<254 | F107: 14.97276275 | G107: 11.6686427
A108: SC | B108: CA7.5 | C108: 25A50 | D108: 4 | E108: SCCA7.525A504 | F108: 14.97276275 | G108: 13.91629499
A109: SC | B109: CA7.5 | C109: 50A100 | D109: 4 | E109: SCCA7.550A1004 | F109: 16.16394729 | G109: 16.16394729
A110: SC | B110: CA7.5 | C110: 100A200 | D110: 4 | E110: SCCA7.5100A2004 | F110: 18.41159958 | G110: 18.41159958
A111: SC | B111: CA7.5 | C111: 200A400 | D111: 4 | E111: SCCA7.5200A4004 | F111: 20.65925188 | G111: 20.65925188
A112: SC | B112: CA7.5 | C112: <25 | D112: 6 | E112: SCCA7.5<256 | F112: 14.97276275 | G112: 8.461907778
A113: SC | B113: CA7.5 | C113: 25A50 | D113: 6 | E113: SCCA7.525A506 | F113: 14.97276275 | G113: 10.37304832
A114: SC | B114: CA7.5 | C114: 50A100 | D114: 6 | E114: SCCA7.550A1006 | F114: 14.97276275 | G114: 12.28418885
A115: SC | B115: CA7.5 | C115: 100A200 | D115: 6 | E115: SCCA7.5100A2006 | F115: 14.97276275 | G115: 14.19532939
A116: SC | B116: CA7.5 | C116: 200A400 | D116: 6 | E116: SCCA7.5200A4006 | F116: 16.10646993 | G116: 16.10646993
A117: SC | B117: CA7.5 | C117: <25 | D117: 8 | E117: SCCA7.5<258 | F117: 14.97276275 | G117: 6.482295785
A118: SC | B118: CA7.5 | C118: 25A50 | D118: 8 | E118: SCCA7.525A508 | F118: 14.97276275 | G118: 8.185697695
A119: SC | B119: CA7.5 | C119: 50A100 | D119: 8 | E119: SCCA7.550A1008 | F119: 14.97276275 | G119: 9.889099604
A120: SC | B120: CA7.5 | C120: 100A200 | D120: 8 | E120: SCCA7.5100A2008 | F120: 14.97276275 | G120: 11.59250151
A121: SC | B121: CA7.5 | C121: 200A400 | D121: 8 | E121: SCCA7.5200A4008 | F121: 14.97276275 | G121: 13.29590342
A122: BG | B122: LC38 | C122: <25 | D122: 2 | E122: BGLC38<252 | F122: 14.97276275 | G122: 8.958515194
A123: BG | B123: LC38 | C123: 25A50 | D123: 2 | E123: BGLC3825A502 | F123: 14.97276275 | G123: 10.05732614
A124: BG | B124: LC38 | C124: 50A100 | D124: 2 | E124: BGLC3850A1002 | F124: 14.97276275 | G124: 11.27737861
A125: BG | B125: LC38 | C125: 100A200 | D125: 2 | E125: BGLC38100A2002 | F125: 14.97276275 | G125: 12.63205025
A126: BG | B126: LC38 | C126: 200A400 | D126: 2 | E126: BGLC38200A4002 | F126: 14.97276275 | G126: 14.13619478
A127: BG | B127: LC38 | C127: <25 | D127: 4 | E127: BGLC38<254 | F127: 14.97276275 | G127: 8.744637547
A128: BG | B128: LC38 | C128: 25A50 | D128: 4 | E128: BGLC3825A504 | F128: 14.97276275 | G128: 9.819849488
A129: BG | B129: LC38 | C129: 50A100 | D129: 4 | E129: BGLC3850A1004 | F129: 14.97276275 | G129: 1.985007442
A130: BG | B130: LC38 | C130: 100A200 | D130: 4 | E130: BGLC38100A2004 | F130: 14.97276275 | G130: 9.819849488
A131: BG | B131: LC38 | C131: 200A400 | D131: 4 | E131: =CONCATENATE(A131,B131,C131,D131) -> BGLC38200A4004 | F131: 14.97276275 | G131: 9.819849488
A132: BG | B132: LC38 | C132: <25 | D132: 6 | E132: BGLC38<256 | F132: 14.97276275 | G132: 8.646512514
A133: BG | B133: LC38 | C133: 25A50 | D133: 6 | E133: BGLC3825A506 | F133: 14.97276275 | G133: 9.710897454
A134: BG | B134: LC38 | C134: 50A100 | D134: 6 | E134: BGLC3850A1006 | F134: 14.97276275 | G134: 1.954949479
A135: BG | B135: LC38 | C135: 100A200 | D135: 6 | E135: BGLC38100A2006 | F135: 14.97276275 | G135: 9.710897454
A136: BG | B136: LC38 | C136: 200A400 | D136: 6 | E136: BGLC38200A4006 | F136: 14.97276275 | G136: 9.710897454
A137: BG | B137: LC38 | C137: <25 | D137: 8 | E137: BGLC38<258 | F137: 14.97276275 | G137: 8.56160779
A138: BG | B138: LC38 | C138: 25A50 | D138: 8 | E138: BGLC3825A508 | F138: 14.97276275 | G138: 9.616624441
A139: BG | B139: LC38 | C139: 50A100 | D139: 8 | E139: BGLC3850A1008 | F139: 14.97276275 | G139: 1.928941202
A140: BG | B140: LC38 | C140: 100A200 | D140: 8 | E140: BGLC38100A2008 | F140: 14.97276275 | G140: 9.616624441
A141: BG | B141: LC38 | C141: 200A400 | D141: 8 | E141: BGLC38200A4008 | F141: 14.97276275 | G141: 9.616624441
A142: BG | B142: LC40 | C142: <25 | D142: 2 | E142: BGLC40<252 | F142: 14.97276275 | G142: 8.701382522
A143: BG | B143: LC40 | C143: 25A50 | D143: 2 | E143: BGLC4025A502 | F143: 14.97276275 | G143: 9.771821754
A144: BG | B144: LC40 | C144: 50A100 | D144: 2 | E144: BGLC4050A1002 | F144: 14.97276275 | G144: 10.960372
A145: BG | B145: LC40 | C145: 100A200 | D145: 2 | E145: BGLC40100A2002 | F145: 14.97276275 | G145: 12.2800655
A146: BG | B146: LC40 | C146: 200A400 | D146: 2 | E146: BGLC40200A4002 | F146: 14.97276275 | G146: 13.74537244
A147: BG | B147: LC40 | C147: <25 | D147: 4 | E147: BGLC40<254 | F147: 14.97276275 | G147: 8.493027278
A148: BG | B148: LC40 | C148: 25A50 | D148: 4 | E148: BGLC4025A504 | F148: 14.97276275 | G148: 9.540476836
A149: BG | B149: LC40 | C149: 50A100 | D149: 4 | E149: BGLC4050A1004 | F149: 14.97276275 | G149: 10.70350076
A150: BG | B150: LC40 | C150: 100A200 | D150: 4 | E150: BGLC40100A2004 | F150: 14.97276275 | G150: 11.99485138
A151: BG | B151: LC40 | C151: 200A400 | D151: 4 | E151: BGLC40200A4004 | F151: 14.97276275 | G151: 13.42868812
A152: BG | B152: LC40 | C152: <25 | D152: 6 | E152: BGLC40<256 | F152: 14.97276275 | G152: 8.397435871
A153: BG | B153: LC40 | C153: 25A50 | D153: 6 | E153: BGLC4025A506 | F153: 14.97276275 | G153: 9.434337984
A154: BG | B154: LC40 | C154: 50A100 | D154: 6 | E154: BGLC4050A1006 | F154: 14.97276275 | G154: 10.58565067
A155: BG | B155: LC40 | C155: 100A200 | D155: 6 | E155: BGLC40100A2006 | F155: 14.97276275 | G155: 11.86399785
A156: BG | B156: LC40 | C156: 200A400 | D156: 6 | E156: BGLC40200A4006 | F156: 14.97276275 | G156: 13.28339637
A157: BG | B157: LC40 | C157: <25 | D157: 8 | E157: BGLC40<258 | F157: 14.97276275 | G157: 8.314723419
A158: BG | B158: LC40 | C158: 25A50 | D158: 8 | E158: BGLC4025A508 | F158: 14.97276275 | G158: 9.342499137
A159: BG | B159: LC40 | C159: 50A100 | D159: 8 | E159: BGLC4050A1008 | F159: 14.97276275 | G159: 10.48367843
A160: BG | B160: LC40 | C160: 100A200 | D160: 8 | E160: BGLC40100A2008 | F160: 14.97276275 | G160: 11.75077411
A161: BG | B161: LC40 | C161: 200A400 | D161: 8 | E161: BGLC40200A4008 | F161: 14.97276275 | G161: 13.15767966
A162: SC | B162: LC38 | C162: <25 | D162: 2 | E162: SCLC38<252 | F162: 14.97276275 | G162: 8.701382522
A163: SC | B163: LC38 | C163: 25A50 | D163: 2 | E163: SCLC3825A502 | F163: 14.97276275 | G163: 9.771821754
A164: SC | B164: LC38 | C164: 50A100 | D164: 2 | E164: SCLC3850A1002 | F164: 14.97276275 | G164: 10.06727403
A165: SC | B165: LC38 | C165: 100A200 | D165: 2 | E165: SCLC38100A2002 | F165: 14.97276275 | G165: 12.2800655
A166: SC | B166: LC38 | C166: 200A400 | D166: 2 | E166: SCLC38200A4002 | F166: 14.97276275 | G166: 13.74537244
A167: SC | B167: LC38 | C167: <25 | D167: 4 | E167: SCLC38<254 | F167: 14.97276275 | G167: 8.493027278
A168: SC | B168: LC38 | C168: 25A50 | D168: 4 | E168: SCLC3825A504 | F168: 14.97276275 | G168: 9.540476836
A169: SC | B169: LC38 | C169: 50A100 | D169: 4 | E169: SCLC3850A1004 | F169: 14.97276275 | G169: 11.01369906
A170: SC | B170: LC38 | C170: 100A200 | D170: 4 | E170: SCLC38100A2004 | F170: 14.97276275 | G170: 11.99485138
A171: SC | B171: LC38 | C171: 200A400 | D171: 4 | E171: SCLC38200A4004 | F171: 14.97276275 | G171: 13.42868812
A172: SC | B172: LC38 | C172: <25 | D172: 6 | E172: SCLC38<256 | F172: 14.97276275 | G172: 8.397435871
A173: SC | B173: LC38 | C173: 25A50 | D173: 6 | E173: SCLC3825A506 | F173: 14.97276275 | G173: 9.434337984
A174: SC | B174: LC38 | C174: 50A100 | D174: 6 | E174: SCLC3850A1006 | F174: 14.97276275 | G174: 8.760268619
A175: SC | B175: LC38 | C175: 100A200 | D175: 6 | E175: SCLC38100A2006 | F175: 14.97276275 | G175: 11.86399785
A176: SC | B176: LC38 | C176: 200A400 | D176: 6 | E176: SCLC38200A4006 | F176: 14.97276275 | G176: 13.28339637
A177: SC | B177: LC38 | C177: <25 | D177: 8 | E177: SCLC38<258 | F177: 14.97276275 | G177: 8.314723419
A178: SC | B178: LC38 | C178: 25A50 | D178: 8 | E178: SCLC3825A508 | F178: 14.97276275 | G178: 9.342499137
A179: SC | B179: LC38 | C179: 50A100 | D179: 8 | E179: SCLC3850A1008 | F179: 14.97276275 | G179: 10.48367843
A180: SC | B180: LC38 | C180: 100A200 | D180: 8 | E180: SCLC38100A2008 | F180: 14.97276275 | G180: 11.75077411
A181: SC | B181: LC38 | C181: 200A400 | D181: 8 | E181: SCLC38200A4008 | F181: 14.97276275 | G181: 13.15767966
A182: SC | B182: LC40 | C182: <25 | D182: 2 | E182: SCLC40<252 | F182: 14.97276275 | G182: 7.976966506
A183: SC | B183: LC40 | C183: 25A50 | D183: 2 | E183: SCLC4025A502 | F183: 14.97276275 | G183: 8.96747452
A184: SC | B184: LC40 | C184: 50A100 | D184: 2 | E184: SCLC4050A1002 | F184: 14.97276275 | G184: 10.06727403
A185: SC | B185: LC40 | C185: 100A200 | D185: 2 | E185: SCLC40100A2002 | F185: 14.97276275 | G185: 11.28842414
A186: SC | B186: LC40 | C186: 200A400 | D186: 2 | E186: SCLC40200A4002 | F186: 14.97276275 | G186: 12.64431453
A187: SC | B187: LC40 | C187: <25 | D187: 4 | E187: SCLC40<254 | F187: 14.97276275 | G187: 7.863125882
A188: SC | B188: LC40 | C188: 25A50 | D188: 4 | E188: SCLC4025A504 | F188: 14.97276275 | G188: 8.841072854
A189: SC | B189: LC40 | C189: 50A100 | D189: 4 | E189: SCLC4050A1004 | F189: 14.97276275 | G189: 9.926925354
A190: SC | B190: LC40 | C190: 100A200 | D190: 4 | E190: SCLC40100A2004 | F190: 14.97276275 | G190: 11.13258955
A191: SC | B191: LC40 | C191: 200A400 | D191: 4 | E191: SCLC40200A4004 | F191: 14.97276275 | G191: 12.47128533
A192: SC | B192: LC40 | C192: <25 | D192: 6 | E192: SCLC40<256 | F192: 14.97276275 | G192: 7.790351488
A193: SC | B193: LC40 | C193: 25A50 | D193: 6 | E193: SCLC4025A506 | F193: 14.97276275 | G193: 8.760268619
A194: SC | B194: LC40 | C194: 50A100 | D194: 6 | E194: SCLC4050A1006 | F194: 14.97276275 | G194: 9.837205274
A195: SC | B195: LC40 | C195: 100A200 | D195: 6 | E195: =CONCATENATE(A195,B195,C195,D195) -> SCLC40100A2006 | F195: 14.97276275 | G195: 11.03296986
A196: SC | B196: LC40 | C196: 200A400 | D196: 6 | E196: SCLC40200A4006 | F196: 14.97276275 | G196: 12.36067372
A197: SC | B197: LC40 | C197: <25 | D197: 8 | E197: SCLC40<258 | F197: 14.97276275 | G197: 7.686427635
A198: SC | B198: LC40 | C198: 25A50 | D198: 8 | E198: SCLC4025A508 | F198: 14.97276275 | G198: 8.644877929
A199: SC | B199: LC40 | C199: 50A100 | D199: 8 | E199: SCLC4050A1008 | F199: 14.97276275 | G199: 9.70908251
A200: SC | B200: LC40 | C200: 100A200 | D200: 8 | E200: SCLC40100A2008 | F200: 14.97276275 | G200: 10.89071018
... 41 more rows

Sheet Cartilla-Espesores (hidden)
B3: Base granular y doble riego | H3: Base Suelo-Cemento y doble riego | N3: Base granular y adoquines | T3: Base granular y adoquines
B4: Espesor de base granular | H4: Espesor de base de suelo cemento | N4: Espesor de base granular | T4: Espesor de base de suelo cemento
C5: CBR | I5: CBR | O5: CBR | U5: CBR
B6: Transito (EE) | C6: 2 | D6: 4 | E6: 6 | F6: 8 | H6: Transito (EE) | I6: 2 | J6: 4 | K6: 6 | L6: 8 | N6: Transito (EE) | O6: 2 | P6: 4 | Q6: 6 | R6: 8 | T6: Transito (EE) | U6: 2 | V6: 4 | W6: 6 | X6: 8
B7: hasta 25000 | C7: 42.48010535 | D7: 31.951758 | E7: 27.01831966 | F7: 23.97276275 | H7: hasta 25000 | I7: 27.61206848 | J7: 20.7686427 | K7: 17.56190778 | L7: 15.58229578 | N7: hasta 25000 | O7: 19.48010535 | P7: 15 | Q7: 15 | R7: 15 | T7: hasta 25000 | U7: 15 | V7: 15 | W7: 15 | X7: 15
B8: 25.001-50.000 | C8: 47.04286686 | D8: 35.4096846 | E8: 29.95853587 | F8: 26.59338107 | H8: 25.001-50.000 | I8: 30.57786346 | J8: 23.01629499 | K8: 19.47304832 | L8: 17.28569769 | N8: 25.001-50.000 | O8: 24.04286686 | P8: 15 | Q8: 15 | R8: 15 | T8: 25.001-50.000 | U8: 15.62786346 | V8: 15 | W8: 15 | X8: 15
B9: 50.001-100.000 | C9: 51.60562838 | D9: 38.86761121 | E9: 32.89875208 | F9: 29.21399939 | H9: 50.001-100.000 | I9: 33.54365845 | J9: 25.26394729 | K9: 21.38418885 | L9: 18.9890996 | N9: 50.001-100.000 | O9: 28.60562838 | P9: 15.86761121 | Q9: 15 | R9: 15 | T9: 50.001-100.000 | U9: 18.59365845 | V9: 15 | W9: 15 | X9: 15
B10: 100.001-200.000 | C10: 56.16838989 | D10: 42.32553782 | E10: 35.83896829 | F10: 31.83461771 | H10: 100.001-200.000 | I10: 36.50945343 | J10: 27.51159958 | K10: 23.29532939 | L10: 20.69250151 | N10: 100.001-200.000 | O10: 33.16838989 | P10: 19.32553782 | Q10: 15 | R10: 15 | T10: 100.001-200.000 | U10: 21.55945343 | V10: 15 | W10: 15 | X10: 15
B11: 200.001-400.000 | C11: 60.73115141 | D11: 45.78346443 | E11: 38.77918451 | F11: 34.45523604 | H11: 200.001-400.000 | I11: 39.47524842 | J11: 29.75925188 | K11: 25.20646993 | L11: 22.39590342 | N11: 200.001-400.000 | O11: 37.73115141 | P11: 22.78346443 | Q11: 15.77918451 | R11: 15 | T11: 200.001-400.000 | U11: 24.52524842 | V11: 15 | W11: 15 | X11: 15
B13: Base granular y concreto asfaltico de 5 cm de espesor | H13: Base granular y concreto asfaltico de 5 cm de espesor
B14: Espesor de base granular | H14: Espesor de base de suelo cemento
C15: CBR | I15: CBR
B16: Transito (EE) | C16: 2 | D16: 4 | E16: 6 | F16: 8 | H16: Transito (EE) | I16: 2 | J16: 4 | K16: 6 | L16: 8
B17: hasta 25000 | C17: 33.48010535 | D17: 22.951758 | E17: 18.01831966 | F17: 14.97276275 | H17: hasta 25000 | I17: 21.76206848 | J17: 15 | K17: 15 | L17: 15
B18: 25.001-50.000 | C18: 38.04286686 | D18: 26.4096846 | E18: 20.95853587 | F18: 17.59338107 | H18: 25.001-50.000 | I18: 24.72786346 | J18: 17.16629499 | K18: 15 | L18: 15
B19: 50.001-100.000 | C19: 42.60562838 | D19: 29.86761121 | E19: 23.89875208 | F19: 20.21399939 | H19: 50.001-100.000 | I19: 27.69365845 | J19: 19.41394729 | K19: 15.53418885 | L19: 15
B20: 100.001-200.000 | C20: 47.16838989 | D20: 33.32553782 | E20: 26.83896829 | F20: 22.83461771 | H20: 100.001-200.000 | I20: 30.65945343 | J20: 21.66159958 | K20: 17.44532939 | L20: 15
B21: 200.001-400.000 | C21: 51.73115141 | D21: 36.78346443 | E21: 29.77918451 | F21: 25.45523604 | H21: 200.001-400.000 | I21: 33.62524842 | J21: 23.90925188 | K21: 19.35646993 | L21: 16.54590342
B23: Base granular y concreto asfaltico de 7,5 cm de espesor | H23: Base granular y concreto asfaltico de 7,5 cm de espesor
B24: Espesor de base granular | H24: Espesor de base de suelo cemento
C25: CBR | I25: CBR
B26: Transito (EE) | C26: 2 | D26: 4 | E26: 6 | F26: 8 | H26: Transito (EE) | I26: 2 | J26: 4 | K26: 6 | L26: 8
B27: hasta 25000 | C27: 28.48010535 | D27: 17.951758 | E27: 15 | F27: 15 | H27: hasta 25000 | I27: 18.51206848 | J27: 15 | K27: 8.461907778 | L27: 15
B28: 25.001-50.000 | C28: 33.04286686 | D28: 21.4096846 | E28: 15.95853587 | F28: 15 | H28: 25.001-50.000 | I28: 21.47786346 | J28: 15 | K28: 10.37304832 | L28: 15
B29: 50.001-100.000 | C29: 37.60562838 | D29: 24.86761121 | E29: 18.89875208 | F29: 15.21399939 | H29: 50.001-100.000 | I29: 24.44365845 | J29: 16.16394729 | K29: 15 | L29: 15
B30: 100.001-200.000 | C30: 42.16838989 | D30: 28.32553782 | E30: 21.83896829 | F30: 17.83461771 | H30: 100.001-200.000 | I30: 27.40945343 | J30: 18.41159958 | K30: 15 | L30: 15
B31: 200.001-400.000 | C31: 46.73115141 | D31: 31.78346443 | E31: 24.77918451 | F31: 20.45523604 | H31: 200.001-400.000 | I31: 30.37524842 | J31: 20.65925188 | K31: 16.10646993 | L31: 15
B34: Base granular de 15 cm de espesor y losa de concreto | H34: Base granular de 15 cm de espesor y losa de concreto
B35: Espesor de losa Mr 38 | H35: Espesor de losa Mr 40
C36: CBR | I36: CBR
B37: Transito (EE) | C37: 2 | D37: 4 | E37: 6 | F37: 8 | H37: Transito (EE) | I37: 2 | J37: 4 | K37: 6 | L37: 8
B38: hasta 25000 | C38: 15 | D38: 15 | E38: 15 | F38: 15 | H38: hasta 25000 | I38: 15 | J38: 15 | K38: 15 | L38: 15
B39: 25.001-50.000 | C39: 15 | D39: 15 | E39: 15 | F39: 15 | H39: 25.001-50.000 | I39: 15 | J39: 15 | K39: 15 | L39: 15
B40: 50.001-100.000 | C40: 15 | D40: 15 | E40: 15 | F40: 15 | H40: 50.001-100.000 | I40: 15 | J40: 15 | K40: 15 | L40: 15
B41: 100.001-200.000 | C41: 15 | D41: 15 | E41: 15 | F41: 15 | H41: 100.001-200.000 | I41: 15 | J41: 15 | K41: 15 | L41: 15
B42: 200.001-400.000 | C42: 15 | D42: 15 | E42: 15 | F42: 15 | H42: 200.001-400.000 | I42: 15 | J42: 15 | K42: 15 | L42: 15
B45: Base de suelo cemento de 15 cm de espesor y losa de concreto | H45: Base de suelo cemento de 15 cm de espesor y losa de concreto
B46: Espesor de losa Mr 38 | H46: Espesor de losa Mr 40
C47: CBR | I47: CBR
B48: Transito (EE) | C48: 2 | D48: 4 | E48: 6 | F48: 8 | H48: Transito (EE) | I48: 2 | J48: 4 | K48: 6 | L48: 8
B49: hasta 25000 | C49: 8.701382522 | D49: 8.493027278 | E49: 8.397435871 | F49: 8.314723419 | H49: hasta 25000 | I49: 7.976966506 | J49: 7.863125882 | K49: 7.790351488 | L49: 7.686427635
B50: 25.001-50.000 | C50: 9.771821754 | D50: 9.540476836 | E50: 9.434337984 | F50: 9.342499137 | H50: 25.001-50.000 | I50: 8.96747452 | J50: 8.841072854 | K50: 8.760268619 | L50: 8.644877929
B51: 50.001-100.000 | C51: 10.06727403 | D51: 11.01369906 | E51: 8.760268619 | F51: 10.48367843 | H51: 50.001-100.000 | I51: 10.06727403 | J51: 9.926925354 | K51: 9.837205274 | L51: 9.70908251
B52: 100.001-200.000 | C52: 12.2800655 | D52: 11.99485138 | E52: 11.86399785 | F52: 11.75077411 | H52: 100.001-200.000 | I52: 11.28842414 | J52: 11.13258955 | K52: 11.03296986 | L52: 10.89071018
B53: 200.001-400.000 | C53: 13.74537244 | D53: 13.42868812 | E53: 13.28339637 | F53: 13.15767966 | H53: 200.001-400.000 | I53: 12.64431453 | J53: 12.47128533 | K53: 12.36067372 | L53: 12.20271728

Sheet Hoja2 (hidden)
A1: No | B1: CONDICION B | C1: CONDICION D | D1: TIPO APOYO | E1: ESPESOR APOYO | F1: MR | G1: TRAFICO | H1: CBR | J1: CONDICION B | K1: CONDICION D | L1: TIPO APOYO | M1: ESPESOR APOYO | N1: MR | O1: TRAFICO | P1: CBR
A2: 1 | B2: CB | C2: CD | D2: SUBRASANTE | E2: 0 | F2: 38 | G2: 400000 | H2: 2-4 | L2: 1 | O2: ='Eval-Economica'!$L$18 -> 256590.0468
A3: 2 | B3: SB | C3: SD | D3: GRANULAR | E3: 150 | F3: 40 | G3: 200000 | H3: 4-6 | J3: No | K3: No | L3: No | M3: No | N3: No | O3: No | P3: No
A4: 3 | D4: SUELOCEMENTO | F4: 42 | G4: 100000 | H4: 6-8 | J4: 1 | K4: 1 | L4: =L2+1 -> 2 | M4: 2 | N4: 1 | O4: =IF(O2<=25000,5,IF(AND(O2>25000,O2<=50000),4,IF(AND(O2>50000,O2<=100000),3,IF(AND(O2>100000,O2<=200000),2,1)))) -> 1 | P4: 4
A5: 4 | G5: 50000 | H5: 8-10
A6: 5 | G6: 25000 | J6: =+DGET($A$1:$H$6,B1,J3:J4) -> CB | K6: =+DGET($A$1:$H$6,C1,K3:K4) -> CD | L6: =+DGET($A$1:$H$6,D1,L3:L4) -> GRANULAR | M6: =+DGET($A$1:$H$6,E1,M3:M4) -> 150 | N6: 38 | O6: 400000 | P6: =+DGET($A$1:$H$6,H1,P3:P4) -> 8-10 | Q6: =+CONCATENATE(J6,K6,L6,M6,N6,O6,P6) -> CBCDGRANULAR150384000008-10
Q8: =+CONCATENATE(L6,M6,O6,P6) -> GRANULAR1504000008-10
M9: 1
M10: =+M9+1 -> 2

Sheet 1.1 (hidden)
D2: PROYECTO TIPO Base estabilizada con cal+Lechada asfáltica 1 km
D6: ANÁLISIS DE PRECIO UNITARIO
B8: CAPÍTULO 1: | D8: Realizar obras preliminares
B10: Ítem | C10: 1.1 | D10: Localización y replanteo
D11: Unidad | G11: m²
B12: MATERIALES | D12: UNIDAD | E12: CANTIDAD | F12: VALOR UNITARIO | G12: VALOR TOTAL
B13: 1 | C13: Alambre negro No. 18 | D13: kg | E13: 0.01 | F13: 2504 | G13: =+ROUND(E13*F13,0) -> 25
B14: 2 | C14: Durmiente ordinario 4*4cm | D14: m | E14: 0.5 | F14: 2600 | G14: =+ROUND(E14*F14,0) -> 1300
B15: 3 | C15: Puntilla de 1" | D15: lb | E15: 0.01 | F15: 2350 | G15: =+ROUND(E15*F15,0) -> 24
E16: SUBTOTAL MATERIALES | G16: =SUM(G13:G15) -> 1349
B18: EQUIPOS Y HERRAMIENTAS | D18: =+D12 -> UNIDAD | E18: CANTIDAD | F18: =+F12 -> VALOR UNITARIO | G18: =+G12 -> VALOR TOTAL
B19: 1 | C19: Herramienta menor (% mano de obra) | D19: glb | E19: 0.1 | F19: =+G28*E19 -> 216.9 | G19: =+ROUND(F19,0) -> 217
B20: 2 | G20: =+ROUND(E20*F20,0) -> 0
E21: SUBTOTAL EQUIPOS | G21: =G19+G20 -> 217
B23: TRANSPORTE | D23: UNIDAD | E23: DISTANCIA km | F23: VR. UN. ($/ m³*km) | G23: VALOR TOTAL
B24: 1 | C24: No aplica | G24: =+ROUND(E24*F24*D24,0) -> 0
E25: SUBTOTAL TRANSPORTE | G25: =SUM(G24) -> 0
B27: MANO DE OBRA | D27: =+D18 -> UNIDAD | E27: CANTIDAD | F27: VALOR HORA | G27: =+G18 -> VALOR TOTAL
B28: 1 | C28: Cuadrilla AA (Albañilería) 1Of y 1 Ay | D28: h | E28: 0.016555 | F28: =+PALETERO -> 131000 | G28: =+ROUND(E28*F28,0) -> 2169
B29: 2 | G29: =+ROUND(E29*F29,0) -> 0
E30: SUBTOTAL MANO DE OBRA | G30: =ROUND(G28+G29,0) -> 2169
E31: COSTO DIRECTO | G31: =ROUND(G16+G21+G30+G25,0) -> 3735

Sheet 2.1 (hidden)
D2: PROYECTO TIPO Base estabilizada con cal+Lechada asfáltica 1 km
D6: ANÁLISIS DE PRECIO UNITARIO
B8: CAPÍTULO 1: | D8: Realizar obras preliminares
B10: Ítem | C10: 2.1 | D10: Excavación mecánica en material común a nivel de subrasante (incluye retiro de sobrantes, transporte hasta escombrera y derecho de botadero)
D11: Unidad | G11: m³
B13: MATERIALES | D13: UNIDAD | E13: CANTIDAD | F13: VR. UNITARIO | G13: VALOR TOTAL
B14: 1 | C14: No aplica | G14: =+ROUND(E14*F14,0) -> 0
E15: SUBTOTAL MATERIALES | G15: =SUM(G14:G14) -> 0
B17: EQUIPOS Y HERRAMIENTAS | D17: UNIDAD | E17: RENDIMIENTO | F17: VALOR UNITARIO | G17: VALOR TOTAL
B18: 1 | C18: Herramienta menor (% mano de obra) | D18: glb | E18: 0.1 | F18: =+G30*E18 -> 1965 | G18: =+ROUND(F18,0) -> 1965
B19: 2 | C19: Retroexcavadora de llantas | D19: h | E19: 0.06 | F19: =+MOTONIVELADORA -> 81000 | G19: =+ROUND(E19*F19,0) -> 4860
E20: SUBTOTAL EQUIPOS | G20: =SUM(G18:G19) -> 6825
B22: TRANSPORTE | D22: UNIDAD (m³) | E22: DISTANCIA (km) | F22: VR. UN. ($/ m³*km) | G22: VALOR TOTAL
B23: 1 | C23: Volqueta 6 m³ (cargue mecánico) botadero hasta 20 km | D23: 1.1 | E23: 1 | F23: 20350 | G23: =+ROUND(F23*E23*D23,0) -> 22385
B24: 2 | C24: Volqueta 6 m³ (cargue mecánico)botadero adicional mayor 20 km | D24: 1.1 | F24: 1017.5 | G24: =+ROUND(F24*E24*D24,0) -> 0
E25: SUBTOTAL TRANSPORTE | G25: =SUM(G23+G24) -> 22385
B27: MANO DE OBRA | D27: UNIDAD | E27: RENDIMIENTO | F27: VALOR / HORA | G27: VALOR TOTAL
B28: 1 | C28: Cuadrilla AA (Albañilería) 1Of y 1 Ay | D28: h | E28: 0.15 | F28: =+PALETERO -> 131000 | G28: =+ROUND(E28*F28,0) -> 19650
B29: 2 | G29: =+ROUND(E29*F29,0) -> 0
E30: SUBTOTAL MANO DE OBRA | G30: =ROUND(SUM(G28:G29),0) -> 19650
E31: COSTO DIRECTO | G31: =+ROUND(G30+G20+G25+G15,0) -> 48860

Sheet 2.2 (hidden)
D2: PROYECTO TIPO Base estabilizada con cal+Lechada asfáltica 1 km
D6: ANÁLISIS DE PRECIO UNITARIO
B8: CAPÍTULO 1: | D8: Realizar obras preliminares
B10: Ítem | C10: 2.2 | D10: Conformación de la subrasante
D11: Unidad | G11: m²
B12: MATERIALES | D12: UNIDAD | E12: CANTIDAD | F12: VALOR UNITARIO | G12: VALOR TOTAL
B13: 1 | C13: Agua | D13: l | E13: 10 | F13: 10 | G13: =+ROUND(E13*F13,0) -> 100
E14: SUBTOTAL MATERIALES | G14: =SUM(G13:G13) -> 100
B16: EQUIPOS Y HERRAMIENTAS | D16: =+D12 -> UNIDAD | E16: CANTIDAD | F16: =+F12 -> VALOR UNITARIO | G16: =+G12 -> VALOR TOTAL
B17: 1 | C17: Herramienta menor (% mano de obra) | D17: glb | E17: 0.1 | F17: =+G28*E17 -> 655 | G17: =+ROUND(F17,0) -> 655
B18: 2 | C18: Vibro compactador 8 Ton | D18: h | E18: 0.008978675645 | F18: =+VIBROCOMP -> 116000 | G18: =+ROUND(E18*F18,0) -> 1042
B19: 3 | C19: Motoniveladora 120 Hp | D19: h | E19: 0.008978675645 | F19: =+CARROTANQUE -> 120000 | G19: =+ROUND(E19*F19,0) -> 1077
E20: SUBTOTAL EQUIPOS | G20: =+SUM(G17:G19) -> 2774
B22: TRANSPORTE | D22: UNIDAD | E22: DISTANCIA km | F22: VR. UN. ($/ m³*km) | G22: VALOR TOTAL
B23: 1 | C23: No aplica | G23: =+ROUND(E23*F23*D23,0) -> 0
E24: SUBTOTAL TRANSPORTE | G24: =SUM(G23) -> 0
B26: MANO DE OBRA | D26: =+D16 -> UNIDAD | E26: CANTIDAD | F26: VALOR HORA | G26: =+G16 -> VALOR TOTAL
B27: 1 | C27: Cuadrilla AA (Albañilería) 1Of y 1 Ay | D27: h | E27: 0.05 | F27: =+PALETERO -> 131000 | G27: =+ROUND(E27*F27,0) -> 6550
E28: SUBTOTAL MANO DE OBRA | G28: =G27 -> 6550
E29: COSTO DIRECTO | G29: =ROUND(G14+G20+G28+G24,0) -> 9424

Sheet 2.3 (hidden)
D2: PROYECTO TIPO Base estabilizada con cal+Lechada asfáltica 1 km
D6: ANÁLISIS DE PRECIO UNITARIO
B8: CAPÍTULO 2: | D8: Construir Base estabilizada con cal+Lechada asfáltica
B10: Ítem | C10: 2.3 | D10: Capa Granular Base estabilizada con cal mezclada en la vía
D11: Unidad | G11: m³
B12: MATERIALES | D12: UNIDAD | E12: CANTIDAD | F12: VR. UNITARIO | G12: VALOR TOTAL
B13: 1 | C13: Base granular con proctor del 95% | D13: m³ | E13: 1.3 | F13: =+CEMENTO -> 73000 | G13: =+ROUND(E13*F13,0) -> 94900
B14: 2 | C14: Agua | D14: l | E14: 16 | F14: 10 | G14: =+ROUND(E14*F14,0) -> 160
E15: SUBTOTAL MATERIALES | G15: =SUM(G13:G14) -> 95060
B17: EQUIPOS Y HERRAMIENTAS | D17: UNIDAD | E17: RENDIMIENTO | F17: VALOR UNITARIO | G17: VALOR TOTAL
B18: 1 | C18: Herramienta menor (% mano de obra) | D18: glb | E18: 0.1 | F18: =+G30*E18 -> 2227 | G18: =+ROUND(F18,0) -> 2227
B19: 2 | C19: Rodillo vibrante tanden autopropulsado anchura de trabajo 100 cm | D19: h | E19: 0.17 | F19: =+BENITIN -> 25500 | G19: =+ROUND(E19*F19,0) -> 4335
E20: SUBTOTAL EQUIPOS | G20: =SUM(G18:G19) -> 6562
B22: TRANSPORTE | D22: UNIDAD (m³) | E22: DISTANCIA (km) | F22: VR. UN. ($/ m³*km) | G22: VALOR TOTAL
B23: 1 | C23: Volqueta 6 m³ (cargue manual) botadero hasta 20 km | D23: 1.3 | E23: 1 | F23: 26465 | G23: =+ROUND(E23*D23*F23,0) -> 34405
B24: 2 | C24: Volqueta 6m³ (cargue manual) botadero adicional mayor 20 km | D24: 1.3 | F24: 1323.25 | G24: =+ROUND(E24*D24*F24,0) -> 0
E25: SUBTOTAL TRANSPORTE | G25: =SUM(G23:G24) -> 34405
B27: MANO DE OBRA | D27: UNIDAD | E27: RENDIMIENTO | F27: VALOR / HORA | G27: VALOR TOTAL
B28: 1 | C28: Cuadrilla AA (Albañilería) 1Of y 1 Ay | D28: h | E28: 0.17 | F28: =+PALETERO -> 131000 | G28: =+ROUND(E28*F28,0) -> 22270
B29: 2 | G29: =+ROUND(E29*F29,0) -> 0
E30: SUBTOTAL MANO DE OBRA | G30: =ROUND(SUM(G28:G29),0) -> 22270
E31: COSTO DIRECTO | G31: =+ROUND(G30+G20+G25+G15,0) -> 158297

Sheet 2.4 (hidden)
D2: PROYECTO TIPO Base estabilizada con cal+Lechada asfáltica 1 km
D6: ANÁLISIS DE PRECIO UNITARIO
B8: CAPÍTULO 2: | D8: Construir Base estabilizada con cal+Lechada asfáltica
B10: Ítem | C10: 2.4 | D10: Lechada Asfáltica con Emulsión CRL-1HM ,TIPO LA-5
D11: Unidad | G11: m2
B12: MATERIALES | D12: UNIDAD | E12: CANTIDAD | F12: VALOR UNITARIO | G12: VALOR TOTAL
C13: No aplica | G13: 0
E14: SUBTOTAL MATERIALES | G14: =SUM(G13:G13) -> 0
B16: EQUIPOS Y HERRAMIENTAS | D16: =+D12 -> UNIDAD | E16: CANTIDAD | F16: =+F12 -> VALOR UNITARIO | G16: VALOR TOTAL
B17: 1 | C17: Herramienta menor (% mano de obra) | D17: glb | E17: 0.1 | F17: =+G28*E17 -> 8067.6 | G17: =+ROUND(F17,0) -> 8068
E18: SUBTOTAL EQUIPOS | G18: =G17 -> 8068
B20: TRANSPORTE | D20: UNIDAD m³ | E20: DISTANCIA km | F20: VR. UN. ($/ m³*km) | G20: VALOR TOTAL
B21: 1 | C21: Volqueta 6 m³ (cargue manual) botadero hasta 20 km | D21: 1.15 | E21: 1 | F21: 26465 | G21: =+F21*E21*D21 -> 30434.75
B22: 2 | C22: Volqueta 6m³ (cargue manual) botadero adicional mayor 20 km | D22: 1.15 | F22: 1323.25 | G22: =+F22*E22*D22 -> 0
E23: SUBTOTAL TRANSPORTE | G23: =SUM(G21:G22) -> 30434.75
B25: MANO DE OBRA | D25: =+D16 -> UNIDAD | E25: CANTIDAD | F25: VALOR HORA | G25: VALOR TOTAL
B26: 1 | C26: Cuadrilla AA (Albañilería) 1 Ay | D26: =+D17 -> glb | E26: 1.5 | F26: =+OBRERO -> 53784 | G26: =+ROUND(E26*F26,0) -> 80676
G27: =+ROUND(E27*F27,0) -> 0
E28: SUBTOTAL MANO DE OBRA | G28: =ROUND(G26+G27,0) -> 80676
E29: COSTO DIRECTO | G29: =ROUND(G14+G23+G18+G28,0) -> 119179

Sheet 2.5 (hidden)
D2: PROYECTO TIPO Base estabilizada con cal+Lechada asfáltica 1 km
D6: ANÁLISIS DE PRECIO UNITARIO
B8: CAPÍTULO 2: | D8: Construir Base estabilizada con cal+Lechada asfáltica
B10: Ítem | C10: 2.5 | D10: Concreto de 210 kg/cm² (3.000 psi) espesor 0,15 m - Placas y dentellones
D11: Unidad | G11: m³
B12: MATERIALES | D12: UNIDAD | E12: CANTIDAD | F12: VALOR UNITARIO | G12: VALOR TOTAL
B13: 1 | C13: Concreto de 210 kg/cm² (3.000 psi) | D13: m³ | E13: 1.05 | F13: 281270 | G13: =+ROUND(E13*F13,0) -> 295334
B14: 2 | C14: Mortero 1:3 para dilataciones | D14: m | E14: =0.15*0.025*5.3 -> 0.019875 | F14: 309140 | G14: =+ROUND(E14*F14,0) -> 6144
E15: SUBTOTAL MATERIALES | G15: =SUM(G13:G14) -> 301478
B17: EQUIPOS Y HERRAMIENTAS | D17: =+D12 -> UNIDAD | E17: CANTIDAD | F17: VALOR | G17: VALOR TOTAL
B18: 1 | C18: Herramienta menor (% mano de obra) | D18: glb | E18: 0.1 | F18: 1326.8 | G18: =+ROUND(F18,0) -> 1327
B19: 2 | C19: formaleta madera | D19: m | E19: 4 | F19: 2500 | G19: =+ROUND(E19*F19,0) -> 10000
B20: 3 | C20: Vibrador a gasolina | D20: h | E20: 1 | F20: 3830 | G20: =+ROUND(E20*F20,0) -> 3830
E21: SUBTOTAL EQUIPOS | G21: =G19+G18+G20 -> 15157
B23: TRANSPORTE | D23: UNIDAD | E23: DISTANCIA km | F23: VR. UN. ($/ m³*km) | G23: VALOR TOTAL
B24: 1 | C24: No aplica | G24: =+ROUND(E24*F24*D24,0) -> 0
E25: SUBTOTAL TRANSPORTE | G25: =SUM(G24) -> 0
B27: MANO DE OBRA | D27: =+D17 -> UNIDAD | E27: CANTIDAD | F27: =+'2.4'!F25 -> VALOR HORA | G27: VALOR TOTAL
B28: 1 | C28: Cuadrilla AA 1Of+2Ay (Albañilería) | D28: h | E28: 0.5 | F28: 26536 | G28: =+ROUND(E28*F28,0) -> 13268
G29: =+ROUND(E29*F29,0) -> 0
E30: SUBTOTAL MANO DE OBRA | G30: =G28+G29 -> 13268
E31: COSTO DIRECTO | G31: =ROUND(G15+G21+G30+G25,0) -> 329903

Sheet 2.6 (hidden)
D2: PROYECTO TIPO Base estabilizada con cal+Lechada asfáltica 1 km
D6: ANÁLISIS DE PRECIO UNITARIO
B8: CAPÍTULO 2: | D8: Construir Base estabilizada con cal+Lechada asfáltica
B10: Ítem | C10: 2.6 | D10: Concreto ciclópeo espesor 0,15 m
D11: Unidad | G11: m³
B12: MATERIALES | D12: UNIDAD | E12: CANTIDAD | F12: VALOR UNITARIO | G12: VALOR TOTAL
B13: 1 | C13: Concreto de 140 kg/cm² | D13: m³ | E13: 0.6 | F13: 215960 | G13: =+ROUND(E13*F13,0) -> 129576
B14: 2 | C14: Rajón de piedra del municipio | D14: m³ | E14: 0.4 | F14: 129000 | G14: =+ROUND(E14*F14,0) -> 51600
E16: SUBTOTAL MATERIALES | G16: =SUM(G13:G15) -> 181176
B18: EQUIPOS Y HERRAMIENTAS | D18: =+D12 -> UNIDAD | E18: CANTIDAD | F18: VALOR UNITARIO | G18: VALOR TOTAL
B19: 1 | C19: Herramienta menor (% mano de obra) | D19: glb | E19: 0.1 | F19: 2653.6 | G19: =+ROUND(F19,0) -> 2654
B20: 2 | C20: formaleta madera | D20: m | E20: 4 | F20: 2500 | G20: =+ROUND(E20*F20,0) -> 10000
B21: 3 | C21: Vibrador a gasolina | D21: h | E21: 1 | F21: 3830 | G21: =+ROUND(E21*F21,0) -> 3830
E22: SUBTOTAL EQUIPOS | G22: =G20+G19+G21 -> 16484
B24: TRANSPORTE | D24: UNIDAD | E24: DISTANCIA km | F24: VR. UN. ($/ m³*km) | G24: VALOR TOTAL
B25: 1 | C25: No aplica | F25: 0 | G25: =+ROUND(E25*F25*D25,0) -> 0
E26: SUBTOTAL TRANSPORTE | G26: =SUM(G25) -> 0
B28: MANO DE OBRA | D28: =+D18 -> UNIDAD | E28: CANTIDAD | F28: VALOR HORA | G28: VALOR TOTAL
B29: 1 | C29: Cuadrilla AA 1Of+2Ay (Albañileria) | D29: h | E29: 1 | F29: 26536 | G29: =+ROUND(E29*F29,0) -> 26536
G30: =+ROUND(E30*F30,0) -> 0
E31: SUBTOTAL MANO DE OBRA | G31: =G29+G30 -> 26536
E32: COSTO DIRECTO | G32: =ROUND(G16+G22+G31+G26,0) -> 224196

Sheet 2.7 (hidden)
D2: PROYECTO TIPO Base estabilizada con cal+Lechada asfáltica 1 km
D6: ANÁLISIS DE PRECIO UNITARIO
B8: CAPÍTULO 2: | D8: Construir Base estabilizada con cal+Lechada asfáltica
B10: Ítem | C10: 2.7 | D10: Concreto de 210 kg/cm² (3.000 psi) para vigas y viguetas de riostras
D11: Unidad | G11: m³
B12: MATERIALES | D12: UNIDAD | E12: CANTIDAD | F12: VALOR UNITARIO | G12: VALOR TOTAL
B13: 1 | C13: Concreto de 210 kg/cm² | D13: m³ | E13: 1.05 | F13: 281270 | G13: =+ROUND(E13*F13,0) -> 295334
E14: SUBTOTAL MATERIALES | G14: =SUM(G13:G13) -> 295334
B16: EQUIPOS Y HERRAMIENTAS | D16: =+D12 -> UNIDAD | E16: CANTIDAD | F16: =+F12 -> VALOR UNITARIO | G16: VALOR TOTAL
B17: 1 | C17: Herramienta menor (% mano de obra) | D17: glb | E17: 0.1 | F17: 1326.8 | G17: =+ROUND(F17,0) -> 1327
B18: 2 | C18: Vibrador a gasolina | D18: h | E18: 1 | F18: 3830 | G18: =+ROUND(E18*F18,0) -> 3830
E19: SUBTOTAL EQUIPOS | G19: =G18+G17 -> 5157
B20: TRANSPORTE | D20: UNIDAD | E20: DISTANCIA km | F20: VR. UN. ($/ m³*km) | G20: VALOR TOTAL
B21: 1 | C21: No aplica | F21: 0 | G21: =+ROUND(E21*F21*D21,0) -> 0
E22: SUBTOTAL TRANSPORTE | G22: =SUM(G21) -> 0
B25: MANO DE OBRA | D25: =+D16 -> UNIDAD | E25: CANTIDAD | F25: =+'2.6'!F28 -> VALOR HORA | G25: VALOR TOTAL
B26: 1 | C26: Cuadrilla AA 1Of+2Ay (Albañilería) | D26: h | E26: 0.5 | F26: 26536 | G26: =+E26*F26 -> 13268
G27: =+ROUND(E27*F27,0) -> 0
E28: SUBTOTAL MANO DE OBRA | G28: =G26+G27 -> 13268
E29: COSTO DIRECTO | G29: =ROUND(G14+G19+G28+G22,0) -> 313759

Sheet 2.8 (hidden)
D2: PROYECTO TIPO Base estabilizada con cal+Lechada asfáltica 1 km
D6: ANÁLISIS DE PRECIO UNITARIO
B8: CAPÍTULO 2: | D8: Construir Base estabilizada con cal+Lechada asfáltica
B10: Ítem | C10: 2.8 | D10: Acero de refuerzo 4.200 kg/cm² (60.000 psi) para placas, riostras y dentellones
D11: Unidad | G11: kg
B12: MATERIALES | D12: UNIDAD | E12: CANTIDAD | F12: VALOR UNITARIO | G12: VALOR TOTAL
B13: 1 | C13: Acero de 4200 kg/cm² | D13: kg | E13: 1.05 | F13: 2504 | G13: =+ROUND(E13*F13,0) -> 2629
B14: 2 | C14: Alambre negro | D14: kg | E14: 0.03 | F14: 2504 | G14: =+ROUND(E14*F14,0) -> 75
E15: SUBTOTAL MATERIALES | G15: =SUM(G13:G14) -> 2704
B17: EQUIPOS Y HERRAMIENTAS | D17: =+D12 -> UNIDAD | E17: CANTIDAD | F17: =+F12 -> VALOR UNITARIO | G17: VALOR TOTAL
B18: 1 | C18: Herramienta menor (% mano de obra) | D18: glb | E18: 0.1 | F18: =+G28*E18 -> 95.7 | G18: =+ROUND(F18,0) -> 96
E19: SUBTOTAL EQUIPOS | G19: =G18 -> 96
B21: TRANSPORTE | D21: UNIDAD | E21: DISTANCIA km | F21: VR. UN. ($/ m³*km) | G21: VALOR TOTAL
B22: 1 | C22: No aplica | F22: 0 | G22: =+ROUND(E22*F22*D22,0) -> 0
E23: SUBTOTAL TRANSPORTE | G23: =SUM(G22) -> 0
B25: MANO DE OBRA | D25: =+D17 -> UNIDAD | E25: CANTIDAD | F25: =+'2.7'!F25 -> VALOR HORA | G25: VALOR TOTAL
B26: 1 | C26: Cuadrilla AA (Albañilería) 1Of y 1 Ay | D26: h | E26: 0.05 | F26: 19135 | G26: =+ROUND(E26*F26,0) -> 957
G27: =+ROUND(E27*F27,0) -> 0
E28: SUBTOTAL MANO DE OBRA | G28: =G26+G27 -> 957
E29: COSTO DIRECTO | G29: =ROUND(G15+G19+G28+G23,0) -> 3757

Sheet 2.9 (hidden)
D2: PROYECTO TIPO Base estabilizada con cal+Lechada asfáltica 1 km
D6: ANÁLISIS DE PRECIO UNITARIO
B8: CAPÍTULO 2: | D8: CONSTRUIR BASE ESTABILIZADA CON CAL+LECHADA ASFÁLTICA
B10: Ítem | C10: 2.9 | D10: Concreto de 210 kg/cm² (3.000 psi) cuneta dimensiones 0,98 m x 0,12 m y 0,20 m de altura de sardinel
D11: Unidad | G11: m³
B12: MATERIALES | D12: UNIDAD | E12: CANTIDAD | F12: VALOR UNITARIO | G12: VALOR TOTAL
B13: 1 | C13: Concreto de 210 kg/cm² | D13: m³ | E13: 1.05 | F13: 281270 | G13: =+ROUND(E13*F13,0) -> 295334
E14: SUBTOTAL MATERIALES | G14: =SUM(G13:G13) -> 295334
B16: EQUIPOS Y HERRAMIENTAS | D16: =+D12 -> UNIDAD | E16: CANTIDAD | F16: VALOR UNITARIO | G16: VALOR TOTAL
B17: 1 | C17: Vibrador a gasolina | D17: h | E17: 0.8 | F17: 3830 | G17: =+ROUND(E17*F17,0) -> 3064
B18: 2 | C18: Formaleta | D18: m | E18: 5 | F18: 2500 | G18: =+ROUND(E18*F18,0) -> 12500
B19: 3 | C19: Herramienta menor (% mano de obra) | D19: glb | E19: 0.1 | F19: 1326.8 | G19: =+ROUND(F19,0) -> 1327
E20: SUBTOTAL EQUIPOS | G20: =+G19+G17+G18 -> 16891
B22: TRANSPORTE | D22: UNIDAD | E22: DISTANCIA km | F22: VR. UN. ($/ m³*km) | G22: VALOR TOTAL
B23: 1 | C23: No aplica | G23: =+ROUND(E23*F23*D23,0) -> 0
E24: SUBTOTAL TRANSPORTE | G24: =SUM(G23) -> 0
B26: MANO DE OBRA | D26: =+D16 -> UNIDAD | E26: CANTIDAD | F26: =+'2.8'!F25 -> VALOR HORA | G26: VALOR TOTAL
B27: 1 | C27: Cuadrilla AA 1Of+2Ay (Albañilería) | D27: h | E27: 0.5 | F27: 26536 | G27: =+E27*F27 -> 13268
G28: =+ROUND(E28*F28,0) -> 0
E29: SUBTOTAL MANO DE OBRA | G29: =G27+G28 -> 13268
E30: COSTO DIRECTO | G30: =ROUND(G14+G20+G29+G24,0) -> 325493

Sheet 2.10 (hidden)
D2: PROYECTO TIPO Base estabilizada con cal+Lechada asfáltica 1 km
D6: ANÁLISIS DE PRECIO UNITARIO
B8: CAPÍTULO 2: | D8: Construir Base estabilizada con cal+Lechada asfáltica
B10: Ítem | C10: 2.10 | D10: Bordillo prefabricado de confinamiento 0,80 m * 0,15 m * 0,35 m (incluye suministro e instalación, mortero de 0,03 m de espesor y mortero de nivelación de 2.000 psi)
D11: Unidad | G11: m
B12: MATERIALES | D12: UNIDAD | E12: CANTIDAD | F12: VALOR UNITARIO | G12: VALOR TOTAL
B13: 1 | C13: Bordillo prefabricado L=80 cm, h= 35 cm, b= 20 cm | D13: m | E13: 1.25 | F13: 25000 | G13: =ROUND(E13*F13,0) -> 31250
B14: 2 | C14: mortero 1:3 | D14: m³ | E14: 0.01 | F14: 309140 | G14: =ROUND(E14*F14,0) -> 3091
E15: SUBTOTAL MATERIALES | G15: =SUM(G13:G14) -> 34341
B17: EQUIPOS Y HERRAMIENTAS | D17: =+D12 -> UNIDAD | E17: CANTIDAD | F17: VALOR UNITARIO | G17: VALOR TOTAL
B18: 1 | C18: Herramienta menor (% mano de obra) | D18: glb | E18: 0.1 | F18: 574.1 | G18: =+ROUND(F18,0) -> 574
E19: SUBTOTAL EQUIPOS | G19: =+G18 -> 574
B21: TRANSPORTE | D21: UNIDAD | E21: DISTANCIA km | F21: VR. UN. ($/ m³*km) | G21: VALOR TOTAL
B22: 1 | C22: No aplica | F22: 0 | G22: =+ROUND(E22*F22*D22,0) -> 0
E23: SUBTOTAL TRANSPORTE | G23: =SUM(G22) -> 0
B25: MANO DE OBRA | D25: UNIDAD | E25: CANTIDAD | F25: =+'2.9'!F26 -> VALOR HORA | G25: VALOR TOTAL
B26: 1 | C26: Cuadrilla AA (Albañilería) 1Of y 1 Ay | D26: h | E26: 0.3 | F26: 19135 | G26: =ROUND(F26*E26,0) -> 5741
G27: =ROUND(F27*E27,0) -> 0
E28: SUBTOTAL MANO DE OBRA | G28: =G26+G27 -> 5741
E29: COSTO DIRECTO | G29: =ROUND(G15+G19+G23+G28,0) -> 40656

Sheet 3.1 (hidden)
D2: PROYECTO TIPO Base estabilizada con cal+Lechada asfáltica 1 km
D6: ANÁLISIS DE PRECIO UNITARIO
B8: CAPÍTULO 3: | D8: Construir de las obras de drenaje con cajas de recolección
B10: Ítem | C10: 3.1 | D10: Excavación manual 1,50 m * 1,50 m * 2,75 m.
D11: Unidad | G11: m³
B12: MATERIALES | D12: UNIDAD | E12: CANTIDAD | F12: VALOR UNITARIO | G12: VALOR TOTAL
C13: No aplica
E14: SUBTOTAL MATERIALES | G14: =SUM(G13:G13) -> 0
B16: EQUIPOS Y HERRAMIENTAS | D16: =+D12 -> UNIDAD | E16: CANTIDAD | F16: =+F12 -> VALOR UNITARIO | G16: VALOR TOTAL
B17: 1 | C17: Herramienta menor (% mano de obra) | D17: glb | E17: 0.1 | F17: =+G28*E17 -> 6550 | G17: =+ROUND(F17,0) -> 6550
E18: SUBTOTAL EQUIPOS | G18: =G17 -> 6550
B20: TRANSPORTE | D20: UNIDAD | E20: DISTANCIA km | F20: VR. UN. ($/ m³*km) | G20: VALOR TOTAL
B21: 1 | C21: Volqueta 6 m³ (cargue manual) botadero hasta 20 km | D21: 1.1 | E21: 1 | F21: 26465 | G21: =+ROUND(F21*E21*D21,0) -> 29112
B22: 2 | C22: Volqueta 6m³ (cargue manual) botadero adicional mayor 20 km | D22: 1.1 | F22: 1323.25 | G22: =+ROUND(F22*E22*D22,0) -> 0
E23: SUBTOTAL TRANSPORTE | G23: =SUM(G21:G22) -> 29112
B25: MANO DE OBRA | D25: =+D16 -> UNIDAD | E25: CANTIDAD | F25: VALOR HORA | G25: VALOR TOTAL
B26: 1 | C26: Cuadrilla AA (Albañilería) 1Of y 1 Ay | D26: h | E26: 0.5 | F26: =+PALETERO -> 131000 | G26: =ROUND(F26*E26,0) -> 65500
G27: =ROUND(F27*E27,0) -> 0
E28: SUBTOTAL MANO DE OBRA | G28: =G26+G27 -> 65500
E29: COSTO DIRECTO | G29: =ROUND(G14+G23+G18+G28,0) -> 101162

Sheet 3.2 (hidden)
D2: PROYECTO TIPO Base estabilizada con cal+Lechada asfáltica 1 km
D6: ANÁLISIS DE PRECIO UNITARIO
B8: CAPÍTULO 3: | D8: Construir de las obras de drenaje con cajas de recolección
B10: ÍTEM | C10: 3.2 | D10: Concreto de baja resistencia 140 kg/cm² (2.000 psi) para cajas de recolección
D11: Unidad | G11: m³
B12: MATERIALES | D12: UNIDAD | E12: CANTIDAD | F12: VALOR UNITARIO | G12: VALOR TOTAL
B13: 1 | C13: Concreto de 140 kg/cm² | D13: m³ | E13: 0.6 | F13: =+ARENACCTO -> 215960 | G13: =ROUND(F13*E13,0) -> 129576
B14: 2 | C14: Rajón del municipio | D14: m³ | E14: 0.4 | F14: =+AFIRMADO -> 129000 | G14: =ROUND(F14*E14,0) -> 51600
E15: SUBTOTAL MATERIALES | G15: =SUM(G13:G14) -> 181176
B17: EQUIPOS Y HERRAMIENTAS | D17: =+D12 -> UNIDAD | E17: CANTIDAD | F17: VALOR UNITARIO | G17: VALOR TOTAL
B18: 1 | C18: Formaleta madera | D18: m | E18: 4 | F18: =+COMPMART -> 2500 | G18: =ROUND(F18*E18,0) -> 10000
B19: 2 | C19: Vibrador a gasolina | D19: h | E19: 0.75 | F19: =+CORTADORA -> 3830 | G19: =ROUND(F19*E19,0) -> 2873
B20: 3 | C20: Herramienta menor (% mano de obra) | D20: glb | E20: 0.1 | F20: 7960.8 | G20: =+ROUND(F20,0) -> 7961
E21: SUBTOTAL EQUIPOS | G21: =G18+G20+G19 -> 20834
B23: TRANSPORTE | D23: UNIDAD | E23: DISTANCIA km | F23: VR. UN. ($/ m³*km) | G23: VALOR TOTAL
B24: 1 | C24: No aplica | G24: =+ROUND(E24*F24*D24,0) -> 0
E25: SUBTOTAL TRANSPORTE | G25: 0
B27: MANO DE OBRA | D27: =+D17 -> UNIDAD | E27: CANTIDAD | F27: =+'3.4'!F26 -> VALOR HORA | G27: VALOR TOTAL
B28: 1 | C28: Cuadrilla AA 1Of+2Ay (Albañilería) | D28: h | E28: 3 | F28: =+INSUMOS!D66 -> 184776 | G28: =ROUND(F28*E28,0) -> 554328
G29: =ROUND(F29*E29,0) -> 0
E30: SUBTOTAL MANO DE OBRA | G30: =G28+G29 -> 554328
E31: COSTO DIRECTO | G31: =ROUND(G15+G21+G30+G25,0) -> 756338

Sheet 3.3 (hidden)
D2: PROYECTO TIPO Base estabilizada con cal+Lechada asfáltica 1 km
D6: ANÁLISIS DE PRECIO UNITARIO
B8: CAPÍTULO 3: | D8: Construir de las obras de drenaje con cajas de recolección
B10: ÍTEM | C10: 3.3 | D10: Concreto para caja
D11: Unidad | G11: m³
B12: MATERIALES | D12: UNIDAD | E12: CANTIDAD | F12: VALOR UNITARIO | G12: VALOR TOTAL
B13: 1 | C13: Concreto de 210 kg/cm² (3.000 psi) | D13: m³ | E13: 1.05 | F13: 281270 | G13: =ROUND(F13*E13,0) -> 295334
E14: SUBTOTAL MATERIALES | G14: =SUM(G13:G13) -> 295334
B16: EQUIPOS Y HERRAMIENTAS | D16: =+D12 -> UNIDAD | E16: CANTIDAD | F16: VALOR UNITARIO | G16: VALOR TOTAL
B17: 1 | C17: Herramienta menor (% mano de obra) | D17: glb | E17: 0.1 | F17: 10614.4 | G17: =+ROUND(F17,0) -> 10614
B18: 2 | C18: Vibrador a gasolina | D18: h | E18: 0.8 | F18: 3830 | G18: =ROUND(F18*E18,0) -> 3064
B19: 3 | C19: Formaleta | D19: m | E19: 6 | F19: 2500 | G19: =F19*E19 -> 15000
E20: SUBTOTAL EQUIPOS | G20: =G17+G19+G18 -> 28678
B22: TRANSPORTE | D22: UNIDAD | E22: DISTANCIA km | F22: VR. UN. ($/ m³*km) | G22: VALOR TOTAL
C23: No aplica | G23: =+ROUND(E23*F23*D23,0) -> 0
E24: SUBTOTAL TRANSPORTE | G24: =SUM(G23) -> 0
B26: MANO DE OBRA | D26: =+D16 -> UNIDAD | E26: CANTIDAD | F26: =+'3.1'!F25 -> VALOR HORA | G26: VALOR TOTAL
B27: 1 | C27: Cuadrilla AA 1Of+2Ay (Albañilería) | D27: h | E27: 4 | F27: 26536 | G27: =ROUND(F27*E27,0) -> 106144
G28: =ROUND(F28*E28,0) -> 0
E29: SUBTOTAL MANO DE OBRA | G29: =G27 -> 106144
E30: COSTO DIRECTO | G30: =ROUND(G14+G20+G29,0) -> 430156

Sheet 3.4 (hidden)
D2: PROYECTO TIPO Base estabilizada con cal+Lechada asfáltica 1 km
D6: ANÁLISIS DE PRECIO UNITARIO
B8: CAPÍTULO 3: | D8: CONSTRUIR DE LAS OBRAS DE DRENAJE CON CAJAS DE RECOLECCIÓN
B10: ÍTEM | C10: 3.4 | D10: Acero figurado de refuerzo de 4200 kg/cm² (60.000 psi ) para caja
D11: Unidad | G11: kg
B12: MATERIALES | D12: UNIDAD | E12: CANTIDAD | F12: VALOR UNITARIO | G12: VALOR TOTAL
B13: 1 | C13: Acero de 4200 kg/cm² | D13: kg | E13: 1.05 | F13: 2504 | G13: =ROUND(F13*E13,0) -> 2629
B14: 2 | C14: Alambre negro | D14: kg | E14: 0.03 | F14: 2504 | G14: =ROUND(F14*E14,0) -> 75
E15: SUBTOTAL MATERIALES | G15: =SUM(G13:G14) -> 2704
B17: EQUIPOS Y HERRAMIENTAS | D17: =+D12 -> UNIDAD | E17: CANTIDAD | F17: =+F12 -> VALOR UNITARIO | G17: VALOR TOTAL
B18: 1 | C18: Herramienta menor (% mano de obra) | D18: glb | E18: 0.1 | F18: =+G29*E18 -> 95.7 | G18: =+ROUND(F18,0) -> 96
E19: SUBTOTAL EQUIPOS | G19: =G18 -> 96
B21: TRANSPORTE | D21: UNIDAD | E21: DISTANCIA km | F21: VR. UN. ($/ m³*km) | G21: VALOR TOTAL
C22: No aplica | G22: =+ROUND(E22*F22*D22,0) -> 0
E23: SUBTOTAL TRANSPORTE | G23: =SUM(G22) -> 0
B26: MANO DE OBRA | D26: =+D17 -> UNIDAD | E26: CANTIDAD | F26: =+'2.7'!F25 -> VALOR HORA | G26: VALOR TOTAL
B27: 1 | C27: Cuadrilla AA (Albañilería) 1Of y 1 Ay | D27: h | E27: 0.05 | F27: 19135 | G27: =ROUND(F27*E27,0) -> 957
G28: =ROUND(F28*E28,0) -> 0
E29: SUBTOTAL MANO DE OBRA | G29: =G27+G28 -> 957
E30: COSTO DIRECTO | G30: =ROUND(G15+G19+G29,0) -> 3757

Sheet 4.1 (hidden)
D2: PROYECTO TIPO Base estabilizada con cal+Lechada asfáltica 1 km
D6: ANÁLISIS DE PRECIO UNITARIO
B8: CAPÍTULO 4: | D8: Construir las obras de drenaje con la tubería y cabezales
B10: ÍTEM | C10: 4.1 | D10: Excavación manual 4,5 m * 2,1 m * 1,6 m para cabezales
D11: Unidad | G11: m³
B12: MATERIALES | D12: UNIDAD | E12: CANTIDAD | F12: VALOR UNITARIO | G12: VALOR TOTAL
C13: No aplica
E14: SUBTOTAL MATERIALES | G14: =SUM(G13:G13) -> 0
B16: EQUIPOS Y HERRAMIENTAS | D16: =+D12 -> UNIDAD | E16: CANTIDAD | F16: =+F12 -> VALOR UNITARIO | G16: VALOR TOTAL
B17: 1 | C17: Herramienta menor (% mano de obra) | D17: glb | E17: 0.1 | F17: =+G28*E17 -> 956.8 | G17: =+ROUND(F17,0) -> 957
E18: SUBTOTAL EQUIPOS | G18: =G17 -> 957
B20: TRANSPORTE | D20: UNIDAD m³ | E20: DISTANCIA km | F20: VR. UN. ($/ m³*km) | G20: VALOR TOTAL
B21: 1 | C21: Volqueta 6 m³ (cargue manual) botadero hasta 20 km | D21: 1.1 | E21: 1 | F21: 26465 | G21: =+ROUND(E21*F21*D21,0) -> 29112
B22: 2 | C22: Volqueta 6m³ (cargue manual) botadero adicional mayor 20 km | D22: 1.1 | F22: 1323.25 | G22: =+ROUND(E22*F22*D22,0) -> 0
E23: SUBTOTAL TRANSPORTE | G23: =SUM(G21:G22) -> 29112
B25: MANO DE OBRA | D25: =+D16 -> UNIDAD | E25: =+E16 -> CANTIDAD | F25: =+'2.3'!F26 -> 0 | G25: VALOR TOTAL
B26: 1 | C26: Cuadrilla AA (Albañilería) 1Of y 1 Ay | D26: h | E26: 0.5 | F26: 19135 | G26: =ROUND(F26*E26,0) -> 9568
G27: =ROUND(F27*E27,0) -> 0
E28: SUBTOTAL MANO DE OBRA | G28: =G26+G27 -> 9568
E29: COSTO DIRECTO | G29: =ROUND(G14+G23+G18+G28,0) -> 39637

Sheet 4.2 (hidden)
D2: PROYECTO TIPO Base estabilizada con cal+Lechada asfáltica 1 km
D6: ANÁLISIS DE PRECIO UNITARIO
B8: CAPÍTULO 4: | D8: Construir las obras de drenaje con la tubería y cabezales
B10: Ítem | C10: 4.2 | D10: Concreto resistencia 140 kg/cm² (1.500 psi) para solados en muros y cabezales
D11: Unidad | G11: m³
B12: MATERIALES | D12: UNIDAD | E12: CANTIDAD | F12: VALOR UNITARIO | G12: VALOR TOTAL
B13: 1 | C13: Concreto de 105 kg/cm² | D13: m³ | E13: 0.6 | F13: 175840 | G13: =ROUND(F13*E13,0) -> 105504
B14: 2 | C14: Rajón del municipio | D14: m³ | E14: 0.4 | F14: 129000 | G14: =ROUND(F14*E14,0) -> 51600
E15: SUBTOTAL MATERIALES | G15: =SUM(G13:G14) -> 157104
B17: EQUIPOS Y HERRAMIENTAS | D17: UNIDAD | E17: CANTIDAD | F17: VALOR UNITARIO | G17: VALOR TOTAL
B18: 1 | C18: formaleta madera | D18: m | E18: 6 | F18: 2500 | G18: =ROUND(F18*E18,0) -> 15000
B19: 2 | C19: Vibrador a gasolina | D19: h | E19: 0.8 | F19: 3830 | G19: =ROUND(F19*E19,0) -> 3064
B20: 3 | C20: Herramienta menor (% mano de obra) | D20: glb | E20: 0.1 | F20: 2653.6 | G20: =+ROUND(F20,0) -> 2654
E21: SUBTOTAL EQUIPOS | G21: =G18+G20+G19 -> 20718
B23: TRANSPORTE | D23: UNIDAD | E23: DISTANCIA km | F23: VR. UN. ($/ m³*km) | G23: VALOR TOTAL
C24: No aplica | G24: =+ROUND(E24*F24*D24,0) -> 0
E25: SUBTOTAL TRANSPORTE | G25: 0
B27: MANO DE OBRA | D27: =+D17 -> UNIDAD | E27: =+E17 -> CANTIDAD | F27: =+'3.2'!F27 -> VALOR HORA | G27: VALOR TOTAL
B28: 1 | C28: Cuadrilla AA 1Of+2Ay (Albañilería) | D28: h | E28: 1 | F28: 26536 | G28: =ROUND(F28*E28,0) -> 26536
G29: =ROUND(F29*E29,0) -> 0
E30: SUBTOTAL MANO DE OBRA | G30: =G28+G29 -> 26536
E31: COSTO DIRECTO | G31: =ROUND(G15+G21+G30+G25,0) -> 204358

Sheet 4.3 (hidden)
D2: PROYECTO TIPO Base estabilizada con cal+Lechada asfáltica 1 km
D6: ANÁLISIS DE PRECIO UNITARIO
B8: CAPÍTULO 3: | D8: Construir de las obras de drenaje con cajas de recolección
B10: Ítem | C10: 4.3 | D10: Concreto para estructura muros cabezales resistencia de 210 kg/cm² (3.000 psi)
D11: Unidad | G11: m³
B12: MATERIALES | D12: UNIDAD | E12: CANTIDAD | F12: VALOR UNITARIO | G12: VALOR TOTAL
B13: 1 | C13: Concreto de 210 kg/cm² | D13: m³ | E13: 1.05 | F13: 281270 | G13: =ROUND(F13*E13,0) -> 295334
E14: SUBTOTAL MATERIALES | G14: =SUM(G13:G13) -> 295334
B16: EQUIPOS Y HERRAMIENTAS | D16: UNIDAD | E16: CANTIDAD | F16: VALOR UNITARIO | G16: VALOR TOTAL
B17: 1 | C17: formaleta madera | D17: m² | E17: 6 | F17: 2500 | G17: =ROUND(F17*E17,0) -> 15000
B18: 2 | C18: Vibrador a gasolina | D18: día | E18: 0.8 | F18: 3830 | G18: =ROUND(F18*E18,0) -> 3064
B19: 3 | C19: Herramienta menor (% mano de obra) | D19: glb | E19: 0.1 | F19: 10614.4 | G19: =+ROUND(F19,0) -> 10614
E20: SUBTOTAL EQUIPOS | G20: =G17+G19+G18 -> 28678
B22: TRANSPORTE | D22: UNIDAD | E22: DISTANCIA km | F22: VR. UN. ($/ m³*km) | G22: VALOR TOTAL
C23: No aplica | G23: =+ROUND(E23*F23*D23,0) -> 0
E24: SUBTOTAL TRANSPORTE | G24: 0
B26: MANO DE OBRA | D26: =+D16 -> UNIDAD | E26: CANTIDAD | F26: =+'3.2'!F27 -> VALOR HORA | G26: VALOR TOTAL
B27: 1 | C27: Cuadrilla AA 1Of+2Ay (Albañilería) | D27: h | E27: 4 | F27: 26536 | G27: =ROUND(F27*E27,0) -> 106144
E28: SUBTOTAL MANO DE OBRA | G28: =G27 -> 106144
E29: COSTO DIRECTO | G29: =ROUND(G14+G20+G28,0) -> 430156

Sheet 4.4 (hidden)
D2: PROYECTO TIPO Base estabilizada con cal+Lechada asfáltica 1 km
D6: ANÁLISIS DE PRECIO UNITARIO
B8: CAPÍTULO 4: | D8: Construir las obras de drenaje con la tubería y cabezales
B10: Ítem | C10: 4.4 | D10: Acero figurado de refuerzo de 4.200 kg/cm² (60.000 psi) para cabezal
D11: Unidad | G11: kg
B12: MATERIALES | D12: UNIDAD | E12: CANTIDAD | F12: VALOR UNITARIO | G12: VALOR TOTAL
B13: 1 | C13: Acero de 4200 kg/cm² | D13: kg | E13: 1.05 | F13: 2504 | G13: =ROUND(F13*E13,0) -> 2629
B14: 2 | C14: Alambre negro | D14: kg | E14: 0.03 | F14: 2504 | G14: =ROUND(F14*E14,0) -> 75
E15: SUBTOTAL MATERIALES | G15: =SUM(G13:G14) -> 2704
B17: EQUIPOS Y HERRAMIENTAS | D17: =+D12 -> UNIDAD | E17: CANTIDAD | F17: =+F12 -> VALOR UNITARIO | G17: VALOR TOTAL
B18: 1 | C18: Herramienta menor (% mano de obra) | D18: glb | E18: 0.1 | F18: =+G29*E18 -> 95.7 | G18: =+ROUND(F18,0) -> 96
E19: SUBTOTAL EQUIPOS | G19: =G18 -> 96
B21: TRANSPORTE | D21: UNIDAD | E21: DISTANCIA km | F21: VR. UN. ($/ m³*km) | G21: VALOR TOTAL
C22: No aplica | G22: =+ROUND(E22*F22*D22,0) -> 0
E23: SUBTOTAL TRANSPORTE | G23: =SUM(G22) -> 0
B26: MANO DE OBRA | D26: =+D17 -> UNIDAD | E26: CANTIDAD | F26: =+'2.7'!F25 -> VALOR HORA | G26: VALOR TOTAL
B27: 1 | C27: Cuadrilla AA (Albañilería) 1Of y 1 Ay | D27: h | E27: 0.05 | F27: 19135 | G27: =ROUND(F27*E27,0) -> 957
G28: =ROUND(F28*E28,0) -> 0
E29: SUBTOTAL MANO DE OBRA | G29: =G27+G28 -> 957
E30: COSTO DIRECTO | G30: =ROUND(G15+G19+G29,0) -> 3757

Sheet 4.5 (hidden)
D2: PROYECTO TIPO Base estabilizada con cal+Lechada asfáltica 1 km
D6: ANÁLISIS DE PRECIO UNITARIO
B8: CAPÍTULO 4: | D8: Construir las obras de drenaje con la tubería y cabezales
B10: Ítem | C10: 4.5 | D10: Tubería de diámetro (36" = 0,9 m) una por cada 100 m para alcantarillas
D11: Unidad | G11: m
B12: MATERIALES | D12: UNIDAD | E12: CANTIDAD | F12: VALOR UNITARIO | G12: VALOR TOTAL
B13: 1 | C13: Soldadura PVC wet bonding 1/8 galón | D13: un | E13: 0.3 | F13: 39407 | G13: =ROUND(F13*E13,0) -> 11822
B14: 2 | C14: Limpiador PVC x 1/4 de galón | D14: =+D13 -> un | E14: 0.006631229935 | F14: 19001 | G14: =ROUND(F14*E14,0) -> 126
B15: 3 | C15: Tubería PVC Alcantarillado 36" | D15: m | E15: 1.04 | F15: 980000 | G15: =ROUND(F15*E15,0) -> 1019200
E16: SUBTOTAL MATERIALES | G16: =+SUM(G13:G15) -> 1031148
B18: EQUIPOS Y HERRAMIENTAS | D18: UNIDAD | E18: =+E12 -> CANTIDAD | F18: VALOR UNITARIO | G18: VALOR TOTAL
B19: 1 | C19: Herramienta menor (% mano de obra) | D19: glb | E19: 0.1 | F19: =+G28*E19 -> 841.9 | G19: =+ROUND(F19,0) -> 842
E20: SUBTOTAL EQUIPOS | G20: =+G19 -> 842
B22: TRANSPORTE | D22: UNIDAD | E22: DISTANCIA km | F22: VR. UN. ($/ m³*km) | G22: VALOR TOTAL
C23: No aplica | G23: =+ROUND(E23*F23*D23,0) -> 0
E24: SUBTOTAL TRANSPORTE | G24: 0
B26: MANO DE OBRA | D26: =+D22 -> UNIDAD | E26: =+E18 -> CANTIDAD | F26: =+'4.1'!F25 -> 0 | G26: VALOR TOTAL
B27: 1 | C27: Cuadrilla BB (Instalaciones) 1 Of y 1 Ay | D27: h | E27: 0.4 | F27: 21048 | G27: =ROUND(F27*E27,0) -> 8419
E28: SUBTOTAL MANO DE OBRA | G28: =+G27 -> 8419
E29: COSTO DIRECTO | G29: =G16+G20+G28+G24 -> 1040409

Sheet 221.1 (hidden)
B3: CONTRATO No. | E3: DE
B4: OBJETO DEL CONTRATO
B7: CONTRATISTA
B9: INTERVENTOR
B12: FECHA CIERRE DE LICITACIÓN Y/O SELECCIÓN ABREVIADA
B14: DATOS ESPECÍFICOS
B15: ITEM | C15: DESCRIPCIÓN | L15: UNIDAD | N15: CANTIDAD
A16: Unidad | B16: 221.1 | C16: PEDRAPLÉN COMPACTO | L16: m3
B18: I. EQUIPO
B20: DESCRIPCIÓN | I20: TIPO | K20: TARIFA/HORA | L20: RENDIMIENTO | N20: Vr. UNITARIO
A21: C0010052 | B21: Buldozer, Potencia al volante de 140 HP, motor de 2200 RPM, longitud de hoja 4,80m. | K21: =+BULLDOZER -> 120000 | M21: 40 | N21: =K21/M21 -> 3000
A22: C0010923 | B22: Vibrocompatador, potencia 153 HP, peso 10 Ton. | K22: =+VIBROCOMP -> 116000 | M22: 40 | N22: =K22/M22 -> 2900
B28: SUBTOTAL $ | N28: =SUM(N21:N27) -> 5900
B30: II. MATERIALES
B32: DESCRIPCIÓN | J32: UNIDAD | K32: CANTIDAD | L32: PRECIO UNIT. | N32: Vr. UNITARIO
B33: Material para Pedraplen | J33: m3 | K33: 1.25 | L33: =+PEDRAPLEN -> 45000 | N33: =+L33*K33 -> 56250
B39: SUBTOTAL $ | N39: =SUM(N33:N38) -> 56250
B41: III. TRANSPORTES
B43: MATERIAL | H43: UNIDAD | I43: CANTIDAD (1) | J43: DISTANCIA (2) | K43: (1) * (2) | L43: TARIFA | N43: Vr. UNITARIO
B44: Materal para Pedraplen | H44: m3 | I44: 1.25 | J44: =+TTEPEDRAPLEN -> 20 | K44: =+J44*I44 -> 25 | L44: =+COSTOTTEGRANULAR -> 700 | N44: =+L44*K44 -> 17500
B50: SUBTOTAL $ | N50: =SUM(N44:N49) -> 17500
B52: IV. MANO DE OBRA
B54: TRABAJADOR | I54: JORNAL | J54: PRESTACIONES (%) | K54: JORNAL TOTAL | L54: RENDIMIENTO | N54: Vr. UNITARIO
A55: A0040010 | B55: Oficial | I55: =+OFICIAL -> 77216 | J55: =+FPREST -> 0 | K55: =+J55*I55 -> 0 | M55: 320 | N55: =K55/M55 -> 0
A56: A0030010 | B56: Obrero | I56: =+OBRERO -> 53784 | J56: =+FPREST -> 0 | K56: =+J56*I56 -> 0 | M56: 320 | N56: =K56/M56 -> 0
B61: SUBTOTAL $ | N61: =SUM(N55:N60) -> 0
B63: TOTAL COSTO DIRECTO $ | N63: =N28+N39+N50+N61 -> 79650

Sheet 223.3.1 (hidden)
B2: CONTRATO No. | E2: DE
B3: OBJETO DEL CONTRATO
B6: CONTRATISTA
B8: INTERVENTOR
B11: FECHA CIERRE DE LICITACIÓN Y/O SELECCIÓN ABREVIADA
B13: DATOS ESPECÍFICOS
B14: ITEM | C14: DESCRIPCIÓN | L14: UNIDAD | N14: CANTIDAD
A15: Unidad | B15: 223.3.1 | C15: RELLENO SELECCIONADO PARA TERRAPLENES REFORZADOS CON GEOSINTETICOS | L15: m3
B17: I. EQUIPO
B19: DESCRIPCIÓN | I19: TIPO | K19: TARIFA/HORA | L19: RENDIMIENTO | N19: Vr. UNITARIO
A20: C0010052 | B20: Buldozer, Potencia al volante de 140 HP, motor de 2200 RPM, longitud de hoja 4,80m. | K20: =+BULLDOZER -> 120000 | M20: 45 | N20: =K20/M20 -> 2666.666667
A21: C0010150 | B21: Carrotanque de agua(1000 Galones) | K21: =+CARROTANQUE -> 120000 | M21: 45 | N21: =K21/M21 -> 2666.666667
A22: C0010610 | B22: Motoniveladora potencia 215 HP, ancho de cuchilla 4,27 m, peso 18 ton. | K22: =+MOTONIVELADORA -> 81000 | M22: 45 | N22: =K22/M22 -> 1800
A23: C0010923 | B23: Vibrocompatador, potencia 153 HP, peso 10 Ton. | K23: =+VIBROCOMP -> 116000 | L23: 45 | N23: =K23/L23 -> 2577.777778
B26: HERRAMIENTA MENOR (%) | L26: 0.02 | N26: =N60*L26 -> 0
B27: SUBTOTAL $ | N27: =SUM(N20:N26) -> 9711.111111
B29: II. MATERIALES
B31: DESCRIPCIÓN | J31: UNIDAD | K31: CANTIDAD | L31: PRECIO UNIT. | N31: Vr. UNITARIO
A32: B0014410 | B32: Material seleccionado para Relleno | J32: m3 | K32: 1.25 | M32: =+AFIRMADO -> 129000 | N32: =K32*M32 -> 161250
B38: SUBTOTAL $ | N38: =SUM(N32:N37) -> 161250
B40: III. TRANSPORTES
B42: MATERIAL | H42: UNIDAD | I42: CANTIDAD (1) | J42: DISTANCIA (2) | K42: (1) * (2) | L42: TARIFA | N42: Vr. UNITARIO
A43: T0010062 | B43: Transporte de material seleccionado para relleno | H43: m3/km | I43: 1.25 | J43: =+TTEAFIRMADO -> 15 | K43: =I43*J43 -> 18.75 | L43: =+COSTOTTEGRANULAR -> 700 | N43: =K43*L43 -> 13125
B49: SUBTOTAL $ | N49: =SUM(N43:N48) -> 13125
B51: IV. MANO DE OBRA
B53: TRABAJADOR | I53: JORNAL | J53: PRESTACIONES (%) | K53: JORNAL TOTAL | L53: RENDIMIENTO | N53: Vr. UNITARIO
A54: A0030020 | B54: Obrero (2) | I54: =+OBRERO -> 53784 | J54: =+FPREST -> 0 | K54: =+I54*J54*2 -> 0 | M54: 360 | N54: =K54/M54 -> 0
A55: A0040010 | B55: Oficial | I55: =+OFICIAL -> 77216 | J55: =+FPREST -> 0 | K55: =+J55*I55 -> 0 | M55: 360 | N55: =K55/M55 -> 0
B60: SUBTOTAL $ | N60: =SUM(N54:N59) -> 0
B62: TOTAL COSTO DIRECTO $ | N62: =N27+N38+N49+N60 -> 184086.1111

Sheet 230.1 (hidden)
K1: CÓDIGO | L1: MINFRA-MN-FR-14
C2: INSTITUTO NACIONAL DE VIAS
C3: PROCESO MISIONAL INFRAESTRUCTURA VIAL | K3: VERSIÓN | L3: 1
C4: DIRECCION TECNICA
C5: ANALISIS DE PRECIOS UNITARIOS | K5: PÁGINA | L5: 1 | M5: DE | N5: 1
K9: FECHA | L9: DD | M9: MM | N9: AA
B11: UNIDAD EJECUTORA: | K11: DIRECCIÓN TERRITORIAL:
B18: CONTRATO No. | E18: DE
B19: OBJETO DEL CONTRATO
B22: CONTRATISTA
B24: INTERVENTOR
B27: FECHA CIERRE DE LICITACIÓN Y/O SELECCIÓN ABREVIADA
B29: DATOS ESPECÍFICOS
B30: ITEM | C30: DESCRIPCIÓN | L30: UNIDAD | N30: CANTIDAD
A31: Unidad | B31: 230.1 | C31: MEJORAMIENTO DE LA SUBRASANTE CON ADICION DE MATERIALES | L31: m3
B33: I. EQUIPO
B35: DESCRIPCIÓN | I35: TIPO | K35: TARIFA/HORA | L35: RENDIMIENTO | N35: Vr. UNITARIO
A36: C0010150 | B36: Carrotanque de agua(1000 Galones) | K36: 63539.3 | M36: 45 | N36: =K36/M36 -> 1411.984444
A37: C0010610 | B37: Motoniveladora potencia 215 HP, ancho de cuchilla 4,27 m, peso 18 ton. | K37: 174000 | M37: 45 | N37: =K37/M37 -> 3866.666667
A38: C0010923 | B38: Vibrocompatador, potencia 153 HP, peso 10 Ton. | K38: 78488.78403 | M38: 45 | N38: =K38/M38 -> 1744.195201
B41: HERRAMIENTA MENOR (%) | M41: 0.02 | N41: =N76*M41 -> 4.949717051
B43: SUBTOTAL $ | N43: =SUM(N36:N42) -> 7027.796029
B45: II. MATERIALES
B47: DESCRIPCIÓN | J47: UNIDAD | K47: CANTIDAD | L47: PRECIO UNIT. | N47: Vr. UNITARIO
A48: B0014270 | B48: Material de afirmado | J48: m3 | K48: 1.25 | M48: 13780.08899 | N48: =K48*M48 -> 17225.11124
A49: B0063200 | B49: Agua | J49: lt | K49: 25 | M49: 46.25512252 | N49: =K49*M49 -> 1156.378063
B54: SUBTOTAL $ | N54: =SUM(N48:N53) -> 18381.4893
B56: III. TRANSPORTES
B58: MATERIAL | H58: UNIDAD | I58: CANTIDAD (1) | J58: DISTANCIA (2) | K58: (1) * (2) | L58: TARIFA | N58: Vr. UNITARIO
A59: T0010010 | B59: Transporte de material de afirmado | H59: m3k | I59: 1.25 | J59: 1 | K59: =I59*J59 -> 1.25 | L59: 1250 | N59: =K59*L59 -> 1562.5
B65: SUBTOTAL $ | N65: =N59+N60+N61+N62+N63 -> 1562.5
B67: IV. MANO DE OBRA
B69: TRABAJADOR | I69: JORNAL | J69: PRESTACIONES (%) | K69: JORNAL TOTAL | L69: RENDIMIENTO | N69: Vr. UNITARIO
A70: A0040010 | B70: Oficial | I70: =K70/J70*100 -> 20514.18392 | J70: 185 | K70: 37951.24025 | M70: 360 | N70: =K70/M70 -> 105.4201118
A71: A0030020 | B71: Obrero (2) | I71: =K71/J71*100 -> 27645.22523 | J71: 185 | K71: 51143.66667 | M71: 360 | N71: =K71/M71 -> 142.0657407
B76: SUBTOTAL $ | N76: =SUM(N70:N75) -> 247.4858525
B78: TOTAL COSTO DIRECTO $ | N78: =N43+N54+N65+N76 -> 27219.27118
B80: V. COSTOS INDIRECTOS
B82: Descripción | K82: Porcentaje | L82: Valor Total
B83: ADMINISTRACION | K83: 0.2 | L83: =N78*K83 -> 5443.854237
B84: IMPREVISTOS | K84: 0.05 | L84: =N78*K84 -> 1360.963559
B85: UTILIDAD | K85: 0.05 | L85: =N78*K85 -> 1360.963559
B86: SUBTOTAL $ | N86: =L83+L84+L85 -> 8165.781355
A88: PFinal01 | B88: Precio Unitario Total Aproximado al Peso $ | N88: =N78+N86 -> 35385.05254
G92: Firma
G93: Nombre:
G94: Representante Legal del Contratista o su Apoderado
G95: Matricula No. :
B97: OBSERVACIONES INTERVENTORÍA
G101: Firma
G102: Nombre:
G103: Representante Legal del Interventor o su Apoderado
G104: Matricula No. :
B105: Original: Archivo de Gestión Contractual ( Subdirección Administrativa)
B106: Copias : Unidad Ejecutora, Contratista, Interventor y Dirección Territorial.

Sheet 231.1 (hidden)
B1: MINISTERIO DE TRANSPORTE | J1: CÓDIGO | K1: MSE--FR-14
B2: INSTITUTO NACIONAL DE VIAS
B3: SECRETARÍA GENERAL TÉCNICA | J3: VERSIÓN | K3: 2
B4: PROCESO SUPERVISION, EJECUCION Y SEGUIMIENTO A PROYECTOS
J5: PÁGINA | K5: 1 | L5: DE | M5: 1
B7: ANALISIS DE PRECIOS UNITARIOS
J9: FECHA | K9: DD | L9: MM | M9: AA
A11: UNIDAD EJECUTORA: | H11: DIRECCIÓN TERRITORIAL:
A17: CONTRATO No. | F17: DE
A18: OBJETO DEL CONTRATO
A21: CONTRATISTA :
A23: INTERVENTOR
A25: GESTOR TECNICO DE CONTRATO
A27: FECHA CIERRE DE LICITACIÓN Y/O SELECCIÓN ABREVIADA
A29: DATOS ESPECÍFICOS
A31: ITEM | B31: DESCRIPCIÓN | J31: GRUPO DE AJUSTE | K31: UNIDAD | M31: CANTIDAD
A32: 231.1 | B32: Geotextil para separación de suelos de subrasante y capas granulares | K32: m2
A34: I. EQUIPO
A36: DESCRIPCIÓN | F36: MARCA | H36: TIPO | J36: TARIFA/HORA | K36: RENDIMIENTO | M36: Vr. UNITARIO
A37: HERRAMIENTA MENOR (5%MO) | M37: =0.05*M67 -> 0
M41: =SUM(M37:M40) -> 0
A43: II. MATERIALES
A45: DESCRIPCIÓN | I45: UNIDAD | J45: CANTIDAD | K45: PRECIO UNIT. | M45: Vr. UNITARIO
A46: GEOTEXTIL | I46: M2 | J46: 1.1 | K46: =+GEOTEXTIL -> 2500 | M46: =+J46*K46 -> 2750
A51: SUBTOTAL $ | M51: =SUM(M46:M50) -> 2750
A53: III. TRANSPORTES
A55: MATERIAL | H55: VOL. o PESO | I55: DISTANCIA | J55: M3 o Ton/Km | K55: TARIFA | M55: Vr. UNITARIO
M56: 0
A58: SUBTOTAL $ | M58: 0
A60: IV. MANO DE OBRA
A62: TRABAJADOR | G62: CANTIDAD | H62: JORNAL | I62: PRESTACIONES | J62: JORNAL TOTAL | K62: RENDIMIENTO | M62: Vr. UNITARIO
A63: OBRERO (2) | G63: 2 | H63: =+OBRERO -> 53784 | I63: =+INSUMOS!E61 -> 0 | J63: =+H63*I63*G63 -> 0 | K63: 300 | M63: =+J63/K63 -> 0
A64: OFICIAL (1) | G64: 1 | H64: =+OFICIAL -> 77216 | I64: =+INSUMOS!E61 -> 0 | J64: =+H64*I64*G64 -> 0 | K64: 300 | M64: =+J64/K64 -> 0
A67: SUBTOTAL $ | M67: =SUM(M63:M66) -> 0
A69: TOTAL COSTO DIRECTO $ | M69: =+M67+M58+M51+M41 -> 2750

Sheet 236.1 (hidden)
K1: CÓDIGO | L1: MINFRA-MN-FR-14
C2: INSTITUTO NACIONAL DE VIAS
C3: PROCESO MISIONAL INFRAESTRUCTURA VIAL | K3: VERSIÓN | L3: 1
C4: DIRECCION TECNICA
C5: ANALISIS DE PRECIOS UNITARIOS | K5: PÁGINA | L5: 1 | M5: DE | N5: 1
K9: FECHA | L9: DD | M9: MM | N9: AA
B11: UNIDAD EJECUTORA: | K11: DIRECCIÓN TERRITORIAL:
B18: CONTRATO No. | E18: DE
B19: OBJETO DEL CONTRATO
B22: CONTRATISTA
B24: INTERVENTOR
B27: FECHA CIERRE DE LICITACIÓN Y/O SELECCIÓN ABREVIADA
B29: DATOS ESPECÍFICOS
B30: ITEM | C30: DESCRIPCIÓN | L30: UNIDAD | N30: CANTIDAD
A31: Unidad | B31: 236.1 | C31: SUBRASANTE ESTABILIZADA CON CAL(INCLUYE SUMINISTRO DE CAL) | L31: m3
B33: I. EQUIPO
B35: DESCRIPCIÓN | I35: TIPO | K35: TARIFA/HORA | L35: RENDIMIENTO | N35: Vr. UNITARIO
A36: C0010150 | B36: Carrotanque de agua(1000 Galones) | K36: 63539.3 | M36: 35 | N36: =K36/M36 -> 1815.408571
A37: C0010610 | B37: Motoniveladora potencia 215 HP, ancho de cuchilla 4,27 m, peso 18 ton. | K37: 174000 | M37: 35 | N37: =K37/M37 -> 4971.428571
A38: C0010923 | B38: Vibrocompatador, potencia 153 HP, peso 10 Ton. | K38: 78488.78403 | M38: 35 | N38: =K38/M38 -> 2242.536687
B41: HERRAMIENTA MENOR (%) | M41: 0.02 | N41: =N76*M41 -> 9.357142857
B43: SUBTOTAL $ | N43: =SUM(N36:N42) -> 9038.730972
B45: II. MATERIALES
B47: DESCRIPCIÓN | J47: UNIDAD | K47: CANTIDAD | L47: PRECIO UNIT. | N47: Vr. UNITARIO
A48: B0013450 | B48: Cal | J48: kg | K48: 80 | M48: 966.9 | N48: =K48*M48 -> 77352
A49: B0063200 | B49: Agua | J49: lt | K49: 25 | M49: 46.25512252 | N49: =K49*M49 -> 1156.378063
B54: SUBTOTAL $ | N54: =SUM(N48:N53) -> 78508.37806
B56: III. TRANSPORTES
B58: MATERIAL | H58: UNIDAD | I58: CANTIDAD (1) | J58: DISTANCIA (2) | K58: (1) * (2) | L58: TARIFA | N58: Vr. UNITARIO
B65: SUBTOTAL $
B67: IV. MANO DE OBRA
B69: TRABAJADOR | I69: JORNAL | J69: PRESTACIONES (%) | K69: JORNAL TOTAL | L69: RENDIMIENTO | N69: Vr. UNITARIO
A70: A0040010 | B70: Oficial | I70: =K70/J70*100 -> 41738.37838 | J70: 185 | K70: =+RASTRILLERO -> 77216 | M70: 280 | N70: =K70/M70 -> 275.7714286
A71: A0030020 | B71: Obrero (2) | I71: =K71/J71*100 -> 29072.43243 | J71: 185 | K71: =+CADENEROS -> 53784 | M71: 280 | N71: =K71/M71 -> 192.0857143
B76: SUBTOTAL $ | N76: =SUM(N70:N75) -> 467.8571429
B78: TOTAL COSTO DIRECTO $ | N78: =N43+N54+N65+N76 -> 88014.96618
B80: V. COSTOS INDIRECTOS
B82: Descripción | K82: Porcentaje | L82: Valor Total
B83: ADMINISTRACION | K83: 0.2 | L83: =N78*K83 -> 17602.99324
B84: IMPREVISTOS | K84: 0.05 | L84: =N78*K84 -> 4400.748309
B85: UTILIDAD | K85: 0.05 | L85: =N78*K85 -> 4400.748309
B86: SUBTOTAL $ | N86: =L83+L84+L85 -> 26404.48985
A88: PFinal01 | B88: Precio Unitario Total Aproximado al Peso $ | N88: =N78+N86 -> 114419.456
G92: Firma
G93: Nombre:
G94: Representante Legal del Contratista o su Apoderado
G95: Matricula No. :
B97: OBSERVACIONES INTERVENTORÍA
G101: Firma
G102: Nombre:
G103: Representante Legal del Interventor o su Apoderado
G104: Matricula No. :
B105: Original: Archivo de Gestión Contractual ( Subdirección Administrativa)
B106: Copias : Unidad Ejecutora, Contratista, Interventor y Dirección Territorial.

Sheet 310.1 (hidden)
B1: MINISTERIO DE TRANSPORTE | J1: CÓDIGO | K1: MSE--FR-14
B2: INSTITUTO NACIONAL DE VIAS
B3: SECRETARÍA GENERAL TÉCNICA | J3: VERSIÓN | K3: 2
B4: PROCESO SUPERVISION, EJECUCION Y SEGUIMIENTO A PROYECTOS
J5: PÁGINA | K5: 1 | L5: DE | M5: 1
B7: ANALISIS DE PRECIOS UNITARIOS
J9: FECHA | K9: DD | L9: MM | M9: AA
A11: UNIDAD EJECUTORA: | H11: DIRECCIÓN TERRITORIAL:
A17: CONTRATO No. | F17: DE
A18: OBJETO DEL CONTRATO
A21: CONTRATISTA :
A23: INTERVENTOR
A25: GESTOR TECNICO DE CONTRATO
A27: FECHA CIERRE DE LICITACIÓN Y/O SELECCIÓN ABREVIADA
A29: DATOS ESPECÍFICOS
A31: ITEM | B31: DESCRIPCIÓN | J31: GRUPO DE AJUSTE | K31: UNIDAD | M31: CANTIDAD
A32: 310.10 | B32: Conformación de la calzada existente | K32: m2
A34: I. EQUIPO
A36: DESCRIPCIÓN | F36: MARCA | H36: TIPO | J36: TARIFA/HORA | K36: RENDIMIENTO | M36: Vr. UNITARIO
A37: MOTONIVELADORA DE 120HP | J37: =+MOTONIVELADORA -> 81000 | K37: 600 | M37: =+J37/K37 -> 135
A38: COMPACTADOR VIBRATORIO DE 8 TON | J38: =+VIBROCOMP -> 116000 | K38: 600 | M38: =+J38/K38 -> 193.3333333
A39: CARROTANQUE DE AGUA 1000 LITROS | J39: =+CARROTANQUE -> 120000 | K39: 600 | M39: 200
A40: SUBTOTAL $ | M40: =SUM(M37:M39) -> 528.3333333
A42: II. MATERIALES
A44: DESCRIPCIÓN | I44: UNIDAD | J44: CANTIDAD | K44: PRECIO UNIT. | M44: Vr. UNITARIO
A45: AGUA | I45: LT | J45: 0.5 | K45: =+AGUA -> 30 | M45: =+K45*J45 -> 15
A47: SUBTOTAL $ | M47: =SUM(M45:M46) -> 15
A49: III. TRANSPORTES
A51: MATERIAL | H51: VOL. o PESO | I51: DISTANCIA | J51: M3 o Ton/Km | K51: TARIFA | M51: Vr. UNITARIO
A54: SUBTOTAL $
A56: IV. MANO DE OBRA
A58: TRABAJADOR | G58: CANTIDAD | H58: JORNAL | I58: PRESTACIONES | J58: JORNAL TOTAL | K58: RENDIMIENTO | M58: Vr. UNITARIO
A59: OBREROS (2) | G59: 2 | H59: =+OBRERO -> 53784 | I59: =+INSUMOS!E61 -> 0 | J59: =+H59*I59*G59 -> 0 | K59: 4800 | M59: =+J59/K59 -> 0
A63: SUBTOTAL $ | M63: 15.41666667
A65: TOTAL COSTO DIRECTO $ | M65: =+M63+M54+M47+M40 -> 558.75 | N65: =+M63+M54+M47+M40 -> 558.75

Sheet 311.1 (hidden)
K1: CÓDIGO | L1: MINFRA-MN-FR-14
C2: INSTITUTO NACIONAL DE VIAS
C3: PROCESO MISIONAL INFRAESTRUCTURA VIAL | K3: VERSIÓN | L3: 1
C4: DIRECCION TECNICA
C5: ANALISIS DE PRECIOS UNITARIOS | K5: PÁGINA | L5: 1 | M5: DE | N5: 1
K9: FECHA | L9: DD | M9: MM | N9: AA
B11: UNIDAD EJECUTORA: | K11: DIRECCIÓN TERRITORIAL:
B18: CONTRATO No. | E18: DE
B19: OBJETO DEL CONTRATO
B22: CONTRATISTA
B24: INTERVENTOR
B27: FECHA CIERRE DE LICITACIÓN Y/O SELECCIÓN ABREVIADA
B29: DATOS ESPECÍFICOS
B30: ITEM | C30: DESCRIPCIÓN | L30: UNIDAD | N30: CANTIDAD
A31: Unidad | B31: 311.1 | C31: AFIRMADO | L31: m3
B33: I. EQUIPO
B35: DESCRIPCIÓN | I35: TIPO | K35: TARIFA/HORA | L35: RENDIMIENTO | N35: Vr. UNITARIO
A36: C0010150 | B36: Carrotanque de agua(1000 Galones) | K36: 63539.3 | M36: 45 | N36: =K36/M36 -> 1411.984444
A37: C0010610 | B37: Motoniveladora potencia 215 HP, ancho de cuchilla 4,27 m, peso 18 ton. | K37: 174000 | M37: 45 | N37: =K37/M37 -> 3866.666667
A38: C0010923 | B38: Vibrocompatador, potencia 153 HP, peso 10 Ton. | K38: 78488.78403 | M38: 45 | N38: =K38/M38 -> 1744.195201
B41: HERRAMIENTA MENOR (%) | M41: 0.02 | N41: =N75*M41 -> 4.949717051
B43: SUBTOTAL $ | N43: =SUM(N36:N42) -> 7027.796029
B45: II. MATERIALES
B47: DESCRIPCIÓN | J47: UNIDAD | K47: CANTIDAD | L47: PRECIO UNIT. | N47: Vr. UNITARIO
A48: B0063200 | B48: Agua | J48: lt | K48: 25 | M48: 46.25512252 | N48: =K48*M48 -> 1156.378063
A49: B0014281 | B49: Material de afirmado de la Zona | J49: m3 | K49: 1.25 | M49: 21785.4 | N49: =K49*M49 -> 27231.75
B53: SUBTOTAL $ | N53: =SUM(N48:N52) -> 28388.12806
B55: III. TRANSPORTES
B57: MATERIAL | H57: UNIDAD | I57: CANTIDAD (1) | J57: DISTANCIA (2) | K57: (1) * (2) | L57: TARIFA | N57: Vr. UNITARIO
A58: T0010089 | B58: Transporte de Material de Afirmado de la Zona | H58: m3km | I58: 1.25 | J58: 1 | K58: =I58*J58 -> 1.25 | L58: 1250 | N58: =K58*L58 -> 1562.5
B64: SUBTOTAL $ | N64: =N58+N59+N60+N61+N62 -> 1562.5
B66: IV. MANO DE OBRA
B68: TRABAJADOR | I68: JORNAL | J68: PRESTACIONES (%) | K68: JORNAL TOTAL | L68: RENDIMIENTO | N68: Vr. UNITARIO
A69: A0040010 | B69: Oficial | I69: =K69/J69*100 -> 20514.18392 | J69: 185 | K69: 37951.24025 | M69: 360 | N69: =K69/M69 -> 105.4201118
A70: A0030020 | B70: Obrero (2) | I70: =K70/J70*100 -> 27645.22523 | J70: 185 | K70: 51143.66667 | M70: 360 | N70: =K70/M70 -> 142.0657407
B75: SUBTOTAL $ | N75: =SUM(N69:N74) -> 247.4858525
B77: TOTAL COSTO DIRECTO $ | N77: =N43+N53+N64+N75 -> 37225.90994
B79: V. COSTOS INDIRECTOS
B81: Descripción | K81: Porcentaje | L81: Valor Total
B82: ADMINISTRACION | K82: 0.2 | L82: =N77*K82 -> 7445.181989
B83: IMPREVISTOS | K83: 0.05 | L83: =N77*K83 -> 1861.295497
B84: UTILIDAD | K84: 0.05 | L84: =N77*K84 -> 1861.295497
B85: SUBTOTAL $ | N85: =L82+L83+L84 -> 11167.77298
A87: PFinal01 | B87: Precio Unitario Total Aproximado al Peso $ | N87: =N77+N85 -> 48393.68293
G91: Firma
G92: Nombre:
G93: Representante Legal del Contratista o su Apoderado
G94: Matricula No. :
B96: OBSERVACIONES INTERVENTORÍA
G100: Firma
G101: Nombre:
G102: Representante Legal del Interventor o su Apoderado
G103: Matricula No. :
B104: Original: Archivo de Gestión Contractual ( Subdirección Administrativa)
B105: Copias : Unidad Ejecutora, Contratista, Interventor y Dirección Territorial.

Sheet 320.1 (hidden)
B1: MINISTERIO DE TRANSPORTE | J1: CÓDIGO | K1: MSE--FR-14
B2: INSTITUTO NACIONAL DE VIAS
B3: SECRETARÍA GENERAL TÉCNICA | J3: VERSIÓN | K3: 2
B4: PROCESO SUPERVISION, EJECUCION Y SEGUIMIENTO A PROYECTOS
J5: PÁGINA | K5: 1 | L5: DE | M5: 1
B7: ANALISIS DE PRECIOS UNITARIOS
J9: FECHA | K9: DD | L9: MM | M9: AA
A11: UNIDAD EJECUTORA: | H11: DIRECCIÓN TERRITORIAL:
A17: CONTRATO No. | F17: DE
A18: OBJETO DEL CONTRATO
A21: CONTRATISTA :
A23: INTERVENTOR
A25: GESTOR TECNICO DE CONTRATO
A27: FECHA CIERRE DE LICITACIÓN Y/O SELECCIÓN ABREVIADA
A29: DATOS ESPECÍFICOS
A31: ITEM | B31: DESCRIPCIÓN | J31: GRUPO DE AJUSTE | K31: UNIDAD | M31: CANTIDAD
A32: 320.1 | B32: Subbase granular | K32: m3
A34: I. EQUIPO
A36: DESCRIPCIÓN | F36: MARCA | H36: TIPO | J36: TARIFA/HORA | K36: RENDIMIENTO | M36: Vr. UNITARIO
A37: MOTONIVELADORA DE 120HP | J37: =+INSUMOS!F36 -> 81000 | K37: 40 | M37: =+J37/K37 -> 2025
A38: COMPACTADOR VIBRATORIO DE 8 TON | J38: =+INSUMOS!F37 -> 116000 | K38: 40 | M38: =+J38/K38 -> 2900
A39: CARROTANQUE DE AGUA 1000 LITROS | J39: =+INSUMOS!F38 -> 120000 | K39: 40 | M39: 3000
A40: SUBTOTAL $ | M40: =SUM(M37:M39) -> 7925
A42: II. MATERIALES
A44: DESCRIPCIÓN | I44: UNIDAD | J44: CANTIDAD | K44: PRECIO UNIT. | M44: Vr. UNITARIO
A45: MATERIAL DE SUBBASE | I45: M3 | J45: 1.25 | K45: =+SBG -> 29151 | M45: =+K45*J45 -> 36438.75
A47: SUBTOTAL $ | M47: =SUM(M45:M46) -> 36438.75
A49: III. TRANSPORTES
A51: MATERIAL | H51: VOL. o PESO | I51: DISTANCIA | J51: M3 o Ton/Km | K51: TARIFA | M51: Vr. UNITARIO
A52: MATERIAL DE SUBBASE | H52: 1.25 | I52: =+TTESBG -> 50 | J52: 81.25 | K52: =+COSTOTTEGRANULAR -> 700 | M52: =+H52*I52*K52 -> 43750
A54: SUBTOTAL $ | M54: =SUM(M52:M53) -> 43750
A56: IV. MANO DE OBRA
A58: TRABAJADOR | G58: CANTIDAD | H58: JORNAL | I58: PRESTACIONES | J58: JORNAL TOTAL | K58: RENDIMIENTO | M58: Vr. UNITARIO
A59: OBREROS (2) | G59: 2 | H59: =+OBRERO -> 53784 | I59: =+INSUMOS!E61 -> 0 | J59: =+H59*I59*G59 -> 0 | K59: 320 | M59: =+J59/K59 -> 0
A63: SUBTOTAL $ | M63: =SUM(M59:M62) -> 0
A65: TOTAL COSTO DIRECTO $ | M65: =+M63+M54+M47+M40 -> 88113.75

Sheet 320.3 (hidden)
K1: CÓDIGO | L1: MINFRA-MN-FR-14
C2: INSTITUTO NACIONAL DE VIAS
C3: PROCESO MISIONAL INFRAESTRUCTURA VIAL | K3: VERSIÓN | L3: 1
C4: DIRECCION TECNICA
C5: ANALISIS DE PRECIOS UNITARIOS | K5: PÁGINA | L5: 1 | M5: DE | N5: 1
K9: FECHA | L9: DD | M9: MM | N9: AA
B11: UNIDAD EJECUTORA: | K11: DIRECCIÓN TERRITORIAL:
B18: CONTRATO No. | E18: DE
B19: OBJETO DEL CONTRATO
B22: CONTRATISTA
B24: INTERVENTOR
B27: FECHA CIERRE DE LICITACIÓN Y/O SELECCIÓN ABREVIADA
B29: DATOS ESPECÍFICOS
B30: ITEM | C30: DESCRIPCIÓN | L30: UNIDAD | N30: CANTIDAD
A31: Unidad | B31: 320.3 | C31: SUBBASE GRANULAR CLASE C | L31: m3
B33: I. EQUIPO
B35: DESCRIPCIÓN | I35: TIPO | K35: TARIFA/HORA | L35: RENDIMIENTO | N35: Vr. UNITARIO
A36: C0010150 | B36: Carrotanque de agua(1000 Galones) | K36: =+CARROTANQUEASF -> 63539.3 | M36: 45 | N36: =K36/M36 -> 1411.984444
A37: C0010610 | B37: Motoniveladora potencia 215 HP, ancho de cuchilla 4,27 m, peso 18 ton. | K37: =+COMPRESOR -> 174000 | M37: 45 | N37: =K37/M37 -> 3866.666667
A38: C0010923 | B38: Vibrocompatador, potencia 153 HP, peso 10 Ton. | K38: =+FINISHER -> 78488.78403 | M38: 45 | N38: =K38/M38 -> 1744.195201
B41: HERRAMIENTA MENOR (%) | M41: 0.01 | N41: =N76*M41 -> 0
B43: SUBTOTAL $ | N43: =SUM(N36:N42) -> 7022.846312
B45: II. MATERIALES
B47: DESCRIPCIÓN | J47: UNIDAD | K47: CANTIDAD | L47: PRECIO UNIT. | N47: Vr. UNITARIO
A48: B0014361 | B48: Material de Sub Base CBR=40% | J48: m3 | K48: 1.3 | M48: =+GRAVACCTO -> 26861.10183 | N48: =K48*M48 -> 34919.43238
A49: B0063200 | B49: Agua | J49: lt | K49: 24 | M49: 46.25512252 | N49: =K49*M49 -> 1110.12294
B54: SUBTOTAL $ | N54: =SUM(N48:N53) -> 36029.55532
B56: III. TRANSPORTES
B58: MATERIAL | H58: UNIDAD | I58: CANTIDAD (1) | J58: DISTANCIA (2) | K58: (1) * (2) | L58: TARIFA | N58: Vr. UNITARIO
A59: T0010030 | B59: Transporte de material de subbase | H59: m3k | I59: 1.3 | J59: 1 | K59: =I59*J59 -> 1.3 | L59: 1250 | N59: =K59*L59 -> 1625
B65: SUBTOTAL $ | N65: =N59+N60+N61+N62+N63 -> 1625
B67: IV. MANO DE OBRA
B69: TRABAJADOR | I69: JORNAL | J69: PRESTACIONES (%) | K69: JORNAL TOTAL | L69: RENDIMIENTO | N69: Vr. UNITARIO
A70: A0040010 | B70: Oficial | I70: =+OFICIAL -> 77216 | J70: =+FPREST*100 -> 0 | K70: =+(J70/100)*I70 -> 0 | M70: 360 | N70: =K70/M70 -> 0
A71: A0030020 | B71: Obrero (2) | I71: =+OBRERO -> 53784 | J71: =+FPREST*100 -> 0 | K71: =+(J71/100)*I71 -> 0 | M71: 360 | N71: =K71/M71 -> 0
B76: SUBTOTAL $ | N76: =SUM(N70:N75) -> 0
B78: TOTAL COSTO DIRECTO $ | N78: =N43+N54+N65+N76 -> 44677.40163
B80: V. COSTOS INDIRECTOS
B82: Descripción | K82: Porcentaje | L82: Valor Total
B83: ADMINISTRACION | K83: 0.2 | L83: =N78*K83 -> 8935.480326
B84: IMPREVISTOS | K84: 0.05 | L84: =N78*K84 -> 2233.870081
B85: UTILIDAD | K85: 0.05 | L85: =N78*K85 -> 2233.870081
B86: SUBTOTAL $ | N86: =L83+L84+L85 -> 13403.22049
A88: PFinal01 | B88: Precio Unitario Total Aproximado al Peso $ | N88: =N78+N86 -> 58080.62212
G92: Firma
G93: Nombre:
G94: Representante Legal del Contratista o su Apoderado
G95: Matricula No. :
B97: OBSERVACIONES INTERVENTORÍA
G101: Firma
G102: Nombre:
G103: Representante Legal del Interventor o su Apoderado
G104: Matricula No. :
B105: Original: Archivo de Gestión Contractual ( Subdirección Administrativa)
B106: Copias : Unidad Ejecutora, Contratista, Interventor y Dirección Territorial.

Sheet 330.1 (hidden)
B1: MINISTERIO DE TRANSPORTE | J1: CÓDIGO | K1: MSE--FR-14
B2: INSTITUTO NACIONAL DE VIAS
B3: SECRETARÍA GENERAL TÉCNICA | J3: VERSIÓN | K3: 2
B4: PROCESO SUPERVISION, EJECUCION Y SEGUIMIENTO A PROYECTOS
J5: PÁGINA | K5: 1 | L5: DE | M5: 1
B7: ANALISIS DE PRECIOS UNITARIOS
J9: FECHA | K9: DD | L9: MM | M9: AA
A11: UNIDAD EJECUTORA: | H11: DIRECCIÓN TERRITORIAL:
A17: CONTRATO No. | F17: DE
A18: OBJETO DEL CONTRATO
A21: CONTRATISTA :
A23: INTERVENTOR
A25: GESTOR TECNICO DE CONTRATO
A27: FECHA CIERRE DE LICITACIÓN Y/O SELECCIÓN ABREVIADA
A29: DATOS ESPECÍFICOS
A31: ITEM | B31: DESCRIPCIÓN | J31: GRUPO DE AJUSTE | K31: UNIDAD | M31: CANTIDAD
A32: 330.1 | B32: Base granular | K32: m3
A34: I. EQUIPO
A36: DESCRIPCIÓN | F36: MARCA | H36: TIPO | J36: TARIFA/HORA | K36: RENDIMIENTO | M36: Vr. UNITARIO
A37: MOTONIVELADORA DE 120HP | J37: =+MOTONIVELADORA -> 81000 | K37: 40 | M37: =+J37/K37 -> 2025
A38: COMPACTADOR VIBRATORIO DE 8 TON | J38: =+VIBROCOMP -> 116000 | K38: 40 | M38: =+J38/K38 -> 2900
A39: CARROTANQUE DE AGUA 1000 LITROS | J39: =+CARROTANQUE -> 120000 | K39: 40 | M39: 3000
A40: SUBTOTAL $ | M40: =SUM(M37:M39) -> 7925
A42: II. MATERIALES
A44: DESCRIPCIÓN | I44: UNIDAD | J44: CANTIDAD | K44: PRECIO UNIT. | M44: Vr. UNITARIO
A45: MATERIAL DE BASE PROCESADO EN PLANTA | I45: M3 | J45: 1.25 | K45: =+BG -> 35200 | M45: =+K45*J45 -> 44000
A47: SUBTOTAL $ | M47: =SUM(M45:M46) -> 44000
A49: III. TRANSPORTES
A51: MATERIAL | H51: VOL. o PESO | I51: DISTANCIA | J51: M3 o Ton/Km | K51: TARIFA | M51: Vr. UNITARIO
A52: MATERIAL DE BASE | H52: 1.25 | I52: =+TTEBG -> 50 | J52: 81.25 | K52: =+COSTOTTEGRANULAR -> 700 | M52: =+H52*I52*K52 -> 43750
A54: SUBTOTAL $ | M54: =SUM(M52:M53) -> 43750
A56: IV. MANO DE OBRA
A58: TRABAJADOR | G58: CANTIDAD | H58: JORNAL | I58: PRESTACIONES | J58: JORNAL TOTAL | K58: RENDIMIENTO | M58: Vr. UNITARIO
A59: OBREROS (2) | G59: 2 | H59: =+INSUMOS!D61 -> 53784 | I59: =+INSUMOS!E61 -> 0 | J59: =+I59*H59*G59 -> 0 | K59: 320 | M59: =+J59/K59 -> 0
A63: SUBTOTAL $ | M63: =SUM(M59:M62) -> 0
A65: TOTAL COSTO DIRECTO $ | M65: =+M63+M54+M47+M40 -> 95675

Sheet 330.3 (hidden)
K1: CÓDIGO | L1: MINFRA-MN-FR-14
C2: INSTITUTO NACIONAL DE VIAS
C3: PROCESO MISIONAL INFRAESTRUCTURA VIAL | K3: VERSIÓN | L3: 1
C4: DIRECCION TECNICA
C5: ANALISIS DE PRECIOS UNITARIOS | K5: PÁGINA | L5: 1 | M5: DE | N5: 1
K9: FECHA | L9: DD | M9: MM | N9: AA
B11: UNIDAD EJECUTORA: | K11: DIRECCIÓN TERRITORIAL:
B18: CONTRATO No. | E18: DE
B19: OBJETO DEL CONTRATO
B22: CONTRATISTA
B24: INTERVENTOR
B27: FECHA CIERRE DE LICITACIÓN Y/O SELECCIÓN ABREVIADA
B29: DATOS ESPECÍFICOS
B30: ITEM | C30: DESCRIPCIÓN | L30: UNIDAD | N30: CANTIDAD
A31: Unidad | B31: 330.3 | C31: BASE GRANULAR CLASE C | L31: m3
B33: I. EQUIPO
B35: DESCRIPCIÓN | I35: TIPO | K35: TARIFA/HORA | L35: RENDIMIENTO | N35: Vr. UNITARIO
A36: C0010150 | B36: Carrotanque de agua(1000 Galones) | K36: 63539.3 | M36: 45 | N36: =K36/M36 -> 1411.984444
A37: C0010610 | B37: Motoniveladora potencia 215 HP, ancho de cuchilla 4,27 m, peso 18 ton. | K37: 174000 | M37: 45 | N37: =K37/M37 -> 3866.666667
A38: C0010923 | B38: Vibrocompatador, potencia 153 HP, peso 10 Ton. | K38: 78488.78403 | M38: 45 | N38: =K38/M38 -> 1744.195201
B41: HERRAMIENTA MENOR (%) | M41: 0.01 | N41: =N76*M41 -> 2.474858525
B43: SUBTOTAL $ | N43: =SUM(N36:N42) -> 7025.32117
B45: II. MATERIALES
B47: DESCRIPCIÓN | J47: UNIDAD | K47: CANTIDAD | L47: PRECIO UNIT. | N47: Vr. UNITARIO
A48: B0014320 | B48: Material de base (gradación 3) | J48: m3 | K48: 1.3 | M48: 32378.25828 | N48: =K48*M48 -> 42091.73576
A49: B0063200 | B49: Agua | J49: lt | K49: 24 | M49: 46.25512252 | N49: =K49*M49 -> 1110.12294
B54: SUBTOTAL $ | N54: =SUM(N48:N53) -> 43201.8587
B56: III. TRANSPORTES
B58: MATERIAL | H58: UNIDAD | I58: CANTIDAD (1) | J58: DISTANCIA (2) | K58: (1) * (2) | L58: TARIFA | N58: Vr. UNITARIO
A59: T0010030 | B59: Transporte de material de subbase | H59: m3k | I59: 1.3 | J59: 1 | K59: =I59*J59 -> 1.3 | L59: 1250 | N59: =K59*L59 -> 1625
B65: SUBTOTAL $ | N65: =N59+N60+N61+N62+N63 -> 1625
B67: IV. MANO DE OBRA
B69: TRABAJADOR | I69: JORNAL | J69: PRESTACIONES (%) | K69: JORNAL TOTAL | L69: RENDIMIENTO | N69: Vr. UNITARIO
A70: A0040010 | B70: Oficial | I70: =K70/J70*100 -> 20514.18392 | J70: 185 | K70: 37951.24025 | M70: 360 | N70: =K70/M70 -> 105.4201118
A71: A0030020 | B71: Obrero (2) | I71: =K71/J71*100 -> 27645.22523 | J71: 185 | K71: 51143.66667 | M71: 360 | N71: =K71/M71 -> 142.0657407
B76: SUBTOTAL $ | N76: =SUM(N70:N75) -> 247.4858525
B78: TOTAL COSTO DIRECTO $ | N78: =N43+N54+N65+N76 -> 52099.66573
B80: V. COSTOS INDIRECTOS
B82: Descripción | K82: Porcentaje | L82: Valor Total
B83: ADMINISTRACION | K83: 0.2 | L83: =N78*K83 -> 10419.93315
B84: IMPREVISTOS | K84: 0.05 | L84: =N78*K84 -> 2604.983286
B85: UTILIDAD | K85: 0.05 | L85: =N78*K85 -> 2604.983286
B86: SUBTOTAL $ | N86: =L83+L84+L85 -> 15629.89972
A88: PFinal01 | B88: Precio Unitario Total Aproximado al Peso $ | N88: =N78+N86 -> 67729.56545
G92: Firma
G93: Nombre:
G94: Representante Legal del Contratista o su Apoderado
G95: Matricula No. :
B97: OBSERVACIONES INTERVENTORÍA
G101: Firma
G102: Nombre:
G103: Representante Legal del Interventor o su Apoderado
G104: Matricula No. :
B105: Original: Archivo de Gestión Contractual ( Subdirección Administrativa)
B106: Copias : Unidad Ejecutora, Contratista, Interventor y Dirección Territorial.

Sheet 351.1 (hidden)
K1: CÓDIGO | L1: MINFRA-MN-FR-14
C2: INSTITUTO NACIONAL DE VIAS
C3: PROCESO MISIONAL INFRAESTRUCTURA VIAL | K3: VERSIÓN | L3: 1
C4: DIRECCION TECNICA
C5: ANALISIS DE PRECIOS UNITARIOS | K5: PÁGINA | L5: 1 | M5: DE | N5: 1
K9: FECHA | L9: DD | M9: MM | N9: AA
B11: UNIDAD EJECUTORA: | K11: DIRECCIÓN TERRITORIAL:
B18: CONTRATO No. | E18: DE
B19: OBJETO DEL CONTRATO
B22: CONTRATISTA
B24: INTERVENTOR
B27: FECHA CIERRE DE LICITACIÓN Y/O SELECCIÓN ABREVIADA
B29: DATOS ESPECÍFICOS
B30: ITEM | C30: DESCRIPCIÓN | L30: UNIDAD | N30: CANTIDAD
A31: Unidad | B31: 351.1 | C31: BASE TRATADA CON CEMENTO RESISTENCIA R-3.5 (INCLUYE SUMINISTRO DE CEMENTO) | L31: m3
B33: I. EQUIPO
B35: DESCRIPCIÓN | I35: TIPO | K35: TARIFA/HORA | L35: RENDIMIENTO | N35: Vr. UNITARIO
A36: C0010150 | B36: Carrotanque de agua(1000 Galones) | K36: 63539.3 | M36: 45 | N36: =K36/M36 -> 1411.984444
A37: C0010611 | B37: Motoniveladora, potencia 140 HP, ancho de cuchilla 3,66 m, peso 11 ton. | K37: 95000 | M37: 45 | N37: =K37/M37 -> 2111.111111
A38: C0010923 | B38: Vibrocompatador, potencia 153 HP, peso 10 Ton. | K38: 78488.78403 | M38: 45 | N38: =K38/M38 -> 1744.195201
B41: HERRAMIENTA MENOR (%) | M41: 0.01 | N41: =N76*M41 -> 2.474858525
B43: SUBTOTAL $ | N43: =SUM(N36:N42) -> 5269.765615
B45: II. MATERIALES
B47: DESCRIPCIÓN | J47: UNIDAD | K47: CANTIDAD | L47: PRECIO UNIT. | N47: Vr. UNITARIO
A48: B0014310 | B48: Material de base (gradación 2) | J48: m3 | K48: 1.3 | M48: 53012 | N48: =K48*M48 -> 68915.6
A49: B0100001 | B49: Cemento gris | J49: kg | K49: 90 | M49: 580 | N49: =K49*M49 -> 52200
B54: SUBTOTAL $ | N54: =SUM(N48:N53) -> 121115.6
B56: III. TRANSPORTES
B58: MATERIAL | H58: UNIDAD | I58: CANTIDAD (1) | J58: DISTANCIA (2) | K58: (1) * (2) | L58: TARIFA | N58: Vr. UNITARIO
A59: T0010023 | B59: Transporte de Material de Base | H59: m3k | I59: 1.3 | J59: 1 | K59: =I59*J59 -> 1.3 | L59: 1250 | N59: =K59*L59 -> 1625
B65: SUBTOTAL $ | N65: =N59+N60+N61+N62+N63 -> 1625
B67: IV. MANO DE OBRA
B69: TRABAJADOR | I69: JORNAL | J69: PRESTACIONES (%) | K69: JORNAL TOTAL | L69: RENDIMIENTO | N69: Vr. UNITARIO
A70: A0040010 | B70: Oficial | I70: =K70/J70*100 -> 20514.18392 | J70: 185 | K70: 37951.24025 | M70: 360 | N70: =K70/M70 -> 105.4201118
A71: A0030020 | B71: Obrero (2) | I71: =K71/J71*100 -> 27645.22523 | J71: 185 | K71: 51143.66667 | M71: 360 | N71: =K71/M71 -> 142.0657407
B76: SUBTOTAL $ | N76: =SUM(N70:N75) -> 247.4858525
B78: TOTAL COSTO DIRECTO $ | N78: =N43+N54+N65+N76 -> 128257.8515
B80: V. COSTOS INDIRECTOS
B82: Descripción | K82: Porcentaje | L82: Valor Total
B83: ADMINISTRACION | K83: 0.2 | L83: =N78*K83 -> 25651.57029
B84: IMPREVISTOS | K84: 0.05 | L84: =N78*K84 -> 6412.892573
B85: UTILIDAD | K85: 0.05 | L85: =N78*K85 -> 6412.892573
B86: SUBTOTAL $ | N86: =L83+L84+L85 -> 38477.35544
A88: PFinal01 | B88: Precio Unitario Total Aproximado al Peso $ | N88: =N78+N86 -> 166735.2069
G92: Firma
G93: Nombre:
G94: Representante Legal del Contratista o su Apoderado
G95: Matricula No. :
B97: OBSERVACIONES INTERVENTORÍA
G101: Firma
G102: Nombre:
G103: Representante Legal del Interventor o su Apoderado
G104: Matricula No. :
B105: Original: Archivo de Gestión Contractual ( Subdirección Administrativa)
B106: Copias : Unidad Ejecutora, Contratista, Interventor y Dirección Territorial.

Sheet 340.1 (hidden)
K1: CÓDIGO | L1: MINFRA-MN-FR-14
C2: INSTITUTO NACIONAL DE VIAS
C3: PROCESO MISIONAL INFRAESTRUCTURA VIAL | K3: VERSIÓN | L3: 1
C4: DIRECCION TECNICA
C5: ANALISIS DE PRECIOS UNITARIOS | K5: PÁGINA | L5: 1 | M5: DE | N5: 1
K9: FECHA | L9: DD | M9: MM | N9: AA
B11: UNIDAD EJECUTORA: | K11: DIRECCIÓN TERRITORIAL:
B18: CONTRATO No. | E18: DE
B19: OBJETO DEL CONTRATO
B22: CONTRATISTA
B24: INTERVENTOR
B27: FECHA CIERRE DE LICITACIÓN Y/O SELECCIÓN ABREVIADA
B29: DATOS ESPECÍFICOS
B30: ITEM | C30: DESCRIPCIÓN | L30: UNIDAD | N30: CANTIDAD
A31: Unidad | B31: 340.1 | C31: BASE ESTABILIZADA CON EMULSIÓN ASFÁLTICA TIPO BEE-38 | L31: m3
B33: I. EQUIPO
B35: DESCRIPCIÓN | I35: TIPO | K35: TARIFA/HORA | L35: RENDIMIENTO | N35: Vr. UNITARIO
A36: C0010160 | B36: Carrotanque Irrigador de asfalto, 1000 GALONES DE CAPACIDAD | K36: 86858.2 | M36: 30 | N36: =K36/M36 -> 2895.273333
A37: C0010611 | B37: Motoniveladora, potencia 140 HP, ancho de cuchilla 3,66 m, peso 11 ton. | K37: 95000 | M37: 30 | N37: =K37/M37 -> 3166.666667
A38: C0010923 | B38: Vibrocompatador, potencia 153 HP, peso 10 Ton. | K38: 78488.78403 | M38: 30 | N38: =K38/M38 -> 2616.292801
B41: HERRAMIENTA MENOR (%) | M41: 0.01 | N41: =N76*M41 -> 3.712287788
B43: SUBTOTAL $ | N43: =SUM(N36:N42) -> 8681.945089
B45: II. MATERIALES
B47: DESCRIPCIÓN | J47: UNIDAD | K47: CANTIDAD | L47: PRECIO UNIT. | N47: Vr. UNITARIO
A48: B0014300 | B48: Material de base (gradación 1) | J48: m3 | K48: 1.25 | M48: 56840 | N48: =K48*M48 -> 71050
B54: SUBTOTAL $ | N54: =SUM(N48:N53) -> 71050
B56: III. TRANSPORTES
B58: MATERIAL | H58: UNIDAD | I58: CANTIDAD (1) | J58: DISTANCIA (2) | K58: (1) * (2) | L58: TARIFA | N58: Vr. UNITARIO
A59: T0010023 | B59: Transporte de Material de Base | H59: m3k | I59: 1.25 | J59: 1 | K59: =I59*J59 -> 1.25 | L59: 1250 | N59: =K59*L59 -> 1562.5
B65: SUBTOTAL $ | N65: =N59+N60+N61+N62+N63 -> 1562.5
B67: IV. MANO DE OBRA
B69: TRABAJADOR | I69: JORNAL | J69: PRESTACIONES (%) | K69: JORNAL TOTAL | L69: RENDIMIENTO | N69: Vr. UNITARIO
A70: A0040010 | B70: Oficial | I70: =K70/J70*100 -> 20514.18392 | J70: 185 | K70: 37951.24025 | M70: 240 | N70: =K70/M70 -> 158.1301677
A71: A0030020 | B71: Obrero (2) | I71: =K71/J71*100 -> 27645.22523 | J71: 185 | K71: 51143.66667 | M71: 240 | N71: =K71/M71 -> 213.0986111
B76: SUBTOTAL $ | N76: =SUM(N70:N75) -> 371.2287788
B78: TOTAL COSTO DIRECTO $ | N78: =N43+N54+N65+N76 -> 81665.67387
B80: V. COSTOS INDIRECTOS
B82: Descripción | K82: Porcentaje | L82: Valor Total
B83: ADMINISTRACION | K83: 0.2 | L83: =N78*K83 -> 16333.13477
B84: IMPREVISTOS | K84: 0.05 | L84: =N78*K84 -> 4083.283693
B85: UTILIDAD | K85: 0.05 | L85: =N78*K85 -> 4083.283693
B86: SUBTOTAL $ | N86: =L83+L84+L85 -> 24499.70216
A88: PFinal01 | B88: Precio Unitario Total Aproximado al Peso $ | N88: =N78+N86 -> 106165.376
G92: Firma
G93: Nombre:
G94: Representante Legal del Contratista o su Apoderado
G95: Matricula No. :
B97: OBSERVACIONES INTERVENTORÍA
G101: Firma
G102: Nombre:
G103: Representante Legal del Interventor o su Apoderado
G104: Matricula No. :
B105: Original: Archivo de Gestión Contractual ( Subdirección Administrativa)
B106: Copias : Unidad Ejecutora, Contratista, Interventor y Dirección Territorial.

Sheet 341.1 BEC (hidden)
E2: ANÁLISIS DE PRECIOS UNITARIOS
A5: CARRETERA : | G5: ESPECIF GRAL:
A6: ITEM: | B6: 341.1 | C6: BASE ESTABILIZADA CON CEMENTO PORTLAND | G6: CUBS :
G7: UNIDAD : | H7: M3
G8: FECHA :
A9: I. EQUIPO
A10: Descripción | D10: Tipo | E10: Tarifa/Hora | F10: Rendimiento | G10: Valor-Unit.
A11: COMPACTADOR VIBRATORIO TIPO DYNAPAC CA 15 | E11: =+INSUMOS!F37 -> 116000 | F11: 25 | G11: =+E11/F11 -> 4640
A12: MOTONIVELADORA CAT. 120G O EQUIVALENTE | E12: =+INSUMOS!F36 -> 81000 | F12: 25 | G12: =+E12/F12 -> 3240
A13: CARROTANQUE PARA AGUA - 1000 GALONES | E13: =+INSUMOS!F38 -> 120000 | F13: 25 | G13: =+E13/F13 -> 4800
A14: PULVIMIXER | E14: 45000 | F14: 25 | G14: =+E14/F14 -> 1800
A15: HERRAMIENTA MENOR (5%MO) | G15: =+H39*0.05 -> 0
G16: Sub-Total | H16: =SUM(G11:G15) -> 14480
A17: II. MATERIALES EN OBRA
A18: Descripción | D18: Unidad | E18: Precio-Unit. | F18: Cantidad | G18: Valor-Unit.
A19: BASE GRANULAR | D19: M3 | E19: =+INSUMOS!E14 -> 35200 | F19: 1.3 | G19: =+F19*E19 -> 45760
A20: CEMENTO GRIS | D20: KG | E20: =+INSUMOS!E8 -> 73000 | F20: =1800*(0.03) -> 54 | G20: =+F20*E20 -> 3942000
A21: SEÑALES TEMPORALES (3% M. DE O.) | G21: =+H39*3/100 -> 0
G26: Sub-Total | H26: =SUM(G19:G25) -> 3987760
A27: III. TRANSPORTES
A28: Material | C28: Vol-peso ó Cant. | D28: Distancia | E28: M3-Km | F28: Tarifa | G28: Valor-Unit.
A29: BASES Y SUB-BASES | C29: =+F19 -> 1.3 | D29: =+INSUMOS!F14 -> 50 | E29: =+D29*C29 -> 65 | F29: =+INSUMOS!E19 -> 700 | G29: =+F29*E29 -> 45500
G31: Sub-Total | H31: =SUM(G29:G30) -> 45500
A32: IV. MANO DE OBRA
A33: Trabajador | B33: Cantidad | C33: Jornal | D33: Prestaciones | E33: Jornal Total | F33: Rendimiento | G33: Valor-Unit.
A34: OFICIAL | B34: 1 | C34: =+INSUMOS!D61 -> 53784 | D34: =+INSUMOS!E61 -> 0 | E34: =+D34*C34*B34 -> 0 | F34: =+F11*8 -> 200 | G34: =+E34/F34 -> 0
A35: OBREROS | B35: 4 | C35: =+INSUMOS!D62 -> 77216 | D35: =+INSUMOS!E61 -> 0 | E35: =+D35*C35*B35 -> 0 | F35: =+F12*8 -> 200 | G35: =+E35/F35 -> 0
G39: Sub-Total | H39: =SUM(G34:G38) -> 0
E41: Total Costo Directo | H41: =H16+H26+H31+H39 -> 4047740

Sheet 431.1.1 (hidden)
K1: CÓDIGO | L1: MINFRA-MN-FR-14
C2: INSTITUTO NACIONAL DE VIAS
C3: PROCESO MISIONAL INFRAESTRUCTURA VIAL | K3: VERSIÓN | L3: 1
C4: DIRECCION TECNICA
C5: ANALISIS DE PRECIOS UNITARIOS | K5: PÁGINA | L5: 1 | M5: DE | N5: 1
K9: FECHA | L9: DD | M9: MM | N9: AA
B11: UNIDAD EJECUTORA: | K11: DIRECCIÓN TERRITORIAL:
B18: CONTRATO No. | E18: DE
B19: OBJETO DEL CONTRATO
B22: CONTRATISTA
B24: INTERVENTOR
B27: FECHA CIERRE DE LICITACIÓN Y/O SELECCIÓN ABREVIADA
B29: DATOS ESPECÍFICOS
B30: ITEM | C30: DESCRIPCIÓN | L30: UNIDAD | N30: CANTIDAD
A31: Unidad | B31: 431.1.1 | C31: TRATAMIENTO SUPERFICIAL DOBLE CON EMULSIÓN CRR-2 TIPO I | L31: m2
B33: I. EQUIPO
B35: DESCRIPCIÓN | I35: TIPO | K35: TARIFA/HORA | L35: RENDIMIENTO | N35: Vr. UNITARIO
A36: C0010160 | B36: Carrotanque Irrigador de asfalto, 1000 GALONES DE CAPACIDAD | K36: =+CARGADOR -> 86858.2 | M36: 275 | N36: =K36/M36 -> 315.848
A37: C0010230 | B37: Compactador neumático de Potencia 70 HP, peso de 13 ton | K37: =+REGLA -> 132000 | M37: =M36 -> 275 | N37: =K37/M37 -> 480
A38: C0010250 | B38: Compresor (barrido y soplado) | K38: =+BARREDORA -> 46371.6 | M38: 275 | N38: =K38/M38 -> 168.624
A39: C0010410 | B39: Esparcidor de gravilla, Ancho de esparcimiento 3100mm, Velocidad de trabajo 10—20km2/h | K39: =+FORMALETAMET -> 76936 | M39: 275 | N39: =K39/M39 -> 279.7672727
B41: HERRAMIENTA MENOR (%) | M41: 0.01 | N41: =N76*M41 -> 0.6374480617
B43: SUBTOTAL $ | N43: =SUM(N36:N42) -> 1244.876721
B45: II. MATERIALES
B47: DESCRIPCIÓN | J47: UNIDAD | K47: CANTIDAD | L47: PRECIO UNIT. | N47: Vr. UNITARIO
A48: B0053112 | B48: Agregado para tratamiento superficial doble (primer riego) | J48: m3 | K48: 0.025 | M48: 40991.75037 | N48: =K48*M48 -> 1024.793759
A49: B0053114 | B49: Agregado para tratamiento superficial doble (segundo riego) | J49: m3 | K49: 0.013 | M49: 42176.13105 | N49: =K49*M49 -> 548.2897037
A50: B020008 | B50: Emulsión CRR-2 | J50: lt | K50: 4.24 | M50: 1967.68 | N50: =K50*M50 -> 8342.9632
B53: SUBTOTAL $ | N53: =SUM(N48:N52) -> 9916.046663
B55: III. TRANSPORTES
B57: MATERIAL | H57: UNIDAD | I57: CANTIDAD (1) | J57: DISTANCIA (2) | K57: (1) * (2) | L57: TARIFA | N57: Vr. UNITARIO
A58: T0010110 | B58: Transporte de agregados pétreos | H58: m3km | I58: 0.038 | J58: 1 | K58: 0.038 | L58: 1250 | N58: =K58*L58 -> 47.5
B64: SUBTOTAL $ | N64: =N58+N59+N60+N61+N62 -> 47.5
B66: IV. MANO DE OBRA
B68: TRABAJADOR | I68: JORNAL | J68: PRESTACIONES (%) | K68: JORNAL TOTAL | L68: RENDIMIENTO | N68: Vr. UNITARIO
A69: A0040010 | B69: Oficial | I69: =K69/J69*100 -> 20514.18392 | J69: 185 | K69: 37951.24025 | M69: 2200 | N69: =K69/M69 -> 17.25056375
A70: A0030040 | B70: Obrero (4) | I70: =K70/J70*100 -> 55290.45045 | J70: 185 | K70: 102287.3333 | M70: 2200 | N70: =K70/M70 -> 46.49424242
B76: SUBTOTAL $ | N76: =SUM(N69:N75) -> 63.74480617
B78: TOTAL COSTO DIRECTO $ | N78: =N43+N53+N64+N76 -> 11272.16819
B80: V. COSTOS INDIRECTOS
B82: Descripción | K82: Porcentaje | L82: Valor Total
B83: ADMINISTRACION | K83: 0.2 | L83: =N78*K83 -> 2254.433638
B84: IMPREVISTOS | K84: 0.05 | L84: =N78*K84 -> 563.6084095
B85: UTILIDAD | K85: 0.05 | L85: =N78*K85 -> 563.6084095
B86: SUBTOTAL $ | N86: =L83+L84+L85 -> 3381.650457
A88: PFinal01 | B88: Precio Unitario Total Aproximado al Peso $ | N88: =N78+N86 -> 14653.81865
G92: Firma
G93: Nombre:
G94: Representante Legal del Contratista o su Apoderado
G95: Matricula No. :
B97: OBSERVACIONES INTERVENTORÍA
G101: Firma
G102: Nombre:
G103: Representante Legal del Interventor o su Apoderado
G104: Matricula No. :
B105: Original: Archivo de Gestión Contractual ( Subdirección Administrativa)
B106: Copias : Unidad Ejecutora, Contratista, Interventor y Dirección Territorial.

Sheet 433.3 (hidden)
K1: CÓDIGO | L1: MINFRA-MN-FR-14
C2: INSTITUTO NACIONAL DE VIAS
C3: PROCESO MISIONAL INFRAESTRUCTURA VIAL | K3: VERSIÓN | L3: 1
C4: DIRECCION TECNICA
C5: ANALISIS DE PRECIOS UNITARIOS | K5: PÁGINA | L5: 1 | M5: DE | N5: 1
K9: FECHA | L9: DD | M9: MM | N9: AA
B11: UNIDAD EJECUTORA: | K11: DIRECCIÓN TERRITORIAL:
B18: CONTRATO No. | E18: DE
B19: OBJETO DEL CONTRATO
B22: CONTRATISTA
B24: INTERVENTOR
B27: FECHA CIERRE DE LICITACIÓN Y/O SELECCIÓN ABREVIADA
B29: DATOS ESPECÍFICOS
B30: ITEM | C30: DESCRIPCIÓN | L30: UNIDAD | N30: CANTIDAD
A31: Unidad | B31: 433.3 | C31: Lechada Asfáltica con Emulsión CRL-1h, tipo LA- 5 | L31: m2
B33: I. EQUIPO
B35: DESCRIPCIÓN | I35: TIPO | K35: TARIFA/HORA | L35: RENDIMIENTO | N35: Vr. UNITARIO
A36: C0010110 | B36: Camión de Slurry | K36: =+COMPNEU -> 103891.3658 | M36: 600 | N36: =K36/M36 -> 173.1522764
A37: C0010250 | B37: Compresor (barrido y soplado) | K37: =+BARREDORA -> 46371.6 | M37: 600 | N37: =K37/M37 -> 77.286
B41: HERRAMIENTA MENOR (%) | M41: 0.01 | N41: =N76*M41 -> 0.292163695
B43: SUBTOTAL $ | N43: =SUM(N36:N42) -> 250.7304401
B45: II. MATERIALES
